Workbook

Sheet Index
A1: ='Input| Setup'!E5&" "&'Input| Escalations'!D8 -> Ergon 2025-26
B2: AER Capex Forecast Model
B3: =IFERROR(MID(CELL("filename",A2),FIND("]",CELL("filename",A2))+1,255),"") -> Index | C3: Overall Check: | D3: ='Model Validation'!$C$5 -> 1 | E3: NOTE: if there is an error code here you can unhide the Model Validation tab to help you identify the error source.
B5: A guide to the cell colours used in this workbook
B7: Input | C7: This is where you must enter data. Green cells are in all of the green worksheets, and not in any other worksheet.
B8: Input - optional | C8: Entering data into these cells is optional. Most relate to decisions you make about the forecasting and allocation of capitalised overheads.
B9: Do not edit cell | C9: =" These cells are found in table "&LEFT('Input| Escalations'!B21,2)&" only. They cover a dynamic that depends on your selection of base year for inputs. Please only enter data in the green cells." -> These cells are found in table 12 only. They cover a dynamic that depends on your selection of base year for inputs. Please only enter data in the green cells.
B10: Formula - do not edit | C10: These cells have formulas and validations in them, including when they appear blank. Please do not edit these cells. All cells in the blue and orange worksheets are this type.
B11: AER Final Decision | C11: These cells indicate where a data input has been amended for the purposes of the AER's final decision.
B13: Worksheet summary
B15: Worksheet name (links) | C15: Check | E15: Input required? | G15: Description
B16: =IFERROR('Input| Setup'!B3,"") -> Input| Setup | C16: N/A | E16: Y | G16: Sets up the model with relevant years and output categories
B17: =IFERROR('Input| Escalations'!B3,"") -> Input| Escalations | C17: N/A | E17: Y | G17: Sets up the inflation and labour escalations
B18: =IFERROR('Input| Projects'!C3,"") -> Input| Projects | C18: ='Model Validation'!C9 -> 0 | E18: Y | G18: Forecast direct costs and other relevant forecast parameters are entered here.
B19: =IFERROR('Input| Disposals'!C3,"") -> Input| Disposals | C19: ='Model Validation'!C10 -> 0 | E19: Y | G19: Input for forecast disposals by PTRM category.
B20: =IFERROR('Input| Type 2 capcons'!B3,"") -> Input| Type 2 capcons | C20: ='Model Validation'!C11 -> 0 | E20: Y | G20: ="Input for type 2 capital contributions (a definition is given at table "&LEFT('Input| Type 2 capcons'!B5,2)&")" -> Input for type 2 capital contributions (a definition is given at table 24)
B21: =IFERROR('Input| Expensing'!B3,"") -> Input| Expensing | C21: ='Model Validation'!C12 -> 0 | E21: Y | G21: Input for forecast immediate expensing by PTRM category.
B22: =IFERROR('Input| Overheads'!B3,"") -> Input| Overheads | C22: ='Model Validation'!C13 -> 0 | E22: Y | G22: Input tables used to calculate forecast capitalised overheads.
B23: =IFERROR('Calc| Overheads Allocation'!B3,"") -> Calc| Overheads Allocation | C23: ='Model Validation'!C14 -> 0 | E23: N | G23: Calculation tables for forecast capitalised overheads and yearly allocation rates.
B24: =IFERROR('Calc| Project Costs'!C3,"") -> Calc| Project Costs | C24: ='Model Validation'!C15 -> 0 | E24: N | G24: Calculation tables for forecast capex outputs.
B25: =IFERROR('Output| PTRM (D)'!C3,"") -> Output| PTRM (D) | C25: ='Model Validation'!C16 -> 0 | E25: N | G25: Produces forecast capex and immediate expensing tables in PTRM format for distribution assets.
B26: Output| PTRM (T) | C26: ='Model Validation'!C17 -> 0 | E26: N | G26: Produces forecast capex and immediate expensing tables in PTRM format for transmission assets.
B27: =IFERROR('Output| RIN'!B3,"") -> Output| RIN | C27: ='Model Validation'!C18 -> 1 | E27: N | G27: Produces forecast capex tables analogous to Reset RIN table 2.1.1.
B28: =IFERROR('Output| AER'!B3,"") -> Output| AER | C28: ='Model Validation'!C19 -> 0 | E28: N | G28: Produces forecast capex by capex drivers that align with AER's standard assessment approach.
B29: =IFERROR('Model Validation'!B3,"") -> Model Validation | C29: ='Model Validation'!C5 -> 1 | E29: N | G29: Hidden tab. Compiles all validation cells in the model to facilitate troubleshooting.
B31: Table listing and description
B33: Table name | C33: Worksheet | E33: Input required? | G33: Description
B34: ='Input| Setup'!A5 -> 1. Business name | C34: =B16 -> Input| Setup | E34: Y | G34: Please enter your business name. This is shown in cell A1 in each worksheet in the model.
B35: ='Input| Setup'!B7 -> 2. Financial years | C35: =B16 -> Input| Setup | E35: N | G35: ="Provides reference range for FY drop-down boxes, based on your input in table "&LEFT(B43,2)&"." -> Provides reference range for FY drop-down boxes, based on your input in table 10.
B36: ='Input| Setup'!B18 -> 3. RIN categories | C36: =B16 -> Input| Setup | E36: N | G36: Aligns with Reset RIN table 2.1.1.
B37: ='Input| Setup'!B27 -> 4. AER categories | C37: =B16 -> Input| Setup | E37: N | G37: Aligns with AER's current assessment categories.
B38: ='Input| Setup'!B38 -> 5. Months | C38: =B16 -> Input| Setup | E38: N | G38: Provides reference range for month drop-down boxes (i.e. June for end-year and December for mid-year).
B39: ='Input| Setup'!B43 -> 6. Overhead switch | C39: =B16 -> Input| Setup | E39: N | G39: ="Assigns yes or no response in table "&LEFT(B51,2)&" as to whether the project attracts capitalised overheads." -> Assigns yes or no response in table 18 as to whether the project attracts capitalised overheads.
B40: ='Input| Setup'!B47 -> 7. Distribution/transmission switch | C40: =C39 -> Input| Setup | E40: N | G40: ="Assigns Distribution or Transmission response in table "&LEFT(B42,1)&"." -> Assigns Distribution or Transmission response in table 9.
B41: ='Input| Setup'!B51 -> 8. Overhead allocation method | C41: =C40 -> Input| Setup | E41: N | G41: ="Assigns the methodology for allocating overheads in table "&LEFT(B68,2)&"." -> Assigns the methodology for allocating overheads in table 35.
B42: ='Input| Setup'!E7 -> 9. PTRM asset classes | C42: =B16 -> Input| Setup | E42: Y | G42: Please enter your PTRM classes.
B43: ='Input| Escalations'!B5 -> 10. Inflation table setup | C43: =B17 -> Input| Escalations | E43: Y | G43: Please enter the first year of the forecast regulatory control period, and the real year basis for cost inputs. Please ensure it is in YYYY-YY format
B44: ='Input| Escalations'!B12 -> 11. Inflation | C44: =C43 -> Input| Escalations | E44: Y | G44: Calculates CPI escalators. Please enter CPI (year-on-year change, lagged 12-months).
B45: ='Input| Escalations'!B21 -> 12. Forecast real price escalation | C45: =C44 -> Input| Escalations | E45: N | G45: Calculates real price escalators. Please enter forecast yearly escalation for internal labour, contract labour and non-labour.
B46: ='Input| Projects'!C7 -> 13. Project Details | C46: =B18 -> Input| Projects | E46: Y | G46: Please enter full list of forecast projects and programs. The 'Unique ID' input refers to your own internal project code.
B47: ='Input| Projects'!F7 -> 14. RIN and optional DNSP mapping categories | C47: =B18 -> Input| Projects | E47: Y | G47: Please allocate project to a RIN category. You can also add a DNSP-defined category for your internal validation purposes (optional), but note this will not map to an output table.
B48: ='Input| Projects'!I7 -> 15. Unescalated direct costs (excluding type 2 capital contributions) ($'000s 2022-23 December) | C48: =B18 -> Input| Projects | E48: Y | G48: ="Please enter annual forecast direct capex for each project and in real dollars as set out in table "&LEFT(B43,2)&". Where applicable, rebates are to be included in gross connections capex. For clarity, 'direct costs' means all costs excluding capitalised overheads." -> Please enter annual forecast direct capex for each project and in real dollars as set out in table 10. Where applicable, rebates are to be included in gross connections capex. For clarity, 'direct costs' means all costs excluding capitalised overheads.
B49: ='Input| Projects'!Q7 -> 16. Type 1 capital contributions included in table 15 ($'000s 2022-23 December) | C49: =C48 -> Input| Projects | E49: Y | G49: ="Please enter total type 1 capital contributions, as defined in table "&LEFT(B57,2)&"." -> Please enter total type 1 capital contributions, as defined in table 24.
B50: ='Input| Projects'!Y7 -> 17. Cost components as % of direct costs | C50: =B18 -> Input| Projects | E50: Y | G50: Please enter the proportion of internal labour, contract labour and non-labour costs to total direct costs for each project (average over regulatory control period).
B51: ='Input| Projects'!AC7 -> 18. Capitalised overheads allocation | C51: =B18 -> Input| Projects | E51: Y | G51: Please indicate whether each project attracts capitalised network and/or corporate overheads.
B52: ='Input| Projects'!AF7 -> 19. Allocation of capitalised overheads - DNSP defined | C52: =C51 -> Input| Projects | E52: optional | G52: The model allows for allocation of overheads by direct costs, internal labour or a custom allocation method. Please complete this table only if you wish to do a custom allocation method.
B53: ='Input| Projects'!AI7 -> 20. AER categories as % of direct costs (i.e. total costs reported in table 15, excluding capitalised overheads) | C53: =B18 -> Input| Projects | E53: Y | G53: Please enter the proportion of directs costs for each project and program to be allocated to each AER category.
B54: ='Input| Projects'!AR7 -> 21. PTRM asset classes as % of direct costs (i.e. total costs reported in table 15, excluding capitalised overheads) | C54: =B18 -> Input| Projects | E54: Y | G54: Please enter the proportion of directs costs for each project and program to be allocated to each PTRM asset class.
B55: ='Input| Disposals'!D5 -> 22. Forecast asset disposals ($'000s 2022-23 December) | C55: =B19 -> Input| Disposals | E55: Y | G55: Please enter your forecast asset disposals by PTRM asset class.
B56: ='Input| Disposals'!O5 -> 23. Forecast asset disposals ($'000s June 2025) | C56: =B19 -> Input| Disposals | E56: N | G56: ="Converts table "&LEFT(B55,2)&" data to correct real year basis." -> Converts table 22 data to correct real year basis.
B57: ='Input| Type 2 capcons'!B5 -> 24. Forecast type 2 capital contributions ($'000s 2022-23 December) | C57: =B20 -> Input| Type 2 capcons | E57: Y | G57: Please enter your forecast type 2 capital contributions by RIN category. The definitions for type 1 and type 2 capcons are given at this table.
B58: ='Input| Type 2 capcons'!B22 -> 25. Cost components of type 2 capital contributions | C58: =B20 -> Input| Type 2 capcons | E58: Y | G58: Please enter internal labour, contract labour and non-labour costs as a proportion of forecast type 2 capcons.
B59: ='Input| Type 2 capcons'!B28 -> 26. Real price escalators for type 2 capital contributions | C59: =B20 -> Input| Type 2 capcons | E59: N | G59: ="Calculates real price escalation based on the inputs from table "&LEFT(B58,2)&"." -> Calculates real price escalation based on the inputs from table 25.
B60: ='Input| Type 2 capcons'!B34 -> 27. Forecast type 2 capital contributions, escalated ($'000s June 2025) | C60: =B20 -> Input| Type 2 capcons | E60: N | G60: ="Converts table "&LEFT(B57,2)&" data to correct escalated, real year basis." -> Converts table 24 data to correct escalated, real year basis.
B61: ='Input| Expensing'!C5 -> 28. Immediate expensing (% to be immediately expensed) | C61: =B21 -> Input| Expensing | E61: Y | G61: Please enter forecast immediate expensing of capex as a percentage of total gross capex by PTRM asset class.
B62: ='Input| Expensing'!M5 -> 29. Immediate expensing (% to be immediately expensed) - Distribution | C62: =B21 -> Input| Expensing | E62: N | G62: Filters the immediate expensing for distribution assets
B63: ='Input| Expensing'!W5 -> 30. Immediate expensing (% to be immediately expensed) - Transmission | C63: =B21 -> Input| Expensing | E63: N | G63: Filterts the immediate expensing for transmission assets
B64: ='Input| Overheads'!B5 -> 31. Forecast capitalised overheads for current period | C64: =B22 -> Input| Overheads | E64: Y | G64: ="Please enter forecast costs for the current period. If costs for year 4 are actuals, please enter them in table "&LEFT(B66,2)&" only." -> Please enter forecast costs for the current period. If costs for year 4 are actuals, please enter them in table 33 only.
B65: ='Input| Overheads'!B13 -> 32. Forecast capitalised overheads for forecast period - alternative method | C65: =B22 -> Input| Overheads | E65: optional | G65: OPTIONAL: please enter unescalated capitalised overheads in this table only if you wish to enter a substitute forecast for capitalised overheads instead of the default methodology (i.e. based on historicals).
B66: ='Input| Overheads'!B21 -> 33. Historical expenditure (nominal) | C66: =B22 -> Input| Overheads | E66: Y | G66: Please enter historical actual gross capex in nominal terms. Do not enter any forecast/estimated current period capex.
B67: ='Input| Overheads'!B33 -> 34. Forecast cost components of capitalised overheads | C67: =B22 -> Input| Overheads | E67: Y | G67: Please enter internal labour, contract labour and non-labour costs as a proportion of capitalised overheads.
B68: ='Input| Overheads'!B40 -> 35. Select an overheads allocation method | C68: =B22 -> Input| Overheads | E68: Y | G68: Please specify method to allocate capitalised overheads: allocation by direct costs, internal labour or own method (if you select own method, than instructions will appear below your selection).
B69: ='Calc| Overheads Allocation'!B5 -> 36. Overheads rate to be applied to forecast escalated direct costs (%) | C69: =$B$23 -> Calc| Overheads Allocation | E69: N | G69: Rate at which capitalised overheads are allocated to costs attracting overheads for each project.
B70: ='Calc| Overheads Allocation'!B14 -> 37. Capitalised overheads ($'000s June 2025) | C70: =$B$23 -> Calc| Overheads Allocation | E70: N | G70: Inflates historical actual capitalised overheads from nominal to real regulatory base dollars using CPI.
B71: ='Calc| Overheads Allocation'!B19 -> 38. Total costs that attract capitalised overheads ($'000s June 2025) | C71: Calc| Overheads Allocation | E71: N | G71: Inflates historical actual costs that attracts capitalised overheads from nominal to real regulatory base dollars using CPI.
B72: ='Calc| Overheads Allocation'!B26 -> 39. Escalated costs that attract overheads ($'000s June 2025) | C72: Calc| Overheads Allocation | E72: N | G72: Default method of forecasting capitalised overheads: compiles forecast direct capex that attracts capitalised overheads.
B73: ='Calc| Overheads Allocation'!B31 -> 40. Escalated capitalised internal labour costs that attract overheads ($'000s June 2025) | C73: Calc| Overheads Allocation | E73: N | G73: Default method of forecasting capitalised overheads: compiles forecast capitalised internal labour that attracts capitalised overheads.
B74: ='Calc| Overheads Allocation'!B35 -> 41. Change in costs attracting capitalised overheads | C74: Calc| Overheads Allocation | E74: N | G74: Default method of forecasting capitalised overheads: calculates the change in costs that attract capitalised overheads between current period actuals and forecast.
B75: ='Calc| Overheads Allocation'!B41 -> 42. Unescalated capitalised overheads ($'000s June 2025) | C75: Calc| Overheads Allocation | E75: N | G75: Default method of forecasting capitalised overheads: calculates forecast capitalised overheads based on the change in costs attracting overheads and assuming 25 per cent of capitalised overheads vary with changes in these costs.
B76: ='Calc| Overheads Allocation'!B47 -> 43. Annual unescalated capitalised overheads ($'000s June 2025) | C76: Calc| Overheads Allocation | E76: N | G76: ="Calculates annual forecast capitalised overheads either using data input by the distributor in table "&LEFT('Input| Overheads'!B21, 2)&" or based on the overhead rate calculated in table "&LEFT('Calc| Overheads Allocation'!B41,2)&"." -> Calculates annual forecast capitalised overheads either using data input by the distributor in table 33 or based on the overhead rate calculated in table 42.
B77: ='Calc| Overheads Allocation'!B53 -> 44. Real cost escalation - cumulative | C77: Calc| Overheads Allocation | E77: N | G77: Calculates real cost escalation applicable to forecast capitalised overheads.
B78: ='Calc| Overheads Allocation'!B58 -> 45. Forecast capitalised overheads | C78: Calc| Overheads Allocation | E78: N | G78: Output: total forecast capitalised overheads to be allocated to gross capex.
B79: ='Calc| Project Costs'!F7 -> 46. Direct unescalated costs, $000s ($2025 June) | C79: =$B$24 -> Calc| Project Costs | E79: N | G79: Inflates forecast direct costs from real base year for inputs to real regulatory base dollars using CPI.
B80: ='Calc| Project Costs'!N7 -> 47. Compound real cost escalation rates | C80: =$B$24 -> Calc| Project Costs | E80: N | G80: Calculates real price escalators for each project and program based on the proportion of internal labour, contract labour and non-labour costs to total gross direct capex.
B81: ='Calc| Project Costs'!V7 -> 48. Direct escalated costs ($'000s June 2025) | C81: =$B$24 -> Calc| Project Costs | E81: N | G81: Escalates direct costs using real price escalators.
B82: ='Calc| Project Costs'!AD7 -> 49. Direct escalated type 1 (cash) capcons ($'000s June 2025) | C82: Calc| Project Costs | E82: N | G82: Calculates escalated type 1 capital contributions.
B83: ='Calc| Project Costs'!AL7 -> 50. Network overheads ($'000s June 2025) | C83: Calc| Project Costs | E83: N | G83: ="Applies overhead rate based on selection in table "&LEFT(B68,2)&" to calculate allocation of capitalised network overheads." -> Applies overhead rate based on selection in table 35 to calculate allocation of capitalised network overheads.
B84: ='Calc| Project Costs'!AT7 -> 51. Corporate overheads ($'000s June 2025) | C84: Calc| Project Costs | E84: N | G84: ="Applies overhead rate based on selection in table "&LEFT(B68,2)&" to calculate allocation of capitalised corporate overheads." -> Applies overhead rate based on selection in table 35 to calculate allocation of capitalised corporate overheads.
B85: ='Calc| Project Costs'!BB7 -> 52. Total capitalised overheads ($'000s June 2025) | C85: Calc| Project Costs | E85: N | G85: Sums the total capitalised overheads.
B86: ='Calc| Project Costs'!BJ7 -> 53. Total overheads allocated to type 1 contributions ($'000s June 2025) | C86: Calc| Project Costs | E86: N | G86: Calculates allocation of capitalised overheads to type 1 capital contributions.
B87: ='Calc| Project Costs'!BR7 -> 54. Total escalated costs (excl. type 2 capcons) ($'000s June 2025) | C87: =$B$24 -> Calc| Project Costs | E87: N | G87: Calculates escalated gross capex (excluding type 2 capital contributions) for input into PTRM table.
B88: ='Calc| Project Costs'!BZ7 -> 55. Allocation to distribution and transmission | C88: =$B$24 -> Calc| Project Costs | E88: N | G88: Calculates proportion of costs allocated to either distribution or transmission, based on the PTRM asset class.
B89: ='Output| PTRM (D)'!C5 -> 56. Forecast gross capital expenditure – as incurred ($millions June 2025) (Distribution) | C89: =$B$25 -> Output| PTRM (D) | E89: N | G89: Output - distribution: gross forecast capex by PTRM asset class.
B90: ='Output| PTRM (D)'!C60 -> 57. Forecast capital contributions – Type 1 – as incurred ($millions June 2025) (Distribution) | C90: =$B$25 -> Output| PTRM (D) | E90: N | G90: Output - distribution: forecast type 1 (cash) capital contributions by PTRM asset class.
B91: ='Output| PTRM (D)'!C115 -> 58. Forecast asset disposals – as incurred ($millions June 2025) (Distribution) | C91: =$B$25 -> Output| PTRM (D) | E91: N | G91: Output - distribution: forecast asset disposals by PTRM asset class.
B92: ='Output| PTRM (D)'!C170 -> 59. Forecast net capital expenditure – as incurred ($millions June 2025) (Distribution) | C92: =$B$25 -> Output| PTRM (D) | E92: N | G92: Output - distribution: net forecast capex by PTRM asset class.
B93: ='Output| PTRM (D)'!L5 -> 60. Forecast immediate expensing of capital expenditure – as incurred ($millions June 2025) (Distribution) | C93: =$B$25 -> Output| PTRM (D) | E93: N | G93: Output - distribution: immediate expensing of capex by PTRM asset class.
B94: ='Output| PTRM (T)'!C5 -> 61. Forecast gross capital expenditure – as incurred ($millions June 2025) (Transmission) | C94: =$B$26 -> Output| PTRM (T) | E94: N | G94: Output - transmission: gross forecast capex by PTRM asset class.
B95: ='Output| PTRM (T)'!C60 -> 62. Forecast capital contributions – Type 1 – as incurred ($millions June 2025) (Transmission) | C95: =$B$26 -> Output| PTRM (T) | E95: N | G95: Output - transmission: forecast type 1 (cash) capital contributions by PTRM asset class.
B96: ='Output| PTRM (T)'!C115 -> 63. Forecast asset disposals – as incurred ($millions June 2025) (Transmission) | C96: =$B$26 -> Output| PTRM (T) | E96: N | G96: Output - transmission: forecast asset disposals by PTRM asset class.
B97: ='Output| PTRM (T)'!C170 -> 64. Forecast net capital expenditure – as incurred ($millions June 2025) (Transmission) | C97: =$B$26 -> Output| PTRM (T) | E97: N | G97: Output - transmission: net forecast capex by PTRM asset class.
B98: ='Output| PTRM (T)'!L5 -> 65. Forecast immediate expensing of capital expenditure – as incurred ($millions June 2025) (Transmission) | C98: =$B$26 -> Output| PTRM (T) | E98: N | G98: Output - transmission: immediate expensing of capex by PTRM asset class.
B99: ='Output| RIN'!B5 -> 66. RIN capex drivers: forecast capex ($000s June 2025) | C99: =B27 -> Output| RIN | E99: N | G99: Output: forecast capex - including gifted assets - by RIN category.
B100: ='Output| AER'!B5 -> 67. AER categories: forecast capex ($000s June 2025) | C100: =B28 -> Output| AER | E100: N | G100: Output: forecast capex by AER category.

Sheet Input| Setup
A1: ='Input| Setup'!E5&" "&'Input| Escalations'!D8 -> Ergon 2025-26
B2: =IFERROR(Index!B2,"") -> AER Capex Forecast Model | C2: Key: | E2: Input | F2: Formula - do not edit
B3: =IFERROR(MID(CELL("filename",A2),FIND("]",CELL("filename",A2))+1,255),"") -> Input| Setup
A5: 1. Business name | E5: Ergon
B7: =LEFT(A5,1)+1&". Financial years" -> 2. Financial years | E7: =LEFT(B51,1)+1&". PTRM asset classes" -> 9. PTRM asset classes | F7: Distribution or transmission
B8: =LEFT(B9,4)-1&"-"&RIGHT(B9,2)-1 -> 2018-19 | D8: 1 | E8: Overhead Sub-Transmission Lines | F8: Dx
B9: 2019-20 | D9: =D8+1 -> 2 | E9: Underground Sub-Transmission Cables | F9: Dx
B10: 2020-21 | D10: 3 | E10: Overhead Distribution Lines | F10: Dx
B11: 2021-22 | D11: 4 | E11: Underground Distribution Cables | F11: Dx
B12: 2022-23 | D12: 5 | E12: Distribution Equipment | F12: Dx
B13: 2023-24 | D13: 6 | E13: Substation Bays | F13: Dx
B14: 2024-25 | D14: 7 | E14: Substation Establishment | F14: Dx
B15: ='Input| Escalations'!D8 -> 2025-26 | D15: 8 | E15: Distribution Substation Switchgear | F15: Dx
D16: 9 | E16: Zone Transformers | F16: Dx
D17: 10 | E17: Distribution Transformers | F17: Dx
B18: =LEFT(B7,1)+1&". RIN categories" -> 3. RIN categories | D18: 11 | E18: Low Voltage Services | F18: Dx
B19: Replacement | D19: 12 | E19: Metering | F19: Dx
B20: Augmentation | D20: 13 | E20: Communications – Pilot Wires | F20: Dx
B21: Connections | D21: 14 | E21: Composite Poles | F21: Dx
B22: Non-network capex | D22: 15 | E22: Land & Easements (System) - combined | F22: Dx
B23: Capitalised network overheads | D23: 16 | E23: Land Improvements | F23: Dx
B24: Capitalised corporate overheads | D24: 17 | E24: Control Centre - SCADA | F24: Dx
D25: 18 | E25: Other Equipment | F25: Dx
D26: 19 | E26: Generation Assets | F26: Dx
B27: =LEFT(B18,1)+1&". AER categories" -> 4. AER categories | D27: 20 | E27: Motor Vehicles | F27: Dx
B28: Replacement | D28: 21 | E28: Plant & Equipment | F28: Dx
B29: DER | D29: 22 | E29: Buildings | F29: Dx
B30: Augmentation | D30: 23 | E30: Office Equipment & Furniture | F30: Dx
B31: Connections | D31: 24 | E31: Initial Leases (10 yr life) | F31: Dx
B32: ICT capex | D32: 25 | E32: Lease Extensions (5yr Life) | F32: Dx
B33: Property capex | D33: 26 | E33: Land & Easements - combined | F33: Dx
B34: Fleet capex | D34: 27 | E34: Communications | F34: Dx
B35: Other non-network capex | D35: 28 | E35: In-house software | F35: Dx
D36: 29 | E36: IT Systems | F36: Dx
D37: 30 | E37: ICT Legacy Assets | F37: Dx
B38: =LEFT(B27,1)+1&". Months" -> 5. Months | D38: 31 | E38: Buildings - capital works | F38: Dx
B39: June | D39: 32 | F39: Dx
B40: December | D40: 33 | F40: Dx
D41: 34 | F41: Dx
D42: 35 | F42: Dx
B43: =LEFT(B38,1)+1&". Overhead switch" -> 6. Overhead switch | D43: 36 | F43: Dx
B44: Yes | D44: 37 | F44: Dx
B45: No | D45: 38 | F45: Dx
D46: 39 | F46: Dx
B47: =LEFT(B43,1)+1&". Distribution/transmission switch" -> 7. Distribution/transmission switch | D47: 40 | F47: Dx
B48: Dx | D48: 41 | F48: Dx
B49: Tx | D49: 42 | F49: Dx
D50: 43 | F50: Dx
B51: =LEFT(B47,1)+1&". Overhead allocation method" -> 8. Overhead allocation method | D51: 44 | F51: Dx
B52: Direct costs | D52: 45 | F52: Dx
B53: Internal labour | D53: 46 | F53: Dx
B54: DNSP defined | D54: 47 | F54: Dx
D55: 48 | F55: Dx
D56: 49 | F56: Dx
D57: 50 | E57: Equity raising costs | F57: Dx

Sheet Input| Escalations
A1: ='Input| Setup'!E5&" "&'Input| Escalations'!D8 -> Ergon 2025-26
B2: =IFERROR(Index!B2,"") -> AER Capex Forecast Model | D2: Key: | E2: Input | F2: Do not edit cell | I2: Formula - do not edit
B3: =IFERROR(MID(CELL("filename",A2),FIND("]",CELL("filename",A2))+1,255),"") -> Input| Escalations | E3: AER Final decision
B5: =LEFT('Input| Setup'!E7,1)+1&". Inflation table setup" -> 10. Inflation table setup
D7: Year | E7: Month
B8: First year of forecast regulatory control period (YYYY-YY) | D8: 2025-26
B9: Base year for inputs | D9: 2022-23 | E9: December
B10: Base year for outputs | D10: =IFERROR(LEFT(D8,4),"") -> 2025 | E10: June
B12: =LEFT(B5,2)+1&". Inflation" -> 11. Inflation | D12: NOTE: please use a one year-lagged CPI series.
D14: =IFERROR((LEFT(E14,4)-1&IF(MID(E14,5,1)="","","-"&TEXT(MOD(MID(E14,6,2)-1,100),"00"))),"") -> 2019-20 | E14: 2020-21 | F14: 2021-22 | G14: 2022-23 | H14: 2023-24 | I14: 2024-25 | J14: =D8 -> 2025-26 | K14: =E10&" "&D10 -> June 2025
B15: CPI year on year change (%) - lagged one year (actual/estimate) | D15: 0.01840490798 | E15: 0.008605851979 | F15: 0.03498293515 | G15: 0.07831821929 | H15: 0.04051987768 | I15: 0.0242468773 | J15: 0.02719698595
B16: =E10&" "&D10&" estimate" -> June 2025 estimate
B17: Cumulative Inflation Index | D17: =IFERROR(1+D15,"") -> 1.018404908 | E17: =IFERROR(D17*(1+E15),"") -> 1.02716915 | F17: =E17*(1+F15) -> 1.063102542 | G17: =F17*(1+G15) -> 1.14636284 | H17: =G17*(1+H15) -> 1.192813322 | I17: =H17*(1+I15) -> 1.22173532 | J17: =I17*(1+J15) -> 1.254962838
B18: =IFERROR("Index: Nominal "&E9&" to "& "Real "&D10 &" "&LEFT(E10,9),"") -> Index: Nominal December to Real 2025 June | D18: =INDEX($D$17:$J$17,MATCH($D$10- 1,_xlfn.NUMBERVALUE(LEFT($D$14:$J$14,4)),0))/D$17*(1+D$15)^IF($E$9='Input| Setup'!$B$40,0.5,0) -> 1.210645209 | E18: =INDEX($D$17:$J$17,MATCH($D$10- 1,_xlfn.NUMBERVALUE(LEFT($D$14:$J$14,4)),0))/E$17*(1+E$15)^IF($E$9='Input| Setup'!$B$40,0.5,0) -> 1.194526817 | F18: =INDEX($D$17:$J$17,MATCH($D$10- 1,_xlfn.NUMBERVALUE(LEFT($D$14:$J$14,4)),0))/F$17*(1+F$15)^IF($E$9='Input| Setup'!$B$40,0.5,0) -> 1.169145514 | G18: =INDEX($D$17:$J$17,MATCH($D$10- 1,_xlfn.NUMBERVALUE(LEFT($D$14:$J$14,4)),0))/G$17*(1+G$15)^IF($E$9='Input| Setup'!$B$40,0.5,0) -> 1.10669641 | H18: =INDEX($D$17:$J$17,MATCH($D$10- 1,_xlfn.NUMBERVALUE(LEFT($D$14:$J$14,4)),0))/H$17*(1+H$15)^IF($E$9='Input| Setup'!$B$40,0.5,0) -> 1.044792002 | I18: =INDEX($D$17:$J$17,MATCH($D$10- 1,_xlfn.NUMBERVALUE(LEFT($D$14:$J$14,4)),0))/I$17*(1+I$15)^IF($E$9='Input| Setup'!$B$40,0.5,0) -> 1.012050827 | J18: =INDEX($D$17:$J$17,MATCH($D$10- 1,_xlfn.NUMBERVALUE(LEFT($D$14:$J$14,4)),0))/J$17*(1+J$15)^IF($E$9='Input| Setup'!$B$40,0.5,0) -> 0.986672745
B19: =IFERROR("Real "&D9 &" "&LEFT(E9,9)&" to "& "Real "&D10 &" "&LEFT(E10,9),"") -> Real 2022-23 December to Real 2025 June | K19: =INDEX(D14:J18,5,MATCH(D9,D14:J14)) -> 1.10669641
B21: =LEFT(B12,2)+1&". Forecast real price escalation" -> 12. Forecast real price escalation | D21: =IF(E9="June","NOTE: because you selected "&D9&" "&E9&" for inputs, please ensure you enter 6-month escalations for "&(LEFT(D9,4)+1&IF(MID(D9,5,1)="","","-"&TEXT(MOD(MID(D9,6,2)+1,100),"00"))),"") -> 
D23: =IF(C14<$D$9,"",D14) ->  | H23: 2023-24 | I23: 2024-25 | J23: =J14 -> 2025-26 | K23: =IFERROR((LEFT(J23,4)+1&IF(MID(J23,5,1)="","","-"&TEXT(MOD(MID(J23,6,2)+1,100),"00"))),"") -> 2026-27 | L23: =IFERROR((LEFT(K23,4)+1&IF(MID(K23,5,1)="","","-"&TEXT(MOD(MID(K23,6,2)+1,100),"00"))),"") -> 2027-28 | M23: =IFERROR((LEFT(L23,4)+1&IF(MID(L23,5,1)="","","-"&TEXT(MOD(MID(L23,6,2)+1,100),"00"))),"") -> 2028-29 | N23: =IFERROR((LEFT(M23,4)+1&IF(MID(M23,5,1)="","","-"&TEXT(MOD(MID(M23,6,2)+1,100),"00"))),"") -> 2029-30
B24: Annual escalation
B25: Internal labour | H25: 0.02025150326 | I25: 0.03697570668 | J25: 0.01108542632 | K25: 0.01087009067 | L25: 0.008746627838 | M25: 0.009531573652 | N25: 0.01151592523
B26: Contract labour | H26: 0 | I26: 0 | J26: 0 | K26: 0 | L26: 0 | M26: 0 | N26: 0
B27: Non-labour | H27: 0 | I27: 0 | J27: 0 | K27: 0 | L27: 0 | M27: 0 | N27: 0
B28: Index
B29: Internal labour | C29: 1 | D29: =IFERROR(C29*(1+D25),"") -> 1 | E29: 1 | F29: 1 | G29: =IFERROR(F29*(1+G25),"") -> 1 | H29: 1.020251503 | I29: 1.057976024 | J29: 1.069704139 | K29: 1.08133192 | L29: 1.090789928 | M29: 1.101186872 | N29: 1.113868058
B30: Contract labour | C30: 1 | D30: =IFERROR(C30*(1+D26),"") -> 1 | E30: 1 | F30: 1 | G30: 1 | H30: 1 | I30: 1 | J30: 1 | K30: 1 | L30: 1 | M30: 1 | N30: 1
B31: Non-labour | C31: 1 | D31: =IFERROR(C31*(1+D27),"") -> 1 | E31: 1 | F31: 1 | G31: 1 | H31: 1 | I31: 1 | J31: 1 | K31: 1 | L31: 1 | M31: 1 | N31: 1
B32: Cumulative
B33: Internal labour | D33: =IF(D29-1=0,0,D29-1) -> 0 | E33: 0 | F33: 0 | G33: =IF(G29-1=0,0,G29-1) -> 0 | H33: 0.02025150326 | I33: 0.05797602359 | J33: 0.06970413884 | K33: 0.08133191982 | L33: 0.09078992769 | M33: 0.1011868722 | N33: 0.1138680579
B34: Contract labour | D34: 0 | E34: 0 | F34: 0 | G34: 0 | H34: 0 | I34: 0 | J34: 0 | K34: 0 | L34: 0 | M34: 0 | N34: 0
B35: Non-labour | D35: 0 | E35: 0 | F35: 0 | G35: 0 | H35: 0 | I35: 0 | J35: 0 | K35: 0 | L35: 0 | M35: 0 | N35: 0
D37: ="Note: the grey cells below the enable conditional formatting in table "&LEFT(B21,2)&". Do not delete." -> Note: the grey cells below the enable conditional formatting in table 12. Do not delete.
D38: =IF(AND(D23="",E23=""),1,"") -> 1 | E38: 1 | F38: 1
D39: =IF(D23="",0,"") -> 0 | E39: 0 | F39: 0 | G39: 0

Sheet Input| Projects
A1: ='Input| Setup'!E5&" "&'Input| Escalations'!D8 -> Ergon 2025-26 | AR1: =COLUMN() -> 44
C2: =IFERROR(Index!B2,"") -> AER Capex Forecast Model | D2: Sheet Validation | E2: ='Model Validation'!$C$9 -> 0 | I2: Key: | J2: Input | K2: Input - optional | L2: Formula - do not edit
C3: =IFERROR(MID(CELL("filename",B2),FIND("]",CELL("filename",B2))+1,255),"") -> Input| Projects | J3: AER Final decision
I5: ="Total annual direct costs excl. type 2 capcons, unescalated (note: please include type 1 capital contributions as defined in table "&LEFT('Input| Type 2 capcons'!B5,2)&" and rebates where applicable)" -> Total annual direct costs excl. type 2 capcons, unescalated (note: please include type 1 capital contributions as defined in table 24 and rebates where applicable) | Q5: ="Total annual type 1 capital contributions, direct costs, unescalated (note: see table "&LEFT('Input| Type 2 capcons'!B5,2)&" for definitions of type 1 and 2 capcons)" -> Total annual type 1 capital contributions, direct costs, unescalated (note: see table 24 for definitions of type 1 and 2 capcons) | AF5: =IF(ROUND(SUM(AF10:AF1009),4)=0,0,IF(ROUND(SUM(AF10:AF1009),4)=1,0,1)) -> 0 | AG5: =IF(ROUND(SUM(AG10:AG1009),4)=0,0,IF(ROUND(SUM(AG10:AG1009),4)=1,0,1)) -> 0 | AR5: TRUE | AS5: TRUE | AT5: TRUE | AU5: TRUE | AV5: TRUE | AW5: TRUE | AX5: TRUE | AY5: TRUE | AZ5: TRUE | BA5: TRUE | BB5: TRUE | BC5: TRUE | BD5: TRUE | BE5: TRUE | BF5: TRUE | BG5: TRUE | BH5: TRUE | BI5: TRUE | BJ5: TRUE | BK5: TRUE | BL5: TRUE | BM5: TRUE | BN5: TRUE | BO5: TRUE | BP5: TRUE | BQ5: TRUE | BR5: TRUE | BS5: TRUE | BT5: TRUE | BU5: TRUE | BV5: TRUE
I6: =SUM(I10:I1009) -> 0 | J6: 0 | K6: 611025.7547 | L6: 608103.402 | M6: 611552.1344 | N6: 628547.4744 | O6: 655519.432 | Q6: =SUM(Q10:Q1009) -> 0 | R6: 0 | S6: 15489.8732 | T6: 14801.09165 | U6: 14660.15594 | V6: 14489.43668 | W6: 14271.20631 | AF6: ="NOTE: fill in table only if you select 'DNSP defined' overhead allocation in table "&LEFT('Input| Overheads'!B40,2) -> NOTE: fill in table only if you select 'DNSP defined' overhead allocation in table 35 | AR6: 1 | AS6: =AR6+1 -> 2 | AT6: =AS6+1 -> 3 | AU6: 4 | AV6: 5 | AW6: 6 | AX6: 7 | AY6: 8 | AZ6: 9 | BA6: 10 | BB6: 11 | BC6: 12 | BD6: 13 | BE6: 14 | BF6: 15 | BG6: 16 | BH6: 17 | BI6: 18 | BJ6: 19 | BK6: 20 | BL6: 21 | BM6: 22 | BN6: 23 | BO6: 24 | BP6: 25 | BQ6: =BP6+1 -> 26 | BR6: 27 | BS6: 28 | BT6: 29 | BU6: 30 | BV6: 31 | BW6: 32 | BX6: 33 | BY6: 34 | BZ6: 35 | CA6: 36 | CB6: 37 | CC6: 38 | CD6: 39 | CE6: 40 | CF6: 41 | CG6: 42 | CH6: 43 | CI6: 44 | CJ6: 45 | CK6: 46 | CL6: 47 | CM6: 48 | CN6: 49 | CO6: 50
C7: =LEFT('Input| Escalations'!B21,2)+1&". Project Details" -> 13. Project Details | F7: =LEFT(C7,2)+1&". RIN and optional DNSP mapping categories" -> 14. RIN and optional DNSP mapping categories | I7: =IFERROR(LEFT(F7,2)+1&". Unescalated direct costs (excluding type 2 capital contributions) ($'000s "&'Input| Escalations'!$D$9&" "&'Input| Escalations'!$E$9&")","") -> 15. Unescalated direct costs (excluding type 2 capital contributions) ($'000s 2022-23 December) | Q7: =LEFT(I7,2)+1&". Type 1 capital contributions included in table "&LEFT(I7,2)&" ($'000s "&'Input| Escalations'!$D$9&" "&'Input| Escalations'!$E$9&")" -> 16. Type 1 capital contributions included in table 15 ($'000s 2022-23 December) | Y7: =LEFT(Q7,2)+1&". Cost components as % of direct costs " -> 17. Cost components as % of direct costs | AC7: =LEFT(Y7,2)+1&". Capitalised overheads allocation" -> 18. Capitalised overheads allocation | AF7: =LEFT(AC7,2)+1&". Allocation of capitalised overheads - DNSP defined" -> 19. Allocation of capitalised overheads - DNSP defined | AI7: =LEFT(AF7,2)+1&". AER categories as % of direct costs (i.e. total costs reported in table "&LEFT(I7,2)& ", excluding capitalised overheads)" -> 20. AER categories as % of direct costs (i.e. total costs reported in table 15, excluding capitalised overheads) | AR7: =LEFT(AI7,2)+1&". PTRM asset classes as % of direct costs (i.e. total costs reported in table "&LEFT(I7,2)& ", excluding capitalised overheads)" -> 21. PTRM asset classes as % of direct costs (i.e. total costs reported in table 15, excluding capitalised overheads)
AB8: =IF(SUM(AB10:AB1009)=0,0,1) -> 0 | AF8: % of total capitalised overheads allocated to project: | AQ8: =IF(SUM(AQ10:AQ1009)=0,0,1) -> 0 | AR8: =IFERROR(IF(VLOOKUP(AR$6,'Input| Setup'!$D$8:$F$57,3,0)=0,"",VLOOKUP(AR$6,'Input| Setup'!$D$8:$F$57,3,0)),"") -> Dx | AS8: =IFERROR(IF(VLOOKUP(AS$6,'Input| Setup'!$D$8:$F$57,3,0)=0,"",VLOOKUP(AS$6,'Input| Setup'!$D$8:$F$57,3,0)),"") -> Dx | AT8: =IFERROR(IF(VLOOKUP(AT$6,'Input| Setup'!$D$8:$F$57,3,0)=0,"",VLOOKUP(AT$6,'Input| Setup'!$D$8:$F$57,3,0)),"") -> Dx | AU8: =IFERROR(IF(VLOOKUP(AU$6,'Input| Setup'!$D$8:$F$57,3,0)=0,"",VLOOKUP(AU$6,'Input| Setup'!$D$8:$F$57,3,0)),"") -> Dx | AV8: =IFERROR(IF(VLOOKUP(AV$6,'Input| Setup'!$D$8:$F$57,3,0)=0,"",VLOOKUP(AV$6,'Input| Setup'!$D$8:$F$57,3,0)),"") -> Dx | AW8: =IFERROR(IF(VLOOKUP(AW$6,'Input| Setup'!$D$8:$F$57,3,0)=0,"",VLOOKUP(AW$6,'Input| Setup'!$D$8:$F$57,3,0)),"") -> Dx | AX8: =IFERROR(IF(VLOOKUP(AX$6,'Input| Setup'!$D$8:$F$57,3,0)=0,"",VLOOKUP(AX$6,'Input| Setup'!$D$8:$F$57,3,0)),"") -> Dx | AY8: =IFERROR(IF(VLOOKUP(AY$6,'Input| Setup'!$D$8:$F$57,3,0)=0,"",VLOOKUP(AY$6,'Input| Setup'!$D$8:$F$57,3,0)),"") -> Dx | AZ8: =IFERROR(IF(VLOOKUP(AZ$6,'Input| Setup'!$D$8:$F$57,3,0)=0,"",VLOOKUP(AZ$6,'Input| Setup'!$D$8:$F$57,3,0)),"") -> Dx | BA8: =IFERROR(IF(VLOOKUP(BA$6,'Input| Setup'!$D$8:$F$57,3,0)=0,"",VLOOKUP(BA$6,'Input| Setup'!$D$8:$F$57,3,0)),"") -> Dx | BB8: =IFERROR(IF(VLOOKUP(BB$6,'Input| Setup'!$D$8:$F$57,3,0)=0,"",VLOOKUP(BB$6,'Input| Setup'!$D$8:$F$57,3,0)),"") -> Dx | BC8: =IFERROR(IF(VLOOKUP(BC$6,'Input| Setup'!$D$8:$F$57,3,0)=0,"",VLOOKUP(BC$6,'Input| Setup'!$D$8:$F$57,3,0)),"") -> Dx | BD8: =IFERROR(IF(VLOOKUP(BD$6,'Input| Setup'!$D$8:$F$57,3,0)=0,"",VLOOKUP(BD$6,'Input| Setup'!$D$8:$F$57,3,0)),"") -> Dx | BE8: =IFERROR(IF(VLOOKUP(BE$6,'Input| Setup'!$D$8:$F$57,3,0)=0,"",VLOOKUP(BE$6,'Input| Setup'!$D$8:$F$57,3,0)),"") -> Dx | BF8: =IFERROR(IF(VLOOKUP(BF$6,'Input| Setup'!$D$8:$F$57,3,0)=0,"",VLOOKUP(BF$6,'Input| Setup'!$D$8:$F$57,3,0)),"") -> Dx | BG8: =IFERROR(IF(VLOOKUP(BG$6,'Input| Setup'!$D$8:$F$57,3,0)=0,"",VLOOKUP(BG$6,'Input| Setup'!$D$8:$F$57,3,0)),"") -> Dx | BH8: =IFERROR(IF(VLOOKUP(BH$6,'Input| Setup'!$D$8:$F$57,3,0)=0,"",VLOOKUP(BH$6,'Input| Setup'!$D$8:$F$57,3,0)),"") -> Dx | BI8: =IFERROR(IF(VLOOKUP(BI$6,'Input| Setup'!$D$8:$F$57,3,0)=0,"",VLOOKUP(BI$6,'Input| Setup'!$D$8:$F$57,3,0)),"") -> Dx | BJ8: =IFERROR(IF(VLOOKUP(BJ$6,'Input| Setup'!$D$8:$F$57,3,0)=0,"",VLOOKUP(BJ$6,'Input| Setup'!$D$8:$F$57,3,0)),"") -> Dx | BK8: =IFERROR(IF(VLOOKUP(BK$6,'Input| Setup'!$D$8:$F$57,3,0)=0,"",VLOOKUP(BK$6,'Input| Setup'!$D$8:$F$57,3,0)),"") -> Dx | BL8: =IFERROR(IF(VLOOKUP(BL$6,'Input| Setup'!$D$8:$F$57,3,0)=0,"",VLOOKUP(BL$6,'Input| Setup'!$D$8:$F$57,3,0)),"") -> Dx | BM8: =IFERROR(IF(VLOOKUP(BM$6,'Input| Setup'!$D$8:$F$57,3,0)=0,"",VLOOKUP(BM$6,'Input| Setup'!$D$8:$F$57,3,0)),"") -> Dx | BN8: =IFERROR(IF(VLOOKUP(BN$6,'Input| Setup'!$D$8:$F$57,3,0)=0,"",VLOOKUP(BN$6,'Input| Setup'!$D$8:$F$57,3,0)),"") -> Dx | BO8: =IFERROR(IF(VLOOKUP(BO$6,'Input| Setup'!$D$8:$F$57,3,0)=0,"",VLOOKUP(BO$6,'Input| Setup'!$D$8:$F$57,3,0)),"") -> Dx | BP8: =IFERROR(IF(VLOOKUP(BP$6,'Input| Setup'!$D$8:$F$57,3,0)=0,"",VLOOKUP(BP$6,'Input| Setup'!$D$8:$F$57,3,0)),"") -> Dx | BQ8: =IFERROR(IF(VLOOKUP(BQ$6,'Input| Setup'!$D$8:$F$57,3,0)=0,"",VLOOKUP(BQ$6,'Input| Setup'!$D$8:$F$57,3,0)),"") -> Dx | BR8: =IFERROR(IF(VLOOKUP(BR$6,'Input| Setup'!$D$8:$F$57,3,0)=0,"",VLOOKUP(BR$6,'Input| Setup'!$D$8:$F$57,3,0)),"") -> Dx | BS8: =IFERROR(IF(VLOOKUP(BS$6,'Input| Setup'!$D$8:$F$57,3,0)=0,"",VLOOKUP(BS$6,'Input| Setup'!$D$8:$F$57,3,0)),"") -> Dx | BT8: =IFERROR(IF(VLOOKUP(BT$6,'Input| Setup'!$D$8:$F$57,3,0)=0,"",VLOOKUP(BT$6,'Input| Setup'!$D$8:$F$57,3,0)),"") -> Dx | BU8: =IFERROR(IF(VLOOKUP(BU$6,'Input| Setup'!$D$8:$F$57,3,0)=0,"",VLOOKUP(BU$6,'Input| Setup'!$D$8:$F$57,3,0)),"") -> Dx | BV8: =IFERROR(IF(VLOOKUP(BV$6,'Input| Setup'!$D$8:$F$57,3,0)=0,"",VLOOKUP(BV$6,'Input| Setup'!$D$8:$F$57,3,0)),"") -> Dx | BW8: =IFERROR(IF(VLOOKUP(BW$6,'Input| Setup'!$D$8:$F$57,3,0)=0,"",VLOOKUP(BW$6,'Input| Setup'!$D$8:$F$57,3,0)),"") -> Dx | BX8: =IFERROR(IF(VLOOKUP(BX$6,'Input| Setup'!$D$8:$F$57,3,0)=0,"",VLOOKUP(BX$6,'Input| Setup'!$D$8:$F$57,3,0)),"") -> Dx | BY8: =IFERROR(IF(VLOOKUP(BY$6,'Input| Setup'!$D$8:$F$57,3,0)=0,"",VLOOKUP(BY$6,'Input| Setup'!$D$8:$F$57,3,0)),"") -> Dx | BZ8: =IFERROR(IF(VLOOKUP(BZ$6,'Input| Setup'!$D$8:$F$57,3,0)=0,"",VLOOKUP(BZ$6,'Input| Setup'!$D$8:$F$57,3,0)),"") -> Dx | CA8: =IFERROR(IF(VLOOKUP(CA$6,'Input| Setup'!$D$8:$F$57,3,0)=0,"",VLOOKUP(CA$6,'Input| Setup'!$D$8:$F$57,3,0)),"") -> Dx | CB8: =IFERROR(IF(VLOOKUP(CB$6,'Input| Setup'!$D$8:$F$57,3,0)=0,"",VLOOKUP(CB$6,'Input| Setup'!$D$8:$F$57,3,0)),"") -> Dx | CC8: =IFERROR(IF(VLOOKUP(CC$6,'Input| Setup'!$D$8:$F$57,3,0)=0,"",VLOOKUP(CC$6,'Input| Setup'!$D$8:$F$57,3,0)),"") -> Dx | CD8: =IFERROR(IF(VLOOKUP(CD$6,'Input| Setup'!$D$8:$F$57,3,0)=0,"",VLOOKUP(CD$6,'Input| Setup'!$D$8:$F$57,3,0)),"") -> Dx | CE8: =IFERROR(IF(VLOOKUP(CE$6,'Input| Setup'!$D$8:$F$57,3,0)=0,"",VLOOKUP(CE$6,'Input| Setup'!$D$8:$F$57,3,0)),"") -> Dx | CF8: =IFERROR(IF(VLOOKUP(CF$6,'Input| Setup'!$D$8:$F$57,3,0)=0,"",VLOOKUP(CF$6,'Input| Setup'!$D$8:$F$57,3,0)),"") -> Dx | CG8: =IFERROR(IF(VLOOKUP(CG$6,'Input| Setup'!$D$8:$F$57,3,0)=0,"",VLOOKUP(CG$6,'Input| Setup'!$D$8:$F$57,3,0)),"") -> Dx | CH8: =IFERROR(IF(VLOOKUP(CH$6,'Input| Setup'!$D$8:$F$57,3,0)=0,"",VLOOKUP(CH$6,'Input| Setup'!$D$8:$F$57,3,0)),"") -> Dx | CI8: =IFERROR(IF(VLOOKUP(CI$6,'Input| Setup'!$D$8:$F$57,3,0)=0,"",VLOOKUP(CI$6,'Input| Setup'!$D$8:$F$57,3,0)),"") -> Dx | CJ8: =IFERROR(IF(VLOOKUP(CJ$6,'Input| Setup'!$D$8:$F$57,3,0)=0,"",VLOOKUP(CJ$6,'Input| Setup'!$D$8:$F$57,3,0)),"") -> Dx | CK8: =IFERROR(IF(VLOOKUP(CK$6,'Input| Setup'!$D$8:$F$57,3,0)=0,"",VLOOKUP(CK$6,'Input| Setup'!$D$8:$F$57,3,0)),"") -> Dx | CL8: =IFERROR(IF(VLOOKUP(CL$6,'Input| Setup'!$D$8:$F$57,3,0)=0,"",VLOOKUP(CL$6,'Input| Setup'!$D$8:$F$57,3,0)),"") -> Dx | CM8: =IFERROR(IF(VLOOKUP(CM$6,'Input| Setup'!$D$8:$F$57,3,0)=0,"",VLOOKUP(CM$6,'Input| Setup'!$D$8:$F$57,3,0)),"") -> Dx | CN8: =IFERROR(IF(VLOOKUP(CN$6,'Input| Setup'!$D$8:$F$57,3,0)=0,"",VLOOKUP(CN$6,'Input| Setup'!$D$8:$F$57,3,0)),"") -> Dx | CO8: =IFERROR(IF(VLOOKUP(CO$6,'Input| Setup'!$D$8:$F$57,3,0)=0,"",VLOOKUP(CO$6,'Input| Setup'!$D$8:$F$57,3,0)),"") -> Dx | CP8: =IF(SUM(CP10:CP1009)=0,0,1) -> 0
C9: Project/Program Inputs | D9: Unique ID | F9: RIN categories | G9: DNSP category (free-fill) | I9: 2023-24 | J9: 2024-25 | K9: 2025-26 | L9: 2026-27 | M9: 2027-28 | N9: 2028-29 | O9: 2029-30 | Q9: 2023-24 | R9: 2024-25 | S9: 2025-26 | T9: 2026-27 | U9: 2027-28 | V9: 2028-29 | W9: 2029-30 | Y9: Internal labour | Z9: Contract labour | AA9: Non-labour | AC9: Network Overheads Applies | AD9: Corporate Overheads Applies | AF9: % of total network overheads | AG9: % of total corporate overheads | AI9: Replacement | AJ9: DER | AK9: Augmentation | AL9: Connections | AM9: ICT capex | AN9: Property capex | AO9: Fleet capex | AP9: Other non-network capex | AR9: Overhead Sub-Transmission Lines | AS9: Underground Sub-Transmission Cables | AT9: Overhead Distribution Lines | AU9: Underground Distribution Cables | AV9: Distribution Equipment | AW9: Substation Bays | AX9: Substation Establishment | AY9: Distribution Substation Switchgear | AZ9: Zone Transformers | BA9: Distribution Transformers | BB9: Low Voltage Services | BC9: Metering | BD9: Communications – Pilot Wires | BE9: Composite Poles | BF9: Land & Easements (System) - combined | BG9: Land Improvements | BH9: Control Centre - SCADA | BI9: Other Equipment | BJ9: Generation Assets | BK9: Motor Vehicles | BL9: Plant & Equipment | BM9: Buildings | BN9: Office Equipment & Furniture | BO9: Initial Leases (10 yr life) | BP9: Lease Extensions (5yr Life) | BQ9: Land & Easements - combined | BR9: Communications | BS9: In-house software | BT9: IT Systems | BU9: ICT Legacy Assets | BV9: Buildings - capital works | CO9: Equity raising costs
B10: 1 | C10: Tools Base | D10: 1 | F10: Non-network capex | K10: 6002.426137 | L10: 5643.204309 | M10: 5770.26655 | N10: 5543.892075 | O10: 5407.226462 | S10: 0 | T10: 0 | U10: 0 | V10: 0 | W10: 0 | Y10: 0 | Z10: 0 | AA10: 1 | AB10: =IF(SUM(Y10:AA10,I10:O10)=0,"",IF(SUM(Y10:AA10)=1,"",1)) ->  | AC10: =IF(F10="Non-network capex","No","Yes") -> No | AD10: =IF(F10="Non-network capex","No",IF(Y10=0,"No","Yes")) -> No | AF10: =IF(F10="Non-network Capex",0,SUM($K10:$O10)/SUM($K$27:$O$383)) -> 0 | AG10: =IF(F10="Non-network Capex",0,(SUM($K10:$O10)*Y10)/SUM(SUMPRODUCT($K$27:$K$383,$Y$27:$Y$383),SUMPRODUCT($L$27:$L$383,$Y$27:$Y$383),SUMPRODUCT($M$27:$M$383,$Y$27:$Y$383),SUMPRODUCT($N$27:$N$383,$Y$27:$Y$383),SUMPRODUCT($O$27:$O$383,$Y$27:$Y$383))) -> 0 | AI10: 0 | AJ10: 0 | AK10: 0 | AL10: 0 | AM10: 0 | AN10: 0 | AO10: 0 | AP10: 1 | AQ10: =IF(SUM(AI10:AP10)=1,0,1) -> 0 | AR10: 0 | AS10: 0 | AT10: 0 | AU10: 0 | AV10: 0 | AW10: 0 | AX10: 0 | AY10: 0 | AZ10: 0 | BA10: 0 | BB10: 0 | BC10: 0 | BD10: 0 | BE10: 0 | BF10: 0 | BG10: 0 | BH10: 0 | BI10: 0 | BJ10: 0 | BK10: 0 | BL10: 1 | BM10: 0 | BN10: 0 | BO10: 0 | BP10: 0 | BQ10: 0 | BR10: 0 | BS10: 0 | BT10: 0 | BU10: 0 | BV10: 0 | CP10: =IF(COUNT(D10)=0,"",IF(SUM(AR10:CO10)=1,"",1)) -> 
B11: =IFERROR(B10+1,"") -> 2 | C11: Fleet Replacement Program - Non-network capex | D11: =IFERROR(D10+1,"") -> 2 | F11: Non-network capex | K11: 43227.55378 | L11: 46507.49983 | M11: 35450.49214 | N11: 30837.96909 | O11: 43752.29248 | S11: 0 | T11: 0 | U11: 0 | V11: 0 | W11: 0 | Y11: 0 | Z11: 0 | AA11: 1 | AC11: No | AD11: No | AF11: 0 | AG11: 0 | AI11: 0 | AJ11: 0 | AK11: 0 | AL11: 0 | AM11: 0 | AN11: 0 | AO11: 1 | AP11: 0 | AQ11: 0 | AR11: 0 | AS11: 0 | AT11: 0 | AU11: 0 | AV11: 0 | AW11: 0 | AX11: 0 | AY11: 0 | AZ11: 0 | BA11: 0 | BB11: 0 | BC11: 0 | BD11: 0 | BE11: 0 | BF11: 0 | BG11: 0 | BH11: 0 | BI11: 0 | BJ11: 0 | BK11: 1 | BL11: 0 | BM11: 0 | BN11: 0 | BO11: 0 | BP11: 0 | BQ11: 0 | BR11: 0 | BS11: 0 | BT11: 0 | BU11: 0 | BV11: 0
B12: =IFERROR(B11+1,"") -> 3 | C12: Major Property Project 1 - Non-network capex | D12: =IFERROR(D11+1,"") -> 3 | F12: Non-network capex | K12: 0 | L12: 0 | M12: 9680.060543 | N12: 3607.28541 | O12: 0 | S12: 0 | T12: 0 | U12: 0 | V12: 0 | W12: 0 | Y12: 0.09301615436 | Z12: 0.2045053196 | AA12: 0.7024785261 | AC12: No | AD12: No | AF12: 0 | AG12: 0 | AI12: 0 | AJ12: 0 | AK12: 0 | AL12: 0 | AM12: 0 | AN12: 1 | AO12: 0 | AP12: 0 | AQ12: 0 | AR12: 0 | AS12: 0 | AT12: 0 | AU12: 0 | AV12: 0 | AW12: 0 | AX12: 0 | AY12: 0 | AZ12: 0 | BA12: 0 | BB12: 0 | BC12: 0 | BD12: 0 | BE12: 0 | BF12: 0 | BG12: 0 | BH12: 0 | BI12: 0 | BJ12: 0 | BK12: 0 | BL12: 0 | BM12: 0 | BN12: 0.058 | BO12: 0 | BP12: 0 | BQ12: 0 | BR12: 0 | BS12: 0 | BT12: 0 | BU12: 0 | BV12: 0.942
B13: 4 | C13: Major Property Project 2 - Non-network capex | D13: 4 | F13: Non-network capex | K13: 0 | L13: 1784.638743 | M13: 6734.481985 | N13: 0 | O13: 0 | S13: 0 | T13: 0 | U13: 0 | V13: 0 | W13: 0 | Y13: 0.09294605809 | Z13: 0.2041493776 | AA13: 0.7029045643 | AC13: No | AD13: No | AF13: 0 | AG13: 0 | AI13: 0 | AJ13: 0 | AK13: 0 | AL13: 0 | AM13: 0 | AN13: 1 | AO13: 0 | AP13: 0 | AQ13: 0 | AR13: 0 | AS13: 0 | AT13: 0 | AU13: 0 | AV13: 0 | AW13: 0 | AX13: 0 | AY13: 0 | AZ13: 0 | BA13: 0 | BB13: 0 | BC13: 0 | BD13: 0 | BE13: 0 | BF13: 0 | BG13: 0 | BH13: 0 | BI13: 0 | BJ13: 0 | BK13: 0 | BL13: 0 | BM13: 0 | BN13: 0.058 | BO13: 0 | BP13: 0 | BQ13: 0 | BR13: 0 | BS13: 0 | BT13: 0 | BU13: 0 | BV13: 0.942
B14: 5 | C14: Major Property Project 3 - Non-network capex | D14: 5 | F14: Non-network capex | K14: 0 | L14: 0 | M14: 0 | N14: 13509.31761 | O14: 13574.53366 | S14: 0 | T14: 0 | U14: 0 | V14: 0 | W14: 0 | Y14: 0.09373446047 | Z14: 0.2063649925 | AA14: 0.699900547 | AC14: No | AD14: No | AF14: 0 | AG14: 0 | AI14: 0 | AJ14: 0 | AK14: 0 | AL14: 0 | AM14: 0 | AN14: 1 | AO14: 0 | AP14: 0 | AQ14: 0 | AR14: 0 | AS14: 0 | AT14: 0 | AU14: 0 | AV14: 0 | AW14: 0 | AX14: 0 | AY14: 0 | AZ14: 0 | BA14: 0 | BB14: 0 | BC14: 0 | BD14: 0 | BE14: 0 | BF14: 0 | BG14: 0 | BH14: 0 | BI14: 0 | BJ14: 0 | BK14: 0 | BL14: 0 | BM14: 0 | BN14: 0.058 | BO14: 0 | BP14: 0 | BQ14: 0 | BR14: 0 | BS14: 0 | BT14: 0 | BU14: 0 | BV14: 0.942
B15: 6 | C15: Major Property Project 4 - Non-network capex | D15: 6 | F15: Non-network capex | K15: 1543.814517 | L15: 209.8949663 | M15: 210.1342004 | N15: 210.1342004 | O15: 2684.89447 | S15: 0 | T15: 0 | U15: 0 | V15: 0 | W15: 0 | Y15: 0.09310344828 | Z15: 0.2025862069 | AA15: 0.7043103448 | AC15: No | AD15: No | AF15: 0 | AG15: 0 | AI15: 0 | AJ15: 0 | AK15: 0 | AL15: 0 | AM15: 0 | AN15: 1 | AO15: 0 | AP15: 0 | AQ15: 0 | AR15: 0 | AS15: 0 | AT15: 0 | AU15: 0 | AV15: 0 | AW15: 0 | AX15: 0 | AY15: 0 | AZ15: 0 | BA15: 0 | BB15: 0 | BC15: 0 | BD15: 0 | BE15: 0 | BF15: 0 | BG15: 0 | BH15: 0 | BI15: 0 | BJ15: 0 | BK15: 0 | BL15: 0 | BM15: 0 | BN15: 0.058 | BO15: 0 | BP15: 0 | BQ15: 0 | BR15: 0 | BS15: 0 | BT15: 0 | BU15: 0 | BV15: 0.942
B16: 7 | C16: Other Property Programs - Non-network capex | D16: 7 | F16: Non-network capex | K16: 27217.7701 | L16: 14198.98733 | M16: 11381.64199 | N16: 14233.17905 | O16: 15731.96226 | S16: 0 | T16: 0 | U16: 0 | V16: 0 | W16: 0 | Y16: 0.09284052964 | Z16: 0.204237112 | AA16: 0.7029223584 | AC16: No | AD16: No | AF16: 0 | AG16: 0 | AI16: 0 | AJ16: 0 | AK16: 0 | AL16: 0 | AM16: 0 | AN16: 1 | AO16: 0 | AP16: 0 | AQ16: 0 | AR16: 0 | AS16: 0 | AT16: 0 | AU16: 0 | AV16: 0 | AW16: 0 | AX16: 0 | AY16: 0 | AZ16: 0 | BA16: 0 | BB16: 0 | BC16: 0 | BD16: 0 | BE16: 0 | BF16: 0 | BG16: 0 | BH16: 0 | BI16: 0 | BJ16: 0 | BK16: 0 | BL16: 0 | BM16: 0 | BN16: 0.058 | BO16: 0 | BP16: 0 | BQ16: 0 | BR16: 0 | BS16: 0 | BT16: 0 | BU16: 0 | BV16: 0.942
B17: 8 | C17: Flinders St, Townsville - Non-network capex | D17: 8 | F17: Non-network capex | K17: 0 | L17: 0 | M17: 0 | N17: 13187.54804 | O17: 0 | S17: 0 | T17: 0 | U17: 0 | V17: 0 | W17: 0 | Y17: 0 | Z17: 0 | AA17: 1 | AC17: No | AD17: No | AF17: 0 | AG17: 0 | AI17: 0 | AJ17: 0 | AK17: 0 | AL17: 0 | AM17: 0 | AN17: 1 | AO17: 0 | AP17: 0 | AQ17: 0 | AR17: 0 | AS17: 0 | AT17: 0 | AU17: 0 | AV17: 0 | AW17: 0 | AX17: 0 | AY17: 0 | AZ17: 0 | BA17: 0 | BB17: 0 | BC17: 0 | BD17: 0 | BE17: 0 | BF17: 0 | BG17: 0 | BH17: 0 | BI17: 0 | BJ17: 0 | BK17: 0 | BL17: 0 | BM17: 0 | BN17: 0 | BO17: 0 | BP17: 1 | BQ17: 0 | BR17: 0 | BS17: 0 | BT17: 0 | BU17: 0 | BV17: 0
B18: 9 | C18: Bunda St, Cairns - Non-network capex | D18: 9 | F18: Non-network capex | K18: 0 | L18: 0 | M18: 0 | N18: 0 | O18: 2275.760891 | S18: 0 | T18: 0 | U18: 0 | V18: 0 | W18: 0 | Y18: 0 | Z18: 0 | AA18: 1 | AC18: No | AD18: No | AF18: 0 | AG18: 0 | AI18: 0 | AJ18: 0 | AK18: 0 | AL18: 0 | AM18: 0 | AN18: 1 | AO18: 0 | AP18: 0 | AQ18: 0 | AR18: 0 | AS18: 0 | AT18: 0 | AU18: 0 | AV18: 0 | AW18: 0 | AX18: 0 | AY18: 0 | AZ18: 0 | BA18: 0 | BB18: 0 | BC18: 0 | BD18: 0 | BE18: 0 | BF18: 0 | BG18: 0 | BH18: 0 | BI18: 0 | BJ18: 0 | BK18: 0 | BL18: 0 | BM18: 0 | BN18: 0 | BO18: 0 | BP18: 1 | BQ18: 0 | BR18: 0 | BS18: 0 | BT18: 0 | BU18: 0 | BV18: 0
B19: 10 | C19: ICT Business Case 1 - Non-network capex | D19: 10 | F19: Non-network capex | K19: 13246.49677 | L19: 9775.004481 | M19: 7842.382077 | N19: 7381.799944 | O19: 6234.496334 | S19: 0 | T19: 0 | U19: 0 | V19: 0 | W19: 0 | Y19: 0.4099427181 | Z19: 0.295028641 | AA19: 0.295028641 | AC19: No | AD19: No | AF19: 0 | AG19: 0 | AI19: 0 | AJ19: 0 | AK19: 0 | AL19: 0 | AM19: 1 | AN19: 0 | AO19: 0 | AP19: 0 | AQ19: 0 | AR19: 0 | AS19: 0 | AT19: 0 | AU19: 0 | AV19: 0 | AW19: 0 | AX19: 0 | AY19: 0 | AZ19: 0 | BA19: 0 | BB19: 0 | BC19: 0 | BD19: 0 | BE19: 0 | BF19: 0 | BG19: 0 | BH19: 0 | BI19: 0 | BJ19: 0 | BK19: 0 | BL19: 0 | BM19: 0 | BN19: 0 | BO19: 0 | BP19: 0 | BQ19: 0 | BR19: 0 | BS19: 1 | BT19: 0 | BU19: 0 | BV19: 0
B20: 11 | C20: ICT Business Case 2 - Non-network capex | D20: 11 | F20: Non-network capex | K20: 2193.089452 | L20: 2193.635352 | M20: 830.6141652 | N20: 830.9718511 | O20: 834.9771876 | S20: 0 | T20: 0 | U20: 0 | V20: 0 | W20: 0 | Y20: 0.4107648835 | Z20: 0.392823411 | AA20: 0.1964117055 | AC20: No | AD20: No | AF20: 0 | AG20: 0 | AI20: 0 | AJ20: 0 | AK20: 0 | AL20: 0 | AM20: 1 | AN20: 0 | AO20: 0 | AP20: 0 | AQ20: 0 | AR20: 0 | AS20: 0 | AT20: 0 | AU20: 0 | AV20: 0 | AW20: 0 | AX20: 0 | AY20: 0 | AZ20: 0 | BA20: 0 | BB20: 0 | BC20: 0 | BD20: 0 | BE20: 0 | BF20: 0 | BG20: 0 | BH20: 0 | BI20: 0 | BJ20: 0 | BK20: 0 | BL20: 0 | BM20: 0 | BN20: 0 | BO20: 0 | BP20: 0 | BQ20: 0 | BR20: 0 | BS20: 1 | BT20: 0 | BU20: 0 | BV20: 0
B21: 12 | C21: ICT Business Case 3 - Non-network capex | D21: 12 | F21: Non-network capex | K21: 6640.100026 | L21: 3325.850288 | M21: 3332.424031 | N21: 3043.018919 | O21: 3349.928477 | S21: 0 | T21: 0 | U21: 0 | V21: 0 | W21: 0 | Y21: 0.3387644415 | Z21: 0.4199069598 | AA21: 0.2413285987 | AC21: No | AD21: No | AF21: 0 | AG21: 0 | AI21: 0 | AJ21: 0 | AK21: 0 | AL21: 0 | AM21: 1 | AN21: 0 | AO21: 0 | AP21: 0 | AQ21: 0 | AR21: 0 | AS21: 0 | AT21: 0 | AU21: 0 | AV21: 0 | AW21: 0 | AX21: 0 | AY21: 0 | AZ21: 0 | BA21: 0 | BB21: 0 | BC21: 0 | BD21: 0 | BE21: 0 | BF21: 0 | BG21: 0 | BH21: 0 | BI21: 0 | BJ21: 0 | BK21: 0 | BL21: 0 | BM21: 0 | BN21: 0 | BO21: 0 | BP21: 0 | BQ21: 0 | BR21: 0 | BS21: 1 | BT21: 0 | BU21: 0 | BV21: 0
B22: 13 | C22: ICT Business Case 4 - Non-network capex | D22: 13 | F22: Non-network capex | K22: 6703.12459 | L22: 8137.856574 | M22: 3925.843624 | N22: 2915.041666 | O22: 8393.074272 | S22: 0 | T22: 0 | U22: 0 | V22: 0 | W22: 0 | Y22: 0.1454465144 | Z22: 0.5569663424 | AA22: 0.2975871432 | AC22: No | AD22: No | AF22: 0 | AG22: 0 | AI22: 0 | AJ22: 0 | AK22: 0 | AL22: 0 | AM22: 1 | AN22: 0 | AO22: 0 | AP22: 0 | AQ22: 0 | AR22: 0 | AS22: 0 | AT22: 0 | AU22: 0 | AV22: 0 | AW22: 0 | AX22: 0 | AY22: 0 | AZ22: 0 | BA22: 0 | BB22: 0 | BC22: 0 | BD22: 0 | BE22: 0 | BF22: 0 | BG22: 0 | BH22: 0 | BI22: 0 | BJ22: 0 | BK22: 0 | BL22: 0 | BM22: 0 | BN22: 0 | BO22: 0 | BP22: 0 | BQ22: 0 | BR22: 0 | BS22: 1 | BT22: 0 | BU22: 0 | BV22: 0
B23: 14 | C23: ICT Business Case 5 - Non-network capex | D23: 14 | F23: Non-network capex | K23: 5597.454554 | L23: 5409.876389 | M23: 5831.370062 | N23: 4580.779761 | O23: 4562.827544 | S23: 0 | T23: 0 | U23: 0 | V23: 0 | W23: 0 | Y23: 0.2223656639 | Z23: 0.3731174882 | AA23: 0.4045168479 | AC23: No | AD23: No | AF23: 0 | AG23: 0 | AI23: 0 | AJ23: 0 | AK23: 0 | AL23: 0 | AM23: 1 | AN23: 0 | AO23: 0 | AP23: 0 | AQ23: 0 | AR23: 0 | AS23: 0 | AT23: 0 | AU23: 0 | AV23: 0 | AW23: 0 | AX23: 0 | AY23: 0 | AZ23: 0 | BA23: 0 | BB23: 0 | BC23: 0 | BD23: 0 | BE23: 0 | BF23: 0 | BG23: 0 | BH23: 0 | BI23: 0 | BJ23: 0 | BK23: 0 | BL23: 0 | BM23: 0 | BN23: 0 | BO23: 0 | BP23: 0 | BQ23: 0 | BR23: 0 | BS23: 1 | BT23: 0 | BU23: 0 | BV23: 0
B24: 15 | C24: ICT Business Case 6 - Non-network capex | D24: 15 | F24: Non-network capex | K24: 6571.826273 | L24: 4018.765318 | M24: 2653.962123 | N24: 703.3116401 | O24: 482.2885073 | S24: 0 | T24: 0 | U24: 0 | V24: 0 | W24: 0 | Y24: 0.1921127086 | Z24: 0.5863992426 | AA24: 0.2214880488 | AC24: No | AD24: No | AF24: 0 | AG24: 0 | AI24: 0 | AJ24: 0 | AK24: 0 | AL24: 0 | AM24: 1 | AN24: 0 | AO24: 0 | AP24: 0 | AQ24: 0 | AR24: 0 | AS24: 0 | AT24: 0 | AU24: 0 | AV24: 0 | AW24: 0 | AX24: 0 | AY24: 0 | AZ24: 0 | BA24: 0 | BB24: 0 | BC24: 0 | BD24: 0 | BE24: 0 | BF24: 0 | BG24: 0 | BH24: 0 | BI24: 0 | BJ24: 0 | BK24: 0 | BL24: 0 | BM24: 0 | BN24: 0 | BO24: 0 | BP24: 0 | BQ24: 0 | BR24: 0 | BS24: 1 | BT24: 0 | BU24: 0 | BV24: 0
B25: 16 | C25: ICT Business Case 7 - Non-network capex | D25: 16 | F25: Non-network capex | K25: 12484.85748 | L25: 10274.21902 | M25: 9780.171836 | N25: 8236.149469 | O25: 10024.03564 | S25: 0 | T25: 0 | U25: 0 | V25: 0 | W25: 0 | Y25: 0.09025859731 | Z25: 0.1792270648 | AA25: 0.7305143379 | AC25: No | AD25: No | AF25: 0 | AG25: 0 | AI25: 0 | AJ25: 0 | AK25: 0 | AL25: 0 | AM25: 1 | AN25: 0 | AO25: 0 | AP25: 0 | AQ25: 0 | AR25: 0 | AS25: 0 | AT25: 0 | AU25: 0 | AV25: 0 | AW25: 0 | AX25: 0 | AY25: 0 | AZ25: 0 | BA25: 0 | BB25: 0 | BC25: 0 | BD25: 0 | BE25: 0 | BF25: 0 | BG25: 0 | BH25: 0 | BI25: 0 | BJ25: 0 | BK25: 0 | BL25: 0 | BM25: 0 | BN25: 0 | BO25: 0 | BP25: 0 | BQ25: 0 | BR25: 0 | BS25: 0.8181818182 | BT25: 0.1818181818 | BU25: 0 | BV25: 0
B26: 17 | C26: ICT Minor Upgrades & Updates - Non-network capex | D26: 17 | F26: Non-network capex | K26: 6278.70275 | L26: 3671.944474 | M26: 3301.12455 | N26: 1910.06532 | O26: 2782.251449 | S26: 0 | T26: 0 | U26: 0 | V26: 0 | W26: 0 | Y26: 0.1243549029 | Z26: 0.4776245984 | AA26: 0.3980204987 | AC26: No | AD26: No | AF26: 0 | AG26: 0 | AI26: 0 | AJ26: 0 | AK26: 0 | AL26: 0 | AM26: 1 | AN26: 0 | AO26: 0 | AP26: 0 | AQ26: 0 | AR26: 0 | AS26: 0 | AT26: 0 | AU26: 0 | AV26: 0 | AW26: 0 | AX26: 0 | AY26: 0 | AZ26: 0 | BA26: 0 | BB26: 0 | BC26: 0 | BD26: 0 | BE26: 0 | BF26: 0 | BG26: 0 | BH26: 0 | BI26: 0 | BJ26: 0 | BK26: 0 | BL26: 0 | BM26: 0 | BN26: 0 | BO26: 0 | BP26: 0 | BQ26: 0 | BR26: 0 | BS26: 1 | BT26: 0 | BU26: 0 | BV26: 0
B27: 18 | C27: Distribution Feeder Augmentation Voltage and Capacity | D27: New ID1 | F27: Augmentation | G27: Distribution Growth | K27: 15320 | L27: 16190 | M27: 17510 | N27: 18840 | O27: 20230 | S27: 0 | T27: 0 | U27: 0 | V27: 0 | W27: 0 | Y27: 0.6747653177 | Z27: 0.1125031271 | AA27: 0.2127315552 | AC27: Yes | AD27: Yes | AF27: 0.02956023789 | AG27: 0.04533940975 | AI27: 0 | AJ27: 0 | AK27: 1 | AL27: 0 | AM27: 0 | AN27: 0 | AO27: 0 | AP27: 0 | AQ27: 0 | AR27: 0 | AS27: 0 | AT27: 0.4 | AU27: 0 | AV27: 0 | AW27: 0.1 | AX27: 0 | AY27: 0.2 | AZ27: 0 | BA27: 0.3 | BB27: 0 | BC27: 0 | BD27: 0 | BE27: 0 | BF27: 0 | BG27: 0 | BH27: 0 | BI27: 0 | BJ27: 0 | BK27: 0 | BL27: 0 | BM27: 0 | BN27: 0 | BO27: 0 | BP27: 0 | BQ27: 0 | BR27: 0 | BS27: 0 | BT27: 0 | BU27: 0 | BV27: 0
B28: 19 | C28: Reactive Distribution Augmentation | D28: =IFERROR(D26+2,"") -> 19 | F28: Augmentation | G28: Distribution Growth | K28: 7706.482215 | L28: 7706.482215 | M28: 10713.60136 | N28: 12700.90031 | O28: 13455.67868 | S28: 0 | T28: 0 | U28: 0 | V28: 0 | W28: 0 | Y28: 0.2731359009 | Z28: 0.2435625821 | AA28: 0.483301517 | AC28: Yes | AD28: Yes | AF28: 0.01754458165 | AG28: 0.01089273628 | AI28: 0 | AJ28: 0 | AK28: 1 | AL28: 0 | AM28: 0 | AN28: 0 | AO28: 0 | AP28: 0 | AQ28: 0 | AR28: 0 | AS28: 0 | AT28: 0.32 | AU28: 0.09 | AV28: 0.02 | AW28: 0.2 | AX28: 0 | AY28: 0.16 | AZ28: 0 | BA28: 0.18 | BB28: 0 | BC28: 0.01 | BD28: 0.02 | BE28: 0 | BF28: 0 | BG28: 0 | BH28: 0 | BI28: 0 | BJ28: 0 | BK28: 0 | BL28: 0 | BM28: 0 | BN28: 0 | BO28: 0 | BP28: 0 | BQ28: 0 | BR28: 0 | BS28: 0 | BT28: 0 | BU28: 0 | BV28: 0
B29: 20 | C29: New Mobile Generation | D29: 20 | F29: Augmentation | G29: Resilience | K29: 2965.9285 | L29: 3856.428727 | M29: 1722.501077 | N29: 0 | O29: 0 | S29: 0 | T29: 0 | U29: 0 | V29: 0 | W29: 0 | Y29: 0.2395453275 | Z29: 0 | AA29: 0.7604546725 | AC29: Yes | AD29: Yes | AF29: 0.002867386131 | AG29: 0.001561309741 | AI29: 0 | AJ29: 0 | AK29: 1 | AL29: 0 | AM29: 0 | AN29: 0 | AO29: 0 | AP29: 0 | AQ29: 0 | AR29: 0 | AS29: 0 | AT29: 0 | AU29: 0 | AV29: 0 | AW29: 0 | AX29: 0 | AY29: 0 | AZ29: 0 | BA29: 0 | BB29: 0 | BC29: 0 | BD29: 0 | BE29: 0 | BF29: 0 | BG29: 0 | BH29: 0 | BI29: 0 | BJ29: 1 | BK29: 0 | BL29: 0 | BM29: 0 | BN29: 0 | BO29: 0 | BP29: 0 | BQ29: 0 | BR29: 0 | BS29: 0 | BT29: 0 | BU29: 0 | BV29: 0
B30: 21 | C30: Worst Performing Feeder Program | D30: 21 | F30: Augmentation | G30: Reliability | K30: 2400.345726 | L30: 2400.345726 | M30: 2400.345726 | N30: 2400.345726 | O30: 2400.345726 | S30: 0 | T30: 0 | U30: 0 | V30: 0 | W30: 0 | Y30: 0.7 | Z30: 0 | AA30: 0.3 | AC30: Yes | AD30: Yes | AF30: 0.004027403264 | AG30: 0.006408233717 | AI30: 0 | AJ30: 0 | AK30: 1 | AL30: 0 | AM30: 0 | AN30: 0 | AO30: 0 | AP30: 0 | AQ30: 0 | AR30: 0.13 | AS30: 0 | AT30: 0.31 | AU30: 0 | AV30: 0 | AW30: 0 | AX30: 0 | AY30: 0.56 | AZ30: 0 | BA30: 0 | BB30: 0 | BC30: 0 | BD30: 0 | BE30: 0 | BF30: 0 | BG30: 0 | BH30: 0 | BI30: 0 | BJ30: 0 | BK30: 0 | BL30: 0 | BM30: 0 | BN30: 0 | BO30: 0 | BP30: 0 | BQ30: 0 | BR30: 0 | BS30: 0 | BT30: 0 | BU30: 0 | BV30: 0
B31: 22 | C31: AUG RNS CA GLDE CI110 OHL - AUGEX | D31: 22 | F31: Augmentation | G31: Distribution Growth | K31: 850.2420288 | L31: 0 | M31: 0 | N31: 0 | O31: 0 | S31: 0 | T31: 0 | U31: 0 | V31: 0 | W31: 0 | Y31: 0.597677475 | Z31: 0.1217494858 | AA31: 0.2805730392 | AC31: Yes | AD31: Yes | AF31: 0.0002853145265 | AG31: 0.0003876198039 | AI31: 0 | AJ31: 0 | AK31: 1 | AL31: 0 | AM31: 0 | AN31: 0 | AO31: 0 | AP31: 0 | AQ31: 0 | AR31: 0 | AS31: 0 | AT31: 0.45 | AU31: 0 | AV31: 0 | AW31: 0 | AX31: 0 | AY31: 0.27 | AZ31: 0 | BA31: 0.28 | BB31: 0 | BC31: 0 | BD31: 0 | BE31: 0 | BF31: 0 | BG31: 0 | BH31: 0 | BI31: 0 | BJ31: 0 | BK31: 0 | BL31: 0 | BM31: 0 | BN31: 0 | BO31: 0 | BP31: 0 | BQ31: 0 | BR31: 0 | BS31: 0 | BT31: 0 | BU31: 0 | BV31: 0
B32: 23 | C32: Clearance to Ground & Structure Program | D32: 23 | F32: Replacement | G32: Clearance | K32: 20719.11 | L32: 19745.24 | M32: 19898.77 | N32: 18889.53 | O32: 20462.33 | S32: 0 | T32: 0 | U32: 0 | V32: 0 | W32: 0 | Y32: 0.5017229299 | Z32: 0.3629103797 | AA32: 0.1353666904 | AC32: Yes | AD32: Yes | AF32: 0.04789067262 | AG32: 0.05461728043 | AI32: 1 | AJ32: 0 | AK32: 0 | AL32: 0 | AM32: 0 | AN32: 0 | AO32: 0 | AP32: 0 | AQ32: 0 | AR32: 0.27 | AS32: 0 | AT32: 0.48 | AU32: 0 | AV32: 0 | AW32: 0.05 | AX32: 0 | AY32: 0 | AZ32: 0 | BA32: 0.2 | BB32: 0 | BC32: 0 | BD32: 0 | BE32: 0 | BF32: 0 | BG32: 0 | BH32: 0 | BI32: 0 | BJ32: 0 | BK32: 0 | BL32: 0 | BM32: 0 | BN32: 0 | BO32: 0 | BP32: 0 | BQ32: 0 | BR32: 0 | BS32: 0 | BT32: 0 | BU32: 0 | BV32: 0
B33: 24 | C33: New Feeder from Glenella to Planella | D33: 24 | F33: Augmentation | G33: Sub-Transmission Growth | K33: 2321.338337 | L33: 620.1515342 | M33: 11825.7091 | N33: 6681.050918 | O33: 4364.7971 | S33: 0 | T33: 0 | U33: 0 | V33: 0 | W33: 0 | Y33: 0.2034990746 | Z33: 0.4807833988 | AA33: 0.3157175266 | AC33: Yes | AD33: Yes | AF33: 0.008662048016 | AG33: 0.004006805032 | AI33: 0 | AJ33: 0 | AK33: 1 | AL33: 0 | AM33: 0 | AN33: 0 | AO33: 0 | AP33: 0 | AQ33: 0 | AR33: 0.65 | AS33: 0 | AT33: 0 | AU33: 0 | AV33: 0 | AW33: 0.1 | AX33: 0 | AY33: 0 | AZ33: 0.25 | BA33: 0 | BB33: 0 | BC33: 0 | BD33: 0 | BE33: 0 | BF33: 0 | BG33: 0 | BH33: 0 | BI33: 0 | BJ33: 0 | BK33: 0 | BL33: 0 | BM33: 0 | BN33: 0 | BO33: 0 | BP33: 0 | BQ33: 0 | BR33: 0 | BS33: 0 | BT33: 0 | BU33: 0 | BV33: 0
B34: 25 | C34: Establish Thebaban zone substation | D34: 26 | F34: Augmentation | G34: Sub-Transmission Growth | K34: 11769 | L34: 5494 | M34: 135 | N34: 102 | O34: 0 | S34: 0 | T34: 0 | U34: 0 | V34: 0 | W34: 0 | Y34: 0.5824711776 | Z34: 0 | AA34: 0.4175288224 | AC34: Yes | AD34: Yes | AF34: 0.005872450484 | AG34: 0.007775153801 | AI34: 0 | AJ34: 0 | AK34: 1 | AL34: 0 | AM34: 0 | AN34: 0 | AO34: 0 | AP34: 0 | AQ34: 0 | AR34: 0.2 | AS34: 0.02 | AT34: 0.15 | AU34: 0.03 | AV34: 0 | AW34: 0.39 | AX34: 0.16 | AY34: 0 | AZ34: 0.05 | BA34: 0 | BB34: 0 | BC34: 0 | BD34: 0 | BE34: 0 | BF34: 0 | BG34: 0 | BH34: 0 | BI34: 0 | BJ34: 0 | BK34: 0 | BL34: 0 | BM34: 0 | BN34: 0 | BO34: 0 | BP34: 0 | BQ34: 0 | BR34: 0 | BS34: 0 | BT34: 0 | BU34: 0 | BV34: 0
B35: 26 | C35: South Bundaberg New Circuit Breaker | D35: 27 | F35: Augmentation | G35: Sub-Transmission Growth | K35: 2191.537344 | L35: 1023.724431 | M35: 24.72071476 | N35: 19.54845472 | O35: 0 | S35: 0 | T35: 0 | U35: 0 | V35: 0 | W35: 0 | Y35: 0.5824711776 | Z35: 0 | AA35: 0.4175288224 | AC35: Yes | AD35: Yes | AF35: 0.001093796233 | AG35: 0.00144819168 | AI35: 0 | AJ35: 0 | AK35: 1 | AL35: 0 | AM35: 0 | AN35: 0 | AO35: 0 | AP35: 0 | AQ35: 0 | AR35: 0 | AS35: 0 | AT35: 0 | AU35: 0 | AV35: 0 | AW35: 1 | AX35: 0 | AY35: 0 | AZ35: 0 | BA35: 0 | BB35: 0 | BC35: 0 | BD35: 0 | BE35: 0 | BF35: 0 | BG35: 0 | BH35: 0 | BI35: 0 | BJ35: 0 | BK35: 0 | BL35: 0 | BM35: 0 | BN35: 0 | BO35: 0 | BP35: 0 | BQ35: 0 | BR35: 0 | BS35: 0 | BT35: 0 | BU35: 0 | BV35: 0
B36: 27 | C36: New Feeder from Emerald to Blackwater | D36: 28 | F36: Augmentation | G36: Sub-Transmission Growth | K36: 0.3495291081 | L36: 10.38428744 | M36: 381.6220139 | N36: 513.6400512 | O36: 19310.13823 | S36: 0 | T36: 0 | U36: 0 | V36: 0 | W36: 0 | Y36: 0.2466471507 | Z36: 0.001765819194 | AA36: 0.7515870301 | AC36: Yes | AD36: Yes | AF36: 0.006783899805 | AG36: 0.003803388708 | AI36: 0 | AJ36: 0 | AK36: 1 | AL36: 0 | AM36: 0 | AN36: 0 | AO36: 0 | AP36: 0 | AQ36: 0 | AR36: 0.65 | AS36: 0 | AT36: 0 | AU36: 0 | AV36: 0 | AW36: 0.1 | AX36: 0 | AY36: 0 | AZ36: 0.25 | BA36: 0 | BB36: 0 | BC36: 0 | BD36: 0 | BE36: 0 | BF36: 0 | BG36: 0 | BH36: 0 | BI36: 0 | BJ36: 0 | BK36: 0 | BL36: 0 | BM36: 0 | BN36: 0 | BO36: 0 | BP36: 0 | BQ36: 0 | BR36: 0 | BS36: 0 | BT36: 0 | BU36: 0 | BV36: 0
B37: 28 | C37: Establish Bohle Plains Zone Substation | D37: 29 | F37: Augmentation | G37: Sub-Transmission Growth | K37: 19.26089194 | L37: 689.4822397 | M37: 489.3885571 | N37: 13292.83293 | O37: 2818.354152 | S37: 0 | T37: 0 | U37: 0 | V37: 0 | W37: 0 | Y37: 0.1947743563 | Z37: 0.009364938897 | AA37: 0.7958607048 | AC37: Yes | AD37: Yes | AF37: 0.00580846385 | AG37: 0.002571628638 | AI37: 0 | AJ37: 0 | AK37: 1 | AL37: 0 | AM37: 0 | AN37: 0 | AO37: 0 | AP37: 0 | AQ37: 0 | AR37: 0.2 | AS37: 0.02 | AT37: 0.15 | AU37: 0.03 | AV37: 0 | AW37: 0.39 | AX37: 0.16 | AY37: 0 | AZ37: 0.05 | BA37: 0 | BB37: 0 | BC37: 0 | BD37: 0 | BE37: 0 | BF37: 0 | BG37: 0 | BH37: 0 | BI37: 0 | BJ37: 0 | BK37: 0 | BL37: 0 | BM37: 0 | BN37: 0 | BO37: 0 | BP37: 0 | BQ37: 0 | BR37: 0 | BS37: 0 | BT37: 0 | BU37: 0 | BV37: 0
B38: 29 | C38: Bushfire and Flood Business Case | D38: 30 | F38: Augmentation | G38: Resilience | K38: 2775.350572 | L38: 2774.998107 | M38: 2775.017102 | N38: 2775.031009 | O38: 2775.049231 | S38: 0 | T38: 0 | U38: 0 | V38: 0 | W38: 0 | Y38: 0.5859180804 | Z38: 0.03841632534 | AA38: 0.3756655943 | AC38: Yes | AD38: Yes | AF38: 0.004656163983 | AG38: 0.006201265876 | AI38: 0 | AJ38: 0 | AK38: 1 | AL38: 0 | AM38: 0 | AN38: 0 | AO38: 0 | AP38: 0 | AQ38: 0 | AR38: 0.22 | AS38: 0 | AT38: 0.46 | AU38: 0 | AV38: 0.02 | AW38: 0 | AX38: 0 | AY38: 0 | AZ38: 0.05 | BA38: 0.25 | BB38: 0 | BC38: 0 | BD38: 0 | BE38: 0 | BF38: 0 | BG38: 0 | BH38: 0 | BI38: 0 | BJ38: 0 | BK38: 0 | BL38: 0 | BM38: 0 | BN38: 0 | BO38: 0 | BP38: 0 | BQ38: 0 | BR38: 0 | BS38: 0 | BT38: 0 | BU38: 0 | BV38: 0
B39: 30 | C39: New Feeder from Pandoin to Farnborough | D39: 31 | F39: Augmentation | G39: Sub-Transmission Growth | K39: 164.9248985 | L39: 397.7694396 | M39: 1234.872223 | N39: 4174.691537 | O39: 7374.533946 | S39: 0 | T39: 0 | U39: 0 | V39: 0 | W39: 0 | Y39: 0.3472572459 | Z39: 0.2991776421 | AA39: 0.353565112 | AC39: Yes | AD39: Yes | AF39: 0.004478764309 | AG39: 0.003535287276 | AI39: 0 | AJ39: 0 | AK39: 1 | AL39: 0 | AM39: 0 | AN39: 0 | AO39: 0 | AP39: 0 | AQ39: 0 | AR39: 0.65 | AS39: 0 | AT39: 0 | AU39: 0 | AV39: 0 | AW39: 0.1 | AX39: 0 | AY39: 0 | AZ39: 0.25 | BA39: 0 | BB39: 0 | BC39: 0 | BD39: 0 | BE39: 0 | BF39: 0 | BG39: 0 | BH39: 0 | BI39: 0 | BJ39: 0 | BK39: 0 | BL39: 0 | BM39: 0 | BN39: 0 | BO39: 0 | BP39: 0 | BQ39: 0 | BR39: 0 | BS39: 0 | BT39: 0 | BU39: 0 | BV39: 0
B40: 31 | C40: Upgrade Chinchilla Zone Substation | D40: 32 | F40: Augmentation | G40: Sub-Transmission Growth | K40: 95.82737901 | L40: 631.9927939 | M40: 3618.558969 | N40: 7456.044347 | O40: 1183.42197 | S40: 0 | T40: 0 | U40: 0 | V40: 0 | W40: 0 | Y40: 0.2252641551 | Z40: 0 | AA40: 0.7747358449 | AC40: Yes | AD40: Yes | AF40: 0.004357641969 | AG40: 0.002231304393 | AI40: 0 | AJ40: 0 | AK40: 1 | AL40: 0 | AM40: 0 | AN40: 0 | AO40: 0 | AP40: 0 | AQ40: 0 | AR40: 0 | AS40: 0 | AT40: 0 | AU40: 0 | AV40: 0 | AW40: 0.7 | AX40: 0 | AY40: 0 | AZ40: 0.2 | BA40: 0 | BB40: 0 | BC40: 0 | BD40: 0 | BE40: 0 | BF40: 0 | BG40: 0 | BH40: 0.1 | BI40: 0 | BJ40: 0 | BK40: 0 | BL40: 0 | BM40: 0 | BN40: 0 | BO40: 0 | BP40: 0 | BQ40: 0 | BR40: 0 | BS40: 0 | BT40: 0 | BU40: 0 | BV40: 0
B41: 32 | C41: Backup Reach Protection Improvement Program | D41: 33 | F41: Augmentation | G41: SCADA, Protection and Control | K41: 0 | L41: 0 | M41: 0 | N41: 0 | O41: 0 | S41: 0 | T41: 0 | U41: 0 | V41: 0 | W41: 0 | Y41: 0.5938304643 | Z41: 0 | AA41: 0.4061695357 | AC41: Yes | AD41: Yes | AF41: 0.003197284029 | AG41: 0.004315775815 | AI41: 0 | AJ41: 0 | AK41: 1 | AL41: 0 | AM41: 0 | AN41: 0 | AO41: 0 | AP41: 0 | AQ41: 0 | AR41: 0 | AS41: 0 | AT41: 0.4 | AU41: 0 | AV41: 0 | AW41: 0 | AX41: 0 | AY41: 0.45 | AZ41: 0 | BA41: 0 | BB41: 0 | BC41: 0 | BD41: 0 | BE41: 0 | BF41: 0 | BG41: 0 | BH41: 0.15 | BI41: 0 | BJ41: 0 | BK41: 0 | BL41: 0 | BM41: 0 | BN41: 0 | BO41: 0 | BP41: 0 | BQ41: 0 | BR41: 0 | BS41: 0 | BT41: 0 | BU41: 0 | BV41: 0
B42: 33 | C42: OTE Cyber Security (part of Cyber program) | D42: 34 | F42: Non-network capex | G42: Cyber Security | K42: 3750 | L42: 4500 | M42: 2750 | N42: 2000 | O42: 1250 | S42: 0 | T42: 0 | U42: 0 | V42: 0 | W42: 0 | Y42: 0.1987118632 | Z42: 0 | AA42: 0.8012881368 | AC42: No | AD42: No | AF42: 0 | AG42: 0 | AI42: 0 | AJ42: 0 | AK42: 0 | AL42: 0 | AM42: 1 | AN42: 0 | AO42: 0 | AP42: 0 | AQ42: 0 | AR42: 0 | AS42: 0 | AT42: 0 | AU42: 0 | AV42: 0 | AW42: 0 | AX42: 0 | AY42: 0 | AZ42: 0 | BA42: 0 | BB42: 0 | BC42: 0 | BD42: 0 | BE42: 0 | BF42: 0 | BG42: 0 | BH42: 1 | BI42: 0 | BJ42: 0 | BK42: 0 | BL42: 0 | BM42: 0 | BN42: 0 | BO42: 0 | BP42: 0 | BQ42: 0 | BR42: 0 | BS42: 0 | BT42: 0 | BU42: 0 | BV42: 0
B43: 34 | C43: New Mobile Substation | D43: 35 | F43: Augmentation | G43: Resilience | K43: 0 | L43: 2013.001699 | M43: 3211.028506 | N43: 0 | O43: 2619.903986 | S43: 0 | T43: 0 | U43: 0 | V43: 0 | W43: 0 | Y43: 0.08798471282 | Z43: 0 | AA43: 0.9120152872 | AC43: Yes | AD43: Yes | AF43: 0.002632178008 | AG43: 0.0005264264015 | AI43: 0 | AJ43: 0 | AK43: 1 | AL43: 0 | AM43: 0 | AN43: 0 | AO43: 0 | AP43: 0 | AQ43: 0 | AR43: 0 | AS43: 0 | AT43: 0 | AU43: 0 | AV43: 0.1 | AW43: 0.65 | AX43: 0 | AY43: 0.05 | AZ43: 0.15 | BA43: 0.05 | BB43: 0 | BC43: 0 | BD43: 0 | BE43: 0 | BF43: 0 | BG43: 0 | BH43: 0 | BI43: 0 | BJ43: 0 | BK43: 0 | BL43: 0 | BM43: 0 | BN43: 0 | BO43: 0 | BP43: 0 | BQ43: 0 | BR43: 0 | BS43: 0 | BT43: 0 | BU43: 0 | BV43: 0
B44: 35 | C44: Upgrade Cloncurry Supply | D44: 36 | F44: Augmentation | G44: Sub-Transmission Growth | K44: 579.2421013 | L44: 6807.341665 | M44: 3.806483826 | N44: 0 | O44: 0 | S44: 0 | T44: 0 | U44: 0 | V44: 0 | W44: 0 | Y44: 0.2473251953 | Z44: 0.06381333361 | AA44: 0.6888614711 | AC44: Yes | AD44: Yes | AF44: 0.002479982903 | AG44: 0.001394222967 | AI44: 0 | AJ44: 0 | AK44: 1 | AL44: 0 | AM44: 0 | AN44: 0 | AO44: 0 | AP44: 0 | AQ44: 0 | AR44: 0.2 | AS44: 0 | AT44: 0.3 | AU44: 0 | AV44: 0 | AW44: 0.1 | AX44: 0 | AY44: 0.2 | AZ44: 0.05 | BA44: 0.15 | BB44: 0 | BC44: 0 | BD44: 0 | BE44: 0 | BF44: 0 | BG44: 0 | BH44: 0 | BI44: 0 | BJ44: 0 | BK44: 0 | BL44: 0 | BM44: 0 | BN44: 0 | BO44: 0 | BP44: 0 | BQ44: 0 | BR44: 0 | BS44: 0 | BT44: 0 | BU44: 0 | BV44: 0
B45: 36 | C45: Grid Control Operational LV Model | D45: 37 | F45: Augmentation | G45: SCADA, Protection and Control | K45: 1431.650541 | L45: 1431.193957 | M45: 1431.187924 | N45: 1431.174533 | O45: 1431.197514 | S45: 0 | T45: 0 | U45: 0 | V45: 0 | W45: 0 | Y45: 0.8605236109 | Z45: 0 | AA45: 0.1394763891 | AC45: Yes | AD45: Yes | AF45: 0.002401464622 | AG45: 0.004697363501 | AI45: 0 | AJ45: 0 | AK45: 1 | AL45: 0 | AM45: 0 | AN45: 0 | AO45: 0 | AP45: 0 | AQ45: 0 | AR45: 0 | AS45: 0 | AT45: 0 | AU45: 0 | AV45: 0 | AW45: 0 | AX45: 0 | AY45: 0 | AZ45: 0 | BA45: 0 | BB45: 0 | BC45: 0.15 | BD45: 0.25 | BE45: 0 | BF45: 0 | BG45: 0 | BH45: 0.6 | BI45: 0 | BJ45: 0 | BK45: 0 | BL45: 0 | BM45: 0 | BN45: 0 | BO45: 0 | BP45: 0 | BQ45: 0 | BR45: 0 | BS45: 0 | BT45: 0 | BU45: 0 | BV45: 0
B46: 37 | C46: Grid Control Distribution Management System Version Upgrade | D46: 38 | F46: Augmentation | G46: SCADA, Protection and Control | K46: 1226.086277 | L46: 1186.092216 | M46: 1227.966806 | N46: 1266.404239 | O46: 1301.569131 | S46: 0 | T46: 0 | U46: 0 | V46: 0 | W46: 0 | Y46: 0.9928112063 | Z46: 0.007188793714 | AA46: 0 | AC46: Yes | AD46: Yes | AF46: 0.002083249685 | AG46: 0.004701356453 | AI46: 0 | AJ46: 0 | AK46: 1 | AL46: 0 | AM46: 0 | AN46: 0 | AO46: 0 | AP46: 0 | AQ46: 0 | AR46: 0 | AS46: 0 | AT46: 0 | AU46: 0 | AV46: 0 | AW46: 0 | AX46: 0 | AY46: 0 | AZ46: 0 | BA46: 0 | BB46: 0 | BC46: 0.02 | BD46: 0.05 | BE46: 0 | BF46: 0 | BG46: 0 | BH46: 0.93 | BI46: 0 | BJ46: 0 | BK46: 0 | BL46: 0 | BM46: 0 | BN46: 0 | BO46: 0 | BP46: 0 | BQ46: 0 | BR46: 0 | BS46: 0 | BT46: 0 | BU46: 0 | BV46: 0
B47: 38 | C47: Stand-alone Power System Trial Program | D47: 39 | F47: Augmentation | G47: Resilience | K47: 0 | L47: 0 | M47: 0 | N47: 0 | O47: 0 | S47: 0 | T47: 0 | U47: 0 | V47: 0 | W47: 0 | Y47: 0.275893548 | Z47: 0.6279096892 | AA47: 0.0961967628 | AC47: Yes | AD47: Yes | AF47: 0 | AG47: 0 | AI47: 0 | AJ47: 0 | AK47: 1 | AL47: 0 | AM47: 0 | AN47: 0 | AO47: 0 | AP47: 0 | AQ47: 0 | AR47: 0.1 | AS47: 0.01 | AT47: 0.42 | AU47: 0.08 | AV47: 0.01 | AW47: 0.11 | AX47: 0.03 | AY47: 0.04 | AZ47: 0.02 | BA47: 0.11 | BB47: 0.03 | BC47: 0.01 | BD47: 0.01 | BE47: 0 | BF47: 0.01 | BG47: 0.01 | BH47: 0 | BI47: 0 | BJ47: 0 | BK47: 0 | BL47: 0 | BM47: 0 | BN47: 0 | BO47: 0 | BP47: 0 | BQ47: 0 | BR47: 0 | BS47: 0 | BT47: 0 | BU47: 0 | BV47: 0
B48: 39 | C48: GRID COMMS - Capacity Upgrade Fibre and DO WAN | D48: 40 | F48: Augmentation | G48: SCADA, Protection and Control | K48: 1126.150197 | L48: 1129.399269 | M48: 1130.797236 | N48: 1132.238662 | O48: 1133.646 | S48: 0 | T48: 0 | U48: 0 | V48: 0 | W48: 0 | Y48: 0.5141268503 | Z48: 0 | AA48: 0.4858731497 | AC48: Yes | AD48: Yes | AF48: 0.001896711361 | AG48: 0.002216596872 | AI48: 0 | AJ48: 0 | AK48: 1 | AL48: 0 | AM48: 0 | AN48: 0 | AO48: 0 | AP48: 0 | AQ48: 0 | AR48: 0 | AS48: 0 | AT48: 0 | AU48: 0 | AV48: 0 | AW48: 0 | AX48: 0 | AY48: 0 | AZ48: 0 | BA48: 0 | BB48: 0 | BC48: 0 | BD48: 0.05 | BE48: 0 | BF48: 0 | BG48: 0 | BH48: 0.95 | BI48: 0 | BJ48: 0 | BK48: 0 | BL48: 0 | BM48: 0 | BN48: 0 | BO48: 0 | BP48: 0 | BQ48: 0 | BR48: 0 | BS48: 0 | BT48: 0 | BU48: 0 | BV48: 0
B49: 40 | C49: Grid Control Distribution Management System Advanced Functions | D49: 41 | F49: Augmentation | G49: SCADA, Protection and Control | K49: 1056.49834 | L49: 1056.339305 | M49: 1056.449089 | N49: 1056.561399 | O49: 1056.705176 | S49: 0 | T49: 0 | U49: 0 | V49: 0 | W49: 0 | Y49: 0.7391468337 | Z49: 0.2178080695 | AA49: 0.04304509677 | AC49: Yes | AD49: Yes | AF49: 0.001772659014 | AG49: 0.002978318294 | AI49: 0 | AJ49: 0 | AK49: 1 | AL49: 0 | AM49: 0 | AN49: 0 | AO49: 0 | AP49: 0 | AQ49: 0 | AR49: 0 | AS49: 0 | AT49: 0 | AU49: 0 | AV49: 0 | AW49: 0 | AX49: 0 | AY49: 0 | AZ49: 0 | BA49: 0 | BB49: 0 | BC49: 0.1 | BD49: 0.05 | BE49: 0 | BF49: 0 | BG49: 0 | BH49: 0.85 | BI49: 0 | BJ49: 0 | BK49: 0 | BL49: 0 | BM49: 0 | BN49: 0 | BO49: 0 | BP49: 0 | BQ49: 0 | BR49: 0 | BS49: 0 | BT49: 0 | BU49: 0 | BV49: 0
B50: 41 | C50: Moorvale Supply Reinforcement | D50: 42 | F50: Augmentation | G50: Sub-Transmission Growth | K50: 217.9461484 | L50: 570.6923641 | M50: 2852.745037 | N50: 1271.509096 | O50: 0 | S50: 0 | T50: 0 | U50: 0 | V50: 0 | W50: 0 | Y50: 0.3584087511 | Z50: 0.2265782231 | AA50: 0.4150130258 | AC50: Yes | AD50: Yes | AF50: 0.001648612503 | AG50: 0.001343112463 | AI50: 0 | AJ50: 0 | AK50: 1 | AL50: 0 | AM50: 0 | AN50: 0 | AO50: 0 | AP50: 0 | AQ50: 0 | AR50: 0.2 | AS50: 0 | AT50: 0.3 | AU50: 0 | AV50: 0 | AW50: 0.1 | AX50: 0 | AY50: 0.2 | AZ50: 0.05 | BA50: 0.15 | BB50: 0 | BC50: 0 | BD50: 0 | BE50: 0 | BF50: 0 | BG50: 0 | BH50: 0 | BI50: 0 | BJ50: 0 | BK50: 0 | BL50: 0 | BM50: 0 | BN50: 0 | BO50: 0 | BP50: 0 | BQ50: 0 | BR50: 0 | BS50: 0 | BT50: 0 | BU50: 0 | BV50: 0
B51: 42 | C51: GRID COMMS - Reliability Core MPLS and Fibre | D51: 43 | F51: Augmentation | G51: SCADA, Protection and Control | K51: 323.3604457 | L51: 324.2933776 | M51: 324.6947868 | N51: 325.1086748 | O51: 325.5127751 | S51: 0 | T51: 0 | U51: 0 | V51: 0 | W51: 0 | Y51: 0.5141268503 | Z51: 0 | AA51: 0.4858731497 | AC51: Yes | AD51: Yes | AF51: 0.0005446177894 | AG51: 0.0006364690555 | AI51: 0 | AJ51: 0 | AK51: 1 | AL51: 0 | AM51: 0 | AN51: 0 | AO51: 0 | AP51: 0 | AQ51: 0 | AR51: 0 | AS51: 0 | AT51: 0 | AU51: 0 | AV51: 0 | AW51: 0 | AX51: 0 | AY51: 0 | AZ51: 0 | BA51: 0 | BB51: 0 | BC51: 0.02 | BD51: 0.05 | BE51: 0 | BF51: 0 | BG51: 0 | BH51: 0.93 | BI51: 0 | BJ51: 0 | BK51: 0 | BL51: 0 | BM51: 0 | BN51: 0 | BO51: 0 | BP51: 0 | BQ51: 0 | BR51: 0 | BS51: 0 | BT51: 0 | BU51: 0 | BV51: 0
B52: 43 | C52: Nikenbah to Point Vernon Supply Upgrade | D52: 44 | F52: Augmentation | G52: Sub-Transmission Growth | K52: 0 | L52: 4510.229629 | M52: 0 | N52: 0 | O52: 0 | S52: 0 | T52: 0 | U52: 0 | V52: 0 | W52: 0 | Y52: 0.4798542941 | Z52: 0 | AA52: 0.5201457059 | AC52: Yes | AD52: Yes | AF52: 0.001513491438 | AG52: 0.001650838311 | AI52: 0 | AJ52: 0 | AK52: 1 | AL52: 0 | AM52: 0 | AN52: 0 | AO52: 0 | AP52: 0 | AQ52: 0 | AR52: 0.2 | AS52: 0 | AT52: 0.3 | AU52: 0 | AV52: 0 | AW52: 0.1 | AX52: 0 | AY52: 0.2 | AZ52: 0.05 | BA52: 0.15 | BB52: 0 | BC52: 0 | BD52: 0 | BE52: 0 | BF52: 0 | BG52: 0 | BH52: 0 | BI52: 0 | BJ52: 0 | BK52: 0 | BL52: 0 | BM52: 0 | BN52: 0 | BO52: 0 | BP52: 0 | BQ52: 0 | BR52: 0 | BS52: 0 | BT52: 0 | BU52: 0 | BV52: 0
B53: 44 | C53: Broxburn Supply Reinforcement | D53: 45 | F53: Augmentation | G53: Sub-Transmission Growth | K53: 286.459382 | L53: 656.0292734 | M53: 3117.330805 | N53: 7.252974367 | O53: 0 | S53: 0 | T53: 0 | U53: 0 | V53: 0 | W53: 0 | Y53: 0.3571224662 | Z53: 0.1277729263 | AA53: 0.5151046075 | AC53: Yes | AD53: Yes | AF53: 0.001364781799 | AG53: 0.001107887288 | AI53: 0 | AJ53: 0 | AK53: 1 | AL53: 0 | AM53: 0 | AN53: 0 | AO53: 0 | AP53: 0 | AQ53: 0 | AR53: 0.2 | AS53: 0 | AT53: 0.3 | AU53: 0 | AV53: 0 | AW53: 0.1 | AX53: 0 | AY53: 0.2 | AZ53: 0.05 | BA53: 0.15 | BB53: 0 | BC53: 0 | BD53: 0 | BE53: 0 | BF53: 0 | BG53: 0 | BH53: 0 | BI53: 0 | BJ53: 0 | BK53: 0 | BL53: 0 | BM53: 0 | BN53: 0 | BO53: 0 | BP53: 0 | BQ53: 0 | BR53: 0 | BS53: 0 | BT53: 0 | BU53: 0 | BV53: 0
B54: 45 | C54: Underfrequency Load Shedding Capability Improvement | D54: 46 | F54: Augmentation | G54: SCADA, Protection and Control | K54: 813.3428245 | L54: 813.1157728 | M54: 813.1118835 | N54: 813.1153757 | O54: 813.1211038 | S54: 0 | T54: 0 | U54: 0 | V54: 0 | W54: 0 | Y54: 0.8226637049 | Z54: 0 | AA54: 0.1773362951 | AC54: Yes | AD54: Yes | AF54: 0.001364357146 | AG54: 0.002551323868 | AI54: 0 | AJ54: 0 | AK54: 1 | AL54: 0 | AM54: 0 | AN54: 0 | AO54: 0 | AP54: 0 | AQ54: 0 | AR54: 0 | AS54: 0 | AT54: 0 | AU54: 0 | AV54: 0 | AW54: 0 | AX54: 0 | AY54: 0 | AZ54: 0 | BA54: 0 | BB54: 0 | BC54: 0.75 | BD54: 0.1 | BE54: 0 | BF54: 0 | BG54: 0 | BH54: 0.1 | BI54: 0.05 | BJ54: 0 | BK54: 0 | BL54: 0 | BM54: 0 | BN54: 0 | BO54: 0 | BP54: 0 | BQ54: 0 | BR54: 0 | BS54: 0 | BT54: 0 | BU54: 0 | BV54: 0
B55: 46 | C55: Early Fault Detection, Research and Industry Enablement and Voltage Regulating Distribution Transformer Trial Programs | D55: 47 | F55: Augmentation | G55: SCADA, Protection and Control | K55: 731.0104975 | L55: 730.9123292 | M55: 730.9070489 | N55: 730.900373 | O55: 730.9123114 | S55: 0 | T55: 0 | U55: 0 | V55: 0 | W55: 0 | Y55: 0.4015894678 | Z55: 0 | AA55: 0.5984105322 | AC55: Yes | AD55: Yes | AF55: 0.001226383284 | AG55: 0.00111949903 | AI55: 0 | AJ55: 0 | AK55: 1 | AL55: 0 | AM55: 0 | AN55: 0 | AO55: 0 | AP55: 0 | AQ55: 0 | AR55: 0 | AS55: 0 | AT55: 0 | AU55: 0 | AV55: 0 | AW55: 0 | AX55: 0 | AY55: 0 | AZ55: 0 | BA55: 1 | BB55: 0 | BC55: 0 | BD55: 0 | BE55: 0 | BF55: 0 | BG55: 0 | BH55: 0 | BI55: 0 | BJ55: 0 | BK55: 0 | BL55: 0 | BM55: 0 | BN55: 0 | BO55: 0 | BP55: 0 | BQ55: 0 | BR55: 0 | BS55: 0 | BT55: 0 | BU55: 0 | BV55: 0
B56: 47 | C56: Monto Substation 11kV Circuit Breaker Upgrade | D56: 48 | F56: Augmentation | G56: Sub-Transmission Growth | K56: 323.8936057 | L56: 1467.786935 | M56: 1762.521023 | N56: 65.99175664 | O56: 0 | S56: 0 | T56: 0 | U56: 0 | V56: 0 | W56: 0 | Y56: 0.5959038793 | Z56: 0 | AA56: 0.4040961207 | AC56: Yes | AD56: Yes | AF56: 0.001214823201 | AG56: 0.001645524964 | AI56: 0 | AJ56: 0 | AK56: 1 | AL56: 0 | AM56: 0 | AN56: 0 | AO56: 0 | AP56: 0 | AQ56: 0 | AR56: 0 | AS56: 0 | AT56: 0 | AU56: 0 | AV56: 0.25 | AW56: 0 | AX56: 0 | AY56: 0.75 | AZ56: 0 | BA56: 0 | BB56: 0 | BC56: 0 | BD56: 0 | BE56: 0 | BF56: 0 | BG56: 0 | BH56: 0 | BI56: 0 | BJ56: 0 | BK56: 0 | BL56: 0 | BM56: 0 | BN56: 0 | BO56: 0 | BP56: 0 | BQ56: 0 | BR56: 0 | BS56: 0 | BT56: 0 | BU56: 0 | BV56: 0
B57: 48 | C57: Tully 132kV Voltage Remediation | D57: 49 | F57: Augmentation | G57: Sub-Transmission Growth | K57: 124.5612702 | L57: 2757.151636 | M57: 377.944046 | N57: 0 | O57: 0 | S57: 0 | T57: 0 | U57: 0 | V57: 0 | W57: 0 | Y57: 0.1518767185 | Z57: 6.864966998e-05 | AA57: 0.8480546318 | AC57: Yes | AD57: Yes | AF57: 0.001093838517 | AG57: 0.0003776240121 | AI57: 0 | AJ57: 0 | AK57: 1 | AL57: 0 | AM57: 0 | AN57: 0 | AO57: 0 | AP57: 0 | AQ57: 0 | AR57: 0.4 | AS57: 0.1 | AT57: 0 | AU57: 0 | AV57: 0 | AW57: 0.5 | AX57: 0 | AY57: 0 | AZ57: 0 | BA57: 0 | BB57: 0 | BC57: 0 | BD57: 0 | BE57: 0 | BF57: 0 | BG57: 0 | BH57: 0 | BI57: 0 | BJ57: 0 | BK57: 0 | BL57: 0 | BM57: 0 | BN57: 0 | BO57: 0 | BP57: 0 | BQ57: 0 | BR57: 0 | BS57: 0 | BT57: 0 | BU57: 0 | BV57: 0
B58: 49 | C58: Mora New 11kV Feeder Tie | D58: 50 | F58: Augmentation | G58: Sub-Transmission Growth | K58: 0 | L58: 0 | M58: 5.174800714 | N58: 128.2526117 | O58: 3006.85862 | S58: 0 | T58: 0 | U58: 0 | V58: 0 | W58: 0 | Y58: 0.1422136949 | Z58: 0.3611163275 | AA58: 0.4966699775 | AC58: Yes | AD58: Yes | AF58: 0.001053781385 | AG58: 0.0003406490073 | AI58: 0 | AJ58: 0 | AK58: 1 | AL58: 0 | AM58: 0 | AN58: 0 | AO58: 0 | AP58: 0 | AQ58: 0 | AR58: 0 | AS58: 0 | AT58: 0.65 | AU58: 0 | AV58: 0 | AW58: 0 | AX58: 0 | AY58: 0.1 | AZ58: 0 | BA58: 0.25 | BB58: 0 | BC58: 0 | BD58: 0 | BE58: 0 | BF58: 0 | BG58: 0 | BH58: 0 | BI58: 0 | BJ58: 0 | BK58: 0 | BL58: 0 | BM58: 0 | BN58: 0 | BO58: 0 | BP58: 0 | BQ58: 0 | BR58: 0 | BS58: 0 | BT58: 0 | BU58: 0 | BV58: 0
B59: 50 | C59: GRID COMMS - Reliability Edge Fringenet and Backhaul | D59: 51 | F59: Augmentation | G59: SCADA, Protection and Control | K59: 296.6584061 | L59: 297.5142995 | M59: 297.8825618 | N59: 298.2622722 | O59: 298.6330033 | S59: 0 | T59: 0 | U59: 0 | V59: 0 | W59: 0 | Y59: 0.5141268503 | Z59: 0 | AA59: 0.4858731497 | AC59: Yes | AD59: Yes | AF59: 0.0004996450478 | AG59: 0.0005839115391 | AI59: 0 | AJ59: 0 | AK59: 1 | AL59: 0 | AM59: 0 | AN59: 0 | AO59: 0 | AP59: 0 | AQ59: 0 | AR59: 0 | AS59: 0 | AT59: 0 | AU59: 0 | AV59: 0 | AW59: 0 | AX59: 0 | AY59: 0 | AZ59: 0 | BA59: 0 | BB59: 0 | BC59: 0.02 | BD59: 0.05 | BE59: 0 | BF59: 0 | BG59: 0 | BH59: 0.93 | BI59: 0 | BJ59: 0 | BK59: 0 | BL59: 0 | BM59: 0 | BN59: 0 | BO59: 0 | BP59: 0 | BQ59: 0 | BR59: 0 | BS59: 0 | BT59: 0 | BU59: 0 | BV59: 0
B60: 51 | C60: Roma - Install new 10MVAR 66kV Reactor | D60: 52 | F60: Augmentation | G60: Sub-Transmission Growth | K60: 224.3875178 | L60: 1486.442202 | M60: 1001.639849 | N60: 18.70148681 | O60: 0 | S60: 0 | T60: 0 | U60: 0 | V60: 0 | W60: 0 | Y60: 0.2998147803 | Z60: 0 | AA60: 0.7001852197 | AC60: Yes | AD60: Yes | AF60: 0.000916495245 | AG60: 0.000624594909 | AI60: 0 | AJ60: 0 | AK60: 1 | AL60: 0 | AM60: 0 | AN60: 0 | AO60: 0 | AP60: 0 | AQ60: 0 | AR60: 0 | AS60: 0 | AT60: 0 | AU60: 0 | AV60: 0 | AW60: 1 | AX60: 0 | AY60: 0 | AZ60: 0 | BA60: 0 | BB60: 0 | BC60: 0 | BD60: 0 | BE60: 0 | BF60: 0 | BG60: 0 | BH60: 0 | BI60: 0 | BJ60: 0 | BK60: 0 | BL60: 0 | BM60: 0 | BN60: 0 | BO60: 0 | BP60: 0 | BQ60: 0 | BR60: 0 | BS60: 0 | BT60: 0 | BU60: 0 | BV60: 0
B61: 52 | C61: Yarranlea South Substation Rebuild | D61: 53 | F61: Augmentation | G61: Sub-Transmission Growth | K61: 222.6832303 | L61: 286.6726176 | M61: 2170.152977 | N61: 11.55278707 | O61: 0 | S61: 0 | T61: 0 | U61: 0 | V61: 0 | W61: 0 | Y61: 0.353009381 | Z61: 0.1575721925 | AA61: 0.4894184265 | AC61: Yes | AD61: Yes | AF61: 0.0009030357754 | AG61: 0.0007246134444 | AI61: 0 | AJ61: 0 | AK61: 1 | AL61: 0 | AM61: 0 | AN61: 0 | AO61: 0 | AP61: 0 | AQ61: 0 | AR61: 0.2 | AS61: 0.02 | AT61: 0.15 | AU61: 0.03 | AV61: 0 | AW61: 0.39 | AX61: 0.16 | AY61: 0 | AZ61: 0.05 | BA61: 0 | BB61: 0 | BC61: 0 | BD61: 0 | BE61: 0 | BF61: 0 | BG61: 0 | BH61: 0 | BI61: 0 | BJ61: 0 | BK61: 0 | BL61: 0 | BM61: 0 | BN61: 0 | BO61: 0 | BP61: 0 | BQ61: 0 | BR61: 0 | BS61: 0 | BT61: 0 | BU61: 0 | BV61: 0
B62: 53 | C62: Tara Replace Transformer and Circuit Breakers | D62: 54 | F62: Augmentation | G62: Sub-Transmission Growth | K62: 0 | L62: 113.0201026 | M62: 340.7652888 | N62: 2215.559592 | O62: 11.8240713 | S62: 0 | T62: 0 | U62: 0 | V62: 0 | W62: 0 | Y62: 0.2477723673 | Z62: 0.5827839937 | AA62: 0.1694436389 | AC62: Yes | AD62: Yes | AF62: 0.0008997161435 | AG62: 0.0005067264432 | AI62: 0 | AJ62: 0 | AK62: 1 | AL62: 0 | AM62: 0 | AN62: 0 | AO62: 0 | AP62: 0 | AQ62: 0 | AR62: 0 | AS62: 0 | AT62: 0 | AU62: 0 | AV62: 0 | AW62: 0.4 | AX62: 0 | AY62: 0 | AZ62: 0.6 | BA62: 0 | BB62: 0 | BC62: 0 | BD62: 0 | BE62: 0 | BF62: 0 | BG62: 0 | BH62: 0 | BI62: 0 | BJ62: 0 | BK62: 0 | BL62: 0 | BM62: 0 | BN62: 0 | BO62: 0 | BP62: 0 | BQ62: 0 | BR62: 0 | BS62: 0 | BT62: 0 | BU62: 0 | BV62: 0
B63: 54 | C63: North Cloncurry Substation Transformer Upgrade | D63: 55 | F63: Augmentation | G63: Sub-Transmission Growth | K63: 21.80725614 | L63: 142.4918743 | M63: 2372.910707 | N63: 0 | O63: 0 | S63: 0 | T63: 0 | U63: 0 | V63: 0 | W63: 0 | Y63: 0.2142748031 | Z63: 0 | AA63: 0.7857251969 | AC63: Yes | AD63: Yes | AF63: 0.0008514079509 | AG63: 0.0004146904091 | AI63: 0 | AJ63: 0 | AK63: 1 | AL63: 0 | AM63: 0 | AN63: 0 | AO63: 0 | AP63: 0 | AQ63: 0 | AR63: 0 | AS63: 0.02 | AT63: 0 | AU63: 0 | AV63: 0 | AW63: 0.05 | AX63: 0 | AY63: 0 | AZ63: 0.93 | BA63: 0 | BB63: 0 | BC63: 0 | BD63: 0 | BE63: 0 | BF63: 0 | BG63: 0 | BH63: 0 | BI63: 0 | BJ63: 0 | BK63: 0 | BL63: 0 | BM63: 0 | BN63: 0 | BO63: 0 | BP63: 0 | BQ63: 0 | BR63: 0 | BS63: 0 | BT63: 0 | BU63: 0 | BV63: 0
B64: 55 | C64: Glenella - Planella Easement Acquisition | D64: 56 | F64: Augmentation | G64: Sub-Transmission Growth | K64: 2365.649236 | L64: 0 | M64: 0 | N64: 0 | O64: 0 | S64: 0 | T64: 0 | U64: 0 | V64: 0 | W64: 0 | Y64: 0.08139954033 | Z64: 0 | AA64: 0.9186004597 | AC64: Yes | AD64: Yes | AF64: 0.0007938376001 | AG64: 0.0001468820762 | AI64: 0 | AJ64: 0 | AK64: 1 | AL64: 0 | AM64: 0 | AN64: 0 | AO64: 0 | AP64: 0 | AQ64: 0 | AR64: 0 | AS64: 0 | AT64: 0 | AU64: 0 | AV64: 0 | AW64: 0 | AX64: 0 | AY64: 0 | AZ64: 0 | BA64: 0 | BB64: 0 | BC64: 0 | BD64: 0 | BE64: 0 | BF64: 1 | BG64: 0 | BH64: 0 | BI64: 0 | BJ64: 0 | BK64: 0 | BL64: 0 | BM64: 0 | BN64: 0 | BO64: 0 | BP64: 0 | BQ64: 0 | BR64: 0 | BS64: 0 | BT64: 0 | BU64: 0 | BV64: 0
B65: 56 | C65: Landing Road Substation - Install New Transformer | D65: 57 | F65: Augmentation | G65: Sub-Transmission Growth | K65: 257.2018853 | L65: 2020.769255 | M65: 59.10993283 | N65: 0 | O65: 0 | S65: 0 | T65: 0 | U65: 0 | V65: 0 | W65: 0 | Y65: 0.2725969045 | Z65: 0.4507210363 | AA65: 0.2766820592 | AC65: Yes | AD65: Yes | AF65: 0.0007842510218 | AG65: 0.0004859495655 | AI65: 0 | AJ65: 0 | AK65: 1 | AL65: 0 | AM65: 0 | AN65: 0 | AO65: 0 | AP65: 0 | AQ65: 0 | AR65: 0 | AS65: 0 | AT65: 0 | AU65: 0.02 | AV65: 0 | AW65: 0 | AX65: 0 | AY65: 0.05 | AZ65: 0 | BA65: 0.93 | BB65: 0 | BC65: 0 | BD65: 0 | BE65: 0 | BF65: 0 | BG65: 0 | BH65: 0 | BI65: 0 | BJ65: 0 | BK65: 0 | BL65: 0 | BM65: 0 | BN65: 0 | BO65: 0 | BP65: 0 | BQ65: 0 | BR65: 0 | BS65: 0 | BT65: 0 | BU65: 0 | BV65: 0
B66: 57 | C66: GC Distribution Management System Continuous Improvement Cont Imp (Post DEB - AUGEX | D66: 58 | F66: Augmentation | G66: SCADA, Protection and Control | K66: 466.2842632 | L66: 466.1787076 | M66: 466.1661709 | N66: 0 | O66: 0 | S66: 0 | T66: 0 | U66: 0 | V66: 0 | W66: 0 | Y66: 0.6397412202 | Z66: 0.3436082028 | AA66: 0.01665057705 | AC66: Yes | AD66: Yes | AF66: 0.0004693360217 | AG66: 0.0006825011807 | AI66: 0 | AJ66: 0 | AK66: 1 | AL66: 0 | AM66: 0 | AN66: 0 | AO66: 0 | AP66: 0 | AQ66: 0 | AR66: 0 | AS66: 0 | AT66: 0 | AU66: 0 | AV66: 0 | AW66: 0 | AX66: 0 | AY66: 0 | AZ66: 0 | BA66: 0 | BB66: 0 | BC66: 0 | BD66: 0 | BE66: 0 | BF66: 0 | BG66: 0 | BH66: 1 | BI66: 0 | BJ66: 0 | BK66: 0 | BL66: 0 | BM66: 0 | BN66: 0 | BO66: 0 | BP66: 0 | BQ66: 0 | BR66: 0 | BS66: 0 | BT66: 0 | BU66: 0 | BV66: 0
B67: 58 | C67: OTE Zetron Continuous Imp - AUGEX | D67: 60 | F67: Augmentation | G67: SCADA, Protection and Control | K67: 0 | L67: 0 | M67: 0 | N67: 0 | O67: 0 | S67: 0 | T67: 0 | U67: 0 | V67: 0 | W67: 0 | Y67: 0.3261245626 | Z67: 0 | AA67: 0.6738754374 | AC67: Yes | AD67: Yes | AF67: 0.0001677842996 | AG67: 0.0001243798457 | AI67: 0 | AJ67: 0 | AK67: 1 | AL67: 0 | AM67: 0 | AN67: 0 | AO67: 0 | AP67: 0 | AQ67: 0 | AR67: 0 | AS67: 0 | AT67: 0 | AU67: 0 | AV67: 0 | AW67: 0 | AX67: 0 | AY67: 0 | AZ67: 0 | BA67: 0 | BB67: 0 | BC67: 0 | BD67: 0 | BE67: 0 | BF67: 0 | BG67: 0 | BH67: 1 | BI67: 0 | BJ67: 0 | BK67: 0 | BL67: 0 | BM67: 0 | BN67: 0 | BO67: 0 | BP67: 0 | BQ67: 0 | BR67: 0 | BS67: 0 | BT67: 0 | BU67: 0 | BV67: 0
B68: 59 | C68: Reconductor Egans Hill Feeder | D68: 61 | F68: Augmentation | G68: Sub-Transmission Growth | K68: 279.7507212 | L68: 365.1897228 | M68: 445.1553079 | N68: 755.2917293 | O68: 71.01372418 | S68: 0 | T68: 0 | U68: 0 | V68: 0 | W68: 0 | Y68: 0.8825990563 | Z68: 0 | AA68: 0.1174009437 | AC68: Yes | AD68: Yes | AF68: 0.0006430840678 | AG68: 0.00129016838 | AI68: 0 | AJ68: 0 | AK68: 1 | AL68: 0 | AM68: 0 | AN68: 0 | AO68: 0 | AP68: 0 | AQ68: 0 | AR68: 1 | AS68: 0 | AT68: 0 | AU68: 0 | AV68: 0 | AW68: 0 | AX68: 0 | AY68: 0 | AZ68: 0 | BA68: 0 | BB68: 0 | BC68: 0 | BD68: 0 | BE68: 0 | BF68: 0 | BG68: 0 | BH68: 0 | BI68: 0 | BJ68: 0 | BK68: 0 | BL68: 0 | BM68: 0 | BN68: 0 | BO68: 0 | BP68: 0 | BQ68: 0 | BR68: 0 | BS68: 0 | BT68: 0 | BU68: 0 | BV68: 0
B69: 60 | C69: Corfield Substation Upgrade 66kV Reactor | D69: 62 | F69: Augmentation | G69: Sub-Transmission Growth | K69: 84.54465618 | L69: 1229.434339 | M69: 298.6974358 | N69: 0 | O69: 0 | S69: 0 | T69: 0 | U69: 0 | V69: 0 | W69: 0 | Y69: 0.2615796039 | Z69: 0.009527329286 | AA69: 0.7288930669 | AC69: Yes | AD69: Yes | AF69: 0.0005411635707 | AG69: 0.0003217715306 | AI69: 0 | AJ69: 0 | AK69: 1 | AL69: 0 | AM69: 0 | AN69: 0 | AO69: 0 | AP69: 0 | AQ69: 0 | AR69: 0 | AS69: 0 | AT69: 0 | AU69: 0 | AV69: 0 | AW69: 1 | AX69: 0 | AY69: 0 | AZ69: 0 | BA69: 0 | BB69: 0 | BC69: 0 | BD69: 0 | BE69: 0 | BF69: 0 | BG69: 0 | BH69: 0 | BI69: 0 | BJ69: 0 | BK69: 0 | BL69: 0 | BM69: 0 | BN69: 0 | BO69: 0 | BP69: 0 | BQ69: 0 | BR69: 0 | BS69: 0 | BT69: 0 | BU69: 0 | BV69: 0
B70: 61 | C70: GRID COMMS - Operational Enhancement | D70: 63 | F70: Augmentation | G70: SCADA, Protection and Control | K70: 304.2769856 | L70: 305.1548595 | M70: 305.5325792 | N70: 305.9220411 | O70: 306.3022931 | S70: 0 | T70: 0 | U70: 0 | V70: 0 | W70: 0 | Y70: 0.5141268503 | Z70: 0 | AA70: 0.4858731497 | AC70: Yes | AD70: Yes | AF70: 0.0005124765923 | AG70: 0.0005989071583 | AI70: 0 | AJ70: 0 | AK70: 1 | AL70: 0 | AM70: 0 | AN70: 0 | AO70: 0 | AP70: 0 | AQ70: 0 | AR70: 0 | AS70: 0 | AT70: 0 | AU70: 0 | AV70: 0 | AW70: 0 | AX70: 0 | AY70: 0 | AZ70: 0 | BA70: 0 | BB70: 0 | BC70: 0.15 | BD70: 0.25 | BE70: 0 | BF70: 0 | BG70: 0 | BH70: 0.6 | BI70: 0 | BJ70: 0 | BK70: 0 | BL70: 0 | BM70: 0 | BN70: 0 | BO70: 0 | BP70: 0 | BQ70: 0 | BR70: 0 | BS70: 0 | BT70: 0 | BU70: 0 | BV70: 0
B71: 62 | C71: GRID COMMS - Reliability Isolated Systems | D71: 64 | F71: Augmentation | G71: SCADA, Protection and Control | K71: 296.377308 | L71: 297.2323905 | M71: 297.6003038 | N71: 297.9796544 | O71: 298.3500342 | S71: 0 | T71: 0 | U71: 0 | V71: 0 | W71: 0 | Y71: 0.5141268503 | Z71: 0 | AA71: 0.4858731497 | AC71: Yes | AD71: Yes | AF71: 0.0004991716102 | AG71: 0.0005833582549 | AI71: 0 | AJ71: 0 | AK71: 1 | AL71: 0 | AM71: 0 | AN71: 0 | AO71: 0 | AP71: 0 | AQ71: 0 | AR71: 0 | AS71: 0 | AT71: 0 | AU71: 0 | AV71: 0 | AW71: 0 | AX71: 0 | AY71: 0 | AZ71: 0 | BA71: 0 | BB71: 0 | BC71: 0.02 | BD71: 0.05 | BE71: 0 | BF71: 0 | BG71: 0 | BH71: 0.93 | BI71: 0 | BJ71: 0 | BK71: 0 | BL71: 0 | BM71: 0 | BN71: 0 | BO71: 0 | BP71: 0 | BQ71: 0 | BR71: 0 | BS71: 0 | BT71: 0 | BU71: 0 | BV71: 0
B72: 63 | C72: GRID COMMS - P25 Coverage South West | D72: 65 | F72: Augmentation | G72: SCADA, Protection and Control | K72: 260.6204833 | L72: 261.3724032 | M72: 261.6959291 | N72: 262.0295125 | O72: 262.3552073 | S72: 0 | T72: 0 | U72: 0 | V72: 0 | W72: 0 | Y72: 0.5141268503 | Z72: 0 | AA72: 0.4858731497 | AC72: Yes | AD72: Yes | AF72: 0.0004389484038 | AG72: 0.0005129782416 | AI72: 0 | AJ72: 0 | AK72: 1 | AL72: 0 | AM72: 0 | AN72: 0 | AO72: 0 | AP72: 0 | AQ72: 0 | AR72: 0 | AS72: 0 | AT72: 0 | AU72: 0 | AV72: 0 | AW72: 0 | AX72: 0 | AY72: 0 | AZ72: 0 | BA72: 0 | BB72: 0 | BC72: 0.05 | BD72: 0.03 | BE72: 0 | BF72: 0 | BG72: 0 | BH72: 0.92 | BI72: 0 | BJ72: 0 | BK72: 0 | BL72: 0 | BM72: 0 | BN72: 0 | BO72: 0 | BP72: 0 | BQ72: 0 | BR72: 0 | BS72: 0 | BT72: 0 | BU72: 0 | BV72: 0
B73: 64 | C73: GRID COMMS - P25 Coverage Far North | D73: 66 | F73: Augmentation | G73: SCADA, Protection and Control | K73: 260.6204833 | L73: 261.3724032 | M73: 261.6959291 | N73: 262.0295125 | O73: 262.3552073 | S73: 0 | T73: 0 | U73: 0 | V73: 0 | W73: 0 | Y73: 0.5141268503 | Z73: 0 | AA73: 0.4858731497 | AC73: Yes | AD73: Yes | AF73: 0.0004389484038 | AG73: 0.0005129782416 | AI73: 0 | AJ73: 0 | AK73: 1 | AL73: 0 | AM73: 0 | AN73: 0 | AO73: 0 | AP73: 0 | AQ73: 0 | AR73: 0 | AS73: 0 | AT73: 0 | AU73: 0 | AV73: 0 | AW73: 0 | AX73: 0 | AY73: 0 | AZ73: 0 | BA73: 0 | BB73: 0 | BC73: 0.05 | BD73: 0.03 | BE73: 0 | BF73: 0 | BG73: 0 | BH73: 0.92 | BI73: 0 | BJ73: 0 | BK73: 0 | BL73: 0 | BM73: 0 | BN73: 0 | BO73: 0 | BP73: 0 | BQ73: 0 | BR73: 0 | BS73: 0 | BT73: 0 | BU73: 0 | BV73: 0
B74: 65 | C74: Comet Substation Transformer Upgrade | D74: 67 | F74: Augmentation | G74: Sub-Transmission Growth | K74: 0 | L74: 41.85159702 | M74: 122.4912716 | N74: 1122.332947 | O74: 11.8240713 | S74: 0 | T74: 0 | U74: 0 | V74: 0 | W74: 0 | Y74: 0.2613479687 | Z74: 0.1889518594 | AA74: 0.5497001718 | AB74: =IF(SUM(Y74:AA74,I74:O74)=0,"",IF(SUM(Y74:AA74)=1,"",1)) ->  | AC74: =IF(F74="Non-network capex","No","Yes") -> Yes | AD74: =IF(F74="Non-network capex","No",IF(Y74=0,"No","Yes")) -> Yes | AF74: 0.0004357357881 | AG74: 0.0002588555883 | AI74: 0 | AJ74: 0 | AK74: 1 | AL74: 0 | AM74: 0 | AN74: 0 | AO74: 0 | AP74: 0 | AQ74: =IF(SUM(AI74:AP74)=1,0,1) -> 0 | AR74: 0 | AS74: 0 | AT74: 0 | AU74: 0.02 | AV74: 0 | AW74: 0 | AX74: 0 | AY74: 0.08 | AZ74: 0 | BA74: 0.9 | BB74: 0 | BC74: 0 | BD74: 0 | BE74: 0 | BF74: 0 | BG74: 0 | BH74: 0 | BI74: 0 | BJ74: 0 | BK74: 0 | BL74: 0 | BM74: 0 | BN74: 0 | BO74: 0 | BP74: 0 | BQ74: 0 | BR74: 0 | BS74: 0 | BT74: 0 | BU74: 0 | BV74: 0 | CP74: =IF(COUNT(D74)=0,"",IF(SUM(AR74:CO74)=1,"",1)) -> 
B75: 66 | C75: Proston to Boondooma Dam Feeder Tie | D75: 68 | F75: Augmentation | G75: Sub-Transmission Growth | K75: 0 | L75: 1173.63979 | M75: 0 | N75: 0 | O75: 0 | S75: 0 | T75: 0 | U75: 0 | V75: 0 | W75: 0 | Y75: 0.1453083372 | Z75: 0 | AA75: 0.8546916628 | AC75: Yes | AD75: Yes | AF75: 0.0003938366601 | AG75: 0.0001300833934 | AI75: 0 | AJ75: 0 | AK75: 1 | AL75: 0 | AM75: 0 | AN75: 0 | AO75: 0 | AP75: 0 | AQ75: 0 | AR75: 0 | AS75: 0 | AT75: 0.65 | AU75: 0 | AV75: 0 | AW75: 0 | AX75: 0 | AY75: 0.1 | AZ75: 0 | BA75: 0.25 | BB75: 0 | BC75: 0 | BD75: 0 | BE75: 0 | BF75: 0 | BG75: 0 | BH75: 0 | BI75: 0 | BJ75: 0 | BK75: 0 | BL75: 0 | BM75: 0 | BN75: 0 | BO75: 0 | BP75: 0 | BQ75: 0 | BR75: 0 | BS75: 0 | BT75: 0 | BU75: 0 | BV75: 0
B76: =IFERROR(B75+1,"") -> 67 | C76: IGE Electric Vehicle Charge Management System | D76: =IFERROR(D75+1,"") -> 69 | F76: Augmentation | G76: SCADA, Protection and Control | K76: 577.5177035 | L76: 577.4984279 | M76: 577.4973828 | N76: 0 | O76: 0 | S76: 0 | T76: 0 | U76: 0 | V76: 0 | W76: 0 | Y76: 0.1054513309 | Z76: 0 | AA76: 0.8945486691 | AC76: Yes | AD76: Yes | AF76: 0.0005813771329 | AG76: 0.0001393558473 | AI76: 0 | AJ76: 0 | AK76: 1 | AL76: 0 | AM76: 0 | AN76: 0 | AO76: 0 | AP76: 0 | AQ76: 0 | AR76: 0 | AS76: 0 | AT76: 0 | AU76: 0 | AV76: 0 | AW76: 0 | AX76: 0 | AY76: 0 | AZ76: 0 | BA76: 0 | BB76: 0 | BC76: 0 | BD76: 0 | BE76: 0 | BF76: 0 | BG76: 0 | BH76: 1 | BI76: 0 | BJ76: 0 | BK76: 0 | BL76: 0 | BM76: 0 | BN76: 0 | BO76: 0 | BP76: 0 | BQ76: 0 | BR76: 0 | BS76: 0 | BT76: 0 | BU76: 0 | BV76: 0
B77: 68 | C77: Clifton Substation Install Transformer Fans | D77: 70 | F77: Augmentation | G77: Sub-Transmission Growth | K77: 17.60705244 | L77: 120.3860478 | M77: 196.7555535 | N77: 770.2896257 | O77: 22.36720698 | S77: 0 | T77: 0 | U77: 0 | V77: 0 | W77: 0 | Y77: 0.6416903569 | Z77: 0.09493095178 | AA77: 0.2633786914 | AC77: Yes | AD77: Yes | AF77: 0.0003783218797 | AG77: 0.0005518259971 | AI77: 0 | AJ77: 0 | AK77: 1 | AL77: 0 | AM77: 0 | AN77: 0 | AO77: 0 | AP77: 0 | AQ77: 0 | AR77: 0 | AS77: 0 | AT77: 0 | AU77: 0 | AV77: 0 | AW77: 0 | AX77: 0 | AY77: 0 | AZ77: 0.15 | BA77: 0.85 | BB77: 0 | BC77: 0 | BD77: 0 | BE77: 0 | BF77: 0 | BG77: 0 | BH77: 0 | BI77: 0 | BJ77: 0 | BK77: 0 | BL77: 0 | BM77: 0 | BN77: 0 | BO77: 0 | BP77: 0 | BQ77: 0 | BR77: 0 | BS77: 0 | BT77: 0 | BU77: 0 | BV77: 0
B78: 69 | C78: Stand-alone Power Systems Trial Program | D78: 71 | F78: Augmentation | G78: Resilience | K78: 0 | L78: 0 | M78: 0 | N78: 0 | O78: 0 | S78: 0 | T78: 0 | U78: 0 | V78: 0 | W78: 0 | Y78: 0.2801742411 | Z78: 0.6242202386 | AA78: 0.09560552028 | AC78: Yes | AD78: Yes | AF78: 0 | AG78: 0 | AI78: 0 | AJ78: 0 | AK78: 1 | AL78: 0 | AM78: 0 | AN78: 0 | AO78: 0 | AP78: 0 | AQ78: 0 | AR78: 0.1 | AS78: 0.01 | AT78: 0.42 | AU78: 0.08 | AV78: 0.01 | AW78: 0.11 | AX78: 0.03 | AY78: 0.04 | AZ78: 0.02 | BA78: 0.11 | BB78: 0.03 | BC78: 0.01 | BD78: 0.01 | BE78: 0 | BF78: 0.01 | BG78: 0.01 | BH78: 0 | BI78: 0 | BJ78: 0 | BK78: 0 | BL78: 0 | BM78: 0 | BN78: 0 | BO78: 0 | BP78: 0 | BQ78: 0 | BR78: 0 | BS78: 0 | BT78: 0 | BU78: 0 | BV78: 0
B79: 70 | C79: OTE Infrastructure Augmen - AUGEX | D79: 72 | F79: Augmentation | G79: SCADA, Protection and Control | K79: 66.27496369 | L79: 66.20769648 | M79: 449.870713 | N79: 168.6908408 | O79: 66.20771196 | S79: 0 | T79: 0 | U79: 0 | V79: 0 | W79: 0 | Y79: 0.3947480215 | Z79: 0 | AA79: 0.6052519785 | AC79: Yes | AD79: Yes | AF79: 0.0002742440839 | AG79: 0.0002460777882 | AI79: 0 | AJ79: 0 | AK79: 1 | AL79: 0 | AM79: 0 | AN79: 0 | AO79: 0 | AP79: 0 | AQ79: 0 | AR79: 0 | AS79: 0 | AT79: 0 | AU79: 0 | AV79: 0 | AW79: 0 | AX79: 0 | AY79: 0 | AZ79: 0 | BA79: 0 | BB79: 0 | BC79: 0 | BD79: 0 | BE79: 0 | BF79: 0 | BG79: 0 | BH79: 1 | BI79: 0 | BJ79: 0 | BK79: 0 | BL79: 0 | BM79: 0 | BN79: 0 | BO79: 0 | BP79: 0 | BQ79: 0 | BR79: 0 | BS79: 0 | BT79: 0 | BU79: 0 | BV79: 0
B80: 71 | C80: Proserpine DC and Bus Overcurrent Upgrade | D80: 73 | F80: Augmentation | G80: SCADA, Protection and Control | K80: 0 | L80: 0 | M80: 0 | N80: 0 | O80: 0 | S80: 0 | T80: 0 | U80: 0 | V80: 0 | W80: 0 | Y80: 0.7092071467 | Z80: 0 | AA80: 0.2907928533 | AC80: Yes | AD80: Yes | AF80: 0 | AG80: 0 | AI80: 0 | AJ80: 0 | AK80: 1 | AL80: 0 | AM80: 0 | AN80: 0 | AO80: 0 | AP80: 0 | AQ80: 0 | AR80: 0 | AS80: 0 | AT80: 0 | AU80: 0.05 | AV80: 0 | AW80: 0 | AX80: 0 | AY80: 0.95 | AZ80: 0 | BA80: 0 | BB80: 0 | BC80: 0 | BD80: 0 | BE80: 0 | BF80: 0 | BG80: 0 | BH80: 0 | BI80: 0 | BJ80: 0 | BK80: 0 | BL80: 0 | BM80: 0 | BN80: 0 | BO80: 0 | BP80: 0 | BQ80: 0 | BR80: 0 | BS80: 0 | BT80: 0 | BU80: 0 | BV80: 0
B81: 72 | C81: Mackay Hume St Zone Substation - DC and Bus Overcurrent Protection Duplication | D81: 74 | F81: Augmentation | G81: SCADA, Protection and Control | K81: 0 | L81: 146.9695171 | M81: 0 | N81: 0 | O81: 0 | S81: 0 | T81: 0 | U81: 0 | V81: 0 | W81: 0 | Y81: 0.7092071467 | Z81: 0 | AA81: 0.2907928533 | AC81: Yes | AD81: Yes | AF81: 4.931835497e-05 | AG81: 7.950544459e-05 | AI81: 0 | AJ81: 0 | AK81: 1 | AL81: 0 | AM81: 0 | AN81: 0 | AO81: 0 | AP81: 0 | AQ81: 0 | AR81: 0 | AS81: 0.05 | AT81: 0 | AU81: 0 | AV81: 0 | AW81: 0.95 | AX81: 0 | AY81: 0 | AZ81: 0 | BA81: 0 | BB81: 0 | BC81: 0 | BD81: 0 | BE81: 0 | BF81: 0 | BG81: 0 | BH81: 0 | BI81: 0 | BJ81: 0 | BK81: 0 | BL81: 0 | BM81: 0 | BN81: 0 | BO81: 0 | BP81: 0 | BQ81: 0 | BR81: 0 | BS81: 0 | BT81: 0 | BU81: 0 | BV81: 0
B82: 73 | C82: Atherton Zone Substation DC and Bus Overcurrent Protection Duplication | D82: 75 | F82: Augmentation | G82: SCADA, Protection and Control | K82: 34.80026999 | L82: 69.71847964 | M82: 174.4320198 | N82: 174.5743492 | O82: 244.5957186 | S82: 0 | T82: 0 | U82: 0 | V82: 0 | W82: 0 | Y82: 0.7092071467 | Z82: 0 | AA82: 0.2907928533 | AC82: Yes | AD82: Yes | AF82: 0.0002342674313 | AG82: 0.0003776593176 | AI82: 0 | AJ82: 0 | AK82: 1 | AL82: 0 | AM82: 0 | AN82: 0 | AO82: 0 | AP82: 0 | AQ82: 0 | AR82: 0 | AS82: 0.05 | AT82: 0 | AU82: 0 | AV82: 0 | AW82: 0.95 | AX82: 0 | AY82: 0 | AZ82: 0 | BA82: 0 | BB82: 0 | BC82: 0 | BD82: 0 | BE82: 0 | BF82: 0 | BG82: 0 | BH82: 0 | BI82: 0 | BJ82: 0 | BK82: 0 | BL82: 0 | BM82: 0 | BN82: 0 | BO82: 0 | BP82: 0 | BQ82: 0 | BR82: 0 | BS82: 0 | BT82: 0 | BU82: 0 | BV82: 0
B83: 74 | C83: GRID COMMS - P25 Reliability Upgrade | D83: 76 | F83: Augmentation | G83: SCADA, Protection and Control | K83: 137.1553083 | L83: 137.5510171 | M83: 137.7212773 | N83: 137.8968304 | O83: 138.068232 | S83: 0 | T83: 0 | U83: 0 | V83: 0 | W83: 0 | Y83: 0.5141268503 | Z83: 0 | AA83: 0.4858731497 | AC83: Yes | AD83: Yes | AF83: 0.0002310029623 | AG83: 0.0002699622378 | AI83: 0 | AJ83: 0 | AK83: 1 | AL83: 0 | AM83: 0 | AN83: 0 | AO83: 0 | AP83: 0 | AQ83: 0 | AR83: 0 | AS83: 0 | AT83: 0 | AU83: 0 | AV83: 0 | AW83: 0 | AX83: 0 | AY83: 0 | AZ83: 0 | BA83: 0 | BB83: 0 | BC83: 0.05 | BD83: 0.03 | BE83: 0 | BF83: 0 | BG83: 0 | BH83: 0.92 | BI83: 0 | BJ83: 0 | BK83: 0 | BL83: 0 | BM83: 0 | BN83: 0 | BO83: 0 | BP83: 0 | BQ83: 0 | BR83: 0 | BS83: 0 | BT83: 0 | BU83: 0 | BV83: 0
B84: 75 | C84: GRID COMMS - P25 Capacity Upgrade | D84: 77 | F84: Augmentation | G84: SCADA, Protection and Control | K84: 135.660557 | L84: 136.0519533 | M84: 136.2203579 | N84: 136.3939978 | O84: 136.5635315 | S84: 0 | T84: 0 | U84: 0 | V84: 0 | W84: 0 | Y84: 0.5141268503 | Z84: 0 | AA84: 0.4858731497 | AC84: Yes | AD84: Yes | AF84: 0.0002284854368 | AG84: 0.0002670201249 | AI84: 0 | AJ84: 0 | AK84: 1 | AL84: 0 | AM84: 0 | AN84: 0 | AO84: 0 | AP84: 0 | AQ84: 0 | AR84: 0 | AS84: 0 | AT84: 0 | AU84: 0 | AV84: 0 | AW84: 0 | AX84: 0 | AY84: 0 | AZ84: 0 | BA84: 0 | BB84: 0 | BC84: 0.05 | BD84: 0.03 | BE84: 0 | BF84: 0 | BG84: 0 | BH84: 0.92 | BI84: 0 | BJ84: 0 | BK84: 0 | BL84: 0 | BM84: 0 | BN84: 0 | BO84: 0 | BP84: 0 | BQ84: 0 | BR84: 0 | BS84: 0 | BT84: 0 | BU84: 0 | BV84: 0
B85: 76 | C85: Clare South Zone Substation - DC and Bus Overcurrent Protection Duplication | D85: 78 | F85: Augmentation | G85: SCADA, Protection and Control | K85: 0 | L85: 169.829065 | M85: 0 | N85: 0 | O85: 0 | S85: 0 | T85: 0 | U85: 0 | V85: 0 | W85: 0 | Y85: 0.7092071467 | Z85: 0 | AA85: 0.2907928533 | AC85: Yes | AD85: Yes | AF85: 5.698930143e-05 | AG85: 9.187167231e-05 | AI85: 0 | AJ85: 0 | AK85: 1 | AL85: 0 | AM85: 0 | AN85: 0 | AO85: 0 | AP85: 0 | AQ85: 0 | AR85: 0 | AS85: 0.05 | AT85: 0 | AU85: 0 | AV85: 0 | AW85: 0.95 | AX85: 0 | AY85: 0 | AZ85: 0 | BA85: 0 | BB85: 0 | BC85: 0 | BD85: 0 | BE85: 0 | BF85: 0 | BG85: 0 | BH85: 0 | BI85: 0 | BJ85: 0 | BK85: 0 | BL85: 0 | BM85: 0 | BN85: 0 | BO85: 0 | BP85: 0 | BQ85: 0 | BR85: 0 | BS85: 0 | BT85: 0 | BU85: 0 | BV85: 0
B86: 77 | C86: Milchester Zone Substation - DC and Bus Overcurrent Protection Duplication | D86: 79 | F86: Augmentation | G86: SCADA, Protection and Control | K86: 0 | L86: 163.7452759 | M86: 0 | N86: 0 | O86: 0 | S86: 0 | T86: 0 | U86: 0 | V86: 0 | W86: 0 | Y86: 0.7092071467 | Z86: 0 | AA86: 0.2907928533 | AC86: Yes | AD86: Yes | AF86: 5.494777283e-05 | AG86: 8.858055202e-05 | AI86: 0 | AJ86: 0 | AK86: 1 | AL86: 0 | AM86: 0 | AN86: 0 | AO86: 0 | AP86: 0 | AQ86: 0 | AR86: 0 | AS86: 0.05 | AT86: 0 | AU86: 0 | AV86: 0 | AW86: 0.95 | AX86: 0 | AY86: 0 | AZ86: 0 | BA86: 0 | BB86: 0 | BC86: 0 | BD86: 0 | BE86: 0 | BF86: 0 | BG86: 0 | BH86: 0 | BI86: 0 | BJ86: 0 | BK86: 0 | BL86: 0 | BM86: 0 | BN86: 0 | BO86: 0 | BP86: 0 | BQ86: 0 | BR86: 0 | BS86: 0 | BT86: 0 | BU86: 0 | BV86: 0
B87: 78 | C87: GIRD COMMS - P25 Coverage Capricornia | D87: 80 | F87: Augmentation | G87: SCADA, Protection and Control | K87: 130.3103238 | L87: 130.686284 | M87: 130.8480471 | N87: 131.0148389 | O87: 131.1776864 | S87: 0 | T87: 0 | U87: 0 | V87: 0 | W87: 0 | Y87: 0.5141268503 | Z87: 0 | AA87: 0.4858731497 | AC87: Yes | AD87: Yes | AF87: 0.0002194743403 | AG87: 0.0002564892826 | AI87: 0 | AJ87: 0 | AK87: 1 | AL87: 0 | AM87: 0 | AN87: 0 | AO87: 0 | AP87: 0 | AQ87: 0 | AR87: 0 | AS87: 0 | AT87: 0 | AU87: 0 | AV87: 0 | AW87: 0 | AX87: 0 | AY87: 0 | AZ87: 0 | BA87: 0 | BB87: 0 | BC87: 0.05 | BD87: 0.03 | BE87: 0 | BF87: 0 | BG87: 0 | BH87: 0.92 | BI87: 0 | BJ87: 0 | BK87: 0 | BL87: 0 | BM87: 0 | BN87: 0 | BO87: 0 | BP87: 0 | BQ87: 0 | BR87: 0 | BS87: 0 | BT87: 0 | BU87: 0 | BV87: 0
B88: 79 | C88: Pioneer Valley - DC and Bus Overcurrent Protection Duplication | D88: 81 | F88: Augmentation | G88: SCADA, Protection and Control | K88: 0 | L88: 159.6263609 | M88: 0 | N88: 0 | O88: 0 | S88: 0 | T88: 0 | U88: 0 | V88: 0 | W88: 0 | Y88: 0.7092071467 | Z88: 0 | AA88: 0.2907928533 | AC88: Yes | AD88: Yes | AF88: 5.356559429e-05 | AG88: 8.635236093e-05 | AI88: 0 | AJ88: 0 | AK88: 1 | AL88: 0 | AM88: 0 | AN88: 0 | AO88: 0 | AP88: 0 | AQ88: 0 | AR88: 0 | AS88: 0 | AT88: 0 | AU88: 0.05 | AV88: 0 | AW88: 0 | AX88: 0 | AY88: 0.95 | AZ88: 0 | BA88: 0 | BB88: 0 | BC88: 0 | BD88: 0 | BE88: 0 | BF88: 0 | BG88: 0 | BH88: 0 | BI88: 0 | BJ88: 0 | BK88: 0 | BL88: 0 | BM88: 0 | BN88: 0 | BO88: 0 | BP88: 0 | BQ88: 0 | BR88: 0 | BS88: 0 | BT88: 0 | BU88: 0 | BV88: 0
B89: 80 | C89: Hughenden Zone Substation - DC and Bus Overcurrent Protection Duplication | D89: 82 | F89: Augmentation | G89: SCADA, Protection and Control | K89: 0 | L89: 0 | M89: 0 | N89: 0 | O89: 0 | S89: 0 | T89: 0 | U89: 0 | V89: 0 | W89: 0 | Y89: 0.7092071467 | Z89: 0 | AA89: 0.2907928533 | AC89: Yes | AD89: Yes | AF89: 0 | AG89: 0 | AI89: 0 | AJ89: 0 | AK89: 1 | AL89: 0 | AM89: 0 | AN89: 0 | AO89: 0 | AP89: 0 | AQ89: 0 | AR89: 0 | AS89: 0.05 | AT89: 0 | AU89: 0 | AV89: 0 | AW89: 0.95 | AX89: 0 | AY89: 0 | AZ89: 0 | BA89: 0 | BB89: 0 | BC89: 0 | BD89: 0 | BE89: 0 | BF89: 0 | BG89: 0 | BH89: 0 | BI89: 0 | BJ89: 0 | BK89: 0 | BL89: 0 | BM89: 0 | BN89: 0 | BO89: 0 | BP89: 0 | BQ89: 0 | BR89: 0 | BS89: 0 | BT89: 0 | BU89: 0 | BV89: 0
B90: 81 | C90: Protection Relay Fleet Management Implementation | D90: 83 | F90: Augmentation | G90: SCADA, Protection and Control | K90: 117.225589 | L90: 117.181051 | M90: 117.1834772 | N90: 117.1765406 | O90: 117.1815675 | S90: 0 | T90: 0 | U90: 0 | V90: 0 | W90: 0 | Y90: 1 | Z90: 0 | AA90: 0 | AC90: Yes | AD90: Yes | AF90: 0.0001966258251 | AG90: 0.0004469467082 | AI90: 0 | AJ90: 0 | AK90: 1 | AL90: 0 | AM90: 0 | AN90: 0 | AO90: 0 | AP90: 0 | AQ90: 0 | AR90: 0 | AS90: 0 | AT90: 0 | AU90: 0 | AV90: 0 | AW90: 0 | AX90: 0 | AY90: 0 | AZ90: 0 | BA90: 0 | BB90: 0 | BC90: 0.02 | BD90: 0.08 | BE90: 0 | BF90: 0 | BG90: 0 | BH90: 0.9 | BI90: 0 | BJ90: 0 | BK90: 0 | BL90: 0 | BM90: 0 | BN90: 0 | BO90: 0 | BP90: 0 | BQ90: 0 | BR90: 0 | BS90: 0 | BT90: 0 | BU90: 0 | BV90: 0
B91: 82 | C91: Dan Gleeson Zone Substation - DC and Bus Overcurrent Protection Duplication | D91: 85 | F91: Augmentation | G91: SCADA, Protection and Control | K91: 0 | L91: 0 | M91: 0 | N91: 0 | O91: 0 | S91: 0 | T91: 0 | U91: 0 | V91: 0 | W91: 0 | Y91: 0.7092071467 | Z91: 0 | AA91: 0.2907928533 | AC91: Yes | AD91: Yes | AF91: 0 | AG91: 0 | AI91: 0 | AJ91: 0 | AK91: 1 | AL91: 0 | AM91: 0 | AN91: 0 | AO91: 0 | AP91: 0 | AQ91: 0 | AR91: 0 | AS91: 0.05 | AT91: 0 | AU91: 0 | AV91: 0 | AW91: 0.95 | AX91: 0 | AY91: 0 | AZ91: 0 | BA91: 0 | BB91: 0 | BC91: 0 | BD91: 0 | BE91: 0 | BF91: 0 | BG91: 0 | BH91: 0 | BI91: 0 | BJ91: 0 | BK91: 0 | BL91: 0 | BM91: 0 | BN91: 0 | BO91: 0 | BP91: 0 | BQ91: 0 | BR91: 0 | BS91: 0 | BT91: 0 | BU91: 0 | BV91: 0
B92: 83 | C92: Calliope Zone Substation - DC and Bus Overcurrent Protection Duplication | D92: 86 | F92: Augmentation | G92: SCADA, Protection and Control | K92: 26.40674115 | L92: 52.90297592 | M92: 132.3605017 | N92: 132.4685024 | O92: 185.6013137 | S92: 0 | T92: 0 | U92: 0 | V92: 0 | W92: 0 | Y92: 0.7092071467 | Z92: 0 | AA92: 0.2907928533 | AC92: Yes | AD92: Yes | AF92: 0.0001777641214 | AG92: 0.0002865711055 | AI92: 0 | AJ92: 0 | AK92: 1 | AL92: 0 | AM92: 0 | AN92: 0 | AO92: 0 | AP92: 0 | AQ92: 0 | AR92: 0 | AS92: 0.05 | AT92: 0 | AU92: 0 | AV92: 0 | AW92: 0.95 | AX92: 0 | AY92: 0 | AZ92: 0 | BA92: 0 | BB92: 0 | BC92: 0 | BD92: 0 | BE92: 0 | BF92: 0 | BG92: 0 | BH92: 0 | BI92: 0 | BJ92: 0 | BK92: 0 | BL92: 0 | BM92: 0 | BN92: 0 | BO92: 0 | BP92: 0 | BQ92: 0 | BR92: 0 | BS92: 0 | BT92: 0 | BU92: 0 | BV92: 0
B93: 84 | C93: Home Hill Zone Substation - DC and Bus Overcurrent Protection Duplication | D93: 87 | F93: Augmentation | G93: SCADA, Protection and Control | K93: 0 | L93: 0 | M93: 0 | N93: 0 | O93: 0 | S93: 0 | T93: 0 | U93: 0 | V93: 0 | W93: 0 | Y93: 0.7092071467 | Z93: 0 | AA93: 0.2907928533 | AC93: Yes | AD93: Yes | AF93: 0 | AG93: 0 | AI93: 0 | AJ93: 0 | AK93: 1 | AL93: 0 | AM93: 0 | AN93: 0 | AO93: 0 | AP93: 0 | AQ93: 0 | AR93: 0 | AS93: 0.05 | AT93: 0 | AU93: 0 | AV93: 0 | AW93: 0.95 | AX93: 0 | AY93: 0 | AZ93: 0 | BA93: 0 | BB93: 0 | BC93: 0 | BD93: 0 | BE93: 0 | BF93: 0 | BG93: 0 | BH93: 0 | BI93: 0 | BJ93: 0 | BK93: 0 | BL93: 0 | BM93: 0 | BN93: 0 | BO93: 0 | BP93: 0 | BQ93: 0 | BR93: 0 | BS93: 0 | BT93: 0 | BU93: 0 | BV93: 0
B94: 85 | C94: Hermit Park Zone Substation - DC and Bus Overcurrent Protection Duplication | D94: 88 | F94: Augmentation | G94: SCADA, Protection and Control | K94: 26.2073083 | L94: 52.50343432 | M94: 131.3608693 | N94: 131.4680544 | O94: 184.1995883 | S94: 0 | T94: 0 | U94: 0 | V94: 0 | W94: 0 | Y94: 0.7092071467 | Z94: 0 | AA94: 0.2907928533 | AC94: Yes | AD94: Yes | AF94: 0.0001764215852 | AG94: 0.0002844068212 | AI94: 0 | AJ94: 0 | AK94: 1 | AL94: 0 | AM94: 0 | AN94: 0 | AO94: 0 | AP94: 0 | AQ94: 0 | AR94: 0 | AS94: 0.05 | AT94: 0 | AU94: 0 | AV94: 0 | AW94: 0.95 | AX94: 0 | AY94: 0 | AZ94: 0 | BA94: 0 | BB94: 0 | BC94: 0 | BD94: 0 | BE94: 0 | BF94: 0 | BG94: 0 | BH94: 0 | BI94: 0 | BJ94: 0 | BK94: 0 | BL94: 0 | BM94: 0 | BN94: 0 | BO94: 0 | BP94: 0 | BQ94: 0 | BR94: 0 | BS94: 0 | BT94: 0 | BU94: 0 | BV94: 0
B95: 86 | C95: West Dalby Zone Substation - DC and Bus Overcurrent Protection Duplication | D95: 89 | F95: Augmentation | G95: SCADA, Protection and Control | K95: 0 | L95: 0 | M95: 0 | N95: 0 | O95: 0 | S95: 0 | T95: 0 | U95: 0 | V95: 0 | W95: 0 | Y95: 0.7092071467 | Z95: 0 | AA95: 0.2907928533 | AC95: Yes | AD95: Yes | AF95: 0 | AG95: 0 | AI95: 0 | AJ95: 0 | AK95: 1 | AL95: 0 | AM95: 0 | AN95: 0 | AO95: 0 | AP95: 0 | AQ95: 0 | AR95: 0 | AS95: 0.05 | AT95: 0 | AU95: 0 | AV95: 0 | AW95: 0.95 | AX95: 0 | AY95: 0 | AZ95: 0 | BA95: 0 | BB95: 0 | BC95: 0 | BD95: 0 | BE95: 0 | BF95: 0 | BG95: 0 | BH95: 0 | BI95: 0 | BJ95: 0 | BK95: 0 | BL95: 0 | BM95: 0 | BN95: 0 | BO95: 0 | BP95: 0 | BQ95: 0 | BR95: 0 | BS95: 0 | BT95: 0 | BU95: 0 | BV95: 0
B96: 87 | C96: Kingaroy Area Reinforcement | D96: 90 | F96: Augmentation | G96: Sub-Transmission Growth | K96: 517.3899742 | L96: 0 | M96: 0 | N96: 0 | O96: 0 | S96: 0 | T96: 0 | U96: 0 | V96: 0 | W96: 0 | Y96: 0.2007551492 | Z96: 0.5729440071 | AA96: 0.2263008437 | AC96: Yes | AD96: Yes | AF96: 0.0001736198288 | AG96: 7.922845772e-05 | AI96: 0 | AJ96: 0 | AK96: 1 | AL96: 0 | AM96: 0 | AN96: 0 | AO96: 0 | AP96: 0 | AQ96: 0 | AR96: 0.2 | AS96: 0 | AT96: 0.3 | AU96: 0 | AV96: 0 | AW96: 0.1 | AX96: 0 | AY96: 0.2 | AZ96: 0.05 | BA96: 0.15 | BB96: 0 | BC96: 0 | BD96: 0 | BE96: 0 | BF96: 0 | BG96: 0 | BH96: 0 | BI96: 0 | BJ96: 0 | BK96: 0 | BL96: 0 | BM96: 0 | BN96: 0 | BO96: 0 | BP96: 0 | BQ96: 0 | BR96: 0 | BS96: 0 | BT96: 0 | BU96: 0 | BV96: 0
B97: 88 | C97: Alligator Creek - DC and Bus Overcurrent Protection Duplication | D97: 91 | F97: Augmentation | G97: SCADA, Protection and Control | K97: 25.20010411 | L97: 50.4856125 | M97: 126.3123838 | N97: 126.4154495 | O97: 177.1203952 | S97: 0 | T97: 0 | U97: 0 | V97: 0 | W97: 0 | Y97: 0.7092071467 | Z97: 0 | AA97: 0.2907928533 | AC97: Yes | AD97: Yes | AF97: 0.0001696413178 | AG97: 0.000273476445 | AI97: 0 | AJ97: 0 | AK97: 1 | AL97: 0 | AM97: 0 | AN97: 0 | AO97: 0 | AP97: 0 | AQ97: 0 | AR97: 0 | AS97: 0 | AT97: 0 | AU97: 0.05 | AV97: 0 | AW97: 0 | AX97: 0 | AY97: 0.95 | AZ97: 0 | BA97: 0 | BB97: 0 | BC97: 0 | BD97: 0 | BE97: 0 | BF97: 0 | BG97: 0 | BH97: 0 | BI97: 0 | BJ97: 0 | BK97: 0 | BL97: 0 | BM97: 0 | BN97: 0 | BO97: 0 | BP97: 0 | BQ97: 0 | BR97: 0 | BS97: 0 | BT97: 0 | BU97: 0 | BV97: 0
B98: 89 | C98: Frenchville Zone Substation - DC and Bus Overcurrent Protection Duplication | D98: 92 | F98: Augmentation | G98: SCADA, Protection and Control | K98: 0 | L98: 0 | M98: 0 | N98: 0 | O98: 0 | S98: 0 | T98: 0 | U98: 0 | V98: 0 | W98: 0 | Y98: 0.7092071467 | Z98: 0 | AA98: 0.2907928533 | AC98: Yes | AD98: Yes | AF98: 0 | AG98: 0 | AI98: 0 | AJ98: 0 | AK98: 1 | AL98: 0 | AM98: 0 | AN98: 0 | AO98: 0 | AP98: 0 | AQ98: 0 | AR98: 0 | AS98: 0.05 | AT98: 0 | AU98: 0 | AV98: 0 | AW98: 0.95 | AX98: 0 | AY98: 0 | AZ98: 0 | BA98: 0 | BB98: 0 | BC98: 0 | BD98: 0 | BE98: 0 | BF98: 0 | BG98: 0 | BH98: 0 | BI98: 0 | BJ98: 0 | BK98: 0 | BL98: 0 | BM98: 0 | BN98: 0 | BO98: 0 | BP98: 0 | BQ98: 0 | BR98: 0 | BS98: 0 | BT98: 0 | BU98: 0 | BV98: 0
B99: 90 | C99: Mount Kynoch Line Route Acquisition | D99: 93 | F99: Augmentation | G99: Sub-Transmission Growth | K99: 491.7106273 | L99: 0 | M99: 0 | N99: 0 | O99: 0 | S99: 0 | T99: 0 | U99: 0 | V99: 0 | W99: 0 | Y99: 0.1114086503 | Z99: 0 | AA99: 0.8885913497 | AC99: Yes | AD99: Yes | AF99: 0.0001650026464 | AG99: 4.178544268e-05 | AI99: 0 | AJ99: 0 | AK99: 1 | AL99: 0 | AM99: 0 | AN99: 0 | AO99: 0 | AP99: 0 | AQ99: 0 | AR99: 0 | AS99: 0 | AT99: 0 | AU99: 0 | AV99: 0 | AW99: 0 | AX99: 0 | AY99: 0 | AZ99: 0 | BA99: 0 | BB99: 0 | BC99: 0 | BD99: 0 | BE99: 0 | BF99: 1 | BG99: 0 | BH99: 0 | BI99: 0 | BJ99: 0 | BK99: 0 | BL99: 0 | BM99: 0 | BN99: 0 | BO99: 0 | BP99: 0 | BQ99: 0 | BR99: 0 | BS99: 0 | BT99: 0 | BU99: 0 | BV99: 0
B100: 91 | C100: Intelligent Grid Customer Connections Portal | D100: 94 | F100: Augmentation | G100: SCADA, Protection and Control | K100: 0 | L100: 0 | M100: 0 | N100: 0 | O100: 0 | S100: 0 | T100: 0 | U100: 0 | V100: 0 | W100: 0 | Y100: 0.1881825485 | Z100: 0 | AA100: 0.8118174515 | AC100: Yes | AD100: Yes | AF100: 0 | AG100: 0 | AI100: 0 | AJ100: 0 | AK100: 1 | AL100: 0 | AM100: 0 | AN100: 0 | AO100: 0 | AP100: 0 | AQ100: 0 | AR100: 0 | AS100: 0 | AT100: 0 | AU100: 0 | AV100: 0 | AW100: 0 | AX100: 0 | AY100: 0 | AZ100: 0 | BA100: 0 | BB100: 0 | BC100: 0 | BD100: 0 | BE100: 0 | BF100: 0 | BG100: 0 | BH100: 1 | BI100: 0 | BJ100: 0 | BK100: 0 | BL100: 0 | BM100: 0 | BN100: 0 | BO100: 0 | BP100: 0 | BQ100: 0 | BR100: 0 | BS100: 0 | BT100: 0 | BU100: 0 | BV100: 0
B101: 92 | C101: Boat Creek Zone Substation - DC and Bus Overcurrent Protection Duplication | D101: 95 | F101: Augmentation | G101: SCADA, Protection and Control | K101: 0 | L101: 0 | M101: 0 | N101: 0 | O101: 0 | S101: 0 | T101: 0 | U101: 0 | V101: 0 | W101: 0 | Y101: 0.7092071467 | Z101: 0 | AA101: 0.2907928533 | AC101: Yes | AD101: Yes | AF101: 0 | AG101: 0 | AI101: 0 | AJ101: 0 | AK101: 1 | AL101: 0 | AM101: 0 | AN101: 0 | AO101: 0 | AP101: 0 | AQ101: 0 | AR101: 0 | AS101: 0.05 | AT101: 0 | AU101: 0 | AV101: 0 | AW101: 0.95 | AX101: 0 | AY101: 0 | AZ101: 0 | BA101: 0 | BB101: 0 | BC101: 0 | BD101: 0 | BE101: 0 | BF101: 0 | BG101: 0 | BH101: 0 | BI101: 0 | BJ101: 0 | BK101: 0 | BL101: 0 | BM101: 0 | BN101: 0 | BO101: 0 | BP101: 0 | BQ101: 0 | BR101: 0 | BS101: 0 | BT101: 0 | BU101: 0 | BV101: 0
B102: 93 | C102: Maryborough City - DC and Bus Overcurrent Protection Duplication | D102: 96 | F102: Augmentation | G102: SCADA, Protection and Control | K102: 23.57464684 | L102: 47.2291892 | M102: 118.1649816 | N102: 118.2613994 | O102: 165.6957744 | S102: 0 | T102: 0 | U102: 0 | V102: 0 | W102: 0 | Y102: 0.7092071467 | Z102: 0 | AA102: 0.2907928533 | AC102: Yes | AD102: Yes | AF102: 0.0001586991124 | AG102: 0.0002558366656 | AI102: 0 | AJ102: 0 | AK102: 1 | AL102: 0 | AM102: 0 | AN102: 0 | AO102: 0 | AP102: 0 | AQ102: 0 | AR102: 0 | AS102: 0 | AT102: 0 | AU102: 0.05 | AV102: 0 | AW102: 0 | AX102: 0 | AY102: 0.95 | AZ102: 0 | BA102: 0 | BB102: 0 | BC102: 0 | BD102: 0 | BE102: 0 | BF102: 0 | BG102: 0 | BH102: 0 | BI102: 0 | BJ102: 0 | BK102: 0 | BL102: 0 | BM102: 0 | BN102: 0 | BO102: 0 | BP102: 0 | BQ102: 0 | BR102: 0 | BS102: 0 | BT102: 0 | BU102: 0 | BV102: 0
B103: 94 | C103: RPX CA FE 6053 PDBS to PH - AUGEX | D103: 97 | F103: Augmentation | G103: Sub-Transmission Growth | K103: 32.45929883 | L103: 202.8572137 | M103: 218.2292117 | N103: 0 | O103: 0 | S103: 0 | T103: 0 | U103: 0 | V103: 0 | W103: 0 | Y103: 0.8310853533 | Z103: 0 | AA103: 0.1689146467 | AC103: Yes | AD103: Yes | AF103: 0.0001521957033 | AG103: 0.0002875167862 | AI103: 0 | AJ103: 0 | AK103: 1 | AL103: 0 | AM103: 0 | AN103: 0 | AO103: 0 | AP103: 0 | AQ103: 0 | AR103: 0 | AS103: 0 | AT103: 0.5 | AU103: 0.1 | AV103: 0.25 | AW103: 0 | AX103: 0 | AY103: 0.05 | AZ103: 0 | BA103: 0.1 | BB103: 0 | BC103: 0 | BD103: 0 | BE103: 0 | BF103: 0 | BG103: 0 | BH103: 0 | BI103: 0 | BJ103: 0 | BK103: 0 | BL103: 0 | BM103: 0 | BN103: 0 | BO103: 0 | BP103: 0 | BQ103: 0 | BR103: 0 | BS103: 0 | BT103: 0 | BU103: 0 | BV103: 0
B104: 95 | C104: Ayre Zone Substation DC and Bus Overcurrent Protection Duplication | D104: 98 | F104: Augmentation | G104: SCADA, Protection and Control | K104: 0 | L104: 0 | M104: 0 | N104: 0 | O104: 0 | S104: 0 | T104: 0 | U104: 0 | V104: 0 | W104: 0 | Y104: 0.7092071467 | Z104: 0 | AA104: 0.2907928533 | AC104: Yes | AD104: Yes | AF104: 0 | AG104: 0 | AI104: 0 | AJ104: 0 | AK104: 1 | AL104: 0 | AM104: 0 | AN104: 0 | AO104: 0 | AP104: 0 | AQ104: 0 | AR104: 0 | AS104: 0.05 | AT104: 0 | AU104: 0 | AV104: 0 | AW104: 0.95 | AX104: 0 | AY104: 0 | AZ104: 0 | BA104: 0 | BB104: 0 | BC104: 0 | BD104: 0 | BE104: 0 | BF104: 0 | BG104: 0 | BH104: 0 | BI104: 0 | BJ104: 0 | BK104: 0 | BL104: 0 | BM104: 0 | BN104: 0 | BO104: 0 | BP104: 0 | BQ104: 0 | BR104: 0 | BS104: 0 | BT104: 0 | BU104: 0 | BV104: 0
B105: 96 | C105: Dysart Zone Substation - DC and Bus Overcurrent Proteciton Duplication | D105: 99 | F105: Augmentation | G105: SCADA, Protection and Control | K105: 19.87425095 | L105: 39.81585662 | M105: 99.61720801 | N105: 99.6984916 | O105: 139.687327 | S105: 0 | T105: 0 | U105: 0 | V105: 0 | W105: 0 | Y105: 0.7092071467 | Z105: 0 | AA105: 0.2907928533 | AC105: Yes | AD105: Yes | AF105: 0.0001337888965 | AG105: 0.0002156792477 | AI105: 0 | AJ105: 0 | AK105: 1 | AL105: 0 | AM105: 0 | AN105: 0 | AO105: 0 | AP105: 0 | AQ105: 0 | AR105: 0 | AS105: 0.05 | AT105: 0 | AU105: 0 | AV105: 0 | AW105: 0.95 | AX105: 0 | AY105: 0 | AZ105: 0 | BA105: 0 | BB105: 0 | BC105: 0 | BD105: 0 | BE105: 0 | BF105: 0 | BG105: 0 | BH105: 0 | BI105: 0 | BJ105: 0 | BK105: 0 | BL105: 0 | BM105: 0 | BN105: 0 | BO105: 0 | BP105: 0 | BQ105: 0 | BR105: 0 | BS105: 0 | BT105: 0 | BU105: 0 | BV105: 0
B106: 97 | C106: Grid Control Distribution Managmeent System Staging Environment Upgrade | D106: 100 | F106: Augmentation | G106: SCADA, Protection and Control | K106: 327.963 | L106: 218.642 | M106: 0 | N106: 0 | O106: 0 | S106: 0 | T106: 0 | U106: 0 | V106: 0 | W106: 0 | Y106: 0.9389872317 | Z106: 0 | AA106: 0.0610127683 | AC106: Yes | AD106: Yes | AF106: 0.0001834234741 | AG106: 0.0003914982153 | AI106: 0 | AJ106: 0 | AK106: 1 | AL106: 0 | AM106: 0 | AN106: 0 | AO106: 0 | AP106: 0 | AQ106: 0 | AR106: 0 | AS106: 0 | AT106: 0 | AU106: 0 | AV106: 0 | AW106: 0 | AX106: 0 | AY106: 0 | AZ106: 0 | BA106: 0 | BB106: 0 | BC106: 0.02 | BD106: 0.03 | BE106: 0 | BF106: 0 | BG106: 0 | BH106: 0.95 | BI106: 0 | BJ106: 0 | BK106: 0 | BL106: 0 | BM106: 0 | BN106: 0 | BO106: 0 | BP106: 0 | BQ106: 0 | BR106: 0 | BS106: 0 | BT106: 0 | BU106: 0 | BV106: 0
B107: 98 | C107: GRID COMMS - Digital Enablement | D107: 101 | F107: Augmentation | G107: SCADA, Protection and Control | K107: 77.02596614 | L107: 77.24819487 | M107: 77.34381243 | N107: 77.44240246 | O107: 77.53866105 | S107: 0 | T107: 0 | U107: 0 | V107: 0 | W107: 0 | Y107: 0.5141268503 | Z107: 0 | AA107: 0.4858731497 | AC107: Yes | AD107: Yes | AF107: 0.0001297304972 | AG107: 0.0001516098972 | AI107: 0 | AJ107: 0 | AK107: 1 | AL107: 0 | AM107: 0 | AN107: 0 | AO107: 0 | AP107: 0 | AQ107: 0 | AR107: 0 | AS107: 0 | AT107: 0 | AU107: 0 | AV107: 0 | AW107: 0 | AX107: 0 | AY107: 0 | AZ107: 0 | BA107: 0 | BB107: 0 | BC107: 0 | BD107: 0.05 | BE107: 0 | BF107: 0 | BG107: 0 | BH107: 0.95 | BI107: 0 | BJ107: 0 | BK107: 0 | BL107: 0 | BM107: 0 | BN107: 0 | BO107: 0 | BP107: 0 | BQ107: 0 | BR107: 0 | BS107: 0 | BT107: 0 | BU107: 0 | BV107: 0
B108: 99 | C108: Parkhurst Zone Substation - DC and Bus Overcurrent Protection Duplication | D108: 102 | F108: Augmentation | G108: SCADA, Protection and Control | K108: 0 | L108: 0 | M108: 0 | N108: 0 | O108: 0 | S108: 0 | T108: 0 | U108: 0 | V108: 0 | W108: 0 | Y108: 0.7092071467 | Z108: 0 | AA108: 0.2907928533 | AC108: Yes | AD108: Yes | AF108: 0 | AG108: 0 | AI108: 0 | AJ108: 0 | AK108: 1 | AL108: 0 | AM108: 0 | AN108: 0 | AO108: 0 | AP108: 0 | AQ108: 0 | AR108: 0 | AS108: 0.05 | AT108: 0 | AU108: 0 | AV108: 0 | AW108: 0.95 | AX108: 0 | AY108: 0 | AZ108: 0 | BA108: 0 | BB108: 0 | BC108: 0 | BD108: 0 | BE108: 0 | BF108: 0 | BG108: 0 | BH108: 0 | BI108: 0 | BJ108: 0 | BK108: 0 | BL108: 0 | BM108: 0 | BN108: 0 | BO108: 0 | BP108: 0 | BQ108: 0 | BR108: 0 | BS108: 0 | BT108: 0 | BU108: 0 | BV108: 0
B109: 100 | C109: Egans Hill DC and Bus Overcurrent Protection Duplication | D109: 104 | F109: Augmentation | G109: SCADA, Protection and Control | K109: 0 | L109: 90.97113977 | M109: 0 | N109: 0 | O109: 0 | S109: 0 | T109: 0 | U109: 0 | V109: 0 | W109: 0 | Y109: 0.7092071467 | Z109: 0 | AA109: 0.2907928533 | AC109: Yes | AD109: Yes | AF109: 3.052705793e-05 | AG109: 4.921225199e-05 | AI109: 0 | AJ109: 0 | AK109: 1 | AL109: 0 | AM109: 0 | AN109: 0 | AO109: 0 | AP109: 0 | AQ109: 0 | AR109: 0 | AS109: 0 | AT109: 0 | AU109: 0.05 | AV109: 0 | AW109: 0 | AX109: 0 | AY109: 0.95 | AZ109: 0 | BA109: 0 | BB109: 0 | BC109: 0 | BD109: 0 | BE109: 0 | BF109: 0 | BG109: 0 | BH109: 0 | BI109: 0 | BJ109: 0 | BK109: 0 | BL109: 0 | BM109: 0 | BN109: 0 | BO109: 0 | BP109: 0 | BQ109: 0 | BR109: 0 | BS109: 0 | BT109: 0 | BU109: 0 | BV109: 0
B110: 101 | C110: AUG PI PRDE 398 StrathPal - AUGEX | D110: 105 | F110: Augmentation | G110: Distribution Growth | K110: 345.9348753 | L110: 0 | M110: 0 | N110: 0 | O110: 0 | S110: 0 | T110: 0 | U110: 0 | V110: 0 | W110: 0 | Y110: 0.5088127846 | Z110: 0 | AA110: 0.4911872154 | AC110: Yes | AD110: Yes | AF110: 0.0001160848815 | AG110: 0.0001342606861 | AI110: 0 | AJ110: 0 | AK110: 1 | AL110: 0 | AM110: 0 | AN110: 0 | AO110: 0 | AP110: 0 | AQ110: 0 | AR110: 0 | AS110: 0 | AT110: 0 | AU110: 0.05 | AV110: 0 | AW110: 0 | AX110: 0 | AY110: 0.95 | AZ110: 0 | BA110: 0 | BB110: 0 | BC110: 0 | BD110: 0 | BE110: 0 | BF110: 0 | BG110: 0 | BH110: 0 | BI110: 0 | BJ110: 0 | BK110: 0 | BL110: 0 | BM110: 0 | BN110: 0 | BO110: 0 | BP110: 0 | BQ110: 0 | BR110: 0 | BS110: 0 | BT110: 0 | BU110: 0 | BV110: 0
B111: 102 | C111: Rocky St DC and Bus Overcurrent Protection Duplication | D111: 106 | F111: Augmentation | G111: SCADA, Protection and Control | K111: 16.71187398 | L111: 33.48038525 | M111: 83.76618726 | N111: 83.83453706 | O111: 117.4603768 | S111: 0 | T111: 0 | U111: 0 | V111: 0 | W111: 0 | Y111: 0.7092071467 | Z111: 0 | AA111: 0.2907928533 | AC111: Yes | AD111: Yes | AF111: 0.0001125005005 | AG111: 0.000181360516 | AI111: 0 | AJ111: 0 | AK111: 1 | AL111: 0 | AM111: 0 | AN111: 0 | AO111: 0 | AP111: 0 | AQ111: 0 | AR111: 0 | AS111: 0 | AT111: 0 | AU111: 0.05 | AV111: 0 | AW111: 0 | AX111: 0 | AY111: 0.95 | AZ111: 0 | BA111: 0 | BB111: 0 | BC111: 0 | BD111: 0 | BE111: 0 | BF111: 0 | BG111: 0 | BH111: 0 | BI111: 0 | BJ111: 0 | BK111: 0 | BL111: 0 | BM111: 0 | BN111: 0 | BO111: 0 | BP111: 0 | BQ111: 0 | BR111: 0 | BS111: 0 | BT111: 0 | BU111: 0 | BV111: 0
B112: 103 | C112: Aitkenvale Zone Substation - DC and Bus Overcurrent Protection Duplication | D112: 109 | F112: Augmentation | G112: SCADA, Protection and Control | K112: 0 | L112: 0 | M112: 0 | N112: 0 | O112: 0 | S112: 0 | T112: 0 | U112: 0 | V112: 0 | W112: 0 | Y112: 0.7092071467 | Z112: 0 | AA112: 0.2907928533 | AC112: Yes | AD112: Yes | AF112: 0 | AG112: 0 | AI112: 0 | AJ112: 0 | AK112: 1 | AL112: 0 | AM112: 0 | AN112: 0 | AO112: 0 | AP112: 0 | AQ112: 0 | AR112: 0 | AS112: 0.05 | AT112: 0 | AU112: 0 | AV112: 0 | AW112: 0.95 | AX112: 0 | AY112: 0 | AZ112: 0 | BA112: 0 | BB112: 0 | BC112: 0 | BD112: 0 | BE112: 0 | BF112: 0 | BG112: 0 | BH112: 0 | BI112: 0 | BJ112: 0 | BK112: 0 | BL112: 0 | BM112: 0 | BN112: 0 | BO112: 0 | BP112: 0 | BQ112: 0 | BR112: 0 | BS112: 0 | BT112: 0 | BU112: 0 | BV112: 0
B113: 104 | C113: Establish closed delta regulator at CHTD | D113: 110 | F113: Augmentation | G113: Distribution Growth | K113: 301.2524321 | L113: 0 | M113: 0 | N113: 0 | O113: 0 | S113: 0 | T113: 0 | U113: 0 | V113: 0 | W113: 0 | Y113: 0.215219179 | Z113: 0.7467495806 | AA113: 0.0380312404 | AC113: Yes | AD113: Yes | AF113: 0.0001010908566 | AG113: 4.94547524e-05 | AI113: 0 | AJ113: 0 | AK113: 1 | AL113: 0 | AM113: 0 | AN113: 0 | AO113: 0 | AP113: 0 | AQ113: 0 | AR113: 0 | AS113: 0 | AT113: 0 | AU113: 0 | AV113: 1 | AW113: 0 | AX113: 0 | AY113: 0 | AZ113: 0 | BA113: 0 | BB113: 0 | BC113: 0 | BD113: 0 | BE113: 0 | BF113: 0 | BG113: 0 | BH113: 0 | BI113: 0 | BJ113: 0 | BK113: 0 | BL113: 0 | BM113: 0 | BN113: 0 | BO113: 0 | BP113: 0 | BQ113: 0 | BR113: 0 | BS113: 0 | BT113: 0 | BU113: 0 | BV113: 0
B114: 105 | C114: Establish Standalone Power System at CHDE F233C | D114: 111 | F114: Augmentation | G114: Distribution Growth | K114: 0 | L114: 0 | M114: 0 | N114: 0 | O114: 0 | S114: 0 | T114: 0 | U114: 0 | V114: 0 | W114: 0 | Y114: 0.2251845683 | Z114: 0.734520286 | AA114: 0.04029514574 | AC114: Yes | AD114: Yes | AF114: 0 | AG114: 0 | AI114: 0 | AJ114: 0 | AK114: 1 | AL114: 0 | AM114: 0 | AN114: 0 | AO114: 0 | AP114: 0 | AQ114: 0 | AR114: 0.1 | AS114: 0.01 | AT114: 0.42 | AU114: 0.08 | AV114: 0.01 | AW114: 0.11 | AX114: 0.03 | AY114: 0.04 | AZ114: 0.02 | BA114: 0.11 | BB114: 0.03 | BC114: 0.01 | BD114: 0.01 | BE114: 0 | BF114: 0.01 | BG114: 0.01 | BH114: 0 | BI114: 0 | BJ114: 0 | BK114: 0 | BL114: 0 | BM114: 0 | BN114: 0 | BO114: 0 | BP114: 0 | BQ114: 0 | BR114: 0 | BS114: 0 | BT114: 0 | BU114: 0 | BV114: 0
B115: 106 | C115: GC Operator Training Cap - AUGEX | D115: 112 | F115: Augmentation | G115: SCADA, Protection and Control | K115: 244 | L115: 41 | M115: 41 | N115: 41 | O115: 41 | S115: 0 | T115: 0 | U115: 0 | V115: 0 | W115: 0 | Y115: 0.6531955615 | Z115: 0 | AA115: 0.3468044385 | AC115: Yes | AD115: Yes | AF115: 0.0001369119884 | AG115: 0.0002032824508 | AI115: 0 | AJ115: 0 | AK115: 1 | AL115: 0 | AM115: 0 | AN115: 0 | AO115: 0 | AP115: 0 | AQ115: 0 | AR115: 0 | AS115: 0 | AT115: 0 | AU115: 0 | AV115: 0 | AW115: 0 | AX115: 0 | AY115: 0 | AZ115: 0 | BA115: 0 | BB115: 0 | BC115: 0 | BD115: 0 | BE115: 0 | BF115: 0 | BG115: 0 | BH115: 1 | BI115: 0 | BJ115: 0 | BK115: 0 | BL115: 0 | BM115: 0 | BN115: 0 | BO115: 0 | BP115: 0 | BQ115: 0 | BR115: 0 | BS115: 0 | BT115: 0 | BU115: 0 | BV115: 0
B116: 107 | C116: Resolve Unisolated SWER at MNDE 218 | D116: 113 | F116: Augmentation | G116: Distribution Growth | K116: 289.0674323 | L116: 0 | M116: 0 | N116: 0 | O116: 0 | S116: 0 | T116: 0 | U116: 0 | V116: 0 | W116: 0 | Y116: 1 | Z116: 0 | AA116: 0 | AC116: Yes | AD116: Yes | AF116: 9.70019533e-05 | AG116: 0.0002204934357 | AI116: 0 | AJ116: 0 | AK116: 1 | AL116: 0 | AM116: 0 | AN116: 0 | AO116: 0 | AP116: 0 | AQ116: 0 | AR116: 0 | AS116: 0 | AT116: 0.9 | AU116: 0 | AV116: 0.1 | AW116: 0 | AX116: 0 | AY116: 0 | AZ116: 0 | BA116: 0 | BB116: 0 | BC116: 0 | BD116: 0 | BE116: 0 | BF116: 0 | BG116: 0 | BH116: 0 | BI116: 0 | BJ116: 0 | BK116: 0 | BL116: 0 | BM116: 0 | BN116: 0 | BO116: 0 | BP116: 0 | BQ116: 0 | BR116: 0 | BS116: 0 | BT116: 0 | BU116: 0 | BV116: 0
B117: 108 | C117: Grid Control Automated Distribution Management System Testing | D117: 114 | F117: Augmentation | G117: SCADA, Protection and Control | K117: 159 | L117: 60 | M117: 60 | N117: 60 | O117: 60 | S117: 0 | T117: 0 | U117: 0 | V117: 0 | W117: 0 | Y117: 0.9021563262 | Z117: 0 | AA117: 0.09784367385 | AC117: Yes | AD117: Yes | AF117: 0.000133891871 | AG117: 0.0002745688055 | AI117: 0 | AJ117: 0 | AK117: 1 | AL117: 0 | AM117: 0 | AN117: 0 | AO117: 0 | AP117: 0 | AQ117: 0 | AR117: 0 | AS117: 0 | AT117: 0 | AU117: 0 | AV117: 0 | AW117: 0 | AX117: 0 | AY117: 0 | AZ117: 0 | BA117: 0 | BB117: 0 | BC117: 0 | BD117: 0.05 | BE117: 0 | BF117: 0 | BG117: 0 | BH117: 0.95 | BI117: 0 | BJ117: 0 | BK117: 0 | BL117: 0 | BM117: 0 | BN117: 0 | BO117: 0 | BP117: 0 | BQ117: 0 | BR117: 0 | BS117: 0 | BT117: 0 | BU117: 0 | BV117: 0
B118: 109 | C118: Grid Control Low Trust FEP | D118: 115 | F118: Augmentation | G118: SCADA, Protection and Control | K118: 277.3108133 | L118: 0 | M118: 0 | N118: 0 | O118: 0 | S118: 0 | T118: 0 | U118: 0 | V118: 0 | W118: 0 | Y118: 0.5483820698 | Z118: 0 | AA118: 0.4516179302 | AC118: Yes | AD118: Yes | AF118: 9.305680115e-05 | AG118: 0.0001159969449 | AI118: 0 | AJ118: 0 | AK118: 1 | AL118: 0 | AM118: 0 | AN118: 0 | AO118: 0 | AP118: 0 | AQ118: 0 | AR118: 0 | AS118: 0 | AT118: 0 | AU118: 0 | AV118: 0 | AW118: 0 | AX118: 0 | AY118: 0 | AZ118: 0 | BA118: 0 | BB118: 0 | BC118: 0.02 | BD118: 0.03 | BE118: 0 | BF118: 0 | BG118: 0 | BH118: 0.95 | BI118: 0 | BJ118: 0 | BK118: 0 | BL118: 0 | BM118: 0 | BN118: 0 | BO118: 0 | BP118: 0 | BQ118: 0 | BR118: 0 | BS118: 0 | BT118: 0 | BU118: 0 | BV118: 0
B119: 110 | C119: Mackay City Bus Overcurrent and DC Duplication | D119: 116 | F119: Augmentation | G119: SCADA, Protection and Control | K119: 0 | L119: 0 | M119: 0 | N119: 0 | O119: 0 | S119: 0 | T119: 0 | U119: 0 | V119: 0 | W119: 0 | Y119: 0.7092071467 | Z119: 0 | AA119: 0.2907928533 | AC119: Yes | AD119: Yes | AF119: 0 | AG119: 0 | AI119: 0 | AJ119: 0 | AK119: 1 | AL119: 0 | AM119: 0 | AN119: 0 | AO119: 0 | AP119: 0 | AQ119: 0 | AR119: 0 | AS119: 0 | AT119: 0 | AU119: 0.05 | AV119: 0 | AW119: 0 | AX119: 0 | AY119: 0.95 | AZ119: 0 | BA119: 0 | BB119: 0 | BC119: 0 | BD119: 0 | BE119: 0 | BF119: 0 | BG119: 0 | BH119: 0 | BI119: 0 | BJ119: 0 | BK119: 0 | BL119: 0 | BM119: 0 | BN119: 0 | BO119: 0 | BP119: 0 | BQ119: 0 | BR119: 0 | BS119: 0 | BT119: 0 | BU119: 0 | BV119: 0
B120: 111 | C120: Establish Backup DC at Pandoin | D120: 117 | F120: Augmentation | G120: SCADA, Protection and Control | K120: 20.75351175 | L120: 41.13337467 | M120: 182.5737022 | N120: 0 | O120: 0 | S120: 0 | T120: 0 | U120: 0 | V120: 0 | W120: 0 | Y120: 0.5210028696 | Z120: 0 | AA120: 0.4789971304 | AC120: Yes | AD120: Yes | AF120: 8.203329726e-05 | AG120: 9.715059578e-05 | AI120: 0 | AJ120: 0 | AK120: 1 | AL120: 0 | AM120: 0 | AN120: 0 | AO120: 0 | AP120: 0 | AQ120: 0 | AR120: 0 | AS120: 0 | AT120: 0 | AU120: 0.05 | AV120: 0 | AW120: 0 | AX120: 0 | AY120: 0.95 | AZ120: 0 | BA120: 0 | BB120: 0 | BC120: 0 | BD120: 0 | BE120: 0 | BF120: 0 | BG120: 0 | BH120: 0 | BI120: 0 | BJ120: 0 | BK120: 0 | BL120: 0 | BM120: 0 | BN120: 0 | BO120: 0 | BP120: 0 | BQ120: 0 | BR120: 0 | BS120: 0 | BT120: 0 | BU120: 0 | BV120: 0
B121: 112 | C121: Grid Control CSD Upgrade 25-26 | D121: 118 | F121: Augmentation | G121: SCADA, Protection and Control | K121: 256 | L121: 246 | M121: 0 | N121: 0 | O121: 0 | S121: 0 | T121: 0 | U121: 0 | V121: 0 | W121: 0 | Y121: 0.5146269844 | Z121: 0.4853730156 | AA121: 0 | AC121: Yes | AD121: Yes | AF121: 0.0001684554367 | AG121: 0.0001970574105 | AI121: 0 | AJ121: 0 | AK121: 1 | AL121: 0 | AM121: 0 | AN121: 0 | AO121: 0 | AP121: 0 | AQ121: 0 | AR121: 0 | AS121: 0 | AT121: 0 | AU121: 0 | AV121: 0 | AW121: 0 | AX121: 0 | AY121: 0 | AZ121: 0 | BA121: 0 | BB121: 0 | BC121: 0 | BD121: 0 | BE121: 0 | BF121: 0 | BG121: 0 | BH121: 1 | BI121: 0 | BJ121: 0 | BK121: 0 | BL121: 0 | BM121: 0 | BN121: 0 | BO121: 0 | BP121: 0 | BQ121: 0 | BR121: 0 | BS121: 0 | BT121: 0 | BU121: 0 | BV121: 0
B122: 113 | C122: Establish new Regulator at LODE LR210 | D122: 120 | F122: Augmentation | G122: Distribution Growth | K122: 227.1407515 | L122: 0 | M122: 0 | N122: 0 | O122: 0 | S122: 0 | T122: 0 | U122: 0 | V122: 0 | W122: 0 | Y122: 0.2320773788 | Z122: 0.7162048228 | AA122: 0.05171779837 | AC122: Yes | AD122: Yes | AF122: 7.622130377e-05 | AG122: 4.020910152e-05 | AI122: 0 | AJ122: 0 | AK122: 1 | AL122: 0 | AM122: 0 | AN122: 0 | AO122: 0 | AP122: 0 | AQ122: 0 | AR122: 0 | AS122: 0 | AT122: 0 | AU122: 0 | AV122: 0 | AW122: 0 | AX122: 0 | AY122: 1 | AZ122: 0 | BA122: 0 | BB122: 0 | BC122: 0 | BD122: 0 | BE122: 0 | BF122: 0 | BG122: 0 | BH122: 0 | BI122: 0 | BJ122: 0 | BK122: 0 | BL122: 0 | BM122: 0 | BN122: 0 | BO122: 0 | BP122: 0 | BQ122: 0 | BR122: 0 | BS122: 0 | BT122: 0 | BU122: 0 | BV122: 0
B123: 114 | C123: IGE LV DERMS - DER Integration Strategy | D123: 121 | F123: DER | G123: Dynamic Connections | K123: 1222.427005 | L123: 249.4807411 | M123: 0 | N123: 0 | O123: 0 | S123: 0 | T123: 0 | U123: 0 | V123: 0 | W123: 0 | Y123: 0.2935642899 | Z123: 0.4945051127 | AA123: 0.2119305974 | AC123: Yes | AD123: Yes | AF123: 0.0004939260204 | AG123: 0.0003295947733 | AI123: 0 | AJ123: 1 | AK123: 0 | AL123: 0 | AM123: 0 | AN123: 0 | AO123: 0 | AP123: 0 | AQ123: 0 | AR123: 0 | AS123: 0 | AT123: 0 | AU123: 0 | AV123: 0 | AW123: 0 | AX123: 0 | AY123: 0 | AZ123: 0 | BA123: 0 | BB123: 0.98 | BC123: 0.02 | BD123: 0 | BE123: 0 | BF123: 0 | BG123: 0 | BH123: 0 | BI123: 0 | BJ123: 0 | BK123: 0 | BL123: 0 | BM123: 0 | BN123: 0 | BO123: 0 | BP123: 0 | BQ123: 0 | BR123: 0 | BS123: 0 | BT123: 0 | BU123: 0 | BV123: 0
B124: 115 | C124: Merinda Zone Substation - DC and Bus Overcurrent Protection Duplication | D124: 122 | F124: Augmentation | G124: SCADA, Protection and Control | K124: 11.06133482 | L124: 22.16015699 | M124: 55.44356334 | N124: 55.48880304 | O124: 77.74523416 | S124: 0 | T124: 0 | U124: 0 | V124: 0 | W124: 0 | Y124: 0.7092071467 | Z124: 0 | AA124: 0.2907928533 | AC124: Yes | AD124: Yes | AF124: 7.446236756e-05 | AG124: 0.0001200397629 | AI124: 0 | AJ124: 0 | AK124: 1 | AL124: 0 | AM124: 0 | AN124: 0 | AO124: 0 | AP124: 0 | AQ124: 0 | AR124: 0 | AS124: 0 | AT124: 0 | AU124: 0 | AV124: 0 | AW124: 1 | AX124: 0 | AY124: 0 | AZ124: 0 | BA124: 0 | BB124: 0 | BC124: 0 | BD124: 0 | BE124: 0 | BF124: 0 | BG124: 0 | BH124: 0 | BI124: 0 | BJ124: 0 | BK124: 0 | BL124: 0 | BM124: 0 | BN124: 0 | BO124: 0 | BP124: 0 | BQ124: 0 | BR124: 0 | BS124: 0 | BT124: 0 | BU124: 0 | BV124: 0
B125: 116 | C125: Toowoomba Central Zone Substation - DC and Bus Overcurrent Protection Duplication | D125: 123 | F125: Augmentation | G125: SCADA, Protection and Control | K125: 0 | L125: 53.38719684 | M125: 0 | N125: 0 | O125: 0 | S125: 0 | T125: 0 | U125: 0 | V125: 0 | W125: 0 | Y125: 0.7092071467 | Z125: 0 | AA125: 0.2907928533 | AC125: Yes | AD125: Yes | AF125: 1.791506685e-05 | AG125: 2.888063391e-05 | AI125: 0 | AJ125: 0 | AK125: 1 | AL125: 0 | AM125: 0 | AN125: 0 | AO125: 0 | AP125: 0 | AQ125: 0 | AR125: 0 | AS125: 0 | AT125: 0 | AU125: 0 | AV125: 0 | AW125: 1 | AX125: 0 | AY125: 0 | AZ125: 0 | BA125: 0 | BB125: 0 | BC125: 0 | BD125: 0 | BE125: 0 | BF125: 0 | BG125: 0 | BH125: 0 | BI125: 0 | BJ125: 0 | BK125: 0 | BL125: 0 | BM125: 0 | BN125: 0 | BO125: 0 | BP125: 0 | BQ125: 0 | BR125: 0 | BS125: 0 | BT125: 0 | BU125: 0 | BV125: 0
B126: 117 | C126: GC ABB Decommission NS 25 - AUGEX | D126: 124 | F126: Augmentation | G126: SCADA, Protection and Control | K126: 184.1419616 | L126: 0 | M126: 0 | N126: 0 | O126: 0 | S126: 0 | T126: 0 | U126: 0 | V126: 0 | W126: 0 | Y126: 0.974117819 | Z126: 0 | AA126: 0.02588218102 | AC126: Yes | AD126: Yes | AF126: 6.17922601e-05 | AG126: 0.000136823518 | AI126: 0 | AJ126: 0 | AK126: 1 | AL126: 0 | AM126: 0 | AN126: 0 | AO126: 0 | AP126: 0 | AQ126: 0 | AR126: 0 | AS126: 0 | AT126: 0 | AU126: 0 | AV126: 0 | AW126: 0 | AX126: 0 | AY126: 0 | AZ126: 0 | BA126: 0 | BB126: 0 | BC126: 0 | BD126: 0 | BE126: 0 | BF126: 0 | BG126: 0 | BH126: 1 | BI126: 0 | BJ126: 0 | BK126: 0 | BL126: 0 | BM126: 0 | BN126: 0 | BO126: 0 | BP126: 0 | BQ126: 0 | BR126: 0 | BS126: 0 | BT126: 0 | BU126: 0 | BV126: 0
B127: 118 | C127: Oil Recloser Upgrade Program | D127: 125 | F127: Augmentation | G127: Distribution Growth | K127: 0 | L127: 0 | M127: 0 | N127: 0 | O127: 175.8683394 | S127: 0 | T127: 0 | U127: 0 | V127: 0 | W127: 0 | Y127: 0.5111342885 | Z127: 0 | AA127: 0.4888657115 | AC127: Yes | AD127: Yes | AF127: 5.901589229e-05 | AG127: 6.856763631e-05 | AI127: 0 | AJ127: 0 | AK127: 1 | AL127: 0 | AM127: 0 | AN127: 0 | AO127: 0 | AP127: 0 | AQ127: 0 | AR127: 0 | AS127: 0 | AT127: 0 | AU127: 0 | AV127: 1 | AW127: 0 | AX127: 0 | AY127: 0 | AZ127: 0 | BA127: 0 | BB127: 0 | BC127: 0 | BD127: 0 | BE127: 0 | BF127: 0 | BG127: 0 | BH127: 0 | BI127: 0 | BJ127: 0 | BK127: 0 | BL127: 0 | BM127: 0 | BN127: 0 | BO127: 0 | BP127: 0 | BQ127: 0 | BR127: 0 | BS127: 0 | BT127: 0 | BU127: 0 | BV127: 0
B128: 119 | C128: Hermit Park zone substation exit cable upgrades | D128: 126 | F128: Augmentation | G128: Distribution Growth | K128: 165.9335041 | L128: 0 | M128: 0 | N128: 0 | O128: 0 | S128: 0 | T128: 0 | U128: 0 | V128: 0 | W128: 0 | Y128: 0.3986815044 | Z128: 0.2852241552 | AA128: 0.3160943404 | AC128: Yes | AD128: Yes | AF128: 5.568207351e-05 | AG128: 5.046109525e-05 | AI128: 0 | AJ128: 0 | AK128: 1 | AL128: 0 | AM128: 0 | AN128: 0 | AO128: 0 | AP128: 0 | AQ128: 0 | AR128: 0 | AS128: 1 | AT128: 0 | AU128: 0 | AV128: 0 | AW128: 0 | AX128: 0 | AY128: 0 | AZ128: 0 | BA128: 0 | BB128: 0 | BC128: 0 | BD128: 0 | BE128: 0 | BF128: 0 | BG128: 0 | BH128: 0 | BI128: 0 | BJ128: 0 | BK128: 0 | BL128: 0 | BM128: 0 | BN128: 0 | BO128: 0 | BP128: 0 | BQ128: 0 | BR128: 0 | BS128: 0 | BT128: 0 | BU128: 0 | BV128: 0
B129: 120 | C129: Alan Sherrif DC Duplication and Bus Overcurrent Scheme Upgrade | D129: 127 | F129: Augmentation | G129: SCADA, Protection and Control | K129: 0 | L129: 0 | M129: 0 | N129: 0 | O129: 0 | S129: 0 | T129: 0 | U129: 0 | V129: 0 | W129: 0 | Y129: 0.7092071467 | Z129: 0 | AA129: 0.2907928533 | AC129: Yes | AD129: Yes | AF129: 0 | AG129: 0 | AI129: 0 | AJ129: 0 | AK129: 1 | AL129: 0 | AM129: 0 | AN129: 0 | AO129: 0 | AP129: 0 | AQ129: 0 | AR129: 0 | AS129: 0 | AT129: 0 | AU129: 0.05 | AV129: 0 | AW129: 0 | AX129: 0 | AY129: 0.95 | AZ129: 0 | BA129: 0 | BB129: 0 | BC129: 0 | BD129: 0 | BE129: 0 | BF129: 0 | BG129: 0 | BH129: 0 | BI129: 0 | BJ129: 0 | BK129: 0 | BL129: 0 | BM129: 0 | BN129: 0 | BO129: 0 | BP129: 0 | BQ129: 0 | BR129: 0 | BS129: 0 | BT129: 0 | BU129: 0 | BV129: 0
B130: 121 | C130: Torrington substation relay replacement | D130: 128 | F130: Replacement | G130: Replacement | K130: 70.87682565 | L130: 83.63759892 | M130: 0 | N130: 0 | O130: 0 | S130: 0 | T130: 0 | U130: 0 | V130: 0 | W130: 0 | Y130: 0.9155963366 | Z130: 0 | AA130: 0.08440366337 | AC130: Yes | AD130: Yes | AF130: 5.1850189e-05 | AG130: 0.0001079119586 | AI130: 1 | AJ130: 0 | AK130: 0 | AL130: 0 | AM130: 0 | AN130: 0 | AO130: 0 | AP130: 0 | AQ130: 0 | AR130: 0 | AS130: 0 | AT130: 0 | AU130: 0 | AV130: 0 | AW130: 0 | AX130: 0 | AY130: 0 | AZ130: 0 | BA130: 0 | BB130: 0 | BC130: 0 | BD130: 1 | BE130: 0 | BF130: 0 | BG130: 0 | BH130: 0 | BI130: 0 | BJ130: 0 | BK130: 0 | BL130: 0 | BM130: 0 | BN130: 0 | BO130: 0 | BP130: 0 | BQ130: 0 | BR130: 0 | BS130: 0 | BT130: 0 | BU130: 0 | BV130: 0
B131: 122 | C131: Peter Arlett Zone Substation - DC and Bus Overcurrent Upgrade | D131: 129 | F131: Augmentation | G131: SCADA, Protection and Control | K131: 7.236101035 | L131: 14.49672554 | M131: 36.27005535 | N131: 36.29965024 | O131: 50.85935636 | S131: 0 | T131: 0 | U131: 0 | V131: 0 | W131: 0 | Y131: 0.7092071467 | Z131: 0 | AA131: 0.2907928533 | AC131: Yes | AD131: Yes | AF131: 4.871177157e-05 | AG131: 7.85275798e-05 | AI131: 0 | AJ131: 0 | AK131: 1 | AL131: 0 | AM131: 0 | AN131: 0 | AO131: 0 | AP131: 0 | AQ131: 0 | AR131: 0 | AS131: 0.05 | AT131: 0 | AU131: 0 | AV131: 0 | AW131: 0.95 | AX131: 0 | AY131: 0 | AZ131: 0 | BA131: 0 | BB131: 0 | BC131: 0 | BD131: 0 | BE131: 0 | BF131: 0 | BG131: 0 | BH131: 0 | BI131: 0 | BJ131: 0 | BK131: 0 | BL131: 0 | BM131: 0 | BN131: 0 | BO131: 0 | BP131: 0 | BQ131: 0 | BR131: 0 | BS131: 0 | BT131: 0 | BU131: 0 | BV131: 0
B132: 123 | C132: Stand-alone Power Systems Trial | D132: 130 | F132: Augmentation | G132: Resilience | K132: 0 | L132: 0 | M132: 0 | N132: 0 | O132: 0 | S132: 0 | T132: 0 | U132: 0 | V132: 0 | W132: 0 | Y132: 0.2585306902 | Z132: 0.646727432 | AA132: 0.09474187781 | AC132: Yes | AD132: Yes | AF132: 0 | AG132: 0 | AI132: 0 | AJ132: 0 | AK132: 1 | AL132: 0 | AM132: 0 | AN132: 0 | AO132: 0 | AP132: 0 | AQ132: 0 | AR132: 0.1 | AS132: 0.01 | AT132: 0.42 | AU132: 0.08 | AV132: 0.01 | AW132: 0.11 | AX132: 0.03 | AY132: 0.04 | AZ132: 0.02 | BA132: 0.11 | BB132: 0.03 | BC132: 0.01 | BD132: 0.01 | BE132: 0 | BF132: 0.01 | BG132: 0.01 | BH132: 0 | BI132: 0 | BJ132: 0 | BK132: 0 | BL132: 0 | BM132: 0 | BN132: 0 | BO132: 0 | BP132: 0 | BQ132: 0 | BR132: 0 | BS132: 0 | BT132: 0 | BU132: 0 | BV132: 0
B133: 124 | C133: Establish Meringa zone substation | D133: 131 | F133: Augmentation | G133: Sub-Transmission Growth | K133: 0 | L133: 0 | M133: 0 | N133: 0 | O133: 143.0832054 | S133: 0 | T133: 0 | U133: 0 | V133: 0 | W133: 0 | Y133: 0.9804427903 | Z133: 0.01955720975 | AA133: 0 | AC133: Yes | AD133: Yes | AF133: 4.801423078e-05 | AG133: 0.0001070058245 | AI133: 0 | AJ133: 0 | AK133: 1 | AL133: 0 | AM133: 0 | AN133: 0 | AO133: 0 | AP133: 0 | AQ133: 0 | AR133: 0 | AS133: 0 | AT133: 0 | AU133: 0 | AV133: 0 | AW133: 0 | AX133: 1 | AY133: 0 | AZ133: 0 | BA133: 0 | BB133: 0 | BC133: 0 | BD133: 0 | BE133: 0 | BF133: 0 | BG133: 0 | BH133: 0 | BI133: 0 | BJ133: 0 | BK133: 0 | BL133: 0 | BM133: 0 | BN133: 0 | BO133: 0 | BP133: 0 | BQ133: 0 | BR133: 0 | BS133: 0 | BT133: 0 | BU133: 0 | BV133: 0
B134: 125 | C134: Acquire Meringa zone substation site | D134: 132 | F134: Augmentation | G134: Sub-Transmission Growth | K134: 107.4942773 | L134: 9.85941666 | M134: 0 | N134: 0 | O134: 0 | S134: 0 | T134: 0 | U134: 0 | V134: 0 | W134: 0 | Y134: 1 | Z134: 0 | AA134: 0 | AC134: Yes | AD134: Yes | AF134: 3.938021467e-05 | AG134: 8.951447403e-05 | AI134: 0 | AJ134: 0 | AK134: 1 | AL134: 0 | AM134: 0 | AN134: 0 | AO134: 0 | AP134: 0 | AQ134: 0 | AR134: 0 | AS134: 0 | AT134: 0 | AU134: 0 | AV134: 0 | AW134: 0 | AX134: 0 | AY134: 0 | AZ134: 0 | BA134: 0 | BB134: 0 | BC134: 0 | BD134: 0 | BE134: 0 | BF134: 1 | BG134: 0 | BH134: 0 | BI134: 0 | BJ134: 0 | BK134: 0 | BL134: 0 | BM134: 0 | BN134: 0 | BO134: 0 | BP134: 0 | BQ134: 0 | BR134: 0 | BS134: 0 | BT134: 0 | BU134: 0 | BV134: 0
B135: 126 | C135: Establish Standalone Power System at BADE BB208 | D135: 133 | F135: Augmentation | G135: Distribution Growth | K135: 0 | L135: 0 | M135: 0 | N135: 0 | O135: 0 | S135: 0 | T135: 0 | U135: 0 | V135: 0 | W135: 0 | Y135: 0.2568664738 | Z135: 0.6851913152 | AA135: 0.05794221096 | AC135: Yes | AD135: Yes | AF135: 0 | AG135: 0 | AI135: 0 | AJ135: 0 | AK135: 1 | AL135: 0 | AM135: 0 | AN135: 0 | AO135: 0 | AP135: 0 | AQ135: 0 | AR135: 0.1 | AS135: 0.01 | AT135: 0.42 | AU135: 0.08 | AV135: 0.01 | AW135: 0.11 | AX135: 0.03 | AY135: 0.04 | AZ135: 0.02 | BA135: 0.11 | BB135: 0.03 | BC135: 0.01 | BD135: 0.01 | BE135: 0 | BF135: 0.01 | BG135: 0.01 | BH135: 0 | BI135: 0 | BJ135: 0 | BK135: 0 | BL135: 0 | BM135: 0 | BN135: 0 | BO135: 0 | BP135: 0 | BQ135: 0 | BR135: 0 | BS135: 0 | BT135: 0 | BU135: 0 | BV135: 0
B136: 127 | C136: Establish Standalone Power System at MT FLORA | D136: 134 | F136: Augmentation | G136: Distribution Growth | K136: 0 | L136: 0 | M136: 0 | N136: 0 | O136: 0 | S136: 0 | T136: 0 | U136: 0 | V136: 0 | W136: 0 | Y136: 0.2164296209 | Z136: 0.7378106494 | AA136: 0.04575972972 | AC136: Yes | AD136: Yes | AF136: 0 | AG136: 0 | AI136: 0 | AJ136: 0 | AK136: 1 | AL136: 0 | AM136: 0 | AN136: 0 | AO136: 0 | AP136: 0 | AQ136: 0 | AR136: 0.1 | AS136: 0.01 | AT136: 0.42 | AU136: 0.08 | AV136: 0.01 | AW136: 0.11 | AX136: 0.03 | AY136: 0.04 | AZ136: 0.02 | BA136: 0.11 | BB136: 0.03 | BC136: 0.01 | BD136: 0.01 | BE136: 0 | BF136: 0.01 | BG136: 0.01 | BH136: 0 | BI136: 0 | BJ136: 0 | BK136: 0 | BL136: 0 | BM136: 0 | BN136: 0 | BO136: 0 | BP136: 0 | BQ136: 0 | BR136: 0 | BS136: 0 | BT136: 0 | BU136: 0 | BV136: 0
B137: 128 | C137: Tara Distribution Feeder Voltage Improvement | D137: 135 | F137: Augmentation | G137: Distribution Growth | K137: 101.9280914 | L137: 0 | M137: 0 | N137: 0 | O137: 0 | S137: 0 | T137: 0 | U137: 0 | V137: 0 | W137: 0 | Y137: 0.3031592083 | Z137: 0.1268436208 | AA137: 0.5699971709 | AC137: Yes | AD137: Yes | AF137: 3.420386683e-05 | AG137: 2.357008539e-05 | AI137: 0 | AJ137: 0 | AK137: 1 | AL137: 0 | AM137: 0 | AN137: 0 | AO137: 0 | AP137: 0 | AQ137: 0 | AR137: 0 | AS137: 0 | AT137: 0.5 | AU137: 0.1 | AV137: 0.15 | AW137: 0 | AX137: 0 | AY137: 0.15 | AZ137: 0 | BA137: 0 | BB137: 0 | BC137: 0.1 | BD137: 0 | BE137: 0 | BF137: 0 | BG137: 0 | BH137: 0 | BI137: 0 | BJ137: 0 | BK137: 0 | BL137: 0 | BM137: 0 | BN137: 0 | BO137: 0 | BP137: 0 | BQ137: 0 | BR137: 0 | BS137: 0 | BT137: 0 | BU137: 0 | BV137: 0
B138: 129 | C138: Meringa Substation Line Acquisition | D138: 136 | F138: Augmentation | G138: Distribution Growth | K138: 87.64399816 | L138: 10.37832755 | M138: 0 | N138: 0 | O138: 0 | S138: 0 | T138: 0 | U138: 0 | V138: 0 | W138: 0 | Y138: 1 | Z138: 0 | AA138: 0 | AB138: =IF(SUM(Y138:AA138,I138:O138)=0,"",IF(SUM(Y138:AA138)=1,"",1)) ->  | AC138: =IF(F138="Non-network capex","No","Yes") -> Yes | AD138: =IF(F138="Non-network capex","No",IF(Y138=0,"No","Yes")) -> Yes | AF138: 3.289321452e-05 | AG138: 7.476898797e-05 | AI138: 0 | AJ138: 0 | AK138: 1 | AL138: 0 | AM138: 0 | AN138: 0 | AO138: 0 | AP138: 0 | AQ138: =IF(SUM(AI138:AP138)=1,0,1) -> 0 | AR138: 0 | AS138: 0 | AT138: 0 | AU138: 0 | AV138: 0 | AW138: 0 | AX138: 0 | AY138: 0 | AZ138: 0 | BA138: 0 | BB138: 0 | BC138: 0 | BD138: 0 | BE138: 0 | BF138: 1 | BG138: 0 | BH138: 0 | BI138: 0 | BJ138: 0 | BK138: 0 | BL138: 0 | BM138: 0 | BN138: 0 | BO138: 0 | BP138: 0 | BQ138: 0 | BR138: 0 | BS138: 0 | BT138: 0 | BU138: 0 | BV138: 0 | CP138: =IF(COUNT(D138)=0,"",IF(SUM(AR138:CO138)=1,"",1)) -> 
B139: 130 | C139: MANS substation Install load break switch | D139: 137 | F139: Augmentation | G139: Distribution Growth | K139: 89.48339245 | L139: 0 | M139: 0 | N139: 0 | O139: 0 | S139: 0 | T139: 0 | U139: 0 | V139: 0 | W139: 0 | Y139: 1 | Z139: 0 | AA139: 0 | AC139: Yes | AD139: Yes | AF139: 3.002781665e-05 | AG139: 6.825570242e-05 | AI139: 0 | AJ139: 0 | AK139: 1 | AL139: 0 | AM139: 0 | AN139: 0 | AO139: 0 | AP139: 0 | AQ139: 0 | AR139: 0 | AS139: 0 | AT139: 0 | AU139: 0 | AV139: 0 | AW139: 0 | AX139: 0 | AY139: 1 | AZ139: 0 | BA139: 0 | BB139: 0 | BC139: 0 | BD139: 0 | BE139: 0 | BF139: 0 | BG139: 0 | BH139: 0 | BI139: 0 | BJ139: 0 | BK139: 0 | BL139: 0 | BM139: 0 | BN139: 0 | BO139: 0 | BP139: 0 | BQ139: 0 | BR139: 0 | BS139: 0 | BT139: 0 | BU139: 0 | BV139: 0
B140: =IFERROR(B139+1,"") -> 131 | C140: Establish new Regulator at LODE LR204 | D140: =IFERROR(D139+1,"") -> 138 | F140: Augmentation | G140: Distribution Growth | K140: 88.5547718 | L140: 0 | M140: 0 | N140: 0 | O140: 0 | S140: 0 | T140: 0 | U140: 0 | V140: 0 | W140: 0 | Y140: 0.2094896629 | Z140: 0.7462179232 | AA140: 0.04429241391 | AC140: Yes | AD140: Yes | AF140: 2.971620072e-05 | AG140: 1.415047655e-05 | AI140: 0 | AJ140: 0 | AK140: 1 | AL140: 0 | AM140: 0 | AN140: 0 | AO140: 0 | AP140: 0 | AQ140: 0 | AR140: 0 | AS140: 0 | AT140: 0 | AU140: 0 | AV140: 1 | AW140: 0 | AX140: 0 | AY140: 0 | AZ140: 0 | BA140: 0 | BB140: 0 | BC140: 0 | BD140: 0 | BE140: 0 | BF140: 0 | BG140: 0 | BH140: 0 | BI140: 0 | BJ140: 0 | BK140: 0 | BL140: 0 | BM140: 0 | BN140: 0 | BO140: 0 | BP140: 0 | BQ140: 0 | BR140: 0 | BS140: 0 | BT140: 0 | BU140: 0 | BV140: 0
B141: 132 | C141: GC Underfrequency Load Shedding DMS Smart Applications | D141: 139 | F141: Augmentation | G141: SCADA, Protection and Control | K141: 86.88919785 | L141: 0 | M141: 0 | N141: 0 | O141: 0 | S141: 0 | T141: 0 | U141: 0 | V141: 0 | W141: 0 | Y141: 0.7763004445 | Z141: 0 | AA141: 0.2236995555 | AC141: Yes | AD141: Yes | AF141: 2.91572864e-05 | AG141: 5.145079889e-05 | AI141: 0 | AJ141: 0 | AK141: 1 | AL141: 0 | AM141: 0 | AN141: 0 | AO141: 0 | AP141: 0 | AQ141: 0 | AR141: 0 | AS141: 0 | AT141: 0 | AU141: 0 | AV141: 0 | AW141: 0 | AX141: 0 | AY141: 0 | AZ141: 0 | BA141: 0 | BB141: 0 | BC141: 0.1 | BD141: 0.05 | BE141: 0 | BF141: 0 | BG141: 0 | BH141: 0.85 | BI141: 0 | BJ141: 0 | BK141: 0 | BL141: 0 | BM141: 0 | BN141: 0 | BO141: 0 | BP141: 0 | BQ141: 0 | BR141: 0 | BS141: 0 | BT141: 0 | BU141: 0 | BV141: 0
B142: 133 | C142: AUG RNS CA CW LODE LR204 - AUGEX | D142: 140 | F142: Augmentation | G142: Distribution Growth | K142: 84.7564615 | L142: 0 | M142: 0 | N142: 0 | O142: 0 | S142: 0 | T142: 0 | U142: 0 | V142: 0 | W142: 0 | Y142: 0.4112985465 | Z142: 0 | AA142: 0.5887014535 | AC142: Yes | AD142: Yes | AF142: 2.844160705e-05 | AG142: 2.659049925e-05 | AI142: 0 | AJ142: 0 | AK142: 1 | AL142: 0 | AM142: 0 | AN142: 0 | AO142: 0 | AP142: 0 | AQ142: 0 | AR142: 0.55 | AS142: 0 | AT142: 0 | AU142: 0 | AV142: 0 | AW142: 0.2 | AX142: 0 | AY142: 0 | AZ142: 0.25 | BA142: 0 | BB142: 0 | BC142: 0 | BD142: 0 | BE142: 0 | BF142: 0 | BG142: 0 | BH142: 0 | BI142: 0 | BJ142: 0 | BK142: 0 | BL142: 0 | BM142: 0 | BN142: 0 | BO142: 0 | BP142: 0 | BQ142: 0 | BR142: 0 | BS142: 0 | BT142: 0 | BU142: 0 | BV142: 0
B143: 134 | C143: WPF RNN PI SADE 242 Insta - AUGEX | D143: 141 | F143: Augmentation | G143: Distribution Growth | K143: 77.06874387 | L143: 0 | M143: 0 | N143: 0 | O143: 0 | S143: 0 | T143: 0 | U143: 0 | V143: 0 | W143: 0 | Y143: 0.9911667036 | Z143: 0 | AA143: 0.008833296356 | AC143: Yes | AD143: Yes | AF143: 2.586185041e-05 | AG143: 5.826684257e-05 | AI143: 0 | AJ143: 0 | AK143: 1 | AL143: 0 | AM143: 0 | AN143: 0 | AO143: 0 | AP143: 0 | AQ143: 0 | AR143: 0 | AS143: 0 | AT143: 0.65 | AU143: 0 | AV143: 0.15 | AW143: 0 | AX143: 0 | AY143: 0 | AZ143: 0 | BA143: 0.2 | BB143: 0 | BC143: 0 | BD143: 0 | BE143: 0 | BF143: 0 | BG143: 0 | BH143: 0 | BI143: 0 | BJ143: 0 | BK143: 0 | BL143: 0 | BM143: 0 | BN143: 0 | BO143: 0 | BP143: 0 | BQ143: 0 | BR143: 0 | BS143: 0 | BT143: 0 | BU143: 0 | BV143: 0
B144: 135 | C144: AUG RNN PI MANS 325 Exit - AUGEX | D144: 142 | F144: Augmentation | G144: Distribution Growth | K144: 76.00645039 | L144: 0 | M144: 0 | N144: 0 | O144: 0 | S144: 0 | T144: 0 | U144: 0 | V144: 0 | W144: 0 | Y144: 0.4078895514 | Z144: 0.3094935312 | AA144: 0.2826169175 | AC144: Yes | AD144: Yes | AF144: 2.550537808e-05 | AG144: 2.364773397e-05 | AI144: 0 | AJ144: 0 | AK144: 1 | AL144: 0 | AM144: 0 | AN144: 0 | AO144: 0 | AP144: 0 | AQ144: 0 | AR144: 0 | AS144: 0 | AT144: 0.65 | AU144: 0 | AV144: 0.15 | AW144: 0 | AX144: 0 | AY144: 0 | AZ144: 0 | BA144: 0.2 | BB144: 0 | BC144: 0 | BD144: 0 | BE144: 0 | BF144: 0 | BG144: 0 | BH144: 0 | BI144: 0 | BJ144: 0 | BK144: 0 | BL144: 0 | BM144: 0 | BN144: 0 | BO144: 0 | BP144: 0 | BQ144: 0 | BR144: 0 | BS144: 0 | BT144: 0 | BU144: 0 | BV144: 0
B145: 136 | C145: AUG BB FE WV-D UPGRADE EX - AUGEX | D145: 143 | F145: Augmentation | G145: Distribution Growth | K145: 67.26081383 | L145: 0 | M145: 0 | N145: 0 | O145: 0 | S145: 0 | T145: 0 | U145: 0 | V145: 0 | W145: 0 | Y145: 0.7712993544 | Z145: 0 | AA145: 0.2287006456 | AC145: Yes | AD145: Yes | AF145: 2.257061707e-05 | AG145: 3.957141549e-05 | AI145: 0 | AJ145: 0 | AK145: 1 | AL145: 0 | AM145: 0 | AN145: 0 | AO145: 0 | AP145: 0 | AQ145: 0 | AR145: 0.55 | AS145: 0 | AT145: 0 | AU145: 0 | AV145: 0 | AW145: 0.2 | AX145: 0 | AY145: 0 | AZ145: 0.25 | BA145: 0 | BB145: 0 | BC145: 0 | BD145: 0 | BE145: 0 | BF145: 0 | BG145: 0 | BH145: 0 | BI145: 0 | BJ145: 0 | BK145: 0 | BL145: 0 | BM145: 0 | BN145: 0 | BO145: 0 | BP145: 0 | BQ145: 0 | BR145: 0 | BS145: 0 | BT145: 0 | BU145: 0 | BV145: 0
B146: 137 | C146: WPF RNN PI PIDE 354 Impro - AUGEX | D146: 144 | F146: Augmentation | G146: Distribution Growth | K146: 64.1068624 | L146: 0 | M146: 0 | N146: 0 | O146: 0 | S146: 0 | T146: 0 | U146: 0 | V146: 0 | W146: 0 | Y146: 0.9624416736 | Z146: 0.03755832638 | AA146: 0 | AC146: Yes | AD146: Yes | AF146: 2.151225001e-05 | AG146: 4.70625485e-05 | AI146: 0 | AJ146: 0 | AK146: 1 | AL146: 0 | AM146: 0 | AN146: 0 | AO146: 0 | AP146: 0 | AQ146: 0 | AR146: 0 | AS146: 0 | AT146: 0.65 | AU146: 0 | AV146: 0.15 | AW146: 0 | AX146: 0 | AY146: 0 | AZ146: 0 | BA146: 0.2 | BB146: 0 | BC146: 0 | BD146: 0 | BE146: 0 | BF146: 0 | BG146: 0 | BH146: 0 | BI146: 0 | BJ146: 0 | BK146: 0 | BL146: 0 | BM146: 0 | BN146: 0 | BO146: 0 | BP146: 0 | BQ146: 0 | BR146: 0 | BS146: 0 | BT146: 0 | BU146: 0 | BV146: 0
B147: 138 | C147: AUG HE FE BO-DG-1 Install - AUGEX | D147: 145 | F147: Augmentation | G147: Distribution Growth | K147: 31.13629232 | L147: 0 | M147: 0 | N147: 0 | O147: 0 | S147: 0 | T147: 0 | U147: 0 | V147: 0 | W147: 0 | Y147: 0.8637706504 | Z147: 0.02983562002 | AA147: 0.1063937295 | AC147: Yes | AD147: Yes | AF147: 1.044836199e-05 | AG147: 2.051454264e-05 | AI147: 0 | AJ147: 0 | AK147: 1 | AL147: 0 | AM147: 0 | AN147: 0 | AO147: 0 | AP147: 0 | AQ147: 0 | AR147: 0.55 | AS147: 0 | AT147: 0 | AU147: 0 | AV147: 0 | AW147: 0.2 | AX147: 0 | AY147: 0 | AZ147: 0.25 | BA147: 0 | BB147: 0 | BC147: 0 | BD147: 0 | BE147: 0 | BF147: 0 | BG147: 0 | BH147: 0 | BI147: 0 | BJ147: 0 | BK147: 0 | BL147: 0 | BM147: 0 | BN147: 0 | BO147: 0 | BP147: 0 | BQ147: 0 | BR147: 0 | BS147: 0 | BT147: 0 | BU147: 0 | BV147: 0
B148: 139 | C148: WPF RNN PI SADE 209 Orkab - AUGEX | D148: 146 | F148: Augmentation | G148: Distribution Growth | K148: 21.64090413 | L148: 0 | M148: 0 | N148: 0 | O148: 0 | S148: 0 | T148: 0 | U148: 0 | V148: 0 | W148: 0 | Y148: 0.4271833511 | Z148: 0 | AA148: 0.5728166489 | AC148: Yes | AD148: Yes | AF148: 7.262007883e-06 | AG148: 7.051576459e-06 | AI148: 0 | AJ148: 0 | AK148: 1 | AL148: 0 | AM148: 0 | AN148: 0 | AO148: 0 | AP148: 0 | AQ148: 0 | AR148: 0 | AS148: 0 | AT148: 0.65 | AU148: 0 | AV148: 0.15 | AW148: 0 | AX148: 0 | AY148: 0 | AZ148: 0 | BA148: 0.2 | BB148: 0 | BC148: 0 | BD148: 0 | BE148: 0 | BF148: 0 | BG148: 0 | BH148: 0 | BI148: 0 | BJ148: 0 | BK148: 0 | BL148: 0 | BM148: 0 | BN148: 0 | BO148: 0 | BP148: 0 | BQ148: 0 | BR148: 0 | BS148: 0 | BT148: 0 | BU148: 0 | BV148: 0
B149: 140 | C149: REPL FL COPD COLL PLQ RMU - AUGEX | D149: 147 | F149: Augmentation | G149: Distribution Growth | K149: 11.99719377 | L149: 0 | M149: 0 | N149: 0 | O149: 0 | S149: 0 | T149: 0 | U149: 0 | V149: 0 | W149: 0 | Y149: 0.5546124266 | Z149: 0 | AA149: 0.4453875734 | AC149: Yes | AD149: Yes | AF149: 4.025881508e-06 | AG149: 5.075347341e-06 | AI149: 0 | AJ149: 0 | AK149: 1 | AL149: 0 | AM149: 0 | AN149: 0 | AO149: 0 | AP149: 0 | AQ149: 0 | AR149: 0 | AS149: 0 | AT149: 0 | AU149: 0 | AV149: 0 | AW149: 0 | AX149: 0 | AY149: 1 | AZ149: 0 | BA149: 0 | BB149: 0 | BC149: 0 | BD149: 0 | BE149: 0 | BF149: 0 | BG149: 0 | BH149: 0 | BI149: 0 | BJ149: 0 | BK149: 0 | BL149: 0 | BM149: 0 | BN149: 0 | BO149: 0 | BP149: 0 | BQ149: 0 | BR149: 0 | BS149: 0 | BT149: 0 | BU149: 0 | BV149: 0
B150: 141 | C150: H11 PLQ - AUGEX | D150: 148 | F150: Augmentation | G150: Distribution Growth | K150: 0.9075058751 | L150: 0 | M150: 0 | N150: 0 | O150: 0 | S150: 0 | T150: 0 | U150: 0 | V150: 0 | W150: 0 | Y150: 0.5174624557 | Z150: 0.4494164186 | AA150: 0.03312112567 | AC150: Yes | AD150: Yes | AF150: 3.045304752e-07 | AG150: 3.581993474e-07 | AI150: 0 | AJ150: 0 | AK150: 1 | AL150: 0 | AM150: 0 | AN150: 0 | AO150: 0 | AP150: 0 | AQ150: 0 | AR150: 0.35 | AS150: 0 | AT150: 0.35 | AU150: 0 | AV150: 0.05 | AW150: 0.05 | AX150: 0 | AY150: 0.05 | AZ150: 0 | BA150: 0.05 | BB150: 0 | BC150: 0 | BD150: 0 | BE150: 0 | BF150: 0 | BG150: 0 | BH150: 0.1 | BI150: 0 | BJ150: 0 | BK150: 0 | BL150: 0 | BM150: 0 | BN150: 0 | BO150: 0 | BP150: 0 | BQ150: 0 | BR150: 0 | BS150: 0 | BT150: 0 | BU150: 0 | BV150: 0
B151: 142 | C151: AUG FN TC GORD FE 2RIR DC - AUGEX | D151: 149 | F151: Augmentation | G151: Distribution Growth | K151: 0.6471956408 | L151: 0 | M151: 0 | N151: 0 | O151: 0 | S151: 0 | T151: 0 | U151: 0 | V151: 0 | W151: 0 | Y151: 0.4581554762 | Z151: 0 | AA151: 0.5418445238 | AC151: Yes | AD151: Yes | AF151: 2.171785345e-07 | AG151: 2.261751907e-07 | AI151: 0 | AJ151: 0 | AK151: 1 | AL151: 0 | AM151: 0 | AN151: 0 | AO151: 0 | AP151: 0 | AQ151: 0 | AR151: 0 | AS151: 0 | AT151: 0 | AU151: 0.05 | AV151: 0 | AW151: 0 | AX151: 0 | AY151: 0.95 | AZ151: 0 | BA151: 0 | BB151: 0 | BC151: 0 | BD151: 0 | BE151: 0 | BF151: 0 | BG151: 0 | BH151: 0 | BI151: 0 | BJ151: 0 | BK151: 0 | BL151: 0 | BM151: 0 | BN151: 0 | BO151: 0 | BP151: 0 | BQ151: 0 | BR151: 0 | BS151: 0 | BT151: 0 | BU151: 0 | BV151: 0
B152: 143 | C152: AUG FN TC TUDE FE 2TT1 D - AUGEX | D152: 150 | F152: Augmentation | G152: Distribution Growth | K152: 0.3377392106 | L152: 0 | M152: 0 | N152: 0 | O152: 0 | S152: 0 | T152: 0 | U152: 0 | V152: 0 | W152: 0 | Y152: 0.5101048503 | Z152: 0 | AA152: 0.4898951497 | AC152: Yes | AD152: Yes | AF152: 1.133346738e-07 | AG152: 1.314127298e-07 | AI152: 0 | AJ152: 0 | AK152: 1 | AL152: 0 | AM152: 0 | AN152: 0 | AO152: 0 | AP152: 0 | AQ152: 0 | AR152: 0 | AS152: 0 | AT152: 0 | AU152: 0.05 | AV152: 0 | AW152: 0 | AX152: 0 | AY152: 0.95 | AZ152: 0 | BA152: 0 | BB152: 0 | BC152: 0 | BD152: 0 | BE152: 0 | BF152: 0 | BG152: 0 | BH152: 0 | BI152: 0 | BJ152: 0 | BK152: 0 | BL152: 0 | BM152: 0 | BN152: 0 | BO152: 0 | BP152: 0 | BQ152: 0 | BR152: 0 | BS152: 0 | BT152: 0 | BU152: 0 | BV152: 0
B153: 144 | C153: Ergon Network and DER Monitoring | D153: 151 | F153: DER | G153: Grid Visibility | K153: 1965.956008 | L153: 2520 | M153: 2606.22441 | N153: 3269.582657 | O153: 3302.450814 | S153: 0 | T153: 0 | U153: 0 | V153: 0 | W153: 0 | Y153: 0.7226410062 | Z153: 0 | AA153: 0.2773589938 | AC153: Yes | AD153: Yes | AF153: 0.004585281113 | AG153: 0.007531886264 | AI153: 0 | AJ153: 1 | AK153: 0 | AL153: 0 | AM153: 0 | AN153: 0 | AO153: 0 | AP153: 0 | AQ153: 0 | AR153: 0 | AS153: 0 | AT153: 0 | AU153: 0 | AV153: 0 | AW153: 0 | AX153: 0 | AY153: 0 | AZ153: 0 | BA153: 0 | BB153: 0 | BC153: 1 | BD153: 0 | BE153: 0 | BF153: 0 | BG153: 0 | BH153: 0 | BI153: 0 | BJ153: 0 | BK153: 0 | BL153: 0 | BM153: 0 | BN153: 0 | BO153: 0 | BP153: 0 | BQ153: 0 | BR153: 0 | BS153: 0 | BT153: 0 | BU153: 0 | BV153: 0
B154: 145 | C154: Oil Circuit Breaker Upgrade Program | D154: 152 | F154: DER | G154: Grid Visibility | K154: 1557.214311 | L154: 1557.214311 | M154: 1557.214311 | N154: 1557.214311 | O154: 1557.214311 | S154: 0 | T154: 0 | U154: 0 | V154: 0 | W154: 0 | Y154: 0.2701504992 | Z154: 0 | AA154: 0.7298495008 | AC154: Yes | AD154: Yes | AF154: 0.002612761125 | AG154: 0.001604429597 | AI154: 0 | AJ154: 1 | AK154: 0 | AL154: 0 | AM154: 0 | AN154: 0 | AO154: 0 | AP154: 0 | AQ154: 0 | AR154: 0 | AS154: 0 | AT154: 0 | AU154: 0 | AV154: 0.35 | AW154: 0 | AX154: 0 | AY154: 0.65 | AZ154: 0 | BA154: 0 | BB154: 0 | BC154: 0 | BD154: 0 | BE154: 0 | BF154: 0 | BG154: 0 | BH154: 0 | BI154: 0 | BJ154: 0 | BK154: 0 | BL154: 0 | BM154: 0 | BN154: 0 | BO154: 0 | BP154: 0 | BQ154: 0 | BR154: 0 | BS154: 0 | BT154: 0 | BU154: 0 | BV154: 0
B155: 146 | C155: Hosting Capacity Upgrade Program - DER Integration Strategy | D155: 153 | F155: DER | G155: Hosting Capacity | K155: 2000.231547 | L155: 2000.231547 | M155: 2000.231547 | N155: 2000.231547 | O155: 2000.231547 | S155: 0 | T155: 0 | U155: 0 | V155: 0 | W155: 0 | Y155: 0.7263932328 | Z155: 0.001455550265 | AA155: 0.272151217 | AC155: Yes | AD155: Yes | AF155: 0.003356074491 | AG155: 0.005541388081 | AI155: 0 | AJ155: 1 | AK155: 0 | AL155: 0 | AM155: 0 | AN155: 0 | AO155: 0 | AP155: 0 | AQ155: 0 | AR155: 0 | AS155: 0 | AT155: 0.2 | AU155: 0.05 | AV155: 0.03 | AW155: 0 | AX155: 0 | AY155: 0.15 | AZ155: 0 | BA155: 0.4 | BB155: 0.02 | BC155: 0.05 | BD155: 0.1 | BE155: 0 | BF155: 0 | BG155: 0 | BH155: 0 | BI155: 0 | BJ155: 0 | BK155: 0 | BL155: 0 | BM155: 0 | BN155: 0 | BO155: 0 | BP155: 0 | BQ155: 0 | BR155: 0 | BS155: 0 | BT155: 0 | BU155: 0 | BV155: 0
B156: 147 | C156: IGE Telemetry Hub Expansion - DER Integration Strategy | D156: 155 | F156: DER | G156: Dynamic Connections | K156: 886.3795416 | L156: 886.4650971 | M156: 0 | N156: 0 | O156: 0 | S156: 0 | T156: 0 | U156: 0 | V156: 0 | W156: 0 | Y156: 0.1848713023 | Z156: 0 | AA156: 0.8151286977 | AC156: Yes | AD156: Yes | AF156: 0.0005949109919 | AG156: 0.0002499980832 | AI156: 0 | AJ156: 1 | AK156: 0 | AL156: 0 | AM156: 0 | AN156: 0 | AO156: 0 | AP156: 0 | AQ156: 0 | AR156: 0 | AS156: 0 | AT156: 0.2 | AU156: 0.05 | AV156: 0.03 | AW156: 0 | AX156: 0 | AY156: 0.15 | AZ156: 0 | BA156: 0.4 | BB156: 0.02 | BC156: 0.05 | BD156: 0.1 | BE156: 0 | BF156: 0 | BG156: 0 | BH156: 0 | BI156: 0 | BJ156: 0 | BK156: 0 | BL156: 0 | BM156: 0 | BN156: 0 | BO156: 0 | BP156: 0 | BQ156: 0 | BR156: 0 | BS156: 0 | BT156: 0 | BU156: 0 | BV156: 0
B157: 148 | C157: Torquay Reverse Power Flow | D157: 156 | F157: DER | G157: Network Protection | K157: 3.109553173 | L157: 5.20359229 | M157: 2.419397085 | N157: 0 | O157: 0 | S157: 0 | T157: 0 | U157: 0 | V157: 0 | W157: 0 | Y157: 0.8924671566 | Z157: 0 | AA157: 0.1075328434 | AC157: Yes | AD157: Yes | AF157: 3.601504268e-06 | AG157: 7.30619672e-06 | AI157: 0 | AJ157: 1 | AK157: 0 | AL157: 0 | AM157: 0 | AN157: 0 | AO157: 0 | AP157: 0 | AQ157: 0 | AR157: 0 | AS157: 0 | AT157: 0.2 | AU157: 0 | AV157: 0.05 | AW157: 0 | AX157: 0 | AY157: 0 | AZ157: 0 | BA157: 0.6 | BB157: 0.1 | BC157: 0.05 | BD157: 0 | BE157: 0 | BF157: 0 | BG157: 0 | BH157: 0 | BI157: 0 | BJ157: 0 | BK157: 0 | BL157: 0 | BM157: 0 | BN157: 0 | BO157: 0 | BP157: 0 | BQ157: 0 | BR157: 0 | BS157: 0 | BT157: 0 | BU157: 0 | BV157: 0
B158: 149 | C158: Black River Reverse Power Flow | D158: 157 | F158: DER | G158: Network Protection | K158: 0 | L158: 18.36561985 | M158: 51.23429122 | N158: 16.78096811 | O158: 0 | S158: 0 | T158: 0 | U158: 0 | V158: 0 | W158: 0 | Y158: 0.5761805994 | Z158: 0 | AA158: 0.4238194006 | AC158: Yes | AD158: Yes | AF158: 2.898671061e-05 | AG158: 3.796406871e-05 | AI158: 0 | AJ158: 1 | AK158: 0 | AL158: 0 | AM158: 0 | AN158: 0 | AO158: 0 | AP158: 0 | AQ158: 0 | AR158: 0 | AS158: 0 | AT158: 0.2 | AU158: 0 | AV158: 0.05 | AW158: 0 | AX158: 0 | AY158: 0 | AZ158: 0 | BA158: 0.6 | BB158: 0.1 | BC158: 0.05 | BD158: 0 | BE158: 0 | BF158: 0 | BG158: 0 | BH158: 0 | BI158: 0 | BJ158: 0 | BK158: 0 | BL158: 0 | BM158: 0 | BN158: 0 | BO158: 0 | BP158: 0 | BQ158: 0 | BR158: 0 | BS158: 0 | BT158: 0 | BU158: 0 | BV158: 0
B159: 150 | C159: North Mackay Reverse Power Flow | D159: 158 | F159: DER | G159: Network Protection | K159: 0 | L159: 0 | M159: 0 | N159: 111.8731207 | O159: 277.6092274 | S159: 0 | T159: 0 | U159: 0 | V159: 0 | W159: 0 | Y159: 0.899999995 | Z159: 0 | AA159: 0.100000005 | AC159: Yes | AD159: Yes | AF159: 0.0001306980459 | AG159: 0.0002673786871 | AI159: 0 | AJ159: 1 | AK159: 0 | AL159: 0 | AM159: 0 | AN159: 0 | AO159: 0 | AP159: 0 | AQ159: 0 | AR159: 0 | AS159: 0 | AT159: 0.2 | AU159: 0 | AV159: 0.05 | AW159: 0 | AX159: 0 | AY159: 0 | AZ159: 0 | BA159: 0.6 | BB159: 0.1 | BC159: 0.05 | BD159: 0 | BE159: 0 | BF159: 0 | BG159: 0 | BH159: 0 | BI159: 0 | BJ159: 0 | BK159: 0 | BL159: 0 | BM159: 0 | BN159: 0 | BO159: 0 | BP159: 0 | BQ159: 0 | BR159: 0 | BS159: 0 | BT159: 0 | BU159: 0 | BV159: 0
B160: 151 | C160: Planella Reverse Power Flow | D160: 159 | F160: DER | G160: Network Protection | K160: 91.45744626 | L160: 76.52341603 | M160: 0 | N160: 0 | O160: 0 | S160: 0 | T160: 0 | U160: 0 | V160: 0 | W160: 0 | Y160: 0.5162753015 | Z160: 0 | AA160: 0.4837246985 | AC160: Yes | AD160: Yes | AF160: 5.636910263e-05 | AG160: 6.615118907e-05 | AI160: 0 | AJ160: 1 | AK160: 0 | AL160: 0 | AM160: 0 | AN160: 0 | AO160: 0 | AP160: 0 | AQ160: 0 | AR160: 0 | AS160: 0 | AT160: 0.2 | AU160: 0 | AV160: 0.05 | AW160: 0 | AX160: 0 | AY160: 0 | AZ160: 0 | BA160: 0.6 | BB160: 0.1 | BC160: 0.05 | BD160: 0 | BE160: 0 | BF160: 0 | BG160: 0 | BH160: 0 | BI160: 0 | BJ160: 0 | BK160: 0 | BL160: 0 | BM160: 0 | BN160: 0 | BO160: 0 | BP160: 0 | BQ160: 0 | BR160: 0 | BS160: 0 | BT160: 0 | BU160: 0 | BV160: 0
B161: 152 | C161: Malchi Reverse Power Flow | D161: 160 | F161: DER | G161: Network Protection | K161: 146.331914 | L161: 122.4374656 | M161: 0 | N161: 0 | O161: 0 | S161: 0 | T161: 0 | U161: 0 | V161: 0 | W161: 0 | Y161: 0.2860404666 | Z161: 0 | AA161: 0.7139595334 | AC161: Yes | AD161: Yes | AF161: 9.019056422e-05 | AG161: 5.864132391e-05 | AI161: 0 | AJ161: 1 | AK161: 0 | AL161: 0 | AM161: 0 | AN161: 0 | AO161: 0 | AP161: 0 | AQ161: 0 | AR161: 0 | AS161: 0 | AT161: 0.2 | AU161: 0 | AV161: 0.05 | AW161: 0 | AX161: 0 | AY161: 0 | AZ161: 0 | BA161: 0.6 | BB161: 0.1 | BC161: 0.05 | BD161: 0 | BE161: 0 | BF161: 0 | BG161: 0 | BH161: 0 | BI161: 0 | BJ161: 0 | BK161: 0 | BL161: 0 | BM161: 0 | BN161: 0 | BO161: 0 | BP161: 0 | BQ161: 0 | BR161: 0 | BS161: 0 | BT161: 0 | BU161: 0 | BV161: 0
B162: 153 | C162: South Bundaberg Reverse Power Flow | D162: 161 | F162: DER | G162: Network Protection | K162: 0 | L162: 0 | M162: 0 | N162: 79.70959851 | O162: 197.7965745 | S162: 0 | T162: 0 | U162: 0 | V162: 0 | W162: 0 | Y162: 0.9000008239 | Z162: 0 | AA162: 0.0999991761 | AC162: Yes | AD162: Yes | AF162: 9.312235772e-05 | AG162: 0.00019050749 | AI162: 0 | AJ162: 1 | AK162: 0 | AL162: 0 | AM162: 0 | AN162: 0 | AO162: 0 | AP162: 0 | AQ162: 0 | AR162: 0 | AS162: 0 | AT162: 0.2 | AU162: 0 | AV162: 0.05 | AW162: 0 | AX162: 0 | AY162: 0 | AZ162: 0 | BA162: 0.6 | BB162: 0.1 | BC162: 0.05 | BD162: 0 | BE162: 0 | BF162: 0 | BG162: 0 | BH162: 0 | BI162: 0 | BJ162: 0 | BK162: 0 | BL162: 0 | BM162: 0 | BN162: 0 | BO162: 0 | BP162: 0 | BQ162: 0 | BR162: 0 | BS162: 0 | BT162: 0 | BU162: 0 | BV162: 0
B163: 154 | C163: Calliope Reverse Power Flow | D163: 162 | F163: DER | G163: Network Protection | K163: 117.0655312 | L163: 97.94997251 | M163: 0 | N163: 0 | O163: 0 | S163: 0 | T163: 0 | U163: 0 | V163: 0 | W163: 0 | Y163: 0.7698495137 | Z163: 0 | AA163: 0.2301504863 | AC163: Yes | AD163: Yes | AF163: 7.215245137e-05 | AG163: 0.0001262618405 | AI163: 0 | AJ163: 1 | AK163: 0 | AL163: 0 | AM163: 0 | AN163: 0 | AO163: 0 | AP163: 0 | AQ163: 0 | AR163: 0 | AS163: 0 | AT163: 0.2 | AU163: 0 | AV163: 0.05 | AW163: 0 | AX163: 0 | AY163: 0 | AZ163: 0 | BA163: 0.6 | BB163: 0.1 | BC163: 0.05 | BD163: 0 | BE163: 0 | BF163: 0 | BG163: 0 | BH163: 0 | BI163: 0 | BJ163: 0 | BK163: 0 | BL163: 0 | BM163: 0 | BN163: 0 | BO163: 0 | BP163: 0 | BQ163: 0 | BR163: 0 | BS163: 0 | BT163: 0 | BU163: 0 | BV163: 0
B164: 155 | C164: Miles Reverse Power Flow | D164: 163 | F164: DER | G164: Network Protection | K164: 676.7851023 | L164: 566.2732786 | M164: 0 | N164: 0 | O164: 0 | S164: 0 | T164: 0 | U164: 0 | V164: 0 | W164: 0 | Y164: 0.7698495137 | Z164: 0 | AA164: 0.2301504863 | AC164: Yes | AD164: Yes | AF164: 0.0004171313595 | AG164: 0.0007299512651 | AI164: 0 | AJ164: 1 | AK164: 0 | AL164: 0 | AM164: 0 | AN164: 0 | AO164: 0 | AP164: 0 | AQ164: 0 | AR164: 0 | AS164: 0 | AT164: 0.2 | AU164: 0 | AV164: 0.05 | AW164: 0 | AX164: 0 | AY164: 0 | AZ164: 0 | BA164: 0.6 | BB164: 0.1 | BC164: 0.05 | BD164: 0 | BE164: 0 | BF164: 0 | BG164: 0 | BH164: 0 | BI164: 0 | BJ164: 0 | BK164: 0 | BL164: 0 | BM164: 0 | BN164: 0 | BO164: 0 | BP164: 0 | BQ164: 0 | BR164: 0 | BS164: 0 | BT164: 0 | BU164: 0 | BV164: 0
B165: 156 | C165: Skid B (Cawdor) Reverse Power Flow | D165: 164 | F165: DER | G165: Network Protection | K165: 0 | L165: 0 | M165: 0 | N165: 20.97621013 | O165: 52.05173013 | S165: 0 | T165: 0 | U165: 0 | V165: 0 | W165: 0 | Y165: 0.7698495137 | Z165: 0 | AA165: 0.2301504863 | AC165: Yes | AD165: Yes | AF165: 2.450588361e-05 | AG165: 4.288361528e-05 | AI165: 0 | AJ165: 1 | AK165: 0 | AL165: 0 | AM165: 0 | AN165: 0 | AO165: 0 | AP165: 0 | AQ165: 0 | AR165: 0 | AS165: 0 | AT165: 0.2 | AU165: 0 | AV165: 0.05 | AW165: 0 | AX165: 0 | AY165: 0 | AZ165: 0 | BA165: 0.6 | BB165: 0.1 | BC165: 0.05 | BD165: 0 | BE165: 0 | BF165: 0 | BG165: 0 | BH165: 0 | BI165: 0 | BJ165: 0 | BK165: 0 | BL165: 0 | BM165: 0 | BN165: 0 | BO165: 0 | BP165: 0 | BQ165: 0 | BR165: 0 | BS165: 0 | BT165: 0 | BU165: 0 | BV165: 0
B166: 157 | C166: Yarraman Reverse Power Flow | D166: 165 | F166: DER | G166: Network Protection | K166: 283.5180834 | L166: 474.4451794 | M166: 220.5920872 | N166: 0 | O166: 0 | S166: 0 | T166: 0 | U166: 0 | V166: 0 | W166: 0 | Y166: 0.7698495137 | Z166: 0 | AA166: 0.2301504863 | AC166: Yes | AD166: Yes | AF166: 0.0003283724479 | AG166: 0.0005746292585 | AI166: 0 | AJ166: 1 | AK166: 0 | AL166: 0 | AM166: 0 | AN166: 0 | AO166: 0 | AP166: 0 | AQ166: 0 | AR166: 0 | AS166: 0 | AT166: 0.2 | AU166: 0 | AV166: 0.05 | AW166: 0 | AX166: 0 | AY166: 0 | AZ166: 0 | BA166: 0.6 | BB166: 0.1 | BC166: 0.05 | BD166: 0 | BE166: 0 | BF166: 0 | BG166: 0 | BH166: 0 | BI166: 0 | BJ166: 0 | BK166: 0 | BL166: 0 | BM166: 0 | BN166: 0 | BO166: 0 | BP166: 0 | BQ166: 0 | BR166: 0 | BS166: 0 | BT166: 0 | BU166: 0 | BV166: 0
B167: 158 | C167: Crows Nest Reverse Power Flow | D167: 166 | F167: DER | G167: Network Protection | K167: 0 | L167: 0 | M167: 29.88666988 | N167: 166.4112671 | O167: 0 | S167: 0 | T167: 0 | U167: 0 | V167: 0 | W167: 0 | Y167: 0.7698495137 | Z167: 0 | AA167: 0.2301504863 | AC167: Yes | AD167: Yes | AF167: 6.58714237e-05 | AG167: 0.0001152704729 | AI167: 0 | AJ167: 1 | AK167: 0 | AL167: 0 | AM167: 0 | AN167: 0 | AO167: 0 | AP167: 0 | AQ167: 0 | AR167: 0 | AS167: 0 | AT167: 0.2 | AU167: 0 | AV167: 0.05 | AW167: 0 | AX167: 0 | AY167: 0 | AZ167: 0 | BA167: 0.6 | BB167: 0.1 | BC167: 0.05 | BD167: 0 | BE167: 0 | BF167: 0 | BG167: 0 | BH167: 0 | BI167: 0 | BJ167: 0 | BK167: 0 | BL167: 0 | BM167: 0 | BN167: 0 | BO167: 0 | BP167: 0 | BQ167: 0 | BR167: 0 | BS167: 0 | BT167: 0 | BU167: 0 | BV167: 0
B168: 159 | C168: Gootchie Reverse Power Flow | D168: 167 | F168: DER | G168: Network Protection | K168: 0 | L168: 0 | M168: 0 | N168: 104.8810507 | O168: 491.5996735 | S168: 0 | T168: 0 | U168: 0 | V168: 0 | W168: 0 | Y168: 0.7698495137 | Z168: 0 | AA168: 0.2301504863 | AC168: Yes | AD168: Yes | AF168: 0.000200160201 | AG168: 0.0003502666213 | AI168: 0 | AJ168: 1 | AK168: 0 | AL168: 0 | AM168: 0 | AN168: 0 | AO168: 0 | AP168: 0 | AQ168: 0 | AR168: 0 | AS168: 0 | AT168: 0.2 | AU168: 0 | AV168: 0.05 | AW168: 0 | AX168: 0 | AY168: 0 | AZ168: 0 | BA168: 0.6 | BB168: 0.1 | BC168: 0.05 | BD168: 0 | BE168: 0 | BF168: 0 | BG168: 0 | BH168: 0 | BI168: 0 | BJ168: 0 | BK168: 0 | BL168: 0 | BM168: 0 | BN168: 0 | BO168: 0 | BP168: 0 | BQ168: 0 | BR168: 0 | BS168: 0 | BT168: 0 | BU168: 0 | BV168: 0
B169: 160 | C169: South Kolan Reverse Power Flow | D169: 168 | F169: DER | G169: Network Protection | K169: 182.9148925 | L169: 306.0936641 | M169: 142.3174756 | N169: 0 | O169: 0 | S169: 0 | T169: 0 | U169: 0 | V169: 0 | W169: 0 | Y169: 0.7698495137 | Z169: 0 | AA169: 0.2301504863 | AC169: Yes | AD169: Yes | AF169: 0.0002118531922 | AG169: 0.0003707285539 | AI169: 0 | AJ169: 1 | AK169: 0 | AL169: 0 | AM169: 0 | AN169: 0 | AO169: 0 | AP169: 0 | AQ169: 0 | AR169: 0 | AS169: 0 | AT169: 0.2 | AU169: 0 | AV169: 0.05 | AW169: 0 | AX169: 0 | AY169: 0 | AZ169: 0 | BA169: 0.6 | BB169: 0.1 | BC169: 0.05 | BD169: 0 | BE169: 0 | BF169: 0 | BG169: 0 | BH169: 0 | BI169: 0 | BJ169: 0 | BK169: 0 | BL169: 0 | BM169: 0 | BN169: 0 | BO169: 0 | BP169: 0 | BQ169: 0 | BR169: 0 | BS169: 0 | BT169: 0 | BU169: 0 | BV169: 0
B170: 161 | C170: Woodgate Reverse Power Flow | D170: 169 | F170: DER | G170: Network Protection | K170: 0 | L170: 0 | M170: 136.6247766 | N170: 760.7372208 | O170: 0 | S170: 0 | T170: 0 | U170: 0 | V170: 0 | W170: 0 | Y170: 0.7698495137 | Z170: 0 | AA170: 0.2301504863 | AC170: Yes | AD170: Yes | AF170: 0.0003011265084 | AG170: 0.0005269507332 | AI170: 0 | AJ170: 1 | AK170: 0 | AL170: 0 | AM170: 0 | AN170: 0 | AO170: 0 | AP170: 0 | AQ170: 0 | AR170: 0 | AS170: 0 | AT170: 0.2 | AU170: 0 | AV170: 0.05 | AW170: 0 | AX170: 0 | AY170: 0 | AZ170: 0 | BA170: 0.6 | BB170: 0.1 | BC170: 0.05 | BD170: 0 | BE170: 0 | BF170: 0 | BG170: 0 | BH170: 0 | BI170: 0 | BJ170: 0 | BK170: 0 | BL170: 0 | BM170: 0 | BN170: 0 | BO170: 0 | BP170: 0 | BQ170: 0 | BR170: 0 | BS170: 0 | BT170: 0 | BU170: 0 | BV170: 0
B171: 162 | C171: Bluewater Reverse Power Flow | D171: 170 | F171: DER | G171: Network Protection | K171: 0 | L171: 0 | M171: 34.15619414 | N171: 190.1843052 | O171: 0 | S171: 0 | T171: 0 | U171: 0 | V171: 0 | W171: 0 | Y171: 0.7698495137 | Z171: 0 | AA171: 0.2301504863 | AC171: Yes | AD171: Yes | AF171: 7.528162709e-05 | AG171: 0.0001317376833 | AI171: 0 | AJ171: 1 | AK171: 0 | AL171: 0 | AM171: 0 | AN171: 0 | AO171: 0 | AP171: 0 | AQ171: 0 | AR171: 0 | AS171: 0 | AT171: 0.2 | AU171: 0 | AV171: 0.05 | AW171: 0 | AX171: 0 | AY171: 0 | AZ171: 0 | BA171: 0.6 | BB171: 0.1 | BC171: 0.05 | BD171: 0 | BE171: 0 | BF171: 0 | BG171: 0 | BH171: 0 | BI171: 0 | BJ171: 0 | BK171: 0 | BL171: 0 | BM171: 0 | BN171: 0 | BO171: 0 | BP171: 0 | BQ171: 0 | BR171: 0 | BS171: 0 | BT171: 0 | BU171: 0 | BV171: 0
B172: 163 | C172: Eton Reverse Power Flow Power Flow | D172: 171 | F172: DER | G172: Network Protection | K172: 91.45744626 | L172: 153.0468321 | M172: 71.1587378 | N172: 0 | O172: 0 | S172: 0 | T172: 0 | U172: 0 | V172: 0 | W172: 0 | Y172: 0.7698495137 | Z172: 0 | AA172: 0.2301504863 | AC172: Yes | AD172: Yes | AF172: 0.0001059265961 | AG172: 0.0001853642769 | AI172: 0 | AJ172: 1 | AK172: 0 | AL172: 0 | AM172: 0 | AN172: 0 | AO172: 0 | AP172: 0 | AQ172: 0 | AR172: 0 | AS172: 0 | AT172: 0.2 | AU172: 0 | AV172: 0.05 | AW172: 0 | AX172: 0 | AY172: 0 | AZ172: 0 | BA172: 0.6 | BB172: 0.1 | BC172: 0.05 | BD172: 0 | BE172: 0 | BF172: 0 | BG172: 0 | BH172: 0 | BI172: 0 | BJ172: 0 | BK172: 0 | BL172: 0 | BM172: 0 | BN172: 0 | BO172: 0 | BP172: 0 | BQ172: 0 | BR172: 0 | BS172: 0 | BT172: 0 | BU172: 0 | BV172: 0
B173: 164 | C173: Proston Reverse Power Flow | D173: 172 | F173: DER | G173: Network Protection | K173: 0 | L173: 146.9249588 | M173: 774.2070673 | N173: 0 | O173: 0 | S173: 0 | T173: 0 | U173: 0 | V173: 0 | W173: 0 | Y173: 0.7698495137 | Z173: 0 | AA173: 0.2301504863 | AC173: Yes | AD173: Yes | AF173: 0.0003091029836 | AG173: 0.0005409090177 | AI173: 0 | AJ173: 1 | AK173: 0 | AL173: 0 | AM173: 0 | AN173: 0 | AO173: 0 | AP173: 0 | AQ173: 0 | AR173: 0 | AS173: 0 | AT173: 0.2 | AU173: 0 | AV173: 0.05 | AW173: 0 | AX173: 0 | AY173: 0 | AZ173: 0 | BA173: 0.6 | BB173: 0.1 | BC173: 0.05 | BD173: 0 | BE173: 0 | BF173: 0 | BG173: 0 | BH173: 0 | BI173: 0 | BJ173: 0 | BK173: 0 | BL173: 0 | BM173: 0 | BN173: 0 | BO173: 0 | BP173: 0 | BQ173: 0 | BR173: 0 | BS173: 0 | BT173: 0 | BU173: 0 | BV173: 0
B174: 165 | C174: Eidsvold Reverse Power Flow | D174: 173 | F174: DER | G174: Network Protection | K174: 292.663828 | L174: 489.7498626 | M174: 227.707961 | N174: 0 | O174: 0 | S174: 0 | T174: 0 | U174: 0 | V174: 0 | W174: 0 | Y174: 0.7698495137 | Z174: 0 | AA174: 0.2301504863 | AC174: Yes | AD174: Yes | AF174: 0.0003389651075 | AG174: 0.0005931656862 | AI174: 0 | AJ174: 1 | AK174: 0 | AL174: 0 | AM174: 0 | AN174: 0 | AO174: 0 | AP174: 0 | AQ174: 0 | AR174: 0 | AS174: 0 | AT174: 0.2 | AU174: 0 | AV174: 0.05 | AW174: 0 | AX174: 0 | AY174: 0 | AZ174: 0 | BA174: 0.6 | BB174: 0.1 | BC174: 0.05 | BD174: 0 | BE174: 0 | BF174: 0 | BG174: 0 | BH174: 0 | BI174: 0 | BJ174: 0 | BK174: 0 | BL174: 0 | BM174: 0 | BN174: 0 | BO174: 0 | BP174: 0 | BQ174: 0 | BR174: 0 | BS174: 0 | BT174: 0 | BU174: 0 | BV174: 0
B175: 166 | C175: Jandowae Reverse Power Flow | D175: 174 | F175: DER | G175: Network Protection | K175: 0 | L175: 0 | M175: 46.96476695 | N175: 261.5034197 | O175: 0 | S175: 0 | T175: 0 | U175: 0 | V175: 0 | W175: 0 | Y175: 0.7698495137 | Z175: 0 | AA175: 0.2301504863 | AC175: Yes | AD175: Yes | AF175: 0.0001035122372 | AG175: 0.0001811393145 | AI175: 0 | AJ175: 1 | AK175: 0 | AL175: 0 | AM175: 0 | AN175: 0 | AO175: 0 | AP175: 0 | AQ175: 0 | AR175: 0 | AS175: 0 | AT175: 0.2 | AU175: 0 | AV175: 0.05 | AW175: 0 | AX175: 0 | AY175: 0 | AZ175: 0 | BA175: 0.6 | BB175: 0.1 | BC175: 0.05 | BD175: 0 | BE175: 0 | BF175: 0 | BG175: 0 | BH175: 0 | BI175: 0 | BJ175: 0 | BK175: 0 | BL175: 0 | BM175: 0 | BN175: 0 | BO175: 0 | BP175: 0 | BQ175: 0 | BR175: 0 | BS175: 0 | BT175: 0 | BU175: 0 | BV175: 0
B176: 167 | C176: Giru Reverse Power Flow Power Flow | D176: 175 | F176: DER | G176: Network Protection | K176: 73.16595701 | L176: 122.4374656 | M176: 56.92699024 | N176: 0 | O176: 0 | S176: 0 | T176: 0 | U176: 0 | V176: 0 | W176: 0 | Y176: 0.7698495137 | Z176: 0 | AA176: 0.2301504863 | AC176: Yes | AD176: Yes | AF176: 8.474127689e-05 | AG176: 0.0001482914215 | AI176: 0 | AJ176: 1 | AK176: 0 | AL176: 0 | AM176: 0 | AN176: 0 | AO176: 0 | AP176: 0 | AQ176: 0 | AR176: 0 | AS176: 0 | AT176: 0.2 | AU176: 0 | AV176: 0.05 | AW176: 0 | AX176: 0 | AY176: 0 | AZ176: 0 | BA176: 0.6 | BB176: 0.1 | BC176: 0.05 | BD176: 0 | BE176: 0 | BF176: 0 | BG176: 0 | BH176: 0 | BI176: 0 | BJ176: 0 | BK176: 0 | BL176: 0 | BM176: 0 | BN176: 0 | BO176: 0 | BP176: 0 | BQ176: 0 | BR176: 0 | BS176: 0 | BT176: 0 | BU176: 0 | BV176: 0
B177: 168 | C177: Peranga Reverse Power Flow | D177: 176 | F177: DER | G177: Network Protection | K177: 0 | L177: 0 | M177: 0 | N177: 90.89691058 | O177: 225.5574972 | S177: 0 | T177: 0 | U177: 0 | V177: 0 | W177: 0 | Y177: 0.7698495137 | Z177: 0 | AA177: 0.2301504863 | AC177: Yes | AD177: Yes | AF177: 0.0001061921623 | AG177: 0.0001858289996 | AI177: 0 | AJ177: 1 | AK177: 0 | AL177: 0 | AM177: 0 | AN177: 0 | AO177: 0 | AP177: 0 | AQ177: 0 | AR177: 0 | AS177: 0 | AT177: 0.2 | AU177: 0 | AV177: 0.05 | AW177: 0 | AX177: 0 | AY177: 0 | AZ177: 0 | BA177: 0.6 | BB177: 0.1 | BC177: 0.05 | BD177: 0 | BE177: 0 | BF177: 0 | BG177: 0 | BH177: 0 | BI177: 0 | BJ177: 0 | BK177: 0 | BL177: 0 | BM177: 0 | BN177: 0 | BO177: 0 | BP177: 0 | BQ177: 0 | BR177: 0 | BS177: 0 | BT177: 0 | BU177: 0 | BV177: 0
B178: 169 | C178: Ilbilbie Reverse Power Flow | D178: 177 | F178: DER | G178: Network Protection | K178: 0 | L178: 32.13983473 | M178: 169.357796 | N178: 0 | O178: 0 | S178: 0 | T178: 0 | U178: 0 | V178: 0 | W178: 0 | Y178: 0.7698495137 | Z178: 0 | AA178: 0.2301504863 | AC178: Yes | AD178: Yes | AF178: 6.761627766e-05 | AG178: 0.0001183238476 | AI178: 0 | AJ178: 1 | AK178: 0 | AL178: 0 | AM178: 0 | AN178: 0 | AO178: 0 | AP178: 0 | AQ178: 0 | AR178: 0 | AS178: 0 | AT178: 0.2 | AU178: 0 | AV178: 0.05 | AW178: 0 | AX178: 0 | AY178: 0 | AZ178: 0 | BA178: 0.6 | BB178: 0.1 | BC178: 0.05 | BD178: 0 | BE178: 0 | BF178: 0 | BG178: 0 | BH178: 0 | BI178: 0 | BJ178: 0 | BK178: 0 | BL178: 0 | BM178: 0 | BN178: 0 | BO178: 0 | BP178: 0 | BQ178: 0 | BR178: 0 | BS178: 0 | BT178: 0 | BU178: 0 | BV178: 0
B179: 170 | C179: Kaimkillenbun Reverse Power Flow | D179: 178 | F179: DER | G179: Network Protection | K179: 38.41212743 | L179: 182.1257301 | M179: 0 | N179: 0 | O179: 0 | S179: 0 | T179: 0 | U179: 0 | V179: 0 | W179: 0 | Y179: 0.7698495137 | Z179: 0 | AA179: 0.2301504863 | AC179: Yes | AD179: Yes | AF179: 7.400557992e-05 | AG179: 0.0001295046883 | AI179: 0 | AJ179: 1 | AK179: 0 | AL179: 0 | AM179: 0 | AN179: 0 | AO179: 0 | AP179: 0 | AQ179: 0 | AR179: 0 | AS179: 0 | AT179: 0.2 | AU179: 0 | AV179: 0.05 | AW179: 0 | AX179: 0 | AY179: 0 | AZ179: 0 | BA179: 0.6 | BB179: 0.1 | BC179: 0.05 | BD179: 0 | BE179: 0 | BF179: 0 | BG179: 0 | BH179: 0 | BI179: 0 | BJ179: 0 | BK179: 0 | BL179: 0 | BM179: 0 | BN179: 0 | BO179: 0 | BP179: 0 | BQ179: 0 | BR179: 0 | BS179: 0 | BT179: 0 | BU179: 0 | BV179: 0
B180: 171 | C180: Roo Works Reverse Power Flow | D180: 179 | F180: DER | G180: Network Protection | K180: 38.41212743 | L180: 182.1257301 | M180: 0 | N180: 0 | O180: 0 | S180: 0 | T180: 0 | U180: 0 | V180: 0 | W180: 0 | Y180: 0.7698495137 | Z180: 0 | AA180: 0.2301504863 | AC180: Yes | AD180: Yes | AF180: 7.400557992e-05 | AG180: 0.0001295046883 | AI180: 0 | AJ180: 1 | AK180: 0 | AL180: 0 | AM180: 0 | AN180: 0 | AO180: 0 | AP180: 0 | AQ180: 0 | AR180: 0 | AS180: 0 | AT180: 0.2 | AU180: 0 | AV180: 0.05 | AW180: 0 | AX180: 0 | AY180: 0 | AZ180: 0 | BA180: 0.6 | BB180: 0.1 | BC180: 0.05 | BD180: 0 | BE180: 0 | BF180: 0 | BG180: 0 | BH180: 0 | BI180: 0 | BJ180: 0 | BK180: 0 | BL180: 0 | BM180: 0 | BN180: 0 | BO180: 0 | BP180: 0 | BQ180: 0 | BR180: 0 | BS180: 0 | BT180: 0 | BU180: 0 | BV180: 0
B181: 172 | C181: LV Service Line Monitors - Smart Meter Data Acquisition Business Case | D181: 180 | F181: DER | G181: Grid Visibility | K181: 1904.988442 | L181: 1898.529314 | M181: 1957.859192 | N181: 1967.943529 | O181: 1791.836601 | S181: 0 | T181: 0 | U181: 0 | V181: 0 | W181: 0 | Y181: 0.4815702435 | Z181: 0 | AA181: 0.5184297565 | AC181: Yes | AD181: Yes | AF181: 0.003195001343 | AG181: 0.003497404575 | AI181: 0 | AJ181: 1 | AK181: 0 | AL181: 0 | AM181: 0 | AN181: 0 | AO181: 0 | AP181: 0 | AQ181: 0 | AR181: 0 | AS181: 0 | AT181: 0 | AU181: 0 | AV181: 0 | AW181: 0 | AX181: 0 | AY181: 0 | AZ181: 0 | BA181: 0 | BB181: 0 | BC181: 1 | BD181: 0 | BE181: 0 | BF181: 0 | BG181: 0 | BH181: 0 | BI181: 0 | BJ181: 0 | BK181: 0 | BL181: 0 | BM181: 0 | BN181: 0 | BO181: 0 | BP181: 0 | BQ181: 0 | BR181: 0 | BS181: 0 | BT181: 0 | BU181: 0 | BV181: 0
B182: 173 | C182: Townsville Port - Instrument Transformer Replacement | D182: 181 | F182: Replacement | G182: Replacement | K182: 103.1873268 | L182: 103.3721463 | M182: 0 | N182: 0 | O182: 0 | S182: 0 | T182: 0 | U182: 0 | V182: 0 | W182: 0 | Y182: 0.501707066 | Z182: 0.1972865314 | AA182: 0.3010064025 | AC182: Yes | AD182: Yes | AF182: 6.931487305e-05 | AG182: 7.904817264e-05 | AI182: 1 | AJ182: 0 | AK182: 0 | AL182: 0 | AM182: 0 | AN182: 0 | AO182: 0 | AP182: 0 | AQ182: 0 | AR182: 0 | AS182: 0 | AT182: 0 | AU182: 0 | AV182: 0 | AW182: 0 | AX182: 0 | AY182: 1 | AZ182: 0 | BA182: 0 | BB182: 0 | BC182: 0 | BD182: 0 | BE182: 0 | BF182: 0 | BG182: 0 | BH182: 0 | BI182: 0 | BJ182: 0 | BK182: 0 | BL182: 0 | BM182: 0 | BN182: 0 | BO182: 0 | BP182: 0 | BQ182: 0 | BR182: 0 | BS182: 0 | BT182: 0 | BU182: 0 | BV182: 0
B183: 174 | C183: Rockhampton South Zone Substation Asset Replacement | D183: 182 | F183: Replacement | G183: Replacement | K183: 2174.919194 | L183: 1085.621237 | M183: 0 | N183: 0 | O183: 0 | S183: 0 | T183: 0 | U183: 0 | V183: 0 | W183: 0 | Y183: 0.3829991675 | Z183: 0.3310016454 | AA183: 0.2859991871 | AC183: Yes | AD183: Yes | AF183: 0.001094134985 | AG183: 0.00095254153 | AI183: 1 | AJ183: 0 | AK183: 0 | AL183: 0 | AM183: 0 | AN183: 0 | AO183: 0 | AP183: 0 | AQ183: 0 | AR183: 0.25 | AS183: 0.05 | AT183: 0 | AU183: 0 | AV183: 0 | AW183: 0.6 | AX183: 0 | AY183: 0 | AZ183: 0.1 | BA183: 0 | BB183: 0 | BC183: 0 | BD183: 0 | BE183: 0 | BF183: 0 | BG183: 0 | BH183: 0 | BI183: 0 | BJ183: 0 | BK183: 0 | BL183: 0 | BM183: 0 | BN183: 0 | BO183: 0 | BP183: 0 | BQ183: 0 | BR183: 0 | BS183: 0 | BT183: 0 | BU183: 0 | BV183: 0
B184: 175 | C184: North Cloncurry Substation Security Fencing Replacement | D184: 183 | F184: Replacement | G184: Replacement | K184: 3.982252771 | L184: 0 | M184: 0 | N184: 0 | O184: 0 | S184: 0 | T184: 0 | U184: 0 | V184: 0 | W184: 0 | Y184: 0.15 | Z184: 0.8159556519 | AA184: 0.0340443481 | AC184: Yes | AD184: Yes | AF184: 1.336318983e-06 | AG184: 4.556344802e-07 | AI184: 1 | AJ184: 0 | AK184: 0 | AL184: 0 | AM184: 0 | AN184: 0 | AO184: 0 | AP184: 0 | AQ184: 0 | AR184: 0 | AS184: 0 | AT184: 0 | AU184: 0 | AV184: 0 | AW184: 0 | AX184: 1 | AY184: 0 | AZ184: 0 | BA184: 0 | BB184: 0 | BC184: 0 | BD184: 0 | BE184: 0 | BF184: 0 | BG184: 0 | BH184: 0 | BI184: 0 | BJ184: 0 | BK184: 0 | BL184: 0 | BM184: 0 | BN184: 0 | BO184: 0 | BP184: 0 | BQ184: 0 | BR184: 0 | BS184: 0 | BT184: 0 | BU184: 0 | BV184: 0
B185: 176 | C185: Canning St Zone Substation Security Fencing Replacement | D185: 184 | F185: Replacement | G185: Replacement | K185: 3.153886785 | L185: 0 | M185: 0 | N185: 0 | O185: 0 | S185: 0 | T185: 0 | U185: 0 | V185: 0 | W185: 0 | Y185: 0.15 | Z185: 0.02297325934 | AA185: 0.8270267407 | AC185: Yes | AD185: Yes | AF185: 1.05834537e-06 | AG185: 3.608559398e-07 | AI185: 1 | AJ185: 0 | AK185: 0 | AL185: 0 | AM185: 0 | AN185: 0 | AO185: 0 | AP185: 0 | AQ185: 0 | AR185: 0 | AS185: 0 | AT185: 0 | AU185: 0 | AV185: 0 | AW185: 0 | AX185: 1 | AY185: 0 | AZ185: 0 | BA185: 0 | BB185: 0 | BC185: 0 | BD185: 0 | BE185: 0 | BF185: 0 | BG185: 0 | BH185: 0 | BI185: 0 | BJ185: 0 | BK185: 0 | BL185: 0 | BM185: 0 | BN185: 0 | BO185: 0 | BP185: 0 | BQ185: 0 | BR185: 0 | BS185: 0 | BT185: 0 | BU185: 0 | BV185: 0
B186: 177 | C186: Cape River East Substation Replacement | D186: 185 | F186: Replacement | G186: Replacement | K186: 1857.620062 | L186: 2322.025077 | M186: 0 | N186: 0 | O186: 0 | S186: 0 | T186: 0 | U186: 0 | V186: 0 | W186: 0 | Y186: 0.5274050956 | Z186: 0.1725949044 | AA186: 0.3 | AC186: Yes | AD186: Yes | AF186: 0.001402557664 | AG186: 0.001681435576 | AI186: 1 | AJ186: 0 | AK186: 0 | AL186: 0 | AM186: 0 | AN186: 0 | AO186: 0 | AP186: 0 | AQ186: 0 | AR186: 0 | AS186: 0 | AT186: 0.25 | AU186: 0.05 | AV186: 0 | AW186: 0 | AX186: 0 | AY186: 0.6 | AZ186: 0 | BA186: 0.1 | BB186: 0 | BC186: 0 | BD186: 0 | BE186: 0 | BF186: 0 | BG186: 0 | BH186: 0 | BI186: 0 | BJ186: 0 | BK186: 0 | BL186: 0 | BM186: 0 | BN186: 0 | BO186: 0 | BP186: 0 | BQ186: 0 | BR186: 0 | BS186: 0 | BT186: 0 | BU186: 0 | BV186: 0
B187: 178 | C187: Grid Comms - Structure Replacements Reactive | D187: 186 | F187: Replacement | G187: Replacement | K187: 8.92719128 | L187: 0 | M187: 0 | N187: 0 | O187: 0 | S187: 0 | T187: 0 | U187: 0 | V187: 0 | W187: 0 | Y187: 0.15 | Z187: 0.8305121792 | AA187: 0.01948782081 | AC187: Yes | AD187: Yes | AF187: 2.995685072e-06 | AG187: 1.021415865e-06 | AI187: 1 | AJ187: 0 | AK187: 0 | AL187: 0 | AM187: 0 | AN187: 0 | AO187: 0 | AP187: 0 | AQ187: 0 | AR187: 0 | AS187: 0 | AT187: 0 | AU187: 0 | AV187: 0 | AW187: 0 | AX187: 0 | AY187: 0 | AZ187: 0 | BA187: 0 | BB187: 0 | BC187: 0 | BD187: 0 | BE187: 0 | BF187: 0 | BG187: 0 | BH187: 1 | BI187: 0 | BJ187: 0 | BK187: 0 | BL187: 0 | BM187: 0 | BN187: 0 | BO187: 0 | BP187: 0 | BQ187: 0 | BR187: 0 | BS187: 0 | BT187: 0 | BU187: 0 | BV187: 0
B188: 179 | C188: West Toowoomba Switchgear Replacement | D188: 187 | F188: Replacement | G188: Replacement | K188: 241.3291289 | L188: 60.33228222 | M188: 0 | N188: 0 | O188: 0 | S188: 0 | T188: 0 | U188: 0 | V188: 0 | W188: 0 | Y188: 0.15 | Z188: 0.6567493935 | AA188: 0.1932506065 | AC188: Yes | AD188: Yes | AF188: 0.0001012280971 | AG188: 3.451497134e-05 | AI188: 1 | AJ188: 0 | AK188: 0 | AL188: 0 | AM188: 0 | AN188: 0 | AO188: 0 | AP188: 0 | AQ188: 0 | AR188: 0 | AS188: 0 | AT188: 0 | AU188: 0 | AV188: 0 | AW188: 0 | AX188: 0 | AY188: 1 | AZ188: 0 | BA188: 0 | BB188: 0 | BC188: 0 | BD188: 0 | BE188: 0 | BF188: 0 | BG188: 0 | BH188: 0 | BI188: 0 | BJ188: 0 | BK188: 0 | BL188: 0 | BM188: 0 | BN188: 0 | BO188: 0 | BP188: 0 | BQ188: 0 | BR188: 0 | BS188: 0 | BT188: 0 | BU188: 0 | BV188: 0
B189: 180 | C189: Black River Zone Substation - Replace Instrument Transformers | D189: 188 | F189: Replacement | G189: Replacement | K189: 93.12396193 | L189: 6.220010376 | M189: 0 | N189: 0 | O189: 0 | S189: 0 | T189: 0 | U189: 0 | V189: 0 | W189: 0 | Y189: 0.15 | Z189: 0.55 | AA189: 0.3 | AC189: Yes | AD189: Yes | AF189: 3.333671761e-05 | AG189: 1.136656606e-05 | AI189: 1 | AJ189: 0 | AK189: 0 | AL189: 0 | AM189: 0 | AN189: 0 | AO189: 0 | AP189: 0 | AQ189: 0 | AR189: 0 | AS189: 0 | AT189: 0 | AU189: 0 | AV189: 0 | AW189: 1 | AX189: 0 | AY189: 0 | AZ189: 0 | BA189: 0 | BB189: 0 | BC189: 0 | BD189: 0 | BE189: 0 | BF189: 0 | BG189: 0 | BH189: 0 | BI189: 0 | BJ189: 0 | BK189: 0 | BL189: 0 | BM189: 0 | BN189: 0 | BO189: 0 | BP189: 0 | BQ189: 0 | BR189: 0 | BS189: 0 | BT189: 0 | BU189: 0 | BV189: 0
B190: 181 | C190: West Warwick Zone Substation - Relay Replacement | D190: 189 | F190: Replacement | G190: Replacement | K190: 47.0657534 | L190: 267.1836346 | M190: 0 | N190: 0 | O190: 0 | S190: 0 | T190: 0 | U190: 0 | V190: 0 | W190: 0 | Y190: 0.5057710472 | Z190: 0.1932225502 | AA190: 0.3010064025 | AC190: Yes | AD190: Yes | AF190: 0.0001054522269 | AG190: 0.0001212341314 | AI190: 1 | AJ190: 0 | AK190: 0 | AL190: 0 | AM190: 0 | AN190: 0 | AO190: 0 | AP190: 0 | AQ190: 0 | AR190: 0.003 | AS190: 0 | AT190: 0.01 | AU190: 0 | AV190: 0 | AW190: 0.97 | AX190: 0 | AY190: 0 | AZ190: 0 | BA190: 0.003 | BB190: 0.002 | BC190: 0 | BD190: 0.012 | BE190: 0 | BF190: 0 | BG190: 0 | BH190: 0 | BI190: 0 | BJ190: 0 | BK190: 0 | BL190: 0 | BM190: 0 | BN190: 0 | BO190: 0 | BP190: 0 | BQ190: 0 | BR190: 0 | BS190: 0 | BT190: 0 | BU190: 0 | BV190: 0
B191: 182 | C191: South Walker Creek Zone Substation - Relay Replacement | D191: 190 | F191: Replacement | G191: Replacement | K191: 34.31998359 | L191: 194.8282412 | M191: 0 | N191: 0 | O191: 0 | S191: 0 | T191: 0 | U191: 0 | V191: 0 | W191: 0 | Y191: 0.5042082026 | Z191: 0.1947853948 | AA191: 0.3010064025 | AC191: Yes | AD191: Yes | AF191: 7.689494879e-05 | AG191: 8.812982417e-05 | AI191: 1 | AJ191: 0 | AK191: 0 | AL191: 0 | AM191: 0 | AN191: 0 | AO191: 0 | AP191: 0 | AQ191: 0 | AR191: 0.003 | AS191: 0 | AT191: 0.01 | AU191: 0 | AV191: 0 | AW191: 0.97 | AX191: 0 | AY191: 0 | AZ191: 0 | BA191: 0.003 | BB191: 0.002 | BC191: 0 | BD191: 0.012 | BE191: 0 | BF191: 0 | BG191: 0 | BH191: 0 | BI191: 0 | BJ191: 0 | BK191: 0 | BL191: 0 | BM191: 0 | BN191: 0 | BO191: 0 | BP191: 0 | BQ191: 0 | BR191: 0 | BS191: 0 | BT191: 0 | BU191: 0 | BV191: 0
B192: 183 | C192: Clare South Zone Substation - Instrument Transformer Replacement | D192: 191 | F192: Replacement | G192: Replacement | K192: 119.1378816 | L192: 29.78447039 | M192: 0 | N192: 0 | O192: 0 | S192: 0 | T192: 0 | U192: 0 | V192: 0 | W192: 0 | Y192: 0.15 | Z192: 0.55 | AA192: 0.3 | AC192: Yes | AD192: Yes | AF192: 4.997366502e-05 | AG192: 1.703913898e-05 | AI192: 1 | AJ192: 0 | AK192: 0 | AL192: 0 | AM192: 0 | AN192: 0 | AO192: 0 | AP192: 0 | AQ192: 0 | AR192: 0 | AS192: 0 | AT192: 0 | AU192: 0 | AV192: 0 | AW192: 1 | AX192: 0 | AY192: 0 | AZ192: 0 | BA192: 0 | BB192: 0 | BC192: 0 | BD192: 0 | BE192: 0 | BF192: 0 | BG192: 0 | BH192: 0 | BI192: 0 | BJ192: 0 | BK192: 0 | BL192: 0 | BM192: 0 | BN192: 0 | BO192: 0 | BP192: 0 | BQ192: 0 | BR192: 0 | BS192: 0 | BT192: 0 | BU192: 0 | BV192: 0
B193: 184 | C193: Ergon Substation Fencing Replacement Program | D193: 192 | F193: Replacement | G193: Replacement | K193: 0 | L193: 0 | M193: 0 | N193: 0 | O193: 0 | S193: 0 | T193: 0 | U193: 0 | V193: 0 | W193: 0 | Y193: 0.3427461133 | Z193: 0.6572538867 | AA193: 0 | AC193: Yes | AD193: Yes | AF193: 0 | AG193: 0 | AI193: 1 | AJ193: 0 | AK193: 0 | AL193: 0 | AM193: 0 | AN193: 0 | AO193: 0 | AP193: 0 | AQ193: 0 | AR193: 0 | AS193: 0 | AT193: 0 | AU193: 0 | AV193: 0 | AW193: 0 | AX193: 1 | AY193: 0 | AZ193: 0 | BA193: 0 | BB193: 0 | BC193: 0 | BD193: 0 | BE193: 0 | BF193: 0 | BG193: 0 | BH193: 0 | BI193: 0 | BJ193: 0 | BK193: 0 | BL193: 0 | BM193: 0 | BN193: 0 | BO193: 0 | BP193: 0 | BQ193: 0 | BR193: 0 | BS193: 0 | BT193: 0 | BU193: 0 | BV193: 0
B194: 185 | C194: Georgetown Zone Substation - Static Variable Compensator Replacement | D194: 193 | F194: Replacement | G194: Replacement | K194: 2779.152896 | L194: 1791.274216 | M194: 0 | N194: 0 | O194: 0 | S194: 0 | T194: 0 | U194: 0 | V194: 0 | W194: 0 | Y194: 0.4677282231 | Z194: 0.2322717769 | AA194: 0.3 | AC194: Yes | AD194: Yes | AF194: 0.001533691823 | AG194: 0.001630597843 | AI194: 1 | AJ194: 0 | AK194: 0 | AL194: 0 | AM194: 0 | AN194: 0 | AO194: 0 | AP194: 0 | AQ194: 0 | AR194: 0 | AS194: 0 | AT194: 0 | AU194: 0 | AV194: 0 | AW194: 1 | AX194: 0 | AY194: 0 | AZ194: 0 | BA194: 0 | BB194: 0 | BC194: 0 | BD194: 0 | BE194: 0 | BF194: 0 | BG194: 0 | BH194: 0 | BI194: 0 | BJ194: 0 | BK194: 0 | BL194: 0 | BM194: 0 | BN194: 0 | BO194: 0 | BP194: 0 | BQ194: 0 | BR194: 0 | BS194: 0 | BT194: 0 | BU194: 0 | BV194: 0
B195: 186 | C195: Cranbrook Zone Substation Switchgear Replacement | D195: 194 | F195: Replacement | G195: Replacement | K195: 1126.046235 | L195: 1018.703947 | M195: 0 | N195: 0 | O195: 0 | S195: 0 | T195: 0 | U195: 0 | V195: 0 | W195: 0 | Y195: 0.5071373064 | Z195: 0.1903206371 | AA195: 0.3025420565 | AC195: Yes | AD195: Yes | AF195: 0.0007197108138 | AG195: 0.0008296573647 | AI195: 1 | AJ195: 0 | AK195: 0 | AL195: 0 | AM195: 0 | AN195: 0 | AO195: 0 | AP195: 0 | AQ195: 0 | AR195: 0 | AS195: 0 | AT195: 0 | AU195: 0 | AV195: 0 | AW195: 1 | AX195: 0 | AY195: 0 | AZ195: 0 | BA195: 0 | BB195: 0 | BC195: 0 | BD195: 0 | BE195: 0 | BF195: 0 | BG195: 0 | BH195: 0 | BI195: 0 | BJ195: 0 | BK195: 0 | BL195: 0 | BM195: 0 | BN195: 0 | BO195: 0 | BP195: 0 | BQ195: 0 | BR195: 0 | BS195: 0 | BT195: 0 | BU195: 0 | BV195: 0
B196: 187 | C196: Pialba Zone Substation Transformer and Switchgear Replacement | D196: 195 | F196: Replacement | G196: Replacement | K196: 746.3283452 | L196: 400.7424243 | M196: 0 | N196: 0 | O196: 0 | S196: 0 | T196: 0 | U196: 0 | V196: 0 | W196: 0 | Y196: 0.4976425209 | Z196: 0.1334530178 | AA196: 0.3689044613 | AC196: Yes | AD196: Yes | AF196: 0.0003849209312 | AG196: 0.0004354158099 | AI196: 1 | AJ196: 0 | AK196: 0 | AL196: 0 | AM196: 0 | AN196: 0 | AO196: 0 | AP196: 0 | AQ196: 0 | AR196: 0 | AS196: 0 | AT196: 0 | AU196: 0 | AV196: 0 | AW196: 0.9 | AX196: 0 | AY196: 0 | AZ196: 0.1 | BA196: 0 | BB196: 0 | BC196: 0 | BD196: 0 | BE196: 0 | BF196: 0 | BG196: 0 | BH196: 0 | BI196: 0 | BJ196: 0 | BK196: 0 | BL196: 0 | BM196: 0 | BN196: 0 | BO196: 0 | BP196: 0 | BQ196: 0 | BR196: 0 | BS196: 0 | BT196: 0 | BU196: 0 | BV196: 0
B197: 188 | C197: Grid Comms - Aged Ethernet Replacements | D197: 196 | F197: Replacement | G197: Replacement | K197: 781.0178189 | L197: 663.9888209 | M197: 0 | N197: 0 | O197: 0 | S197: 0 | T197: 0 | U197: 0 | V197: 0 | W197: 0 | Y197: 0.5062004697 | Z197: 0.4937995303 | AA197: 0 | AC197: Yes | AD197: Yes | AF197: 0.0004848988538 | AG197: 0.0005579417834 | AI197: 1 | AJ197: 0 | AK197: 0 | AL197: 0 | AM197: 0 | AN197: 0 | AO197: 0 | AP197: 0 | AQ197: 0 | AR197: 0 | AS197: 0 | AT197: 0 | AU197: 0 | AV197: 0 | AW197: 0 | AX197: 0 | AY197: 0 | AZ197: 0 | BA197: 0 | BB197: 0 | BC197: 0 | BD197: 0 | BE197: 0 | BF197: 0 | BG197: 0 | BH197: 1 | BI197: 0 | BJ197: 0 | BK197: 0 | BL197: 0 | BM197: 0 | BN197: 0 | BO197: 0 | BP197: 0 | BQ197: 0 | BR197: 0 | BS197: 0 | BT197: 0 | BU197: 0 | BV197: 0
B198: 189 | C198: Hermit Park Zone Substation - Transformer Replacement | D198: 197 | F198: Replacement | G198: Replacement | K198: 1365.249628 | L198: 1395.798956 | M198: 0 | N198: 0 | O198: 0 | S198: 0 | T198: 0 | U198: 0 | V198: 0 | W198: 0 | Y198: 0.5151446786 | Z198: 0 | AA198: 0.4848553214 | AC198: Yes | AD198: Yes | AF198: 0.0009265212053 | AG198: 0.001084925124 | AI198: 1 | AJ198: 0 | AK198: 0 | AL198: 0 | AM198: 0 | AN198: 0 | AO198: 0 | AP198: 0 | AQ198: 0 | AR198: 0 | AS198: 0.05 | AT198: 0 | AU198: 0.05 | AV198: 0 | AW198: 0.3 | AX198: 0 | AY198: 0 | AZ198: 0.5 | BA198: 0.1 | BB198: 0 | BC198: 0 | BD198: 0 | BE198: 0 | BF198: 0 | BG198: 0 | BH198: 0 | BI198: 0 | BJ198: 0 | BK198: 0 | BL198: 0 | BM198: 0 | BN198: 0 | BO198: 0 | BP198: 0 | BQ198: 0 | BR198: 0 | BS198: 0 | BT198: 0 | BU198: 0 | BV198: 0
B199: 190 | C199: Milmerran Zone Substation - Relay Replacement | D199: 198 | F199: Replacement | G199: Replacement | K199: 47.0657534 | L199: 267.1836346 | M199: 0 | N199: 0 | O199: 0 | S199: 0 | T199: 0 | U199: 0 | V199: 0 | W199: 0 | Y199: 0.5057710472 | Z199: 0.1932225502 | AA199: 0.3010064025 | AC199: Yes | AD199: Yes | AF199: 0.0001054522269 | AG199: 0.0001212341314 | AI199: 1 | AJ199: 0 | AK199: 0 | AL199: 0 | AM199: 0 | AN199: 0 | AO199: 0 | AP199: 0 | AQ199: 0 | AR199: 0.003 | AS199: 0 | AT199: 0.01 | AU199: 0 | AV199: 0 | AW199: 0.97 | AX199: 0 | AY199: 0 | AZ199: 0 | BA199: 0.003 | BB199: 0.002 | BC199: 0 | BD199: 0.012 | BE199: 0 | BF199: 0 | BG199: 0 | BH199: 0 | BI199: 0 | BJ199: 0 | BK199: 0 | BL199: 0 | BM199: 0 | BN199: 0 | BO199: 0 | BP199: 0 | BQ199: 0 | BR199: 0 | BS199: 0 | BT199: 0 | BU199: 0 | BV199: 0
B200: 191 | C200: Georgetown Zone Substation - Relay Replacement | D200: 199 | F200: Replacement | G200: Replacement | K200: 807.9574843 | L200: 563.6274322 | M200: 0 | N200: 0 | O200: 0 | S200: 0 | T200: 0 | U200: 0 | V200: 0 | W200: 0 | Y200: 0.5010444509 | Z200: 0.1842371424 | AA200: 0.3147184067 | AC200: Yes | AD200: Yes | AF200: 0.000460260829 | AG200: 0.0005241981175 | AI200: 1 | AJ200: 0 | AK200: 0 | AL200: 0 | AM200: 0 | AN200: 0 | AO200: 0 | AP200: 0 | AQ200: 0 | AR200: 0.003 | AS200: 0 | AT200: 0.01 | AU200: 0 | AV200: 0 | AW200: 0.97 | AX200: 0 | AY200: 0 | AZ200: 0 | BA200: 0.003 | BB200: 0.002 | BC200: 0 | BD200: 0.012 | BE200: 0 | BF200: 0 | BG200: 0 | BH200: 0 | BI200: 0 | BJ200: 0 | BK200: 0 | BL200: 0 | BM200: 0 | BN200: 0 | BO200: 0 | BP200: 0 | BQ200: 0 | BR200: 0 | BS200: 0 | BT200: 0 | BU200: 0 | BV200: 0
B201: 192 | C201: Bundaberg Zone Substation - Substation Security Fence Upgrade | D201: 200 | F201: Replacement | G201: Replacement | K201: 0 | L201: 0 | M201: 0 | N201: 0 | O201: 0 | S201: 0 | T201: 0 | U201: 0 | V201: 0 | W201: 0 | Y201: 0.4913990748 | Z201: 0.2086009252 | AA201: 0.3 | AC201: Yes | AD201: Yes | AF201: 0 | AG201: 0 | AI201: 1 | AJ201: 0 | AK201: 0 | AL201: 0 | AM201: 0 | AN201: 0 | AO201: 0 | AP201: 0 | AQ201: 0 | AR201: 0 | AS201: 0 | AT201: 0 | AU201: 0 | AV201: 0 | AW201: 0 | AX201: 1 | AY201: 0 | AZ201: 0 | BA201: 0 | BB201: 0 | BC201: 0 | BD201: 0 | BE201: 0 | BF201: 0 | BG201: 0 | BH201: 0 | BI201: 0 | BJ201: 0 | BK201: 0 | BL201: 0 | BM201: 0 | BN201: 0 | BO201: 0 | BP201: 0 | BQ201: 0 | BR201: 0 | BS201: 0 | BT201: 0 | BU201: 0 | BV201: 0
... 808 more rows

Sheet Input| Disposals
A1: ='Input| Setup'!E5&" "&'Input| Escalations'!D8 -> Ergon 2025-26
C2: =IFERROR(Index!B2,"") -> AER Capex Forecast Model | E2: Sheet Validation | G2: ='Model Validation'!$C$10 -> 0 | I2: Key: | J2: Input | K2: Formula - do not edit
C3: =IFERROR(MID(CELL("filename",B2),FIND("]",CELL("filename",B2))+1,255),"") -> Input| Disposals
D5: =IFERROR(LEFT('Input| Projects'!AR7,2)+1&". Forecast asset disposals ($'000s "&'Input| Escalations'!$D$9&" "&'Input| Escalations'!$E$9&")","") -> 22. Forecast asset disposals ($'000s 2022-23 December) | O5: =IFERROR(LEFT(D5,2)+1&". Forecast asset disposals ($'000s "&'Input| Escalations'!$K$14&")","") -> 23. Forecast asset disposals ($'000s June 2025)
O6: =IF(ABS(D58*'Input| Escalations'!$K$19-O58)<0.000001,0,1) -> 0 | P6: =IF(ABS(E58*'Input| Escalations'!$K$19-P58)<0.000001,0,1) -> 0 | Q6: =IF(ABS(F58*'Input| Escalations'!$K$19-Q58)<0.000001,0,1) -> 0 | R6: =IF(ABS(G58*'Input| Escalations'!$K$19-R58)<0.000001,0,1) -> 0 | S6: =IF(ABS(H58*'Input| Escalations'!$K$19-S58)<0.000001,0,1) -> 0 | T6: =IF(ABS(I58*'Input| Escalations'!$K$19-T58)<0.000001,0,1) -> 0 | U6: =IF(ABS(J58*'Input| Escalations'!$K$19-U58)<0.000001,0,1) -> 0
C7: PTRM asset class | D7: =IFERROR('Input| Escalations'!H23,"") -> 2023-24 | E7: =IFERROR('Input| Escalations'!I23,"") -> 2024-25 | F7: =IFERROR('Input| Escalations'!J23,"") -> 2025-26 | G7: =IFERROR('Input| Escalations'!K23,"") -> 2026-27 | H7: =IFERROR('Input| Escalations'!L23,"") -> 2027-28 | I7: =IFERROR('Input| Escalations'!M23,"") -> 2028-29 | J7: =IFERROR('Input| Escalations'!N23,"") -> 2029-30 | K7: Forecast period | M7: PTRM asset class | N7: Sector | O7: =D7 -> 2023-24 | P7: 2024-25 | Q7: 2025-26 | R7: 2026-27 | S7: 2027-28 | T7: 2028-29 | U7: 2029-30 | V7: Forecast period
B8: 1 | C8: =IFERROR(IF('Input| Setup'!E8="","",'Input| Setup'!E8),"") -> Overhead Sub-Transmission Lines | K8: =IFERROR(IF(SUM(F8:J8)=0,"",SUM(F8:J8)),"") ->  | M8: =C8 -> Overhead Sub-Transmission Lines | N8: =IFERROR(VLOOKUP(M8,'Input| Setup'!$E$8:$F$57,2,FALSE),"") -> Dx | O8: =IFERROR(D8*'Input| Escalations'!$K$19,"") -> 0 | P8: =IFERROR(E8*'Input| Escalations'!$K$19,"") -> 0 | Q8: =IFERROR(F8*'Input| Escalations'!$K$19,"") -> 0 | R8: =IFERROR(G8*'Input| Escalations'!$K$19,"") -> 0 | S8: =IFERROR(H8*'Input| Escalations'!$K$19,"") -> 0 | T8: =IFERROR(I8*'Input| Escalations'!$K$19,"") -> 0 | U8: =IFERROR(J8*'Input| Escalations'!$K$19,"") -> 0 | V8: =IFERROR(IF(SUM(Q8:U8)=0,"",SUM(Q8:U8)),"") -> 
B9: =IFERROR(B8+1,"") -> 2 | C9: =IFERROR(IF('Input| Setup'!E9="","",'Input| Setup'!E9),"") -> Underground Sub-Transmission Cables | K9: =IFERROR(IF(SUM(F9:J9)=0,"",SUM(F9:J9)),"") ->  | M9: =C9 -> Underground Sub-Transmission Cables | N9: =IFERROR(VLOOKUP(M9,'Input| Setup'!$E$8:$F$57,2,FALSE),"") -> Dx | O9: =IFERROR(D9*'Input| Escalations'!$K$19,"") -> 0 | P9: =IFERROR(E9*'Input| Escalations'!$K$19,"") -> 0 | Q9: =IFERROR(F9*'Input| Escalations'!$K$19,"") -> 0 | R9: =IFERROR(G9*'Input| Escalations'!$K$19,"") -> 0 | S9: =IFERROR(H9*'Input| Escalations'!$K$19,"") -> 0 | T9: =IFERROR(I9*'Input| Escalations'!$K$19,"") -> 0 | U9: =IFERROR(J9*'Input| Escalations'!$K$19,"") -> 0 | V9: =IFERROR(IF(SUM(Q9:U9)=0,"",SUM(Q9:U9)),"") -> 
B10: =IFERROR(B9+1,"") -> 3 | C10: =IFERROR(IF('Input| Setup'!E10="","",'Input| Setup'!E10),"") -> Overhead Distribution Lines | M10: Overhead Distribution Lines | N10: =IFERROR(VLOOKUP(M10,'Input| Setup'!$E$8:$F$57,2,FALSE),"") -> Dx | O10: =IFERROR(D10*'Input| Escalations'!$K$19,"") -> 0 | P10: =IFERROR(E10*'Input| Escalations'!$K$19,"") -> 0 | Q10: =IFERROR(F10*'Input| Escalations'!$K$19,"") -> 0 | R10: =IFERROR(G10*'Input| Escalations'!$K$19,"") -> 0 | S10: =IFERROR(H10*'Input| Escalations'!$K$19,"") -> 0 | T10: =IFERROR(I10*'Input| Escalations'!$K$19,"") -> 0 | U10: =IFERROR(J10*'Input| Escalations'!$K$19,"") -> 0
B11: 4 | C11: =IFERROR(IF('Input| Setup'!E11="","",'Input| Setup'!E11),"") -> Underground Distribution Cables | M11: Underground Distribution Cables | N11: =IFERROR(VLOOKUP(M11,'Input| Setup'!$E$8:$F$57,2,FALSE),"") -> Dx | O11: =IFERROR(D11*'Input| Escalations'!$K$19,"") -> 0 | P11: =IFERROR(E11*'Input| Escalations'!$K$19,"") -> 0 | Q11: =IFERROR(F11*'Input| Escalations'!$K$19,"") -> 0 | R11: =IFERROR(G11*'Input| Escalations'!$K$19,"") -> 0 | S11: =IFERROR(H11*'Input| Escalations'!$K$19,"") -> 0 | T11: =IFERROR(I11*'Input| Escalations'!$K$19,"") -> 0 | U11: =IFERROR(J11*'Input| Escalations'!$K$19,"") -> 0
B12: 5 | C12: =IFERROR(IF('Input| Setup'!E12="","",'Input| Setup'!E12),"") -> Distribution Equipment | M12: Distribution Equipment | N12: =IFERROR(VLOOKUP(M12,'Input| Setup'!$E$8:$F$57,2,FALSE),"") -> Dx | O12: =IFERROR(D12*'Input| Escalations'!$K$19,"") -> 0 | P12: =IFERROR(E12*'Input| Escalations'!$K$19,"") -> 0 | Q12: =IFERROR(F12*'Input| Escalations'!$K$19,"") -> 0 | R12: =IFERROR(G12*'Input| Escalations'!$K$19,"") -> 0 | S12: =IFERROR(H12*'Input| Escalations'!$K$19,"") -> 0 | T12: =IFERROR(I12*'Input| Escalations'!$K$19,"") -> 0 | U12: =IFERROR(J12*'Input| Escalations'!$K$19,"") -> 0
B13: 6 | C13: =IFERROR(IF('Input| Setup'!E13="","",'Input| Setup'!E13),"") -> Substation Bays | M13: Substation Bays | N13: =IFERROR(VLOOKUP(M13,'Input| Setup'!$E$8:$F$57,2,FALSE),"") -> Dx | O13: =IFERROR(D13*'Input| Escalations'!$K$19,"") -> 0 | P13: =IFERROR(E13*'Input| Escalations'!$K$19,"") -> 0 | Q13: =IFERROR(F13*'Input| Escalations'!$K$19,"") -> 0 | R13: =IFERROR(G13*'Input| Escalations'!$K$19,"") -> 0 | S13: =IFERROR(H13*'Input| Escalations'!$K$19,"") -> 0 | T13: =IFERROR(I13*'Input| Escalations'!$K$19,"") -> 0 | U13: =IFERROR(J13*'Input| Escalations'!$K$19,"") -> 0
B14: 7 | C14: =IFERROR(IF('Input| Setup'!E14="","",'Input| Setup'!E14),"") -> Substation Establishment | F14: 1858.953751 | G14: 1858.053547 | H14: 1857.153775 | I14: 1857.153775 | J14: 1857.153775 | K14: 9288.468625 | M14: Substation Establishment | N14: =IFERROR(VLOOKUP(M14,'Input| Setup'!$E$8:$F$57,2,FALSE),"") -> Dx | O14: =IFERROR(D14*'Input| Escalations'!$K$19,"") -> 0 | P14: =IFERROR(E14*'Input| Escalations'!$K$19,"") -> 0 | Q14: =IFERROR(F14*'Input| Escalations'!$K$19,"") -> 2057.297444 | R14: =IFERROR(G14*'Input| Escalations'!$K$19,"") -> 2056.301191 | S14: =IFERROR(H14*'Input| Escalations'!$K$19,"") -> 2055.305417 | T14: =IFERROR(I14*'Input| Escalations'!$K$19,"") -> 2055.305417 | U14: =IFERROR(J14*'Input| Escalations'!$K$19,"") -> 2055.305417 | V14: 10279.51489
B15: 8 | C15: =IFERROR(IF('Input| Setup'!E15="","",'Input| Setup'!E15),"") -> Distribution Substation Switchgear | M15: Distribution Substation Switchgear | N15: =IFERROR(VLOOKUP(M15,'Input| Setup'!$E$8:$F$57,2,FALSE),"") -> Dx | O15: =IFERROR(D15*'Input| Escalations'!$K$19,"") -> 0 | P15: =IFERROR(E15*'Input| Escalations'!$K$19,"") -> 0 | Q15: =IFERROR(F15*'Input| Escalations'!$K$19,"") -> 0 | R15: =IFERROR(G15*'Input| Escalations'!$K$19,"") -> 0 | S15: =IFERROR(H15*'Input| Escalations'!$K$19,"") -> 0 | T15: =IFERROR(I15*'Input| Escalations'!$K$19,"") -> 0 | U15: =IFERROR(J15*'Input| Escalations'!$K$19,"") -> 0
B16: 9 | C16: =IFERROR(IF('Input| Setup'!E16="","",'Input| Setup'!E16),"") -> Zone Transformers | M16: Zone Transformers | N16: =IFERROR(VLOOKUP(M16,'Input| Setup'!$E$8:$F$57,2,FALSE),"") -> Dx | O16: =IFERROR(D16*'Input| Escalations'!$K$19,"") -> 0 | P16: =IFERROR(E16*'Input| Escalations'!$K$19,"") -> 0 | Q16: =IFERROR(F16*'Input| Escalations'!$K$19,"") -> 0 | R16: =IFERROR(G16*'Input| Escalations'!$K$19,"") -> 0 | S16: =IFERROR(H16*'Input| Escalations'!$K$19,"") -> 0 | T16: =IFERROR(I16*'Input| Escalations'!$K$19,"") -> 0 | U16: =IFERROR(J16*'Input| Escalations'!$K$19,"") -> 0
B17: 10 | C17: =IFERROR(IF('Input| Setup'!E17="","",'Input| Setup'!E17),"") -> Distribution Transformers | M17: Distribution Transformers | N17: =IFERROR(VLOOKUP(M17,'Input| Setup'!$E$8:$F$57,2,FALSE),"") -> Dx | O17: =IFERROR(D17*'Input| Escalations'!$K$19,"") -> 0 | P17: =IFERROR(E17*'Input| Escalations'!$K$19,"") -> 0 | Q17: =IFERROR(F17*'Input| Escalations'!$K$19,"") -> 0 | R17: =IFERROR(G17*'Input| Escalations'!$K$19,"") -> 0 | S17: =IFERROR(H17*'Input| Escalations'!$K$19,"") -> 0 | T17: =IFERROR(I17*'Input| Escalations'!$K$19,"") -> 0 | U17: =IFERROR(J17*'Input| Escalations'!$K$19,"") -> 0
B18: 11 | C18: =IFERROR(IF('Input| Setup'!E18="","",'Input| Setup'!E18),"") -> Low Voltage Services | M18: Low Voltage Services | N18: =IFERROR(VLOOKUP(M18,'Input| Setup'!$E$8:$F$57,2,FALSE),"") -> Dx | O18: =IFERROR(D18*'Input| Escalations'!$K$19,"") -> 0 | P18: =IFERROR(E18*'Input| Escalations'!$K$19,"") -> 0 | Q18: =IFERROR(F18*'Input| Escalations'!$K$19,"") -> 0 | R18: =IFERROR(G18*'Input| Escalations'!$K$19,"") -> 0 | S18: =IFERROR(H18*'Input| Escalations'!$K$19,"") -> 0 | T18: =IFERROR(I18*'Input| Escalations'!$K$19,"") -> 0 | U18: =IFERROR(J18*'Input| Escalations'!$K$19,"") -> 0
B19: 12 | C19: =IFERROR(IF('Input| Setup'!E19="","",'Input| Setup'!E19),"") -> Metering | M19: Metering | N19: =IFERROR(VLOOKUP(M19,'Input| Setup'!$E$8:$F$57,2,FALSE),"") -> Dx | O19: =IFERROR(D19*'Input| Escalations'!$K$19,"") -> 0 | P19: =IFERROR(E19*'Input| Escalations'!$K$19,"") -> 0 | Q19: =IFERROR(F19*'Input| Escalations'!$K$19,"") -> 0 | R19: =IFERROR(G19*'Input| Escalations'!$K$19,"") -> 0 | S19: =IFERROR(H19*'Input| Escalations'!$K$19,"") -> 0 | T19: =IFERROR(I19*'Input| Escalations'!$K$19,"") -> 0 | U19: =IFERROR(J19*'Input| Escalations'!$K$19,"") -> 0
B20: 13 | C20: =IFERROR(IF('Input| Setup'!E20="","",'Input| Setup'!E20),"") -> Communications – Pilot Wires | M20: Communications – Pilot Wires | N20: =IFERROR(VLOOKUP(M20,'Input| Setup'!$E$8:$F$57,2,FALSE),"") -> Dx | O20: =IFERROR(D20*'Input| Escalations'!$K$19,"") -> 0 | P20: =IFERROR(E20*'Input| Escalations'!$K$19,"") -> 0 | Q20: =IFERROR(F20*'Input| Escalations'!$K$19,"") -> 0 | R20: =IFERROR(G20*'Input| Escalations'!$K$19,"") -> 0 | S20: =IFERROR(H20*'Input| Escalations'!$K$19,"") -> 0 | T20: =IFERROR(I20*'Input| Escalations'!$K$19,"") -> 0 | U20: =IFERROR(J20*'Input| Escalations'!$K$19,"") -> 0
B21: 14 | C21: =IFERROR(IF('Input| Setup'!E21="","",'Input| Setup'!E21),"") -> Composite Poles | M21: Composite Poles | N21: =IFERROR(VLOOKUP(M21,'Input| Setup'!$E$8:$F$57,2,FALSE),"") -> Dx | O21: =IFERROR(D21*'Input| Escalations'!$K$19,"") -> 0 | P21: =IFERROR(E21*'Input| Escalations'!$K$19,"") -> 0 | Q21: =IFERROR(F21*'Input| Escalations'!$K$19,"") -> 0 | R21: =IFERROR(G21*'Input| Escalations'!$K$19,"") -> 0 | S21: =IFERROR(H21*'Input| Escalations'!$K$19,"") -> 0 | T21: =IFERROR(I21*'Input| Escalations'!$K$19,"") -> 0 | U21: =IFERROR(J21*'Input| Escalations'!$K$19,"") -> 0
B22: 15 | C22: =IFERROR(IF('Input| Setup'!E22="","",'Input| Setup'!E22),"") -> Land & Easements (System) - combined | M22: Land & Easements (System) - combined | N22: =IFERROR(VLOOKUP(M22,'Input| Setup'!$E$8:$F$57,2,FALSE),"") -> Dx | O22: =IFERROR(D22*'Input| Escalations'!$K$19,"") -> 0 | P22: =IFERROR(E22*'Input| Escalations'!$K$19,"") -> 0 | Q22: =IFERROR(F22*'Input| Escalations'!$K$19,"") -> 0 | R22: =IFERROR(G22*'Input| Escalations'!$K$19,"") -> 0 | S22: =IFERROR(H22*'Input| Escalations'!$K$19,"") -> 0 | T22: =IFERROR(I22*'Input| Escalations'!$K$19,"") -> 0 | U22: =IFERROR(J22*'Input| Escalations'!$K$19,"") -> 0
B23: 16 | C23: =IFERROR(IF('Input| Setup'!E23="","",'Input| Setup'!E23),"") -> Land Improvements | M23: Land Improvements | N23: =IFERROR(VLOOKUP(M23,'Input| Setup'!$E$8:$F$57,2,FALSE),"") -> Dx | O23: =IFERROR(D23*'Input| Escalations'!$K$19,"") -> 0 | P23: =IFERROR(E23*'Input| Escalations'!$K$19,"") -> 0 | Q23: =IFERROR(F23*'Input| Escalations'!$K$19,"") -> 0 | R23: =IFERROR(G23*'Input| Escalations'!$K$19,"") -> 0 | S23: =IFERROR(H23*'Input| Escalations'!$K$19,"") -> 0 | T23: =IFERROR(I23*'Input| Escalations'!$K$19,"") -> 0 | U23: =IFERROR(J23*'Input| Escalations'!$K$19,"") -> 0
B24: 17 | C24: =IFERROR(IF('Input| Setup'!E24="","",'Input| Setup'!E24),"") -> Control Centre - SCADA | M24: Control Centre - SCADA | N24: =IFERROR(VLOOKUP(M24,'Input| Setup'!$E$8:$F$57,2,FALSE),"") -> Dx | O24: =IFERROR(D24*'Input| Escalations'!$K$19,"") -> 0 | P24: =IFERROR(E24*'Input| Escalations'!$K$19,"") -> 0 | Q24: =IFERROR(F24*'Input| Escalations'!$K$19,"") -> 0 | R24: =IFERROR(G24*'Input| Escalations'!$K$19,"") -> 0 | S24: =IFERROR(H24*'Input| Escalations'!$K$19,"") -> 0 | T24: =IFERROR(I24*'Input| Escalations'!$K$19,"") -> 0 | U24: =IFERROR(J24*'Input| Escalations'!$K$19,"") -> 0
B25: 18 | C25: =IFERROR(IF('Input| Setup'!E25="","",'Input| Setup'!E25),"") -> Other Equipment | M25: Other Equipment | N25: =IFERROR(VLOOKUP(M25,'Input| Setup'!$E$8:$F$57,2,FALSE),"") -> Dx | O25: =IFERROR(D25*'Input| Escalations'!$K$19,"") -> 0 | P25: =IFERROR(E25*'Input| Escalations'!$K$19,"") -> 0 | Q25: =IFERROR(F25*'Input| Escalations'!$K$19,"") -> 0 | R25: =IFERROR(G25*'Input| Escalations'!$K$19,"") -> 0 | S25: =IFERROR(H25*'Input| Escalations'!$K$19,"") -> 0 | T25: =IFERROR(I25*'Input| Escalations'!$K$19,"") -> 0 | U25: =IFERROR(J25*'Input| Escalations'!$K$19,"") -> 0
B26: 19 | C26: =IFERROR(IF('Input| Setup'!E26="","",'Input| Setup'!E26),"") -> Generation Assets | M26: Generation Assets | N26: =IFERROR(VLOOKUP(M26,'Input| Setup'!$E$8:$F$57,2,FALSE),"") -> Dx | O26: =IFERROR(D26*'Input| Escalations'!$K$19,"") -> 0 | P26: =IFERROR(E26*'Input| Escalations'!$K$19,"") -> 0 | Q26: =IFERROR(F26*'Input| Escalations'!$K$19,"") -> 0 | R26: =IFERROR(G26*'Input| Escalations'!$K$19,"") -> 0 | S26: =IFERROR(H26*'Input| Escalations'!$K$19,"") -> 0 | T26: =IFERROR(I26*'Input| Escalations'!$K$19,"") -> 0 | U26: =IFERROR(J26*'Input| Escalations'!$K$19,"") -> 0
B27: 20 | C27: =IFERROR(IF('Input| Setup'!E27="","",'Input| Setup'!E27),"") -> Motor Vehicles | F27: 4488.643429 | G27: 4820.90948 | H27: 3473.516655 | I27: 3786.683383 | J27: 4795.254191 | K27: 21365.00714 | M27: Motor Vehicles | N27: =IFERROR(VLOOKUP(M27,'Input| Setup'!$E$8:$F$57,2,FALSE),"") -> Dx | O27: =IFERROR(D27*'Input| Escalations'!$K$19,"") -> 0 | P27: =IFERROR(E27*'Input| Escalations'!$K$19,"") -> 0 | Q27: =IFERROR(F27*'Input| Escalations'!$K$19,"") -> 4967.565571 | R27: =IFERROR(G27*'Input| Escalations'!$K$19,"") -> 5335.283217 | S27: =IFERROR(H27*'Input| Escalations'!$K$19,"") -> 3844.128414 | T27: =IFERROR(I27*'Input| Escalations'!$K$19,"") -> 4190.708907 | U27: =IFERROR(J27*'Input| Escalations'!$K$19,"") -> 5306.8906 | V27: 23644.57671
B28: 21 | C28: =IFERROR(IF('Input| Setup'!E28="","",'Input| Setup'!E28),"") -> Plant & Equipment | M28: Plant & Equipment | N28: =IFERROR(VLOOKUP(M28,'Input| Setup'!$E$8:$F$57,2,FALSE),"") -> Dx | O28: =IFERROR(D28*'Input| Escalations'!$K$19,"") -> 0 | P28: =IFERROR(E28*'Input| Escalations'!$K$19,"") -> 0 | Q28: =IFERROR(F28*'Input| Escalations'!$K$19,"") -> 0 | R28: =IFERROR(G28*'Input| Escalations'!$K$19,"") -> 0 | S28: =IFERROR(H28*'Input| Escalations'!$K$19,"") -> 0 | T28: =IFERROR(I28*'Input| Escalations'!$K$19,"") -> 0 | U28: =IFERROR(J28*'Input| Escalations'!$K$19,"") -> 0
B29: 22 | C29: =IFERROR(IF('Input| Setup'!E29="","",'Input| Setup'!E29),"") -> Buildings | M29: Buildings | N29: =IFERROR(VLOOKUP(M29,'Input| Setup'!$E$8:$F$57,2,FALSE),"") -> Dx | O29: =IFERROR(D29*'Input| Escalations'!$K$19,"") -> 0 | P29: =IFERROR(E29*'Input| Escalations'!$K$19,"") -> 0 | Q29: =IFERROR(F29*'Input| Escalations'!$K$19,"") -> 0 | R29: =IFERROR(G29*'Input| Escalations'!$K$19,"") -> 0 | S29: =IFERROR(H29*'Input| Escalations'!$K$19,"") -> 0 | T29: =IFERROR(I29*'Input| Escalations'!$K$19,"") -> 0 | U29: =IFERROR(J29*'Input| Escalations'!$K$19,"") -> 0
B30: 23 | C30: =IFERROR(IF('Input| Setup'!E30="","",'Input| Setup'!E30),"") -> Office Equipment & Furniture | M30: Office Equipment & Furniture | N30: =IFERROR(VLOOKUP(M30,'Input| Setup'!$E$8:$F$57,2,FALSE),"") -> Dx | O30: =IFERROR(D30*'Input| Escalations'!$K$19,"") -> 0 | P30: =IFERROR(E30*'Input| Escalations'!$K$19,"") -> 0 | Q30: =IFERROR(F30*'Input| Escalations'!$K$19,"") -> 0 | R30: =IFERROR(G30*'Input| Escalations'!$K$19,"") -> 0 | S30: =IFERROR(H30*'Input| Escalations'!$K$19,"") -> 0 | T30: =IFERROR(I30*'Input| Escalations'!$K$19,"") -> 0 | U30: =IFERROR(J30*'Input| Escalations'!$K$19,"") -> 0
B31: 24 | C31: =IFERROR(IF('Input| Setup'!E31="","",'Input| Setup'!E31),"") -> Initial Leases (10 yr life) | M31: Initial Leases (10 yr life) | N31: =IFERROR(VLOOKUP(M31,'Input| Setup'!$E$8:$F$57,2,FALSE),"") -> Dx | O31: =IFERROR(D31*'Input| Escalations'!$K$19,"") -> 0 | P31: =IFERROR(E31*'Input| Escalations'!$K$19,"") -> 0 | Q31: =IFERROR(F31*'Input| Escalations'!$K$19,"") -> 0 | R31: =IFERROR(G31*'Input| Escalations'!$K$19,"") -> 0 | S31: =IFERROR(H31*'Input| Escalations'!$K$19,"") -> 0 | T31: =IFERROR(I31*'Input| Escalations'!$K$19,"") -> 0 | U31: =IFERROR(J31*'Input| Escalations'!$K$19,"") -> 0
B32: 25 | C32: =IFERROR(IF('Input| Setup'!E32="","",'Input| Setup'!E32),"") -> Lease Extensions (5yr Life) | M32: Lease Extensions (5yr Life) | N32: =IFERROR(VLOOKUP(M32,'Input| Setup'!$E$8:$F$57,2,FALSE),"") -> Dx | O32: =IFERROR(D32*'Input| Escalations'!$K$19,"") -> 0 | P32: =IFERROR(E32*'Input| Escalations'!$K$19,"") -> 0 | Q32: =IFERROR(F32*'Input| Escalations'!$K$19,"") -> 0 | R32: =IFERROR(G32*'Input| Escalations'!$K$19,"") -> 0 | S32: =IFERROR(H32*'Input| Escalations'!$K$19,"") -> 0 | T32: =IFERROR(I32*'Input| Escalations'!$K$19,"") -> 0 | U32: =IFERROR(J32*'Input| Escalations'!$K$19,"") -> 0
B33: 26 | C33: =IFERROR(IF('Input| Setup'!E33="","",'Input| Setup'!E33),"") -> Land & Easements - combined | M33: Land & Easements - combined | N33: =IFERROR(VLOOKUP(M33,'Input| Setup'!$E$8:$F$57,2,FALSE),"") -> Dx | O33: =IFERROR(D33*'Input| Escalations'!$K$19,"") -> 0 | P33: =IFERROR(E33*'Input| Escalations'!$K$19,"") -> 0 | Q33: =IFERROR(F33*'Input| Escalations'!$K$19,"") -> 0 | R33: =IFERROR(G33*'Input| Escalations'!$K$19,"") -> 0 | S33: =IFERROR(H33*'Input| Escalations'!$K$19,"") -> 0 | T33: =IFERROR(I33*'Input| Escalations'!$K$19,"") -> 0 | U33: =IFERROR(J33*'Input| Escalations'!$K$19,"") -> 0
B34: 27 | C34: =IFERROR(IF('Input| Setup'!E34="","",'Input| Setup'!E34),"") -> Communications | M34: Communications | N34: =IFERROR(VLOOKUP(M34,'Input| Setup'!$E$8:$F$57,2,FALSE),"") -> Dx | O34: =IFERROR(D34*'Input| Escalations'!$K$19,"") -> 0 | P34: =IFERROR(E34*'Input| Escalations'!$K$19,"") -> 0 | Q34: =IFERROR(F34*'Input| Escalations'!$K$19,"") -> 0 | R34: =IFERROR(G34*'Input| Escalations'!$K$19,"") -> 0 | S34: =IFERROR(H34*'Input| Escalations'!$K$19,"") -> 0 | T34: =IFERROR(I34*'Input| Escalations'!$K$19,"") -> 0 | U34: =IFERROR(J34*'Input| Escalations'!$K$19,"") -> 0
B35: 28 | C35: =IFERROR(IF('Input| Setup'!E35="","",'Input| Setup'!E35),"") -> In-house software | M35: In-house software | N35: =IFERROR(VLOOKUP(M35,'Input| Setup'!$E$8:$F$57,2,FALSE),"") -> Dx | O35: =IFERROR(D35*'Input| Escalations'!$K$19,"") -> 0 | P35: =IFERROR(E35*'Input| Escalations'!$K$19,"") -> 0 | Q35: =IFERROR(F35*'Input| Escalations'!$K$19,"") -> 0 | R35: =IFERROR(G35*'Input| Escalations'!$K$19,"") -> 0 | S35: =IFERROR(H35*'Input| Escalations'!$K$19,"") -> 0 | T35: =IFERROR(I35*'Input| Escalations'!$K$19,"") -> 0 | U35: =IFERROR(J35*'Input| Escalations'!$K$19,"") -> 0
B36: 29 | C36: =IFERROR(IF('Input| Setup'!E36="","",'Input| Setup'!E36),"") -> IT Systems | M36: IT Systems | N36: =IFERROR(VLOOKUP(M36,'Input| Setup'!$E$8:$F$57,2,FALSE),"") -> Dx | O36: =IFERROR(D36*'Input| Escalations'!$K$19,"") -> 0 | P36: =IFERROR(E36*'Input| Escalations'!$K$19,"") -> 0 | Q36: =IFERROR(F36*'Input| Escalations'!$K$19,"") -> 0 | R36: =IFERROR(G36*'Input| Escalations'!$K$19,"") -> 0 | S36: =IFERROR(H36*'Input| Escalations'!$K$19,"") -> 0 | T36: =IFERROR(I36*'Input| Escalations'!$K$19,"") -> 0 | U36: =IFERROR(J36*'Input| Escalations'!$K$19,"") -> 0
B37: 30 | C37: =IFERROR(IF('Input| Setup'!E37="","",'Input| Setup'!E37),"") -> ICT Legacy Assets | M37: ICT Legacy Assets | N37: =IFERROR(VLOOKUP(M37,'Input| Setup'!$E$8:$F$57,2,FALSE),"") -> Dx | O37: =IFERROR(D37*'Input| Escalations'!$K$19,"") -> 0 | P37: =IFERROR(E37*'Input| Escalations'!$K$19,"") -> 0 | Q37: =IFERROR(F37*'Input| Escalations'!$K$19,"") -> 0 | R37: =IFERROR(G37*'Input| Escalations'!$K$19,"") -> 0 | S37: =IFERROR(H37*'Input| Escalations'!$K$19,"") -> 0 | T37: =IFERROR(I37*'Input| Escalations'!$K$19,"") -> 0 | U37: =IFERROR(J37*'Input| Escalations'!$K$19,"") -> 0
B38: 31 | C38: =IFERROR(IF('Input| Setup'!E38="","",'Input| Setup'!E38),"") -> Buildings - capital works | F38: 0 | G38: 0 | H38: 0 | I38: 7038.51 | J38: 0 | K38: 7038.51 | M38: Buildings - capital works | N38: =IFERROR(VLOOKUP(M38,'Input| Setup'!$E$8:$F$57,2,FALSE),"") -> Dx | O38: =IFERROR(D38*'Input| Escalations'!$K$19,"") -> 0 | P38: =IFERROR(E38*'Input| Escalations'!$K$19,"") -> 0 | Q38: =IFERROR(F38*'Input| Escalations'!$K$19,"") -> 0 | R38: =IFERROR(G38*'Input| Escalations'!$K$19,"") -> 0 | S38: =IFERROR(H38*'Input| Escalations'!$K$19,"") -> 0 | T38: =IFERROR(I38*'Input| Escalations'!$K$19,"") -> 7789.493752 | U38: =IFERROR(J38*'Input| Escalations'!$K$19,"") -> 0 | V38: 7789.493752
B39: 32 | C39: =IFERROR(IF('Input| Setup'!E39="","",'Input| Setup'!E39),"") ->  | N39: =IFERROR(VLOOKUP(M39,'Input| Setup'!$E$8:$F$57,2,FALSE),"") -> Dx | O39: =IFERROR(D39*'Input| Escalations'!$K$19,"") -> 0 | P39: =IFERROR(E39*'Input| Escalations'!$K$19,"") -> 0 | Q39: =IFERROR(F39*'Input| Escalations'!$K$19,"") -> 0 | R39: =IFERROR(G39*'Input| Escalations'!$K$19,"") -> 0 | S39: =IFERROR(H39*'Input| Escalations'!$K$19,"") -> 0 | T39: =IFERROR(I39*'Input| Escalations'!$K$19,"") -> 0 | U39: =IFERROR(J39*'Input| Escalations'!$K$19,"") -> 0
B40: 33 | C40: =IFERROR(IF('Input| Setup'!E40="","",'Input| Setup'!E40),"") ->  | N40: =IFERROR(VLOOKUP(M40,'Input| Setup'!$E$8:$F$57,2,FALSE),"") -> Dx | O40: =IFERROR(D40*'Input| Escalations'!$K$19,"") -> 0 | P40: =IFERROR(E40*'Input| Escalations'!$K$19,"") -> 0 | Q40: =IFERROR(F40*'Input| Escalations'!$K$19,"") -> 0 | R40: =IFERROR(G40*'Input| Escalations'!$K$19,"") -> 0 | S40: =IFERROR(H40*'Input| Escalations'!$K$19,"") -> 0 | T40: =IFERROR(I40*'Input| Escalations'!$K$19,"") -> 0 | U40: =IFERROR(J40*'Input| Escalations'!$K$19,"") -> 0
B41: 34 | C41: =IFERROR(IF('Input| Setup'!E41="","",'Input| Setup'!E41),"") ->  | N41: =IFERROR(VLOOKUP(M41,'Input| Setup'!$E$8:$F$57,2,FALSE),"") -> Dx | O41: =IFERROR(D41*'Input| Escalations'!$K$19,"") -> 0 | P41: =IFERROR(E41*'Input| Escalations'!$K$19,"") -> 0 | Q41: =IFERROR(F41*'Input| Escalations'!$K$19,"") -> 0 | R41: =IFERROR(G41*'Input| Escalations'!$K$19,"") -> 0 | S41: =IFERROR(H41*'Input| Escalations'!$K$19,"") -> 0 | T41: =IFERROR(I41*'Input| Escalations'!$K$19,"") -> 0 | U41: =IFERROR(J41*'Input| Escalations'!$K$19,"") -> 0
B42: 35 | C42: =IFERROR(IF('Input| Setup'!E42="","",'Input| Setup'!E42),"") ->  | N42: =IFERROR(VLOOKUP(M42,'Input| Setup'!$E$8:$F$57,2,FALSE),"") -> Dx | O42: =IFERROR(D42*'Input| Escalations'!$K$19,"") -> 0 | P42: =IFERROR(E42*'Input| Escalations'!$K$19,"") -> 0 | Q42: =IFERROR(F42*'Input| Escalations'!$K$19,"") -> 0 | R42: =IFERROR(G42*'Input| Escalations'!$K$19,"") -> 0 | S42: =IFERROR(H42*'Input| Escalations'!$K$19,"") -> 0 | T42: =IFERROR(I42*'Input| Escalations'!$K$19,"") -> 0 | U42: =IFERROR(J42*'Input| Escalations'!$K$19,"") -> 0
B43: 36 | C43: =IFERROR(IF('Input| Setup'!E43="","",'Input| Setup'!E43),"") ->  | N43: =IFERROR(VLOOKUP(M43,'Input| Setup'!$E$8:$F$57,2,FALSE),"") -> Dx | O43: =IFERROR(D43*'Input| Escalations'!$K$19,"") -> 0 | P43: =IFERROR(E43*'Input| Escalations'!$K$19,"") -> 0 | Q43: =IFERROR(F43*'Input| Escalations'!$K$19,"") -> 0 | R43: =IFERROR(G43*'Input| Escalations'!$K$19,"") -> 0 | S43: =IFERROR(H43*'Input| Escalations'!$K$19,"") -> 0 | T43: =IFERROR(I43*'Input| Escalations'!$K$19,"") -> 0 | U43: =IFERROR(J43*'Input| Escalations'!$K$19,"") -> 0
B44: 37 | C44: =IFERROR(IF('Input| Setup'!E44="","",'Input| Setup'!E44),"") ->  | N44: =IFERROR(VLOOKUP(M44,'Input| Setup'!$E$8:$F$57,2,FALSE),"") -> Dx | O44: =IFERROR(D44*'Input| Escalations'!$K$19,"") -> 0 | P44: =IFERROR(E44*'Input| Escalations'!$K$19,"") -> 0 | Q44: =IFERROR(F44*'Input| Escalations'!$K$19,"") -> 0 | R44: =IFERROR(G44*'Input| Escalations'!$K$19,"") -> 0 | S44: =IFERROR(H44*'Input| Escalations'!$K$19,"") -> 0 | T44: =IFERROR(I44*'Input| Escalations'!$K$19,"") -> 0 | U44: =IFERROR(J44*'Input| Escalations'!$K$19,"") -> 0
B45: 38 | C45: =IFERROR(IF('Input| Setup'!E45="","",'Input| Setup'!E45),"") ->  | N45: =IFERROR(VLOOKUP(M45,'Input| Setup'!$E$8:$F$57,2,FALSE),"") -> Dx | O45: =IFERROR(D45*'Input| Escalations'!$K$19,"") -> 0 | P45: =IFERROR(E45*'Input| Escalations'!$K$19,"") -> 0 | Q45: =IFERROR(F45*'Input| Escalations'!$K$19,"") -> 0 | R45: =IFERROR(G45*'Input| Escalations'!$K$19,"") -> 0 | S45: =IFERROR(H45*'Input| Escalations'!$K$19,"") -> 0 | T45: =IFERROR(I45*'Input| Escalations'!$K$19,"") -> 0 | U45: =IFERROR(J45*'Input| Escalations'!$K$19,"") -> 0
B46: 39 | C46: =IFERROR(IF('Input| Setup'!E46="","",'Input| Setup'!E46),"") ->  | N46: =IFERROR(VLOOKUP(M46,'Input| Setup'!$E$8:$F$57,2,FALSE),"") -> Dx | O46: =IFERROR(D46*'Input| Escalations'!$K$19,"") -> 0 | P46: =IFERROR(E46*'Input| Escalations'!$K$19,"") -> 0 | Q46: =IFERROR(F46*'Input| Escalations'!$K$19,"") -> 0 | R46: =IFERROR(G46*'Input| Escalations'!$K$19,"") -> 0 | S46: =IFERROR(H46*'Input| Escalations'!$K$19,"") -> 0 | T46: =IFERROR(I46*'Input| Escalations'!$K$19,"") -> 0 | U46: =IFERROR(J46*'Input| Escalations'!$K$19,"") -> 0
B47: 40 | C47: =IFERROR(IF('Input| Setup'!E47="","",'Input| Setup'!E47),"") ->  | N47: =IFERROR(VLOOKUP(M47,'Input| Setup'!$E$8:$F$57,2,FALSE),"") -> Dx | O47: =IFERROR(D47*'Input| Escalations'!$K$19,"") -> 0 | P47: =IFERROR(E47*'Input| Escalations'!$K$19,"") -> 0 | Q47: =IFERROR(F47*'Input| Escalations'!$K$19,"") -> 0 | R47: =IFERROR(G47*'Input| Escalations'!$K$19,"") -> 0 | S47: =IFERROR(H47*'Input| Escalations'!$K$19,"") -> 0 | T47: =IFERROR(I47*'Input| Escalations'!$K$19,"") -> 0 | U47: =IFERROR(J47*'Input| Escalations'!$K$19,"") -> 0
B48: 41 | C48: =IFERROR(IF('Input| Setup'!E48="","",'Input| Setup'!E48),"") ->  | N48: =IFERROR(VLOOKUP(M48,'Input| Setup'!$E$8:$F$57,2,FALSE),"") -> Dx | O48: =IFERROR(D48*'Input| Escalations'!$K$19,"") -> 0 | P48: =IFERROR(E48*'Input| Escalations'!$K$19,"") -> 0 | Q48: =IFERROR(F48*'Input| Escalations'!$K$19,"") -> 0 | R48: =IFERROR(G48*'Input| Escalations'!$K$19,"") -> 0 | S48: =IFERROR(H48*'Input| Escalations'!$K$19,"") -> 0 | T48: =IFERROR(I48*'Input| Escalations'!$K$19,"") -> 0 | U48: =IFERROR(J48*'Input| Escalations'!$K$19,"") -> 0
B49: 42 | C49: =IFERROR(IF('Input| Setup'!E49="","",'Input| Setup'!E49),"") ->  | N49: =IFERROR(VLOOKUP(M49,'Input| Setup'!$E$8:$F$57,2,FALSE),"") -> Dx | O49: =IFERROR(D49*'Input| Escalations'!$K$19,"") -> 0 | P49: =IFERROR(E49*'Input| Escalations'!$K$19,"") -> 0 | Q49: =IFERROR(F49*'Input| Escalations'!$K$19,"") -> 0 | R49: =IFERROR(G49*'Input| Escalations'!$K$19,"") -> 0 | S49: =IFERROR(H49*'Input| Escalations'!$K$19,"") -> 0 | T49: =IFERROR(I49*'Input| Escalations'!$K$19,"") -> 0 | U49: =IFERROR(J49*'Input| Escalations'!$K$19,"") -> 0
B50: 43 | C50: =IFERROR(IF('Input| Setup'!E50="","",'Input| Setup'!E50),"") ->  | N50: =IFERROR(VLOOKUP(M50,'Input| Setup'!$E$8:$F$57,2,FALSE),"") -> Dx | O50: =IFERROR(D50*'Input| Escalations'!$K$19,"") -> 0 | P50: =IFERROR(E50*'Input| Escalations'!$K$19,"") -> 0 | Q50: =IFERROR(F50*'Input| Escalations'!$K$19,"") -> 0 | R50: =IFERROR(G50*'Input| Escalations'!$K$19,"") -> 0 | S50: =IFERROR(H50*'Input| Escalations'!$K$19,"") -> 0 | T50: =IFERROR(I50*'Input| Escalations'!$K$19,"") -> 0 | U50: =IFERROR(J50*'Input| Escalations'!$K$19,"") -> 0
B51: 44 | C51: =IFERROR(IF('Input| Setup'!E51="","",'Input| Setup'!E51),"") ->  | N51: =IFERROR(VLOOKUP(M51,'Input| Setup'!$E$8:$F$57,2,FALSE),"") -> Dx | O51: =IFERROR(D51*'Input| Escalations'!$K$19,"") -> 0 | P51: =IFERROR(E51*'Input| Escalations'!$K$19,"") -> 0 | Q51: =IFERROR(F51*'Input| Escalations'!$K$19,"") -> 0 | R51: =IFERROR(G51*'Input| Escalations'!$K$19,"") -> 0 | S51: =IFERROR(H51*'Input| Escalations'!$K$19,"") -> 0 | T51: =IFERROR(I51*'Input| Escalations'!$K$19,"") -> 0 | U51: =IFERROR(J51*'Input| Escalations'!$K$19,"") -> 0
B52: 45 | C52: =IFERROR(IF('Input| Setup'!E52="","",'Input| Setup'!E52),"") ->  | N52: =IFERROR(VLOOKUP(M52,'Input| Setup'!$E$8:$F$57,2,FALSE),"") -> Dx | O52: =IFERROR(D52*'Input| Escalations'!$K$19,"") -> 0 | P52: =IFERROR(E52*'Input| Escalations'!$K$19,"") -> 0 | Q52: =IFERROR(F52*'Input| Escalations'!$K$19,"") -> 0 | R52: =IFERROR(G52*'Input| Escalations'!$K$19,"") -> 0 | S52: =IFERROR(H52*'Input| Escalations'!$K$19,"") -> 0 | T52: =IFERROR(I52*'Input| Escalations'!$K$19,"") -> 0 | U52: =IFERROR(J52*'Input| Escalations'!$K$19,"") -> 0
B53: 46 | C53: =IFERROR(IF('Input| Setup'!E53="","",'Input| Setup'!E53),"") ->  | N53: =IFERROR(VLOOKUP(M53,'Input| Setup'!$E$8:$F$57,2,FALSE),"") -> Dx | O53: =IFERROR(D53*'Input| Escalations'!$K$19,"") -> 0 | P53: =IFERROR(E53*'Input| Escalations'!$K$19,"") -> 0 | Q53: =IFERROR(F53*'Input| Escalations'!$K$19,"") -> 0 | R53: =IFERROR(G53*'Input| Escalations'!$K$19,"") -> 0 | S53: =IFERROR(H53*'Input| Escalations'!$K$19,"") -> 0 | T53: =IFERROR(I53*'Input| Escalations'!$K$19,"") -> 0 | U53: =IFERROR(J53*'Input| Escalations'!$K$19,"") -> 0
B54: 47 | C54: =IFERROR(IF('Input| Setup'!E54="","",'Input| Setup'!E54),"") ->  | N54: =IFERROR(VLOOKUP(M54,'Input| Setup'!$E$8:$F$57,2,FALSE),"") -> Dx | O54: =IFERROR(D54*'Input| Escalations'!$K$19,"") -> 0 | P54: =IFERROR(E54*'Input| Escalations'!$K$19,"") -> 0 | Q54: =IFERROR(F54*'Input| Escalations'!$K$19,"") -> 0 | R54: =IFERROR(G54*'Input| Escalations'!$K$19,"") -> 0 | S54: =IFERROR(H54*'Input| Escalations'!$K$19,"") -> 0 | T54: =IFERROR(I54*'Input| Escalations'!$K$19,"") -> 0 | U54: =IFERROR(J54*'Input| Escalations'!$K$19,"") -> 0
B55: 48 | C55: =IFERROR(IF('Input| Setup'!E55="","",'Input| Setup'!E55),"") ->  | N55: =IFERROR(VLOOKUP(M55,'Input| Setup'!$E$8:$F$57,2,FALSE),"") -> Dx | O55: =IFERROR(D55*'Input| Escalations'!$K$19,"") -> 0 | P55: =IFERROR(E55*'Input| Escalations'!$K$19,"") -> 0 | Q55: =IFERROR(F55*'Input| Escalations'!$K$19,"") -> 0 | R55: =IFERROR(G55*'Input| Escalations'!$K$19,"") -> 0 | S55: =IFERROR(H55*'Input| Escalations'!$K$19,"") -> 0 | T55: =IFERROR(I55*'Input| Escalations'!$K$19,"") -> 0 | U55: =IFERROR(J55*'Input| Escalations'!$K$19,"") -> 0
B56: 49 | C56: =IFERROR(IF('Input| Setup'!E56="","",'Input| Setup'!E56),"") ->  | N56: =IFERROR(VLOOKUP(M56,'Input| Setup'!$E$8:$F$57,2,FALSE),"") -> Dx | O56: =IFERROR(D56*'Input| Escalations'!$K$19,"") -> 0 | P56: =IFERROR(E56*'Input| Escalations'!$K$19,"") -> 0 | Q56: =IFERROR(F56*'Input| Escalations'!$K$19,"") -> 0 | R56: =IFERROR(G56*'Input| Escalations'!$K$19,"") -> 0 | S56: =IFERROR(H56*'Input| Escalations'!$K$19,"") -> 0 | T56: =IFERROR(I56*'Input| Escalations'!$K$19,"") -> 0 | U56: =IFERROR(J56*'Input| Escalations'!$K$19,"") -> 0
B57: 50 | C57: =IFERROR(IF('Input| Setup'!E57="","",'Input| Setup'!E57),"") -> Equity raising costs | M57: Equity raising costs | N57: =IFERROR(VLOOKUP(M57,'Input| Setup'!$E$8:$F$57,2,FALSE),"") -> Dx | O57: =IFERROR(D57*'Input| Escalations'!$K$19,"") -> 0 | P57: =IFERROR(E57*'Input| Escalations'!$K$19,"") -> 0 | Q57: =IFERROR(F57*'Input| Escalations'!$K$19,"") -> 0 | R57: =IFERROR(G57*'Input| Escalations'!$K$19,"") -> 0 | S57: =IFERROR(H57*'Input| Escalations'!$K$19,"") -> 0 | T57: =IFERROR(I57*'Input| Escalations'!$K$19,"") -> 0 | U57: =IFERROR(J57*'Input| Escalations'!$K$19,"") -> 0
C58: =IFERROR(IF('Input| Setup'!E58="","",'Input| Setup'!E58),"") ->  | D58: =IFERROR(SUM(D8:D57),"") -> 0 | E58: 0 | F58: 6347.597181 | G58: 6678.963027 | H58: 5330.67043 | I58: 12682.34716 | J58: 6652.407966 | K58: 37691.98576 | O58: =IFERROR(SUM(O8:O57),"") -> 0 | P58: =IFERROR(SUM(P8:P57),"") -> 0 | Q58: =IFERROR(SUM(Q8:Q57),"") -> 7024.863015 | R58: 7391.584408 | S58: 5899.433831 | T58: 14035.50808 | U58: 7362.196017 | V58: 41713.58535
C59: =IFERROR(IF('Input| Setup'!#REF!="","",'Input| Setup'!#REF!),"") -> 

Sheet Input| Type 2 capcons
A1: ='Input| Setup'!E5&" "&'Input| Escalations'!D8 -> Ergon 2025-26
B2: =IFERROR(Index!B2,"") -> AER Capex Forecast Model | C2: Sheet Validation | E2: ='Model Validation'!$C$18 -> 1 | G2: Key: | H2: Input | I2: Formula - do not edit
B3: =IFERROR(MID(CELL("filename",A2),FIND("]",CELL("filename",A2))+1,255),"") -> Input| Type 2 capcons
B5: =IFERROR(LEFT('Input| Disposals'!O5,2)+1&". Forecast type 2 capital contributions ($'000s "&'Input| Escalations'!$D$9&" "&'Input| Escalations'!$E$9&")","") -> 24. Forecast type 2 capital contributions ($'000s 2022-23 December)
B7: Definition for type 1 capital contributions | C7: Cash contributions received by a DNSP: - with respect to standard control services, where tax payable on the capital contribution is recovered via the corporate income tax allowance used to derive the annual revenue requirement. For clarity, type 1 capital contributions do not include PWC undergrounding capex (equity funded).
B11: Definition for type 2 capital contributions | C11: Any form of capital contributions received by a DNSP (including gifted assets or cash contributions) that do not meet the definition of Type 1 capital contributions, or are PWC undergrounding capex (equity funded).
C13: Distribution Assets | L13: Transmission Assets
B14: Forecast type 2 capcons by RIN category: | C14: =IFERROR('Input| Escalations'!H23,"") -> 2023-24 | D14: =IFERROR('Input| Escalations'!I23,"") -> 2024-25 | E14: =IFERROR('Input| Escalations'!J23,"") -> 2025-26 | F14: =IFERROR('Input| Escalations'!K23,"") -> 2026-27 | G14: =IFERROR('Input| Escalations'!L23,"") -> 2027-28 | H14: =IFERROR('Input| Escalations'!M23,"") -> 2028-29 | I14: =IFERROR('Input| Escalations'!N23,"") -> 2029-30 | J14: Forecast period | L14: =IFERROR('Input| Escalations'!H23,"") -> 2023-24 | M14: =IFERROR('Input| Escalations'!I23,"") -> 2024-25 | N14: =IFERROR('Input| Escalations'!J23,"") -> 2025-26 | O14: =IFERROR('Input| Escalations'!K23,"") -> 2026-27 | P14: =IFERROR('Input| Escalations'!L23,"") -> 2027-28 | Q14: =IFERROR('Input| Escalations'!M23,"") -> 2028-29 | R14: =IFERROR('Input| Escalations'!N23,"") -> 2029-30 | S14: Forecast period
B15: =IFERROR(IF('Input| Setup'!B19="","",'Input| Setup'!B19),"") -> Replacement | J15: =IFERROR(SUM(E15:I15),"") -> 0 | M15: 0 | N15: 0 | O15: 0 | P15: 0 | Q15: 0 | S15: =IFERROR(SUM(N15:R15),"") -> 0
B16: =IFERROR(IF('Input| Setup'!B20="","",'Input| Setup'!B20),"") -> Augmentation | J16: =IFERROR(SUM(E16:I16),"") -> 0 | S16: =IFERROR(SUM(N16:R16),"") -> 0
B17: =IFERROR(IF('Input| Setup'!B21="","",'Input| Setup'!B21),"") -> Connections | J17: =IFERROR(SUM(E17:I17),"") -> 0 | S17: =IFERROR(SUM(N17:R17),"") -> 0
B18: =IFERROR(IF('Input| Setup'!B22="","",'Input| Setup'!B22),"") -> Non-network capex | J18: =IFERROR(SUM(E18:I18),"") -> 0 | S18: =IFERROR(SUM(N18:R18),"") -> 0
B19: Total type 2 capital contributions | C19: =SUM(C15:C18) -> 0 | D19: =SUM(D15:D18) -> 0 | E19: =SUM(E15:E18) -> 0 | F19: 0 | G19: 0 | H19: 0 | I19: 0 | J19: 0 | L19: =SUM(L15:L18) -> 0 | M19: =SUM(M15:M18) -> 0 | N19: =SUM(N15:N18) -> 0 | O19: 0 | P19: 0 | Q19: 0 | R19: 0 | S19: 0
B22: =IFERROR(LEFT(B5,2)+1&". Cost components of type 2 capital contributions","") -> 25. Cost components of type 2 capital contributions
C24: =IFERROR('Input| Escalations'!B25,"") -> Internal labour | D24: =IFERROR('Input| Escalations'!B26,"") -> Contract labour | E24: =IFERROR('Input| Escalations'!B27,"") -> Non-labour | G24: =IF(G25=0,0,1) -> 0
B25: Cost components as % of direct costs | C25: 1 | D25: 0 | E25: 0 | G25: =IF(OR(C25<0,C25>1,D25<0,D25>1,E25<0,E25>1,SUM(C25:E25)<0,SUM(C25:E25)>1),1,0) -> 0
B28: =IFERROR(LEFT(B22,2)+1&". Real price escalators for type 2 capital contributions","") -> 26. Real price escalators for type 2 capital contributions
B30: Real cost escalation - cumulative | C30: =IFERROR('Input| Escalations'!H23,"") -> 2023-24 | D30: =IFERROR('Input| Escalations'!I23,"") -> 2024-25 | E30: =IFERROR('Input| Escalations'!J23,"") -> 2025-26 | F30: =IFERROR('Input| Escalations'!K23,"") -> 2026-27 | G30: =IFERROR('Input| Escalations'!L23,"") -> 2027-28 | H30: =IFERROR('Input| Escalations'!M23,"") -> 2028-29 | I30: =IFERROR('Input| Escalations'!N23,"") -> 2029-30
B31: Real Cost Escalation - Network overheads | C31: =$C$25*INDEX('Input| Escalations'!$H$33:$N$33,MATCH(C$30,'Input| Escalations'!$H$23:$N$23,0))+$D$25*INDEX('Input| Escalations'!$H$34:$N$34,MATCH(C$30,'Input| Escalations'!$H$23:$N$23,0))+$E$25*INDEX('Input| Escalations'!$H$35:$N$35,MATCH(C$30,'Input| Escalations'!$H$23:$N$23,0))+1 -> 1.020251503 | D31: =$C$25*INDEX('Input| Escalations'!$H$33:$N$33,MATCH(D$30,'Input| Escalations'!$H$23:$N$23,0))+$D$25*INDEX('Input| Escalations'!$H$34:$N$34,MATCH(D$30,'Input| Escalations'!$H$23:$N$23,0))+$E$25*INDEX('Input| Escalations'!$H$35:$N$35,MATCH(D$30,'Input| Escalations'!$H$23:$N$23,0))+1 -> 1.057976024 | E31: =$C$25*INDEX('Input| Escalations'!$H$33:$N$33,MATCH(E$30,'Input| Escalations'!$H$23:$N$23,0))+$D$25*INDEX('Input| Escalations'!$H$34:$N$34,MATCH(E$30,'Input| Escalations'!$H$23:$N$23,0))+$E$25*INDEX('Input| Escalations'!$H$35:$N$35,MATCH(E$30,'Input| Escalations'!$H$23:$N$23,0))+1 -> 1.069704139 | F31: =$C$25*INDEX('Input| Escalations'!$H$33:$N$33,MATCH(F$30,'Input| Escalations'!$H$23:$N$23,0))+$D$25*INDEX('Input| Escalations'!$H$34:$N$34,MATCH(F$30,'Input| Escalations'!$H$23:$N$23,0))+$E$25*INDEX('Input| Escalations'!$H$35:$N$35,MATCH(F$30,'Input| Escalations'!$H$23:$N$23,0))+1 -> 1.08133192 | G31: =$C$25*INDEX('Input| Escalations'!$H$33:$N$33,MATCH(G$30,'Input| Escalations'!$H$23:$N$23,0))+$D$25*INDEX('Input| Escalations'!$H$34:$N$34,MATCH(G$30,'Input| Escalations'!$H$23:$N$23,0))+$E$25*INDEX('Input| Escalations'!$H$35:$N$35,MATCH(G$30,'Input| Escalations'!$H$23:$N$23,0))+1 -> 1.090789928 | H31: =$C$25*INDEX('Input| Escalations'!$H$33:$N$33,MATCH(H$30,'Input| Escalations'!$H$23:$N$23,0))+$D$25*INDEX('Input| Escalations'!$H$34:$N$34,MATCH(H$30,'Input| Escalations'!$H$23:$N$23,0))+$E$25*INDEX('Input| Escalations'!$H$35:$N$35,MATCH(H$30,'Input| Escalations'!$H$23:$N$23,0))+1 -> 1.101186872 | I31: =$C$25*INDEX('Input| Escalations'!$H$33:$N$33,MATCH(I$30,'Input| Escalations'!$H$23:$N$23,0))+$D$25*INDEX('Input| Escalations'!$H$34:$N$34,MATCH(I$30,'Input| Escalations'!$H$23:$N$23,0))+$E$25*INDEX('Input| Escalations'!$H$35:$N$35,MATCH(I$30,'Input| Escalations'!$H$23:$N$23,0))+1 -> 1.113868058
B34: =IFERROR(LEFT(B28,2)+1&". Forecast type 2 capital contributions, escalated ($'000s "&'Input| Escalations'!$K$14&")","") -> 27. Forecast type 2 capital contributions, escalated ($'000s June 2025)
C36: Distribution Assets | L36: Transmission Assets
B37: Forecast type 2 capcons by RIN category: | C37: =IFERROR('Input| Escalations'!H23,"") -> 2023-24 | D37: =IFERROR('Input| Escalations'!I23,"") -> 2024-25 | E37: =IFERROR('Input| Escalations'!J23,"") -> 2025-26 | F37: =IFERROR('Input| Escalations'!K23,"") -> 2026-27 | G37: =IFERROR('Input| Escalations'!L23,"") -> 2027-28 | H37: =IFERROR('Input| Escalations'!M23,"") -> 2028-29 | I37: =IFERROR('Input| Escalations'!N23,"") -> 2029-30 | J37: Forecast period | L37: =IFERROR('Input| Escalations'!H23,"") -> 2023-24 | M37: =IFERROR('Input| Escalations'!I23,"") -> 2024-25 | N37: =IFERROR('Input| Escalations'!J23,"") -> 2025-26 | O37: =IFERROR('Input| Escalations'!K23,"") -> 2026-27 | P37: =IFERROR('Input| Escalations'!L23,"") -> 2027-28 | Q37: =IFERROR('Input| Escalations'!M23,"") -> 2028-29 | R37: =IFERROR('Input| Escalations'!N23,"") -> 2029-30 | S37: Forecast period
B38: =IFERROR(B15,"") -> Replacement | C38: =C15*C$31*'Input| Escalations'!$K$19 -> 0 | D38: =D15*D$31*'Input| Escalations'!$K$19 -> 0 | E38: =E15*E$31*'Input| Escalations'!$K$19 -> 0 | F38: =F15*F$31*'Input| Escalations'!$K$19 -> 0 | G38: =G15*G$31*'Input| Escalations'!$K$19 -> 0 | H38: =H15*H$31*'Input| Escalations'!$K$19 -> 0 | I38: =I15*I$31*'Input| Escalations'!$K$19 -> 0 | J38: =IFERROR(SUM(E38:I38),"") -> 0 | L38: =L15*C$31*'Input| Escalations'!$K$19 -> 0 | M38: =M15*D$31*'Input| Escalations'!$K$19 -> 0 | N38: =N15*E$31*'Input| Escalations'!$K$19 -> 0 | O38: =O15*F$31*'Input| Escalations'!$K$19 -> 0 | P38: =P15*G$31*'Input| Escalations'!$K$19 -> 0 | Q38: =Q15*H$31*'Input| Escalations'!$K$19 -> 0 | R38: =R15*I$31*'Input| Escalations'!$K$19 -> 0 | S38: =IFERROR(SUM(N38:R38),"") -> 0
B39: =IFERROR(B16,"") -> Augmentation | C39: =C16*C$31*'Input| Escalations'!$K$19 -> 0 | D39: =D16*D$31*'Input| Escalations'!$K$19 -> 0 | E39: =E16*E$31*'Input| Escalations'!$K$19 -> 0 | F39: =F16*F$31*'Input| Escalations'!$K$19 -> 0 | G39: =G16*G$31*'Input| Escalations'!$K$19 -> 0 | H39: =H16*H$31*'Input| Escalations'!$K$19 -> 0 | I39: =I16*I$31*'Input| Escalations'!$K$19 -> 0 | J39: =IFERROR(SUM(E39:I39),"") -> 0 | L39: =L16*C$31*'Input| Escalations'!$K$19 -> 0 | M39: =M16*D$31*'Input| Escalations'!$K$19 -> 0 | N39: =N16*E$31*'Input| Escalations'!$K$19 -> 0 | O39: =O16*F$31*'Input| Escalations'!$K$19 -> 0 | P39: =P16*G$31*'Input| Escalations'!$K$19 -> 0 | Q39: =Q16*H$31*'Input| Escalations'!$K$19 -> 0 | R39: =R16*I$31*'Input| Escalations'!$K$19 -> 0 | S39: =IFERROR(SUM(N39:R39),"") -> 0 | U39: =SUM(S38:S41) -> 0
B40: =IFERROR(B17,"") -> Connections | C40: =C17*C$31*'Input| Escalations'!$K$19 -> 0 | D40: =D17*D$31*'Input| Escalations'!$K$19 -> 0 | E40: =E17*E$31*'Input| Escalations'!$K$19 -> 0 | F40: =F17*F$31*'Input| Escalations'!$K$19 -> 0 | G40: =G17*G$31*'Input| Escalations'!$K$19 -> 0 | H40: =H17*H$31*'Input| Escalations'!$K$19 -> 0 | I40: =I17*I$31*'Input| Escalations'!$K$19 -> 0 | J40: =IFERROR(SUM(E40:I40),"") -> 0 | L40: =L17*C$31*'Input| Escalations'!$K$19 -> 0 | M40: =M17*D$31*'Input| Escalations'!$K$19 -> 0 | N40: =N17*E$31*'Input| Escalations'!$K$19 -> 0 | O40: =O17*F$31*'Input| Escalations'!$K$19 -> 0 | P40: =P17*G$31*'Input| Escalations'!$K$19 -> 0 | Q40: =Q17*H$31*'Input| Escalations'!$K$19 -> 0 | R40: =R17*I$31*'Input| Escalations'!$K$19 -> 0 | S40: =IFERROR(SUM(N40:R40),"") -> 0
B41: =IFERROR(B18,"") -> Non-network capex | C41: =C18*C$31*'Input| Escalations'!$K$19 -> 0 | D41: =D18*D$31*'Input| Escalations'!$K$19 -> 0 | E41: =E18*E$31*'Input| Escalations'!$K$19 -> 0 | F41: =F18*F$31*'Input| Escalations'!$K$19 -> 0 | G41: =G18*G$31*'Input| Escalations'!$K$19 -> 0 | H41: =H18*H$31*'Input| Escalations'!$K$19 -> 0 | I41: =I18*I$31*'Input| Escalations'!$K$19 -> 0 | J41: =IFERROR(SUM(E41:I41),"") -> 0 | L41: =L18*C$31*'Input| Escalations'!$K$19 -> 0 | M41: =M18*D$31*'Input| Escalations'!$K$19 -> 0 | N41: =N18*E$31*'Input| Escalations'!$K$19 -> 0 | O41: =O18*F$31*'Input| Escalations'!$K$19 -> 0 | P41: =P18*G$31*'Input| Escalations'!$K$19 -> 0 | Q41: =Q18*H$31*'Input| Escalations'!$K$19 -> 0 | R41: =R18*I$31*'Input| Escalations'!$K$19 -> 0 | S41: =IFERROR(SUM(N41:R41),"") -> 0
B42: =IFERROR(B19,"") -> Total type 2 capital contributions | C42: =C19*C$31*'Input| Escalations'!$K$19 -> 0 | D42: =D19*D$31*'Input| Escalations'!$K$19 -> 0 | E42: =E19*E$31*'Input| Escalations'!$K$19 -> 0 | F42: =F19*F$31*'Input| Escalations'!$K$19 -> 0 | G42: =G19*G$31*'Input| Escalations'!$K$19 -> 0 | H42: =H19*H$31*'Input| Escalations'!$K$19 -> 0 | I42: =I19*I$31*'Input| Escalations'!$K$19 -> 0 | J42: =SUM(J38:J41) -> 0 | L42: =L19*C$31*'Input| Escalations'!$K$19 -> 0 | M42: =M19*D$31*'Input| Escalations'!$K$19 -> 0 | N42: =N19*E$31*'Input| Escalations'!$K$19 -> 0 | O42: =O19*F$31*'Input| Escalations'!$K$19 -> 0 | P42: =P19*G$31*'Input| Escalations'!$K$19 -> 0 | Q42: =Q19*H$31*'Input| Escalations'!$K$19 -> 0 | R42: =R19*I$31*'Input| Escalations'!$K$19 -> 0 | S42: =SUM(S38:S41) -> 0
C43: =IF(ABS(C19*'Input| Escalations'!$K$19*C31-C42)<0.000001,0,1) -> 0 | D43: =IF(ABS(D19*'Input| Escalations'!$K$19*D31-D42)<0.000001,0,1) -> 0 | E43: =IF(ABS(E19*'Input| Escalations'!$K$19*E31-E42)<0.000001,0,1) -> 0 | F43: =IF(ABS(F19*'Input| Escalations'!$K$19*F31-F42)<0.000001,0,1) -> 0 | G43: =IF(ABS(G19*'Input| Escalations'!$K$19*G31-G42)<0.000001,0,1) -> 0 | H43: =IF(ABS(H19*'Input| Escalations'!$K$19*H31-H42)<0.000001,0,1) -> 0 | I43: =IF(ABS(I19*'Input| Escalations'!$K$19*I31-I42)<0.000001,0,1) -> 0 | L43: =IF(ABS(L19*'Input| Escalations'!$K$19*C31-L42)<0.000001,0,1) -> 0 | M43: =IF(ABS(M19*'Input| Escalations'!$K$19*D31-M42)<0.000001,0,1) -> 0 | N43: =IF(ABS(N19*'Input| Escalations'!$K$19*E31-N42)<0.000001,0,1) -> 0 | O43: =IF(ABS(O19*'Input| Escalations'!$K$19*F31-O42)<0.000001,0,1) -> 0 | P43: =IF(ABS(P19*'Input| Escalations'!$K$19*G31-P42)<0.000001,0,1) -> 0 | Q43: =IF(ABS(Q19*'Input| Escalations'!$K$19*H31-Q42)<0.000001,0,1) -> 0 | R43: =IF(ABS(R19*'Input| Escalations'!$K$19*I31-R42)<0.000001,0,1) -> 0

Sheet Input| Expensing
A1: ='Input| Setup'!E5&" "&'Input| Escalations'!D8 -> Ergon 2025-26
B2: =IFERROR(Index!B2,"") -> AER Capex Forecast Model | D2: Sheet Validation | F2: ='Model Validation'!$C$12 -> 0 | H2: Key: | I2: Input | J2: Formula - do not edit
B3: =IFERROR(MID(CELL("filename",A2),FIND("]",CELL("filename",A2))+1,255),"") -> Input| Expensing
K4: =IF(OR(J9>1,J9<0),1,IF(OR(I9>1,I9<0),1,IF(OR(H9>1,H9<0),1,IF(OR(G9>1,G9<0),1,IF(OR(F9>1,F9<0),1,IF(OR(E9>1,E9<0),1,IF(OR(D9>1,D9<0),1,""))))))) -> 
C5: =LEFT('Input| Type 2 capcons'!B34,2)+1&". Immediate expensing (% to be immediately expensed)" -> 28. Immediate expensing (% to be immediately expensed) | M5: =LEFT(C5,2)+1&". Immediate expensing (% to be immediately expensed) - Distribution" -> 29. Immediate expensing (% to be immediately expensed) - Distribution | W5: =LEFT(M5,2)+1&". Immediate expensing (% to be immediately expensed) - Transmission" -> 30. Immediate expensing (% to be immediately expensed) - Transmission
D6: % | E6: % | F6: % | G6: % | H6: % | I6: % | J6: % | K6: =IF(SUM(K8:K57)=0,0,1) -> 0 | N6: % | O6: % | P6: % | Q6: % | R6: % | S6: % | T6: % | U6: =IF(SUM(U8:U57)=0,0,1) -> 0 | AE6: =IF(SUM(AE8:AE57)=0,0,1) -> 0
C7: PTRM asset class | D7: =IFERROR('Input| Escalations'!H23,"") -> 2023-24 | E7: =IFERROR('Input| Escalations'!I23,"") -> 2024-25 | F7: =IFERROR('Input| Escalations'!J23,"") -> 2025-26 | G7: =IFERROR('Input| Escalations'!K23,"") -> 2026-27 | H7: =IFERROR('Input| Escalations'!L23,"") -> 2027-28 | I7: =IFERROR('Input| Escalations'!M23,"") -> 2028-29 | J7: =IFERROR('Input| Escalations'!N23,"") -> 2029-30 | M7: PTRM asset class | N7: =D7 -> 2023-24 | O7: 2024-25 | P7: 2025-26 | Q7: 2026-27 | R7: 2027-28 | S7: 2028-29 | T7: 2029-30 | W7: PTRM asset class | X7: =N7 -> 2023-24 | Y7: 2024-25 | Z7: 2025-26 | AA7: 2026-27 | AB7: 2027-28 | AC7: 2028-29 | AD7: 2029-30
A8: AR | B8: 1 | C8: =IFERROR(IF('Input| Setup'!E8="","",'Input| Setup'!E8),"") -> Overhead Sub-Transmission Lines | F8: =IFERROR(SUMPRODUCT(INDIRECT("'Input| Projects'!"&$A8&":"&$A8),'Input| Projects'!$AF:$AF)*'Calc| Overheads Allocation'!E$61/(SUMPRODUCT(INDIRECT("'Input| Projects'!"&$A8&"10:"&$A8&"1000"),'Calc| Project Costs'!X$10:X$1000)+SUMPRODUCT(INDIRECT("'Input| Projects'!"&$A8&":"&$A8),'Input| Projects'!$AF:$AF)*'Calc| Overheads Allocation'!E$61+SUMPRODUCT(INDIRECT("'Input| Projects'!"&$A8&":"&$A8),'Input| Projects'!$AG:$AG)*'Calc| Overheads Allocation'!E$62),0) + IFERROR(SUMPRODUCT(INDIRECT("'Input| Projects'!"&$A8&":"&$A8),'Input| Projects'!$AG:$AG)*'Calc| Overheads Allocation'!E$62/(SUMPRODUCT(INDIRECT("'Input| Projects'!"&$A8&"10:"&$A8&"1000"),'Calc| Project Costs'!X$10:X$1000)+SUMPRODUCT(INDIRECT("'Input| Projects'!"&$A8&":"&$A8),'Input| Projects'!$AF:$AF)*'Calc| Overheads Allocation'!E$61+SUMPRODUCT(INDIRECT("'Input| Projects'!"&$A8&":"&$A8),'Input| Projects'!$AG:$AG)*'Calc| Overheads Allocation'!E$62),0) -> 0.2948319045 | G8: =IFERROR(SUMPRODUCT(INDIRECT("'Input| Projects'!"&$A8&":"&$A8),'Input| Projects'!$AF:$AF)*'Calc| Overheads Allocation'!F$61/(SUMPRODUCT(INDIRECT("'Input| Projects'!"&$A8&"10:"&$A8&"1000"),'Calc| Project Costs'!Y$10:Y$1000)+SUMPRODUCT(INDIRECT("'Input| Projects'!"&$A8&":"&$A8),'Input| Projects'!$AF:$AF)*'Calc| Overheads Allocation'!F$61+SUMPRODUCT(INDIRECT("'Input| Projects'!"&$A8&":"&$A8),'Input| Projects'!$AG:$AG)*'Calc| Overheads Allocation'!F$62),0) + IFERROR(SUMPRODUCT(INDIRECT("'Input| Projects'!"&$A8&":"&$A8),'Input| Projects'!$AG:$AG)*'Calc| Overheads Allocation'!F$62/(SUMPRODUCT(INDIRECT("'Input| Projects'!"&$A8&"10:"&$A8&"1000"),'Calc| Project Costs'!Y$10:Y$1000)+SUMPRODUCT(INDIRECT("'Input| Projects'!"&$A8&":"&$A8),'Input| Projects'!$AF:$AF)*'Calc| Overheads Allocation'!F$61+SUMPRODUCT(INDIRECT("'Input| Projects'!"&$A8&":"&$A8),'Input| Projects'!$AG:$AG)*'Calc| Overheads Allocation'!F$62),0) -> 0.2867656074 | H8: =IFERROR(SUMPRODUCT(INDIRECT("'Input| Projects'!"&$A8&":"&$A8),'Input| Projects'!$AF:$AF)*'Calc| Overheads Allocation'!G$61/(SUMPRODUCT(INDIRECT("'Input| Projects'!"&$A8&"10:"&$A8&"1000"),'Calc| Project Costs'!Z$10:Z$1000)+SUMPRODUCT(INDIRECT("'Input| Projects'!"&$A8&":"&$A8),'Input| Projects'!$AF:$AF)*'Calc| Overheads Allocation'!G$61+SUMPRODUCT(INDIRECT("'Input| Projects'!"&$A8&":"&$A8),'Input| Projects'!$AG:$AG)*'Calc| Overheads Allocation'!G$62),0) + IFERROR(SUMPRODUCT(INDIRECT("'Input| Projects'!"&$A8&":"&$A8),'Input| Projects'!$AG:$AG)*'Calc| Overheads Allocation'!G$62/(SUMPRODUCT(INDIRECT("'Input| Projects'!"&$A8&"10:"&$A8&"1000"),'Calc| Project Costs'!Z$10:Z$1000)+SUMPRODUCT(INDIRECT("'Input| Projects'!"&$A8&":"&$A8),'Input| Projects'!$AF:$AF)*'Calc| Overheads Allocation'!G$61+SUMPRODUCT(INDIRECT("'Input| Projects'!"&$A8&":"&$A8),'Input| Projects'!$AG:$AG)*'Calc| Overheads Allocation'!G$62),0) -> 0.2482054668 | I8: =IFERROR(SUMPRODUCT(INDIRECT("'Input| Projects'!"&$A8&":"&$A8),'Input| Projects'!$AF:$AF)*'Calc| Overheads Allocation'!H$61/(SUMPRODUCT(INDIRECT("'Input| Projects'!"&$A8&"10:"&$A8&"1000"),'Calc| Project Costs'!AA$10:AA$1000)+SUMPRODUCT(INDIRECT("'Input| Projects'!"&$A8&":"&$A8),'Input| Projects'!$AF:$AF)*'Calc| Overheads Allocation'!H$61+SUMPRODUCT(INDIRECT("'Input| Projects'!"&$A8&":"&$A8),'Input| Projects'!$AG:$AG)*'Calc| Overheads Allocation'!H$62),0) + IFERROR(SUMPRODUCT(INDIRECT("'Input| Projects'!"&$A8&":"&$A8),'Input| Projects'!$AG:$AG)*'Calc| Overheads Allocation'!H$62/(SUMPRODUCT(INDIRECT("'Input| Projects'!"&$A8&"10:"&$A8&"1000"),'Calc| Project Costs'!AA$10:AA$1000)+SUMPRODUCT(INDIRECT("'Input| Projects'!"&$A8&":"&$A8),'Input| Projects'!$AF:$AF)*'Calc| Overheads Allocation'!H$61+SUMPRODUCT(INDIRECT("'Input| Projects'!"&$A8&":"&$A8),'Input| Projects'!$AG:$AG)*'Calc| Overheads Allocation'!H$62),0) -> 0.2309859997 | J8: =IFERROR(SUMPRODUCT(INDIRECT("'Input| Projects'!"&$A8&":"&$A8),'Input| Projects'!$AF:$AF)*'Calc| Overheads Allocation'!I$61/(SUMPRODUCT(INDIRECT("'Input| Projects'!"&$A8&"10:"&$A8&"1000"),'Calc| Project Costs'!AB$10:AB$1000)+SUMPRODUCT(INDIRECT("'Input| Projects'!"&$A8&":"&$A8),'Input| Projects'!$AF:$AF)*'Calc| Overheads Allocation'!I$61+SUMPRODUCT(INDIRECT("'Input| Projects'!"&$A8&":"&$A8),'Input| Projects'!$AG:$AG)*'Calc| Overheads Allocation'!I$62),0) + IFERROR(SUMPRODUCT(INDIRECT("'Input| Projects'!"&$A8&":"&$A8),'Input| Projects'!$AG:$AG)*'Calc| Overheads Allocation'!I$62/(SUMPRODUCT(INDIRECT("'Input| Projects'!"&$A8&"10:"&$A8&"1000"),'Calc| Project Costs'!AB$10:AB$1000)+SUMPRODUCT(INDIRECT("'Input| Projects'!"&$A8&":"&$A8),'Input| Projects'!$AF:$AF)*'Calc| Overheads Allocation'!I$61+SUMPRODUCT(INDIRECT("'Input| Projects'!"&$A8&":"&$A8),'Input| Projects'!$AG:$AG)*'Calc| Overheads Allocation'!I$62),0) -> 0.1680815222 | K8: =IF(OR(J8>1,J8<0),1,IF(OR(I8>1,I8<0),1,IF(OR(H8>1,H8<0),1,IF(OR(G8>1,G8<0),1,IF(OR(F8>1,F8<0),1,IF(OR(E8>1,E8<0),1,IF(OR(D8>1,D8<0),1,""))))))) ->  | M8: =IFERROR(INDEX('Input| Setup'!$E$8:$E$37,SMALL(IF('Input| Setup'!$F$8:$F$37="Dx",ROW('Input| Setup'!$F$8:$F$37)-ROW('Input| Setup'!$F$8)+1),ROWS('Input| Setup'!$F$8:$F8))),"") -> Overhead Sub-Transmission Lines | N8: =INDEX($D$8:$J$57,MATCH($M8,$C$8:$C$57,0),MATCH(N$7,$D$7:$J$7,0)) -> 0 | O8: 0 | P8: 0.2948319045 | Q8: 0.2867656074 | R8: 0.2482054668 | S8: 0.2309859997 | T8: 0.1680815222 | U8: =IF(OR(T8>1,S8>1,R8>1,Q8>1,P8>1,O8>1,N8>1),1,"") ->  | W8: =IFERROR(INDEX('Input| Setup'!$E$8:$E$37,SMALL(IF('Input| Setup'!$F$8:$F$37="Tx",ROW('Input| Setup'!$F$8:$F$37)-ROW('Input| Setup'!$F$8)+1),ROWS('Input| Setup'!$F$8:$F8))),"") ->  | X8: =INDEX($D$8:$J$57,MATCH($W8,$C$8:$C$57,0),MATCH(X$7,$D$7:$J$7,0)) -> 0 | Y8: 0 | Z8: 0 | AA8: 0 | AB8: 0 | AC8: 0 | AD8: 0 | AE8: =IF(OR(AD8>1,AC8>1,AB8>1,AA8>1,Z8>1,Y8>1,X8>1),1,"") -> 
A9: AS | B9: =IFERROR(B8+1,"") -> 2 | C9: =IFERROR(IF('Input| Setup'!E9="","",'Input| Setup'!E9),"") -> Underground Sub-Transmission Cables | F9: =IFERROR(SUMPRODUCT(INDIRECT("'Input| Projects'!"&$A9&":"&$A9),'Input| Projects'!$AF:$AF)*'Calc| Overheads Allocation'!E$61/(SUMPRODUCT(INDIRECT("'Input| Projects'!"&$A9&"10:"&$A9&"1000"),'Calc| Project Costs'!X$10:X$1000)+SUMPRODUCT(INDIRECT("'Input| Projects'!"&$A9&":"&$A9),'Input| Projects'!$AF:$AF)*'Calc| Overheads Allocation'!E$61+SUMPRODUCT(INDIRECT("'Input| Projects'!"&$A9&":"&$A9),'Input| Projects'!$AG:$AG)*'Calc| Overheads Allocation'!E$62),0) + IFERROR(SUMPRODUCT(INDIRECT("'Input| Projects'!"&$A9&":"&$A9),'Input| Projects'!$AG:$AG)*'Calc| Overheads Allocation'!E$62/(SUMPRODUCT(INDIRECT("'Input| Projects'!"&$A9&"10:"&$A9&"1000"),'Calc| Project Costs'!X$10:X$1000)+SUMPRODUCT(INDIRECT("'Input| Projects'!"&$A9&":"&$A9),'Input| Projects'!$AF:$AF)*'Calc| Overheads Allocation'!E$61+SUMPRODUCT(INDIRECT("'Input| Projects'!"&$A9&":"&$A9),'Input| Projects'!$AG:$AG)*'Calc| Overheads Allocation'!E$62),0) -> 0.2150720733 | G9: =IFERROR(SUMPRODUCT(INDIRECT("'Input| Projects'!"&$A9&":"&$A9),'Input| Projects'!$AF:$AF)*'Calc| Overheads Allocation'!F$61/(SUMPRODUCT(INDIRECT("'Input| Projects'!"&$A9&"10:"&$A9&"1000"),'Calc| Project Costs'!Y$10:Y$1000)+SUMPRODUCT(INDIRECT("'Input| Projects'!"&$A9&":"&$A9),'Input| Projects'!$AF:$AF)*'Calc| Overheads Allocation'!F$61+SUMPRODUCT(INDIRECT("'Input| Projects'!"&$A9&":"&$A9),'Input| Projects'!$AG:$AG)*'Calc| Overheads Allocation'!F$62),0) + IFERROR(SUMPRODUCT(INDIRECT("'Input| Projects'!"&$A9&":"&$A9),'Input| Projects'!$AG:$AG)*'Calc| Overheads Allocation'!F$62/(SUMPRODUCT(INDIRECT("'Input| Projects'!"&$A9&"10:"&$A9&"1000"),'Calc| Project Costs'!Y$10:Y$1000)+SUMPRODUCT(INDIRECT("'Input| Projects'!"&$A9&":"&$A9),'Input| Projects'!$AF:$AF)*'Calc| Overheads Allocation'!F$61+SUMPRODUCT(INDIRECT("'Input| Projects'!"&$A9&":"&$A9),'Input| Projects'!$AG:$AG)*'Calc| Overheads Allocation'!F$62),0) -> 0.2201495758 | H9: =IFERROR(SUMPRODUCT(INDIRECT("'Input| Projects'!"&$A9&":"&$A9),'Input| Projects'!$AF:$AF)*'Calc| Overheads Allocation'!G$61/(SUMPRODUCT(INDIRECT("'Input| Projects'!"&$A9&"10:"&$A9&"1000"),'Calc| Project Costs'!Z$10:Z$1000)+SUMPRODUCT(INDIRECT("'Input| Projects'!"&$A9&":"&$A9),'Input| Projects'!$AF:$AF)*'Calc| Overheads Allocation'!G$61+SUMPRODUCT(INDIRECT("'Input| Projects'!"&$A9&":"&$A9),'Input| Projects'!$AG:$AG)*'Calc| Overheads Allocation'!G$62),0) + IFERROR(SUMPRODUCT(INDIRECT("'Input| Projects'!"&$A9&":"&$A9),'Input| Projects'!$AG:$AG)*'Calc| Overheads Allocation'!G$62/(SUMPRODUCT(INDIRECT("'Input| Projects'!"&$A9&"10:"&$A9&"1000"),'Calc| Project Costs'!Z$10:Z$1000)+SUMPRODUCT(INDIRECT("'Input| Projects'!"&$A9&":"&$A9),'Input| Projects'!$AF:$AF)*'Calc| Overheads Allocation'!G$61+SUMPRODUCT(INDIRECT("'Input| Projects'!"&$A9&":"&$A9),'Input| Projects'!$AG:$AG)*'Calc| Overheads Allocation'!G$62),0) -> 0.2278496727 | I9: =IFERROR(SUMPRODUCT(INDIRECT("'Input| Projects'!"&$A9&":"&$A9),'Input| Projects'!$AF:$AF)*'Calc| Overheads Allocation'!H$61/(SUMPRODUCT(INDIRECT("'Input| Projects'!"&$A9&"10:"&$A9&"1000"),'Calc| Project Costs'!AA$10:AA$1000)+SUMPRODUCT(INDIRECT("'Input| Projects'!"&$A9&":"&$A9),'Input| Projects'!$AF:$AF)*'Calc| Overheads Allocation'!H$61+SUMPRODUCT(INDIRECT("'Input| Projects'!"&$A9&":"&$A9),'Input| Projects'!$AG:$AG)*'Calc| Overheads Allocation'!H$62),0) + IFERROR(SUMPRODUCT(INDIRECT("'Input| Projects'!"&$A9&":"&$A9),'Input| Projects'!$AG:$AG)*'Calc| Overheads Allocation'!H$62/(SUMPRODUCT(INDIRECT("'Input| Projects'!"&$A9&"10:"&$A9&"1000"),'Calc| Project Costs'!AA$10:AA$1000)+SUMPRODUCT(INDIRECT("'Input| Projects'!"&$A9&":"&$A9),'Input| Projects'!$AF:$AF)*'Calc| Overheads Allocation'!H$61+SUMPRODUCT(INDIRECT("'Input| Projects'!"&$A9&":"&$A9),'Input| Projects'!$AG:$AG)*'Calc| Overheads Allocation'!H$62),0) -> 0.211358468 | J9: =IFERROR(SUMPRODUCT(INDIRECT("'Input| Projects'!"&$A9&":"&$A9),'Input| Projects'!$AF:$AF)*'Calc| Overheads Allocation'!I$61/(SUMPRODUCT(INDIRECT("'Input| Projects'!"&$A9&"10:"&$A9&"1000"),'Calc| Project Costs'!AB$10:AB$1000)+SUMPRODUCT(INDIRECT("'Input| Projects'!"&$A9&":"&$A9),'Input| Projects'!$AF:$AF)*'Calc| Overheads Allocation'!I$61+SUMPRODUCT(INDIRECT("'Input| Projects'!"&$A9&":"&$A9),'Input| Projects'!$AG:$AG)*'Calc| Overheads Allocation'!I$62),0) + IFERROR(SUMPRODUCT(INDIRECT("'Input| Projects'!"&$A9&":"&$A9),'Input| Projects'!$AG:$AG)*'Calc| Overheads Allocation'!I$62/(SUMPRODUCT(INDIRECT("'Input| Projects'!"&$A9&"10:"&$A9&"1000"),'Calc| Project Costs'!AB$10:AB$1000)+SUMPRODUCT(INDIRECT("'Input| Projects'!"&$A9&":"&$A9),'Input| Projects'!$AF:$AF)*'Calc| Overheads Allocation'!I$61+SUMPRODUCT(INDIRECT("'Input| Projects'!"&$A9&":"&$A9),'Input| Projects'!$AG:$AG)*'Calc| Overheads Allocation'!I$62),0) -> 0.2313986781 | K9: =IF(OR(J9>1,J9<0),1,IF(OR(I9>1,I9<0),1,IF(OR(H9>1,H9<0),1,IF(OR(G9>1,G9<0),1,IF(OR(F9>1,F9<0),1,IF(OR(E9>1,E9<0),1,IF(OR(D9>1,D9<0),1,""))))))) ->  | M9: =IFERROR(INDEX('Input| Setup'!$E$8:$E$37,SMALL(IF('Input| Setup'!$F$8:$F$37="Dx",ROW('Input| Setup'!$F$8:$F$37)-ROW('Input| Setup'!$F$8)+1),ROWS('Input| Setup'!$F$8:$F9))),"") -> Underground Sub-Transmission Cables | N9: 0 | O9: 0 | P9: 0.2150720733 | Q9: 0.2201495758 | R9: 0.2278496727 | S9: 0.211358468 | T9: 0.2313986781 | U9: =IF(OR(T9>1,S9>1,R9>1,Q9>1,P9>1,O9>1,N9>1),1,"") ->  | W9: =IFERROR(INDEX('Input| Setup'!$E$8:$E$37,SMALL(IF('Input| Setup'!$F$8:$F$37="Tx",ROW('Input| Setup'!$F$8:$F$37)-ROW('Input| Setup'!$F$8)+1),ROWS('Input| Setup'!$F$8:$F9))),"") ->  | X9: 0 | Y9: 0 | Z9: 0 | AA9: 0 | AB9: 0 | AC9: 0 | AD9: 0 | AE9: =IF(OR(AD9>1,AC9>1,AB9>1,AA9>1,Z9>1,Y9>1,X9>1),1,"") -> 
A10: AT | B10: =IFERROR(B9+1,"") -> 3 | C10: =IFERROR(IF('Input| Setup'!E10="","",'Input| Setup'!E10),"") -> Overhead Distribution Lines | F10: =IFERROR(SUMPRODUCT(INDIRECT("'Input| Projects'!"&$A10&":"&$A10),'Input| Projects'!$AF:$AF)*'Calc| Overheads Allocation'!E$61/(SUMPRODUCT(INDIRECT("'Input| Projects'!"&$A10&"10:"&$A10&"1000"),'Calc| Project Costs'!X$10:X$1000)+SUMPRODUCT(INDIRECT("'Input| Projects'!"&$A10&":"&$A10),'Input| Projects'!$AF:$AF)*'Calc| Overheads Allocation'!E$61+SUMPRODUCT(INDIRECT("'Input| Projects'!"&$A10&":"&$A10),'Input| Projects'!$AG:$AG)*'Calc| Overheads Allocation'!E$62),0) + IFERROR(SUMPRODUCT(INDIRECT("'Input| Projects'!"&$A10&":"&$A10),'Input| Projects'!$AG:$AG)*'Calc| Overheads Allocation'!E$62/(SUMPRODUCT(INDIRECT("'Input| Projects'!"&$A10&"10:"&$A10&"1000"),'Calc| Project Costs'!X$10:X$1000)+SUMPRODUCT(INDIRECT("'Input| Projects'!"&$A10&":"&$A10),'Input| Projects'!$AF:$AF)*'Calc| Overheads Allocation'!E$61+SUMPRODUCT(INDIRECT("'Input| Projects'!"&$A10&":"&$A10),'Input| Projects'!$AG:$AG)*'Calc| Overheads Allocation'!E$62),0) -> 0.2703530908 | G10: =IFERROR(SUMPRODUCT(INDIRECT("'Input| Projects'!"&$A10&":"&$A10),'Input| Projects'!$AF:$AF)*'Calc| Overheads Allocation'!F$61/(SUMPRODUCT(INDIRECT("'Input| Projects'!"&$A10&"10:"&$A10&"1000"),'Calc| Project Costs'!Y$10:Y$1000)+SUMPRODUCT(INDIRECT("'Input| Projects'!"&$A10&":"&$A10),'Input| Projects'!$AF:$AF)*'Calc| Overheads Allocation'!F$61+SUMPRODUCT(INDIRECT("'Input| Projects'!"&$A10&":"&$A10),'Input| Projects'!$AG:$AG)*'Calc| Overheads Allocation'!F$62),0) + IFERROR(SUMPRODUCT(INDIRECT("'Input| Projects'!"&$A10&":"&$A10),'Input| Projects'!$AG:$AG)*'Calc| Overheads Allocation'!F$62/(SUMPRODUCT(INDIRECT("'Input| Projects'!"&$A10&"10:"&$A10&"1000"),'Calc| Project Costs'!Y$10:Y$1000)+SUMPRODUCT(INDIRECT("'Input| Projects'!"&$A10&":"&$A10),'Input| Projects'!$AF:$AF)*'Calc| Overheads Allocation'!F$61+SUMPRODUCT(INDIRECT("'Input| Projects'!"&$A10&":"&$A10),'Input| Projects'!$AG:$AG)*'Calc| Overheads Allocation'!F$62),0) -> 0.2712144911 | H10: =IFERROR(SUMPRODUCT(INDIRECT("'Input| Projects'!"&$A10&":"&$A10),'Input| Projects'!$AF:$AF)*'Calc| Overheads Allocation'!G$61/(SUMPRODUCT(INDIRECT("'Input| Projects'!"&$A10&"10:"&$A10&"1000"),'Calc| Project Costs'!Z$10:Z$1000)+SUMPRODUCT(INDIRECT("'Input| Projects'!"&$A10&":"&$A10),'Input| Projects'!$AF:$AF)*'Calc| Overheads Allocation'!G$61+SUMPRODUCT(INDIRECT("'Input| Projects'!"&$A10&":"&$A10),'Input| Projects'!$AG:$AG)*'Calc| Overheads Allocation'!G$62),0) + IFERROR(SUMPRODUCT(INDIRECT("'Input| Projects'!"&$A10&":"&$A10),'Input| Projects'!$AG:$AG)*'Calc| Overheads Allocation'!G$62/(SUMPRODUCT(INDIRECT("'Input| Projects'!"&$A10&"10:"&$A10&"1000"),'Calc| Project Costs'!Z$10:Z$1000)+SUMPRODUCT(INDIRECT("'Input| Projects'!"&$A10&":"&$A10),'Input| Projects'!$AF:$AF)*'Calc| Overheads Allocation'!G$61+SUMPRODUCT(INDIRECT("'Input| Projects'!"&$A10&":"&$A10),'Input| Projects'!$AG:$AG)*'Calc| Overheads Allocation'!G$62),0) -> 0.2769815216 | I10: =IFERROR(SUMPRODUCT(INDIRECT("'Input| Projects'!"&$A10&":"&$A10),'Input| Projects'!$AF:$AF)*'Calc| Overheads Allocation'!H$61/(SUMPRODUCT(INDIRECT("'Input| Projects'!"&$A10&"10:"&$A10&"1000"),'Calc| Project Costs'!AA$10:AA$1000)+SUMPRODUCT(INDIRECT("'Input| Projects'!"&$A10&":"&$A10),'Input| Projects'!$AF:$AF)*'Calc| Overheads Allocation'!H$61+SUMPRODUCT(INDIRECT("'Input| Projects'!"&$A10&":"&$A10),'Input| Projects'!$AG:$AG)*'Calc| Overheads Allocation'!H$62),0) + IFERROR(SUMPRODUCT(INDIRECT("'Input| Projects'!"&$A10&":"&$A10),'Input| Projects'!$AG:$AG)*'Calc| Overheads Allocation'!H$62/(SUMPRODUCT(INDIRECT("'Input| Projects'!"&$A10&"10:"&$A10&"1000"),'Calc| Project Costs'!AA$10:AA$1000)+SUMPRODUCT(INDIRECT("'Input| Projects'!"&$A10&":"&$A10),'Input| Projects'!$AF:$AF)*'Calc| Overheads Allocation'!H$61+SUMPRODUCT(INDIRECT("'Input| Projects'!"&$A10&":"&$A10),'Input| Projects'!$AG:$AG)*'Calc| Overheads Allocation'!H$62),0) -> 0.279429172 | J10: =IFERROR(SUMPRODUCT(INDIRECT("'Input| Projects'!"&$A10&":"&$A10),'Input| Projects'!$AF:$AF)*'Calc| Overheads Allocation'!I$61/(SUMPRODUCT(INDIRECT("'Input| Projects'!"&$A10&"10:"&$A10&"1000"),'Calc| Project Costs'!AB$10:AB$1000)+SUMPRODUCT(INDIRECT("'Input| Projects'!"&$A10&":"&$A10),'Input| Projects'!$AF:$AF)*'Calc| Overheads Allocation'!I$61+SUMPRODUCT(INDIRECT("'Input| Projects'!"&$A10&":"&$A10),'Input| Projects'!$AG:$AG)*'Calc| Overheads Allocation'!I$62),0) + IFERROR(SUMPRODUCT(INDIRECT("'Input| Projects'!"&$A10&":"&$A10),'Input| Projects'!$AG:$AG)*'Calc| Overheads Allocation'!I$62/(SUMPRODUCT(INDIRECT("'Input| Projects'!"&$A10&"10:"&$A10&"1000"),'Calc| Project Costs'!AB$10:AB$1000)+SUMPRODUCT(INDIRECT("'Input| Projects'!"&$A10&":"&$A10),'Input| Projects'!$AF:$AF)*'Calc| Overheads Allocation'!I$61+SUMPRODUCT(INDIRECT("'Input| Projects'!"&$A10&":"&$A10),'Input| Projects'!$AG:$AG)*'Calc| Overheads Allocation'!I$62),0) -> 0.2845777952 | M10: =IFERROR(INDEX('Input| Setup'!$E$8:$E$37,SMALL(IF('Input| Setup'!$F$8:$F$37="Dx",ROW('Input| Setup'!$F$8:$F$37)-ROW('Input| Setup'!$F$8)+1),ROWS('Input| Setup'!$F$8:$F10))),"") -> Overhead Distribution Lines | N10: 0 | O10: 0 | P10: 0.2703530908 | Q10: 0.2712144911 | R10: 0.2769815216 | S10: 0.279429172 | T10: 0.2845777952 | W10: =IFERROR(INDEX('Input| Setup'!$E$8:$E$37,SMALL(IF('Input| Setup'!$F$8:$F$37="Tx",ROW('Input| Setup'!$F$8:$F$37)-ROW('Input| Setup'!$F$8)+1),ROWS('Input| Setup'!$F$8:$F10))),"") ->  | X10: 0 | Y10: 0 | Z10: 0 | AA10: 0 | AB10: 0 | AC10: 0 | AD10: 0
A11: AU | B11: 4 | C11: =IFERROR(IF('Input| Setup'!E11="","",'Input| Setup'!E11),"") -> Underground Distribution Cables | F11: =IFERROR(SUMPRODUCT(INDIRECT("'Input| Projects'!"&$A11&":"&$A11),'Input| Projects'!$AF:$AF)*'Calc| Overheads Allocation'!E$61/(SUMPRODUCT(INDIRECT("'Input| Projects'!"&$A11&"10:"&$A11&"1000"),'Calc| Project Costs'!X$10:X$1000)+SUMPRODUCT(INDIRECT("'Input| Projects'!"&$A11&":"&$A11),'Input| Projects'!$AF:$AF)*'Calc| Overheads Allocation'!E$61+SUMPRODUCT(INDIRECT("'Input| Projects'!"&$A11&":"&$A11),'Input| Projects'!$AG:$AG)*'Calc| Overheads Allocation'!E$62),0) + IFERROR(SUMPRODUCT(INDIRECT("'Input| Projects'!"&$A11&":"&$A11),'Input| Projects'!$AG:$AG)*'Calc| Overheads Allocation'!E$62/(SUMPRODUCT(INDIRECT("'Input| Projects'!"&$A11&"10:"&$A11&"1000"),'Calc| Project Costs'!X$10:X$1000)+SUMPRODUCT(INDIRECT("'Input| Projects'!"&$A11&":"&$A11),'Input| Projects'!$AF:$AF)*'Calc| Overheads Allocation'!E$61+SUMPRODUCT(INDIRECT("'Input| Projects'!"&$A11&":"&$A11),'Input| Projects'!$AG:$AG)*'Calc| Overheads Allocation'!E$62),0) -> 0.2188513521 | G11: =IFERROR(SUMPRODUCT(INDIRECT("'Input| Projects'!"&$A11&":"&$A11),'Input| Projects'!$AF:$AF)*'Calc| Overheads Allocation'!F$61/(SUMPRODUCT(INDIRECT("'Input| Projects'!"&$A11&"10:"&$A11&"1000"),'Calc| Project Costs'!Y$10:Y$1000)+SUMPRODUCT(INDIRECT("'Input| Projects'!"&$A11&":"&$A11),'Input| Projects'!$AF:$AF)*'Calc| Overheads Allocation'!F$61+SUMPRODUCT(INDIRECT("'Input| Projects'!"&$A11&":"&$A11),'Input| Projects'!$AG:$AG)*'Calc| Overheads Allocation'!F$62),0) + IFERROR(SUMPRODUCT(INDIRECT("'Input| Projects'!"&$A11&":"&$A11),'Input| Projects'!$AG:$AG)*'Calc| Overheads Allocation'!F$62/(SUMPRODUCT(INDIRECT("'Input| Projects'!"&$A11&"10:"&$A11&"1000"),'Calc| Project Costs'!Y$10:Y$1000)+SUMPRODUCT(INDIRECT("'Input| Projects'!"&$A11&":"&$A11),'Input| Projects'!$AF:$AF)*'Calc| Overheads Allocation'!F$61+SUMPRODUCT(INDIRECT("'Input| Projects'!"&$A11&":"&$A11),'Input| Projects'!$AG:$AG)*'Calc| Overheads Allocation'!F$62),0) -> 0.2210175176 | H11: =IFERROR(SUMPRODUCT(INDIRECT("'Input| Projects'!"&$A11&":"&$A11),'Input| Projects'!$AF:$AF)*'Calc| Overheads Allocation'!G$61/(SUMPRODUCT(INDIRECT("'Input| Projects'!"&$A11&"10:"&$A11&"1000"),'Calc| Project Costs'!Z$10:Z$1000)+SUMPRODUCT(INDIRECT("'Input| Projects'!"&$A11&":"&$A11),'Input| Projects'!$AF:$AF)*'Calc| Overheads Allocation'!G$61+SUMPRODUCT(INDIRECT("'Input| Projects'!"&$A11&":"&$A11),'Input| Projects'!$AG:$AG)*'Calc| Overheads Allocation'!G$62),0) + IFERROR(SUMPRODUCT(INDIRECT("'Input| Projects'!"&$A11&":"&$A11),'Input| Projects'!$AG:$AG)*'Calc| Overheads Allocation'!G$62/(SUMPRODUCT(INDIRECT("'Input| Projects'!"&$A11&"10:"&$A11&"1000"),'Calc| Project Costs'!Z$10:Z$1000)+SUMPRODUCT(INDIRECT("'Input| Projects'!"&$A11&":"&$A11),'Input| Projects'!$AF:$AF)*'Calc| Overheads Allocation'!G$61+SUMPRODUCT(INDIRECT("'Input| Projects'!"&$A11&":"&$A11),'Input| Projects'!$AG:$AG)*'Calc| Overheads Allocation'!G$62),0) -> 0.2220784034 | I11: =IFERROR(SUMPRODUCT(INDIRECT("'Input| Projects'!"&$A11&":"&$A11),'Input| Projects'!$AF:$AF)*'Calc| Overheads Allocation'!H$61/(SUMPRODUCT(INDIRECT("'Input| Projects'!"&$A11&"10:"&$A11&"1000"),'Calc| Project Costs'!AA$10:AA$1000)+SUMPRODUCT(INDIRECT("'Input| Projects'!"&$A11&":"&$A11),'Input| Projects'!$AF:$AF)*'Calc| Overheads Allocation'!H$61+SUMPRODUCT(INDIRECT("'Input| Projects'!"&$A11&":"&$A11),'Input| Projects'!$AG:$AG)*'Calc| Overheads Allocation'!H$62),0) + IFERROR(SUMPRODUCT(INDIRECT("'Input| Projects'!"&$A11&":"&$A11),'Input| Projects'!$AG:$AG)*'Calc| Overheads Allocation'!H$62/(SUMPRODUCT(INDIRECT("'Input| Projects'!"&$A11&"10:"&$A11&"1000"),'Calc| Project Costs'!AA$10:AA$1000)+SUMPRODUCT(INDIRECT("'Input| Projects'!"&$A11&":"&$A11),'Input| Projects'!$AF:$AF)*'Calc| Overheads Allocation'!H$61+SUMPRODUCT(INDIRECT("'Input| Projects'!"&$A11&":"&$A11),'Input| Projects'!$AG:$AG)*'Calc| Overheads Allocation'!H$62),0) -> 0.212855381 | J11: =IFERROR(SUMPRODUCT(INDIRECT("'Input| Projects'!"&$A11&":"&$A11),'Input| Projects'!$AF:$AF)*'Calc| Overheads Allocation'!I$61/(SUMPRODUCT(INDIRECT("'Input| Projects'!"&$A11&"10:"&$A11&"1000"),'Calc| Project Costs'!AB$10:AB$1000)+SUMPRODUCT(INDIRECT("'Input| Projects'!"&$A11&":"&$A11),'Input| Projects'!$AF:$AF)*'Calc| Overheads Allocation'!I$61+SUMPRODUCT(INDIRECT("'Input| Projects'!"&$A11&":"&$A11),'Input| Projects'!$AG:$AG)*'Calc| Overheads Allocation'!I$62),0) + IFERROR(SUMPRODUCT(INDIRECT("'Input| Projects'!"&$A11&":"&$A11),'Input| Projects'!$AG:$AG)*'Calc| Overheads Allocation'!I$62/(SUMPRODUCT(INDIRECT("'Input| Projects'!"&$A11&"10:"&$A11&"1000"),'Calc| Project Costs'!AB$10:AB$1000)+SUMPRODUCT(INDIRECT("'Input| Projects'!"&$A11&":"&$A11),'Input| Projects'!$AF:$AF)*'Calc| Overheads Allocation'!I$61+SUMPRODUCT(INDIRECT("'Input| Projects'!"&$A11&":"&$A11),'Input| Projects'!$AG:$AG)*'Calc| Overheads Allocation'!I$62),0) -> 0.222030829 | M11: =IFERROR(INDEX('Input| Setup'!$E$8:$E$37,SMALL(IF('Input| Setup'!$F$8:$F$37="Dx",ROW('Input| Setup'!$F$8:$F$37)-ROW('Input| Setup'!$F$8)+1),ROWS('Input| Setup'!$F$8:$F11))),"") -> Underground Distribution Cables | N11: 0 | O11: 0 | P11: 0.2188513521 | Q11: 0.2210175176 | R11: 0.2220784034 | S11: 0.212855381 | T11: 0.222030829 | W11: =IFERROR(INDEX('Input| Setup'!$E$8:$E$37,SMALL(IF('Input| Setup'!$F$8:$F$37="Tx",ROW('Input| Setup'!$F$8:$F$37)-ROW('Input| Setup'!$F$8)+1),ROWS('Input| Setup'!$F$8:$F11))),"") ->  | X11: 0 | Y11: 0 | Z11: 0 | AA11: 0 | AB11: 0 | AC11: 0 | AD11: 0
A12: AV | B12: 5 | C12: =IFERROR(IF('Input| Setup'!E12="","",'Input| Setup'!E12),"") -> Distribution Equipment | F12: =IFERROR(SUMPRODUCT(INDIRECT("'Input| Projects'!"&$A12&":"&$A12),'Input| Projects'!$AF:$AF)*'Calc| Overheads Allocation'!E$61/(SUMPRODUCT(INDIRECT("'Input| Projects'!"&$A12&"10:"&$A12&"1000"),'Calc| Project Costs'!X$10:X$1000)+SUMPRODUCT(INDIRECT("'Input| Projects'!"&$A12&":"&$A12),'Input| Projects'!$AF:$AF)*'Calc| Overheads Allocation'!E$61+SUMPRODUCT(INDIRECT("'Input| Projects'!"&$A12&":"&$A12),'Input| Projects'!$AG:$AG)*'Calc| Overheads Allocation'!E$62),0) + IFERROR(SUMPRODUCT(INDIRECT("'Input| Projects'!"&$A12&":"&$A12),'Input| Projects'!$AG:$AG)*'Calc| Overheads Allocation'!E$62/(SUMPRODUCT(INDIRECT("'Input| Projects'!"&$A12&"10:"&$A12&"1000"),'Calc| Project Costs'!X$10:X$1000)+SUMPRODUCT(INDIRECT("'Input| Projects'!"&$A12&":"&$A12),'Input| Projects'!$AF:$AF)*'Calc| Overheads Allocation'!E$61+SUMPRODUCT(INDIRECT("'Input| Projects'!"&$A12&":"&$A12),'Input| Projects'!$AG:$AG)*'Calc| Overheads Allocation'!E$62),0) -> 0.2471804545 | G12: =IFERROR(SUMPRODUCT(INDIRECT("'Input| Projects'!"&$A12&":"&$A12),'Input| Projects'!$AF:$AF)*'Calc| Overheads Allocation'!F$61/(SUMPRODUCT(INDIRECT("'Input| Projects'!"&$A12&"10:"&$A12&"1000"),'Calc| Project Costs'!Y$10:Y$1000)+SUMPRODUCT(INDIRECT("'Input| Projects'!"&$A12&":"&$A12),'Input| Projects'!$AF:$AF)*'Calc| Overheads Allocation'!F$61+SUMPRODUCT(INDIRECT("'Input| Projects'!"&$A12&":"&$A12),'Input| Projects'!$AG:$AG)*'Calc| Overheads Allocation'!F$62),0) + IFERROR(SUMPRODUCT(INDIRECT("'Input| Projects'!"&$A12&":"&$A12),'Input| Projects'!$AG:$AG)*'Calc| Overheads Allocation'!F$62/(SUMPRODUCT(INDIRECT("'Input| Projects'!"&$A12&"10:"&$A12&"1000"),'Calc| Project Costs'!Y$10:Y$1000)+SUMPRODUCT(INDIRECT("'Input| Projects'!"&$A12&":"&$A12),'Input| Projects'!$AF:$AF)*'Calc| Overheads Allocation'!F$61+SUMPRODUCT(INDIRECT("'Input| Projects'!"&$A12&":"&$A12),'Input| Projects'!$AG:$AG)*'Calc| Overheads Allocation'!F$62),0) -> 0.246348863 | H12: =IFERROR(SUMPRODUCT(INDIRECT("'Input| Projects'!"&$A12&":"&$A12),'Input| Projects'!$AF:$AF)*'Calc| Overheads Allocation'!G$61/(SUMPRODUCT(INDIRECT("'Input| Projects'!"&$A12&"10:"&$A12&"1000"),'Calc| Project Costs'!Z$10:Z$1000)+SUMPRODUCT(INDIRECT("'Input| Projects'!"&$A12&":"&$A12),'Input| Projects'!$AF:$AF)*'Calc| Overheads Allocation'!G$61+SUMPRODUCT(INDIRECT("'Input| Projects'!"&$A12&":"&$A12),'Input| Projects'!$AG:$AG)*'Calc| Overheads Allocation'!G$62),0) + IFERROR(SUMPRODUCT(INDIRECT("'Input| Projects'!"&$A12&":"&$A12),'Input| Projects'!$AG:$AG)*'Calc| Overheads Allocation'!G$62/(SUMPRODUCT(INDIRECT("'Input| Projects'!"&$A12&"10:"&$A12&"1000"),'Calc| Project Costs'!Z$10:Z$1000)+SUMPRODUCT(INDIRECT("'Input| Projects'!"&$A12&":"&$A12),'Input| Projects'!$AF:$AF)*'Calc| Overheads Allocation'!G$61+SUMPRODUCT(INDIRECT("'Input| Projects'!"&$A12&":"&$A12),'Input| Projects'!$AG:$AG)*'Calc| Overheads Allocation'!G$62),0) -> 0.245016135 | I12: =IFERROR(SUMPRODUCT(INDIRECT("'Input| Projects'!"&$A12&":"&$A12),'Input| Projects'!$AF:$AF)*'Calc| Overheads Allocation'!H$61/(SUMPRODUCT(INDIRECT("'Input| Projects'!"&$A12&"10:"&$A12&"1000"),'Calc| Project Costs'!AA$10:AA$1000)+SUMPRODUCT(INDIRECT("'Input| Projects'!"&$A12&":"&$A12),'Input| Projects'!$AF:$AF)*'Calc| Overheads Allocation'!H$61+SUMPRODUCT(INDIRECT("'Input| Projects'!"&$A12&":"&$A12),'Input| Projects'!$AG:$AG)*'Calc| Overheads Allocation'!H$62),0) + IFERROR(SUMPRODUCT(INDIRECT("'Input| Projects'!"&$A12&":"&$A12),'Input| Projects'!$AG:$AG)*'Calc| Overheads Allocation'!H$62/(SUMPRODUCT(INDIRECT("'Input| Projects'!"&$A12&"10:"&$A12&"1000"),'Calc| Project Costs'!AA$10:AA$1000)+SUMPRODUCT(INDIRECT("'Input| Projects'!"&$A12&":"&$A12),'Input| Projects'!$AF:$AF)*'Calc| Overheads Allocation'!H$61+SUMPRODUCT(INDIRECT("'Input| Projects'!"&$A12&":"&$A12),'Input| Projects'!$AG:$AG)*'Calc| Overheads Allocation'!H$62),0) -> 0.2598269395 | J12: =IFERROR(SUMPRODUCT(INDIRECT("'Input| Projects'!"&$A12&":"&$A12),'Input| Projects'!$AF:$AF)*'Calc| Overheads Allocation'!I$61/(SUMPRODUCT(INDIRECT("'Input| Projects'!"&$A12&"10:"&$A12&"1000"),'Calc| Project Costs'!AB$10:AB$1000)+SUMPRODUCT(INDIRECT("'Input| Projects'!"&$A12&":"&$A12),'Input| Projects'!$AF:$AF)*'Calc| Overheads Allocation'!I$61+SUMPRODUCT(INDIRECT("'Input| Projects'!"&$A12&":"&$A12),'Input| Projects'!$AG:$AG)*'Calc| Overheads Allocation'!I$62),0) + IFERROR(SUMPRODUCT(INDIRECT("'Input| Projects'!"&$A12&":"&$A12),'Input| Projects'!$AG:$AG)*'Calc| Overheads Allocation'!I$62/(SUMPRODUCT(INDIRECT("'Input| Projects'!"&$A12&"10:"&$A12&"1000"),'Calc| Project Costs'!AB$10:AB$1000)+SUMPRODUCT(INDIRECT("'Input| Projects'!"&$A12&":"&$A12),'Input| Projects'!$AF:$AF)*'Calc| Overheads Allocation'!I$61+SUMPRODUCT(INDIRECT("'Input| Projects'!"&$A12&":"&$A12),'Input| Projects'!$AG:$AG)*'Calc| Overheads Allocation'!I$62),0) -> 0.2583447311 | M12: =IFERROR(INDEX('Input| Setup'!$E$8:$E$37,SMALL(IF('Input| Setup'!$F$8:$F$37="Dx",ROW('Input| Setup'!$F$8:$F$37)-ROW('Input| Setup'!$F$8)+1),ROWS('Input| Setup'!$F$8:$F12))),"") -> Distribution Equipment | N12: 0 | O12: 0 | P12: 0.2471804545 | Q12: 0.246348863 | R12: 0.245016135 | S12: 0.2598269395 | T12: 0.2583447311 | W12: =IFERROR(INDEX('Input| Setup'!$E$8:$E$37,SMALL(IF('Input| Setup'!$F$8:$F$37="Tx",ROW('Input| Setup'!$F$8:$F$37)-ROW('Input| Setup'!$F$8)+1),ROWS('Input| Setup'!$F$8:$F12))),"") ->  | X12: 0 | Y12: 0 | Z12: 0 | AA12: 0 | AB12: 0 | AC12: 0 | AD12: 0
A13: AW | B13: 6 | C13: =IFERROR(IF('Input| Setup'!E13="","",'Input| Setup'!E13),"") -> Substation Bays | F13: =IFERROR(SUMPRODUCT(INDIRECT("'Input| Projects'!"&$A13&":"&$A13),'Input| Projects'!$AF:$AF)*'Calc| Overheads Allocation'!E$61/(SUMPRODUCT(INDIRECT("'Input| Projects'!"&$A13&"10:"&$A13&"1000"),'Calc| Project Costs'!X$10:X$1000)+SUMPRODUCT(INDIRECT("'Input| Projects'!"&$A13&":"&$A13),'Input| Projects'!$AF:$AF)*'Calc| Overheads Allocation'!E$61+SUMPRODUCT(INDIRECT("'Input| Projects'!"&$A13&":"&$A13),'Input| Projects'!$AG:$AG)*'Calc| Overheads Allocation'!E$62),0) + IFERROR(SUMPRODUCT(INDIRECT("'Input| Projects'!"&$A13&":"&$A13),'Input| Projects'!$AG:$AG)*'Calc| Overheads Allocation'!E$62/(SUMPRODUCT(INDIRECT("'Input| Projects'!"&$A13&"10:"&$A13&"1000"),'Calc| Project Costs'!X$10:X$1000)+SUMPRODUCT(INDIRECT("'Input| Projects'!"&$A13&":"&$A13),'Input| Projects'!$AF:$AF)*'Calc| Overheads Allocation'!E$61+SUMPRODUCT(INDIRECT("'Input| Projects'!"&$A13&":"&$A13),'Input| Projects'!$AG:$AG)*'Calc| Overheads Allocation'!E$62),0) -> 0.2233737342 | G13: =IFERROR(SUMPRODUCT(INDIRECT("'Input| Projects'!"&$A13&":"&$A13),'Input| Projects'!$AF:$AF)*'Calc| Overheads Allocation'!F$61/(SUMPRODUCT(INDIRECT("'Input| Projects'!"&$A13&"10:"&$A13&"1000"),'Calc| Project Costs'!Y$10:Y$1000)+SUMPRODUCT(INDIRECT("'Input| Projects'!"&$A13&":"&$A13),'Input| Projects'!$AF:$AF)*'Calc| Overheads Allocation'!F$61+SUMPRODUCT(INDIRECT("'Input| Projects'!"&$A13&":"&$A13),'Input| Projects'!$AG:$AG)*'Calc| Overheads Allocation'!F$62),0) + IFERROR(SUMPRODUCT(INDIRECT("'Input| Projects'!"&$A13&":"&$A13),'Input| Projects'!$AG:$AG)*'Calc| Overheads Allocation'!F$62/(SUMPRODUCT(INDIRECT("'Input| Projects'!"&$A13&"10:"&$A13&"1000"),'Calc| Project Costs'!Y$10:Y$1000)+SUMPRODUCT(INDIRECT("'Input| Projects'!"&$A13&":"&$A13),'Input| Projects'!$AF:$AF)*'Calc| Overheads Allocation'!F$61+SUMPRODUCT(INDIRECT("'Input| Projects'!"&$A13&":"&$A13),'Input| Projects'!$AG:$AG)*'Calc| Overheads Allocation'!F$62),0) -> 0.221743561 | H13: =IFERROR(SUMPRODUCT(INDIRECT("'Input| Projects'!"&$A13&":"&$A13),'Input| Projects'!$AF:$AF)*'Calc| Overheads Allocation'!G$61/(SUMPRODUCT(INDIRECT("'Input| Projects'!"&$A13&"10:"&$A13&"1000"),'Calc| Project Costs'!Z$10:Z$1000)+SUMPRODUCT(INDIRECT("'Input| Projects'!"&$A13&":"&$A13),'Input| Projects'!$AF:$AF)*'Calc| Overheads Allocation'!G$61+SUMPRODUCT(INDIRECT("'Input| Projects'!"&$A13&":"&$A13),'Input| Projects'!$AG:$AG)*'Calc| Overheads Allocation'!G$62),0) + IFERROR(SUMPRODUCT(INDIRECT("'Input| Projects'!"&$A13&":"&$A13),'Input| Projects'!$AG:$AG)*'Calc| Overheads Allocation'!G$62/(SUMPRODUCT(INDIRECT("'Input| Projects'!"&$A13&"10:"&$A13&"1000"),'Calc| Project Costs'!Z$10:Z$1000)+SUMPRODUCT(INDIRECT("'Input| Projects'!"&$A13&":"&$A13),'Input| Projects'!$AF:$AF)*'Calc| Overheads Allocation'!G$61+SUMPRODUCT(INDIRECT("'Input| Projects'!"&$A13&":"&$A13),'Input| Projects'!$AG:$AG)*'Calc| Overheads Allocation'!G$62),0) -> 0.2109453173 | I13: =IFERROR(SUMPRODUCT(INDIRECT("'Input| Projects'!"&$A13&":"&$A13),'Input| Projects'!$AF:$AF)*'Calc| Overheads Allocation'!H$61/(SUMPRODUCT(INDIRECT("'Input| Projects'!"&$A13&"10:"&$A13&"1000"),'Calc| Project Costs'!AA$10:AA$1000)+SUMPRODUCT(INDIRECT("'Input| Projects'!"&$A13&":"&$A13),'Input| Projects'!$AF:$AF)*'Calc| Overheads Allocation'!H$61+SUMPRODUCT(INDIRECT("'Input| Projects'!"&$A13&":"&$A13),'Input| Projects'!$AG:$AG)*'Calc| Overheads Allocation'!H$62),0) + IFERROR(SUMPRODUCT(INDIRECT("'Input| Projects'!"&$A13&":"&$A13),'Input| Projects'!$AG:$AG)*'Calc| Overheads Allocation'!H$62/(SUMPRODUCT(INDIRECT("'Input| Projects'!"&$A13&"10:"&$A13&"1000"),'Calc| Project Costs'!AA$10:AA$1000)+SUMPRODUCT(INDIRECT("'Input| Projects'!"&$A13&":"&$A13),'Input| Projects'!$AF:$AF)*'Calc| Overheads Allocation'!H$61+SUMPRODUCT(INDIRECT("'Input| Projects'!"&$A13&":"&$A13),'Input| Projects'!$AG:$AG)*'Calc| Overheads Allocation'!H$62),0) -> 0.2145759862 | J13: =IFERROR(SUMPRODUCT(INDIRECT("'Input| Projects'!"&$A13&":"&$A13),'Input| Projects'!$AF:$AF)*'Calc| Overheads Allocation'!I$61/(SUMPRODUCT(INDIRECT("'Input| Projects'!"&$A13&"10:"&$A13&"1000"),'Calc| Project Costs'!AB$10:AB$1000)+SUMPRODUCT(INDIRECT("'Input| Projects'!"&$A13&":"&$A13),'Input| Projects'!$AF:$AF)*'Calc| Overheads Allocation'!I$61+SUMPRODUCT(INDIRECT("'Input| Projects'!"&$A13&":"&$A13),'Input| Projects'!$AG:$AG)*'Calc| Overheads Allocation'!I$62),0) + IFERROR(SUMPRODUCT(INDIRECT("'Input| Projects'!"&$A13&":"&$A13),'Input| Projects'!$AG:$AG)*'Calc| Overheads Allocation'!I$62/(SUMPRODUCT(INDIRECT("'Input| Projects'!"&$A13&"10:"&$A13&"1000"),'Calc| Project Costs'!AB$10:AB$1000)+SUMPRODUCT(INDIRECT("'Input| Projects'!"&$A13&":"&$A13),'Input| Projects'!$AF:$AF)*'Calc| Overheads Allocation'!I$61+SUMPRODUCT(INDIRECT("'Input| Projects'!"&$A13&":"&$A13),'Input| Projects'!$AG:$AG)*'Calc| Overheads Allocation'!I$62),0) -> 0.2409767247 | M13: =IFERROR(INDEX('Input| Setup'!$E$8:$E$37,SMALL(IF('Input| Setup'!$F$8:$F$37="Dx",ROW('Input| Setup'!$F$8:$F$37)-ROW('Input| Setup'!$F$8)+1),ROWS('Input| Setup'!$F$8:$F13))),"") -> Substation Bays | N13: 0 | O13: 0 | P13: 0.2233737342 | Q13: 0.221743561 | R13: 0.2109453173 | S13: 0.2145759862 | T13: 0.2409767247 | W13: =IFERROR(INDEX('Input| Setup'!$E$8:$E$37,SMALL(IF('Input| Setup'!$F$8:$F$37="Tx",ROW('Input| Setup'!$F$8:$F$37)-ROW('Input| Setup'!$F$8)+1),ROWS('Input| Setup'!$F$8:$F13))),"") ->  | X13: 0 | Y13: 0 | Z13: 0 | AA13: 0 | AB13: 0 | AC13: 0 | AD13: 0
A14: AX | B14: 7 | C14: =IFERROR(IF('Input| Setup'!E14="","",'Input| Setup'!E14),"") -> Substation Establishment | F14: =IFERROR(SUMPRODUCT(INDIRECT("'Input| Projects'!"&$A14&":"&$A14),'Input| Projects'!$AF:$AF)*'Calc| Overheads Allocation'!E$61/(SUMPRODUCT(INDIRECT("'Input| Projects'!"&$A14&"10:"&$A14&"1000"),'Calc| Project Costs'!X$10:X$1000)+SUMPRODUCT(INDIRECT("'Input| Projects'!"&$A14&":"&$A14),'Input| Projects'!$AF:$AF)*'Calc| Overheads Allocation'!E$61+SUMPRODUCT(INDIRECT("'Input| Projects'!"&$A14&":"&$A14),'Input| Projects'!$AG:$AG)*'Calc| Overheads Allocation'!E$62),0) + IFERROR(SUMPRODUCT(INDIRECT("'Input| Projects'!"&$A14&":"&$A14),'Input| Projects'!$AG:$AG)*'Calc| Overheads Allocation'!E$62/(SUMPRODUCT(INDIRECT("'Input| Projects'!"&$A14&"10:"&$A14&"1000"),'Calc| Project Costs'!X$10:X$1000)+SUMPRODUCT(INDIRECT("'Input| Projects'!"&$A14&":"&$A14),'Input| Projects'!$AF:$AF)*'Calc| Overheads Allocation'!E$61+SUMPRODUCT(INDIRECT("'Input| Projects'!"&$A14&":"&$A14),'Input| Projects'!$AG:$AG)*'Calc| Overheads Allocation'!E$62),0) -> 0.2227985932 | G14: =IFERROR(SUMPRODUCT(INDIRECT("'Input| Projects'!"&$A14&":"&$A14),'Input| Projects'!$AF:$AF)*'Calc| Overheads Allocation'!F$61/(SUMPRODUCT(INDIRECT("'Input| Projects'!"&$A14&"10:"&$A14&"1000"),'Calc| Project Costs'!Y$10:Y$1000)+SUMPRODUCT(INDIRECT("'Input| Projects'!"&$A14&":"&$A14),'Input| Projects'!$AF:$AF)*'Calc| Overheads Allocation'!F$61+SUMPRODUCT(INDIRECT("'Input| Projects'!"&$A14&":"&$A14),'Input| Projects'!$AG:$AG)*'Calc| Overheads Allocation'!F$62),0) + IFERROR(SUMPRODUCT(INDIRECT("'Input| Projects'!"&$A14&":"&$A14),'Input| Projects'!$AG:$AG)*'Calc| Overheads Allocation'!F$62/(SUMPRODUCT(INDIRECT("'Input| Projects'!"&$A14&"10:"&$A14&"1000"),'Calc| Project Costs'!Y$10:Y$1000)+SUMPRODUCT(INDIRECT("'Input| Projects'!"&$A14&":"&$A14),'Input| Projects'!$AF:$AF)*'Calc| Overheads Allocation'!F$61+SUMPRODUCT(INDIRECT("'Input| Projects'!"&$A14&":"&$A14),'Input| Projects'!$AG:$AG)*'Calc| Overheads Allocation'!F$62),0) -> 0.2423732837 | H14: =IFERROR(SUMPRODUCT(INDIRECT("'Input| Projects'!"&$A14&":"&$A14),'Input| Projects'!$AF:$AF)*'Calc| Overheads Allocation'!G$61/(SUMPRODUCT(INDIRECT("'Input| Projects'!"&$A14&"10:"&$A14&"1000"),'Calc| Project Costs'!Z$10:Z$1000)+SUMPRODUCT(INDIRECT("'Input| Projects'!"&$A14&":"&$A14),'Input| Projects'!$AF:$AF)*'Calc| Overheads Allocation'!G$61+SUMPRODUCT(INDIRECT("'Input| Projects'!"&$A14&":"&$A14),'Input| Projects'!$AG:$AG)*'Calc| Overheads Allocation'!G$62),0) + IFERROR(SUMPRODUCT(INDIRECT("'Input| Projects'!"&$A14&":"&$A14),'Input| Projects'!$AG:$AG)*'Calc| Overheads Allocation'!G$62/(SUMPRODUCT(INDIRECT("'Input| Projects'!"&$A14&"10:"&$A14&"1000"),'Calc| Project Costs'!Z$10:Z$1000)+SUMPRODUCT(INDIRECT("'Input| Projects'!"&$A14&":"&$A14),'Input| Projects'!$AF:$AF)*'Calc| Overheads Allocation'!G$61+SUMPRODUCT(INDIRECT("'Input| Projects'!"&$A14&":"&$A14),'Input| Projects'!$AG:$AG)*'Calc| Overheads Allocation'!G$62),0) -> 0.2557473134 | I14: =IFERROR(SUMPRODUCT(INDIRECT("'Input| Projects'!"&$A14&":"&$A14),'Input| Projects'!$AF:$AF)*'Calc| Overheads Allocation'!H$61/(SUMPRODUCT(INDIRECT("'Input| Projects'!"&$A14&"10:"&$A14&"1000"),'Calc| Project Costs'!AA$10:AA$1000)+SUMPRODUCT(INDIRECT("'Input| Projects'!"&$A14&":"&$A14),'Input| Projects'!$AF:$AF)*'Calc| Overheads Allocation'!H$61+SUMPRODUCT(INDIRECT("'Input| Projects'!"&$A14&":"&$A14),'Input| Projects'!$AG:$AG)*'Calc| Overheads Allocation'!H$62),0) + IFERROR(SUMPRODUCT(INDIRECT("'Input| Projects'!"&$A14&":"&$A14),'Input| Projects'!$AG:$AG)*'Calc| Overheads Allocation'!H$62/(SUMPRODUCT(INDIRECT("'Input| Projects'!"&$A14&"10:"&$A14&"1000"),'Calc| Project Costs'!AA$10:AA$1000)+SUMPRODUCT(INDIRECT("'Input| Projects'!"&$A14&":"&$A14),'Input| Projects'!$AF:$AF)*'Calc| Overheads Allocation'!H$61+SUMPRODUCT(INDIRECT("'Input| Projects'!"&$A14&":"&$A14),'Input| Projects'!$AG:$AG)*'Calc| Overheads Allocation'!H$62),0) -> 0.2257322124 | J14: =IFERROR(SUMPRODUCT(INDIRECT("'Input| Projects'!"&$A14&":"&$A14),'Input| Projects'!$AF:$AF)*'Calc| Overheads Allocation'!I$61/(SUMPRODUCT(INDIRECT("'Input| Projects'!"&$A14&"10:"&$A14&"1000"),'Calc| Project Costs'!AB$10:AB$1000)+SUMPRODUCT(INDIRECT("'Input| Projects'!"&$A14&":"&$A14),'Input| Projects'!$AF:$AF)*'Calc| Overheads Allocation'!I$61+SUMPRODUCT(INDIRECT("'Input| Projects'!"&$A14&":"&$A14),'Input| Projects'!$AG:$AG)*'Calc| Overheads Allocation'!I$62),0) + IFERROR(SUMPRODUCT(INDIRECT("'Input| Projects'!"&$A14&":"&$A14),'Input| Projects'!$AG:$AG)*'Calc| Overheads Allocation'!I$62/(SUMPRODUCT(INDIRECT("'Input| Projects'!"&$A14&"10:"&$A14&"1000"),'Calc| Project Costs'!AB$10:AB$1000)+SUMPRODUCT(INDIRECT("'Input| Projects'!"&$A14&":"&$A14),'Input| Projects'!$AF:$AF)*'Calc| Overheads Allocation'!I$61+SUMPRODUCT(INDIRECT("'Input| Projects'!"&$A14&":"&$A14),'Input| Projects'!$AG:$AG)*'Calc| Overheads Allocation'!I$62),0) -> 0.2582271224 | M14: =IFERROR(INDEX('Input| Setup'!$E$8:$E$37,SMALL(IF('Input| Setup'!$F$8:$F$37="Dx",ROW('Input| Setup'!$F$8:$F$37)-ROW('Input| Setup'!$F$8)+1),ROWS('Input| Setup'!$F$8:$F14))),"") -> Substation Establishment | N14: 0 | O14: 0 | P14: 0.2227985932 | Q14: 0.2423732837 | R14: 0.2557473134 | S14: 0.2257322124 | T14: 0.2582271224 | W14: =IFERROR(INDEX('Input| Setup'!$E$8:$E$37,SMALL(IF('Input| Setup'!$F$8:$F$37="Tx",ROW('Input| Setup'!$F$8:$F$37)-ROW('Input| Setup'!$F$8)+1),ROWS('Input| Setup'!$F$8:$F14))),"") ->  | X14: 0 | Y14: 0 | Z14: 0 | AA14: 0 | AB14: 0 | AC14: 0 | AD14: 0
A15: AY | B15: 8 | C15: =IFERROR(IF('Input| Setup'!E15="","",'Input| Setup'!E15),"") -> Distribution Substation Switchgear | F15: =IFERROR(SUMPRODUCT(INDIRECT("'Input| Projects'!"&$A15&":"&$A15),'Input| Projects'!$AF:$AF)*'Calc| Overheads Allocation'!E$61/(SUMPRODUCT(INDIRECT("'Input| Projects'!"&$A15&"10:"&$A15&"1000"),'Calc| Project Costs'!X$10:X$1000)+SUMPRODUCT(INDIRECT("'Input| Projects'!"&$A15&":"&$A15),'Input| Projects'!$AF:$AF)*'Calc| Overheads Allocation'!E$61+SUMPRODUCT(INDIRECT("'Input| Projects'!"&$A15&":"&$A15),'Input| Projects'!$AG:$AG)*'Calc| Overheads Allocation'!E$62),0) + IFERROR(SUMPRODUCT(INDIRECT("'Input| Projects'!"&$A15&":"&$A15),'Input| Projects'!$AG:$AG)*'Calc| Overheads Allocation'!E$62/(SUMPRODUCT(INDIRECT("'Input| Projects'!"&$A15&"10:"&$A15&"1000"),'Calc| Project Costs'!X$10:X$1000)+SUMPRODUCT(INDIRECT("'Input| Projects'!"&$A15&":"&$A15),'Input| Projects'!$AF:$AF)*'Calc| Overheads Allocation'!E$61+SUMPRODUCT(INDIRECT("'Input| Projects'!"&$A15&":"&$A15),'Input| Projects'!$AG:$AG)*'Calc| Overheads Allocation'!E$62),0) -> 0.2128320852 | G15: =IFERROR(SUMPRODUCT(INDIRECT("'Input| Projects'!"&$A15&":"&$A15),'Input| Projects'!$AF:$AF)*'Calc| Overheads Allocation'!F$61/(SUMPRODUCT(INDIRECT("'Input| Projects'!"&$A15&"10:"&$A15&"1000"),'Calc| Project Costs'!Y$10:Y$1000)+SUMPRODUCT(INDIRECT("'Input| Projects'!"&$A15&":"&$A15),'Input| Projects'!$AF:$AF)*'Calc| Overheads Allocation'!F$61+SUMPRODUCT(INDIRECT("'Input| Projects'!"&$A15&":"&$A15),'Input| Projects'!$AG:$AG)*'Calc| Overheads Allocation'!F$62),0) + IFERROR(SUMPRODUCT(INDIRECT("'Input| Projects'!"&$A15&":"&$A15),'Input| Projects'!$AG:$AG)*'Calc| Overheads Allocation'!F$62/(SUMPRODUCT(INDIRECT("'Input| Projects'!"&$A15&"10:"&$A15&"1000"),'Calc| Project Costs'!Y$10:Y$1000)+SUMPRODUCT(INDIRECT("'Input| Projects'!"&$A15&":"&$A15),'Input| Projects'!$AF:$AF)*'Calc| Overheads Allocation'!F$61+SUMPRODUCT(INDIRECT("'Input| Projects'!"&$A15&":"&$A15),'Input| Projects'!$AG:$AG)*'Calc| Overheads Allocation'!F$62),0) -> 0.2099968482 | H15: =IFERROR(SUMPRODUCT(INDIRECT("'Input| Projects'!"&$A15&":"&$A15),'Input| Projects'!$AF:$AF)*'Calc| Overheads Allocation'!G$61/(SUMPRODUCT(INDIRECT("'Input| Projects'!"&$A15&"10:"&$A15&"1000"),'Calc| Project Costs'!Z$10:Z$1000)+SUMPRODUCT(INDIRECT("'Input| Projects'!"&$A15&":"&$A15),'Input| Projects'!$AF:$AF)*'Calc| Overheads Allocation'!G$61+SUMPRODUCT(INDIRECT("'Input| Projects'!"&$A15&":"&$A15),'Input| Projects'!$AG:$AG)*'Calc| Overheads Allocation'!G$62),0) + IFERROR(SUMPRODUCT(INDIRECT("'Input| Projects'!"&$A15&":"&$A15),'Input| Projects'!$AG:$AG)*'Calc| Overheads Allocation'!G$62/(SUMPRODUCT(INDIRECT("'Input| Projects'!"&$A15&"10:"&$A15&"1000"),'Calc| Project Costs'!Z$10:Z$1000)+SUMPRODUCT(INDIRECT("'Input| Projects'!"&$A15&":"&$A15),'Input| Projects'!$AF:$AF)*'Calc| Overheads Allocation'!G$61+SUMPRODUCT(INDIRECT("'Input| Projects'!"&$A15&":"&$A15),'Input| Projects'!$AG:$AG)*'Calc| Overheads Allocation'!G$62),0) -> 0.2323736565 | I15: =IFERROR(SUMPRODUCT(INDIRECT("'Input| Projects'!"&$A15&":"&$A15),'Input| Projects'!$AF:$AF)*'Calc| Overheads Allocation'!H$61/(SUMPRODUCT(INDIRECT("'Input| Projects'!"&$A15&"10:"&$A15&"1000"),'Calc| Project Costs'!AA$10:AA$1000)+SUMPRODUCT(INDIRECT("'Input| Projects'!"&$A15&":"&$A15),'Input| Projects'!$AF:$AF)*'Calc| Overheads Allocation'!H$61+SUMPRODUCT(INDIRECT("'Input| Projects'!"&$A15&":"&$A15),'Input| Projects'!$AG:$AG)*'Calc| Overheads Allocation'!H$62),0) + IFERROR(SUMPRODUCT(INDIRECT("'Input| Projects'!"&$A15&":"&$A15),'Input| Projects'!$AG:$AG)*'Calc| Overheads Allocation'!H$62/(SUMPRODUCT(INDIRECT("'Input| Projects'!"&$A15&"10:"&$A15&"1000"),'Calc| Project Costs'!AA$10:AA$1000)+SUMPRODUCT(INDIRECT("'Input| Projects'!"&$A15&":"&$A15),'Input| Projects'!$AF:$AF)*'Calc| Overheads Allocation'!H$61+SUMPRODUCT(INDIRECT("'Input| Projects'!"&$A15&":"&$A15),'Input| Projects'!$AG:$AG)*'Calc| Overheads Allocation'!H$62),0) -> 0.2527529054 | J15: =IFERROR(SUMPRODUCT(INDIRECT("'Input| Projects'!"&$A15&":"&$A15),'Input| Projects'!$AF:$AF)*'Calc| Overheads Allocation'!I$61/(SUMPRODUCT(INDIRECT("'Input| Projects'!"&$A15&"10:"&$A15&"1000"),'Calc| Project Costs'!AB$10:AB$1000)+SUMPRODUCT(INDIRECT("'Input| Projects'!"&$A15&":"&$A15),'Input| Projects'!$AF:$AF)*'Calc| Overheads Allocation'!I$61+SUMPRODUCT(INDIRECT("'Input| Projects'!"&$A15&":"&$A15),'Input| Projects'!$AG:$AG)*'Calc| Overheads Allocation'!I$62),0) + IFERROR(SUMPRODUCT(INDIRECT("'Input| Projects'!"&$A15&":"&$A15),'Input| Projects'!$AG:$AG)*'Calc| Overheads Allocation'!I$62/(SUMPRODUCT(INDIRECT("'Input| Projects'!"&$A15&"10:"&$A15&"1000"),'Calc| Project Costs'!AB$10:AB$1000)+SUMPRODUCT(INDIRECT("'Input| Projects'!"&$A15&":"&$A15),'Input| Projects'!$AF:$AF)*'Calc| Overheads Allocation'!I$61+SUMPRODUCT(INDIRECT("'Input| Projects'!"&$A15&":"&$A15),'Input| Projects'!$AG:$AG)*'Calc| Overheads Allocation'!I$62),0) -> 0.24342382 | M15: =IFERROR(INDEX('Input| Setup'!$E$8:$E$37,SMALL(IF('Input| Setup'!$F$8:$F$37="Dx",ROW('Input| Setup'!$F$8:$F$37)-ROW('Input| Setup'!$F$8)+1),ROWS('Input| Setup'!$F$8:$F15))),"") -> Distribution Substation Switchgear | N15: 0 | O15: 0 | P15: 0.2128320852 | Q15: 0.2099968482 | R15: 0.2323736565 | S15: 0.2527529054 | T15: 0.24342382 | W15: =IFERROR(INDEX('Input| Setup'!$E$8:$E$37,SMALL(IF('Input| Setup'!$F$8:$F$37="Tx",ROW('Input| Setup'!$F$8:$F$37)-ROW('Input| Setup'!$F$8)+1),ROWS('Input| Setup'!$F$8:$F15))),"") ->  | X15: 0 | Y15: 0 | Z15: 0 | AA15: 0 | AB15: 0 | AC15: 0 | AD15: 0
A16: AZ | B16: 9 | C16: =IFERROR(IF('Input| Setup'!E16="","",'Input| Setup'!E16),"") -> Zone Transformers | F16: =IFERROR(SUMPRODUCT(INDIRECT("'Input| Projects'!"&$A16&":"&$A16),'Input| Projects'!$AF:$AF)*'Calc| Overheads Allocation'!E$61/(SUMPRODUCT(INDIRECT("'Input| Projects'!"&$A16&"10:"&$A16&"1000"),'Calc| Project Costs'!X$10:X$1000)+SUMPRODUCT(INDIRECT("'Input| Projects'!"&$A16&":"&$A16),'Input| Projects'!$AF:$AF)*'Calc| Overheads Allocation'!E$61+SUMPRODUCT(INDIRECT("'Input| Projects'!"&$A16&":"&$A16),'Input| Projects'!$AG:$AG)*'Calc| Overheads Allocation'!E$62),0) + IFERROR(SUMPRODUCT(INDIRECT("'Input| Projects'!"&$A16&":"&$A16),'Input| Projects'!$AG:$AG)*'Calc| Overheads Allocation'!E$62/(SUMPRODUCT(INDIRECT("'Input| Projects'!"&$A16&"10:"&$A16&"1000"),'Calc| Project Costs'!X$10:X$1000)+SUMPRODUCT(INDIRECT("'Input| Projects'!"&$A16&":"&$A16),'Input| Projects'!$AF:$AF)*'Calc| Overheads Allocation'!E$61+SUMPRODUCT(INDIRECT("'Input| Projects'!"&$A16&":"&$A16),'Input| Projects'!$AG:$AG)*'Calc| Overheads Allocation'!E$62),0) -> 0.3256161047 | G16: =IFERROR(SUMPRODUCT(INDIRECT("'Input| Projects'!"&$A16&":"&$A16),'Input| Projects'!$AF:$AF)*'Calc| Overheads Allocation'!F$61/(SUMPRODUCT(INDIRECT("'Input| Projects'!"&$A16&"10:"&$A16&"1000"),'Calc| Project Costs'!Y$10:Y$1000)+SUMPRODUCT(INDIRECT("'Input| Projects'!"&$A16&":"&$A16),'Input| Projects'!$AF:$AF)*'Calc| Overheads Allocation'!F$61+SUMPRODUCT(INDIRECT("'Input| Projects'!"&$A16&":"&$A16),'Input| Projects'!$AG:$AG)*'Calc| Overheads Allocation'!F$62),0) + IFERROR(SUMPRODUCT(INDIRECT("'Input| Projects'!"&$A16&":"&$A16),'Input| Projects'!$AG:$AG)*'Calc| Overheads Allocation'!F$62/(SUMPRODUCT(INDIRECT("'Input| Projects'!"&$A16&"10:"&$A16&"1000"),'Calc| Project Costs'!Y$10:Y$1000)+SUMPRODUCT(INDIRECT("'Input| Projects'!"&$A16&":"&$A16),'Input| Projects'!$AF:$AF)*'Calc| Overheads Allocation'!F$61+SUMPRODUCT(INDIRECT("'Input| Projects'!"&$A16&":"&$A16),'Input| Projects'!$AG:$AG)*'Calc| Overheads Allocation'!F$62),0) -> 0.2821070429 | H16: =IFERROR(SUMPRODUCT(INDIRECT("'Input| Projects'!"&$A16&":"&$A16),'Input| Projects'!$AF:$AF)*'Calc| Overheads Allocation'!G$61/(SUMPRODUCT(INDIRECT("'Input| Projects'!"&$A16&"10:"&$A16&"1000"),'Calc| Project Costs'!Z$10:Z$1000)+SUMPRODUCT(INDIRECT("'Input| Projects'!"&$A16&":"&$A16),'Input| Projects'!$AF:$AF)*'Calc| Overheads Allocation'!G$61+SUMPRODUCT(INDIRECT("'Input| Projects'!"&$A16&":"&$A16),'Input| Projects'!$AG:$AG)*'Calc| Overheads Allocation'!G$62),0) + IFERROR(SUMPRODUCT(INDIRECT("'Input| Projects'!"&$A16&":"&$A16),'Input| Projects'!$AG:$AG)*'Calc| Overheads Allocation'!G$62/(SUMPRODUCT(INDIRECT("'Input| Projects'!"&$A16&"10:"&$A16&"1000"),'Calc| Project Costs'!Z$10:Z$1000)+SUMPRODUCT(INDIRECT("'Input| Projects'!"&$A16&":"&$A16),'Input| Projects'!$AF:$AF)*'Calc| Overheads Allocation'!G$61+SUMPRODUCT(INDIRECT("'Input| Projects'!"&$A16&":"&$A16),'Input| Projects'!$AG:$AG)*'Calc| Overheads Allocation'!G$62),0) -> 0.1919390848 | I16: =IFERROR(SUMPRODUCT(INDIRECT("'Input| Projects'!"&$A16&":"&$A16),'Input| Projects'!$AF:$AF)*'Calc| Overheads Allocation'!H$61/(SUMPRODUCT(INDIRECT("'Input| Projects'!"&$A16&"10:"&$A16&"1000"),'Calc| Project Costs'!AA$10:AA$1000)+SUMPRODUCT(INDIRECT("'Input| Projects'!"&$A16&":"&$A16),'Input| Projects'!$AF:$AF)*'Calc| Overheads Allocation'!H$61+SUMPRODUCT(INDIRECT("'Input| Projects'!"&$A16&":"&$A16),'Input| Projects'!$AG:$AG)*'Calc| Overheads Allocation'!H$62),0) + IFERROR(SUMPRODUCT(INDIRECT("'Input| Projects'!"&$A16&":"&$A16),'Input| Projects'!$AG:$AG)*'Calc| Overheads Allocation'!H$62/(SUMPRODUCT(INDIRECT("'Input| Projects'!"&$A16&"10:"&$A16&"1000"),'Calc| Project Costs'!AA$10:AA$1000)+SUMPRODUCT(INDIRECT("'Input| Projects'!"&$A16&":"&$A16),'Input| Projects'!$AF:$AF)*'Calc| Overheads Allocation'!H$61+SUMPRODUCT(INDIRECT("'Input| Projects'!"&$A16&":"&$A16),'Input| Projects'!$AG:$AG)*'Calc| Overheads Allocation'!H$62),0) -> 0.2014954137 | J16: =IFERROR(SUMPRODUCT(INDIRECT("'Input| Projects'!"&$A16&":"&$A16),'Input| Projects'!$AF:$AF)*'Calc| Overheads Allocation'!I$61/(SUMPRODUCT(INDIRECT("'Input| Projects'!"&$A16&"10:"&$A16&"1000"),'Calc| Project Costs'!AB$10:AB$1000)+SUMPRODUCT(INDIRECT("'Input| Projects'!"&$A16&":"&$A16),'Input| Projects'!$AF:$AF)*'Calc| Overheads Allocation'!I$61+SUMPRODUCT(INDIRECT("'Input| Projects'!"&$A16&":"&$A16),'Input| Projects'!$AG:$AG)*'Calc| Overheads Allocation'!I$62),0) + IFERROR(SUMPRODUCT(INDIRECT("'Input| Projects'!"&$A16&":"&$A16),'Input| Projects'!$AG:$AG)*'Calc| Overheads Allocation'!I$62/(SUMPRODUCT(INDIRECT("'Input| Projects'!"&$A16&"10:"&$A16&"1000"),'Calc| Project Costs'!AB$10:AB$1000)+SUMPRODUCT(INDIRECT("'Input| Projects'!"&$A16&":"&$A16),'Input| Projects'!$AF:$AF)*'Calc| Overheads Allocation'!I$61+SUMPRODUCT(INDIRECT("'Input| Projects'!"&$A16&":"&$A16),'Input| Projects'!$AG:$AG)*'Calc| Overheads Allocation'!I$62),0) -> 0.1749105829 | M16: =IFERROR(INDEX('Input| Setup'!$E$8:$E$37,SMALL(IF('Input| Setup'!$F$8:$F$37="Dx",ROW('Input| Setup'!$F$8:$F$37)-ROW('Input| Setup'!$F$8)+1),ROWS('Input| Setup'!$F$8:$F16))),"") -> Zone Transformers | N16: 0 | O16: 0 | P16: 0.3256161047 | Q16: 0.2821070429 | R16: 0.1919390848 | S16: 0.2014954137 | T16: 0.1749105829 | W16: =IFERROR(INDEX('Input| Setup'!$E$8:$E$37,SMALL(IF('Input| Setup'!$F$8:$F$37="Tx",ROW('Input| Setup'!$F$8:$F$37)-ROW('Input| Setup'!$F$8)+1),ROWS('Input| Setup'!$F$8:$F16))),"") ->  | X16: 0 | Y16: 0 | Z16: 0 | AA16: 0 | AB16: 0 | AC16: 0 | AD16: 0
A17: BA | B17: 10 | C17: =IFERROR(IF('Input| Setup'!E17="","",'Input| Setup'!E17),"") -> Distribution Transformers | F17: =IFERROR(SUMPRODUCT(INDIRECT("'Input| Projects'!"&$A17&":"&$A17),'Input| Projects'!$AF:$AF)*'Calc| Overheads Allocation'!E$61/(SUMPRODUCT(INDIRECT("'Input| Projects'!"&$A17&"10:"&$A17&"1000"),'Calc| Project Costs'!X$10:X$1000)+SUMPRODUCT(INDIRECT("'Input| Projects'!"&$A17&":"&$A17),'Input| Projects'!$AF:$AF)*'Calc| Overheads Allocation'!E$61+SUMPRODUCT(INDIRECT("'Input| Projects'!"&$A17&":"&$A17),'Input| Projects'!$AG:$AG)*'Calc| Overheads Allocation'!E$62),0) + IFERROR(SUMPRODUCT(INDIRECT("'Input| Projects'!"&$A17&":"&$A17),'Input| Projects'!$AG:$AG)*'Calc| Overheads Allocation'!E$62/(SUMPRODUCT(INDIRECT("'Input| Projects'!"&$A17&"10:"&$A17&"1000"),'Calc| Project Costs'!X$10:X$1000)+SUMPRODUCT(INDIRECT("'Input| Projects'!"&$A17&":"&$A17),'Input| Projects'!$AF:$AF)*'Calc| Overheads Allocation'!E$61+SUMPRODUCT(INDIRECT("'Input| Projects'!"&$A17&":"&$A17),'Input| Projects'!$AG:$AG)*'Calc| Overheads Allocation'!E$62),0) -> 0.2458732128 | G17: =IFERROR(SUMPRODUCT(INDIRECT("'Input| Projects'!"&$A17&":"&$A17),'Input| Projects'!$AF:$AF)*'Calc| Overheads Allocation'!F$61/(SUMPRODUCT(INDIRECT("'Input| Projects'!"&$A17&"10:"&$A17&"1000"),'Calc| Project Costs'!Y$10:Y$1000)+SUMPRODUCT(INDIRECT("'Input| Projects'!"&$A17&":"&$A17),'Input| Projects'!$AF:$AF)*'Calc| Overheads Allocation'!F$61+SUMPRODUCT(INDIRECT("'Input| Projects'!"&$A17&":"&$A17),'Input| Projects'!$AG:$AG)*'Calc| Overheads Allocation'!F$62),0) + IFERROR(SUMPRODUCT(INDIRECT("'Input| Projects'!"&$A17&":"&$A17),'Input| Projects'!$AG:$AG)*'Calc| Overheads Allocation'!F$62/(SUMPRODUCT(INDIRECT("'Input| Projects'!"&$A17&"10:"&$A17&"1000"),'Calc| Project Costs'!Y$10:Y$1000)+SUMPRODUCT(INDIRECT("'Input| Projects'!"&$A17&":"&$A17),'Input| Projects'!$AF:$AF)*'Calc| Overheads Allocation'!F$61+SUMPRODUCT(INDIRECT("'Input| Projects'!"&$A17&":"&$A17),'Input| Projects'!$AG:$AG)*'Calc| Overheads Allocation'!F$62),0) -> 0.2314265531 | H17: =IFERROR(SUMPRODUCT(INDIRECT("'Input| Projects'!"&$A17&":"&$A17),'Input| Projects'!$AF:$AF)*'Calc| Overheads Allocation'!G$61/(SUMPRODUCT(INDIRECT("'Input| Projects'!"&$A17&"10:"&$A17&"1000"),'Calc| Project Costs'!Z$10:Z$1000)+SUMPRODUCT(INDIRECT("'Input| Projects'!"&$A17&":"&$A17),'Input| Projects'!$AF:$AF)*'Calc| Overheads Allocation'!G$61+SUMPRODUCT(INDIRECT("'Input| Projects'!"&$A17&":"&$A17),'Input| Projects'!$AG:$AG)*'Calc| Overheads Allocation'!G$62),0) + IFERROR(SUMPRODUCT(INDIRECT("'Input| Projects'!"&$A17&":"&$A17),'Input| Projects'!$AG:$AG)*'Calc| Overheads Allocation'!G$62/(SUMPRODUCT(INDIRECT("'Input| Projects'!"&$A17&"10:"&$A17&"1000"),'Calc| Project Costs'!Z$10:Z$1000)+SUMPRODUCT(INDIRECT("'Input| Projects'!"&$A17&":"&$A17),'Input| Projects'!$AF:$AF)*'Calc| Overheads Allocation'!G$61+SUMPRODUCT(INDIRECT("'Input| Projects'!"&$A17&":"&$A17),'Input| Projects'!$AG:$AG)*'Calc| Overheads Allocation'!G$62),0) -> 0.2450737574 | I17: =IFERROR(SUMPRODUCT(INDIRECT("'Input| Projects'!"&$A17&":"&$A17),'Input| Projects'!$AF:$AF)*'Calc| Overheads Allocation'!H$61/(SUMPRODUCT(INDIRECT("'Input| Projects'!"&$A17&"10:"&$A17&"1000"),'Calc| Project Costs'!AA$10:AA$1000)+SUMPRODUCT(INDIRECT("'Input| Projects'!"&$A17&":"&$A17),'Input| Projects'!$AF:$AF)*'Calc| Overheads Allocation'!H$61+SUMPRODUCT(INDIRECT("'Input| Projects'!"&$A17&":"&$A17),'Input| Projects'!$AG:$AG)*'Calc| Overheads Allocation'!H$62),0) + IFERROR(SUMPRODUCT(INDIRECT("'Input| Projects'!"&$A17&":"&$A17),'Input| Projects'!$AG:$AG)*'Calc| Overheads Allocation'!H$62/(SUMPRODUCT(INDIRECT("'Input| Projects'!"&$A17&"10:"&$A17&"1000"),'Calc| Project Costs'!AA$10:AA$1000)+SUMPRODUCT(INDIRECT("'Input| Projects'!"&$A17&":"&$A17),'Input| Projects'!$AF:$AF)*'Calc| Overheads Allocation'!H$61+SUMPRODUCT(INDIRECT("'Input| Projects'!"&$A17&":"&$A17),'Input| Projects'!$AG:$AG)*'Calc| Overheads Allocation'!H$62),0) -> 0.2240374769 | J17: =IFERROR(SUMPRODUCT(INDIRECT("'Input| Projects'!"&$A17&":"&$A17),'Input| Projects'!$AF:$AF)*'Calc| Overheads Allocation'!I$61/(SUMPRODUCT(INDIRECT("'Input| Projects'!"&$A17&"10:"&$A17&"1000"),'Calc| Project Costs'!AB$10:AB$1000)+SUMPRODUCT(INDIRECT("'Input| Projects'!"&$A17&":"&$A17),'Input| Projects'!$AF:$AF)*'Calc| Overheads Allocation'!I$61+SUMPRODUCT(INDIRECT("'Input| Projects'!"&$A17&":"&$A17),'Input| Projects'!$AG:$AG)*'Calc| Overheads Allocation'!I$62),0) + IFERROR(SUMPRODUCT(INDIRECT("'Input| Projects'!"&$A17&":"&$A17),'Input| Projects'!$AG:$AG)*'Calc| Overheads Allocation'!I$62/(SUMPRODUCT(INDIRECT("'Input| Projects'!"&$A17&"10:"&$A17&"1000"),'Calc| Project Costs'!AB$10:AB$1000)+SUMPRODUCT(INDIRECT("'Input| Projects'!"&$A17&":"&$A17),'Input| Projects'!$AF:$AF)*'Calc| Overheads Allocation'!I$61+SUMPRODUCT(INDIRECT("'Input| Projects'!"&$A17&":"&$A17),'Input| Projects'!$AG:$AG)*'Calc| Overheads Allocation'!I$62),0) -> 0.2275925605 | M17: =IFERROR(INDEX('Input| Setup'!$E$8:$E$37,SMALL(IF('Input| Setup'!$F$8:$F$37="Dx",ROW('Input| Setup'!$F$8:$F$37)-ROW('Input| Setup'!$F$8)+1),ROWS('Input| Setup'!$F$8:$F17))),"") -> Distribution Transformers | N17: 0 | O17: 0 | P17: 0.2458732128 | Q17: 0.2314265531 | R17: 0.2450737574 | S17: 0.2240374769 | T17: 0.2275925605 | W17: =IFERROR(INDEX('Input| Setup'!$E$8:$E$37,SMALL(IF('Input| Setup'!$F$8:$F$37="Tx",ROW('Input| Setup'!$F$8:$F$37)-ROW('Input| Setup'!$F$8)+1),ROWS('Input| Setup'!$F$8:$F17))),"") ->  | X17: 0 | Y17: 0 | Z17: 0 | AA17: 0 | AB17: 0 | AC17: 0 | AD17: 0
